Workbook

Sheet RFC_Model_Pro (hidden)
A1: **************************************************************************************************************
A2: Making changes below this red line
A3: or to the structure of this worksheet can cause
A4: the model to stop working correctly.
A5: ************************************************************************************************************** | S5: Row | T5: Top | U5: Right | V5: Bottom | W5: Left | X5: Center | Y5: Center
A6: 40 | K6: ID | L6: Name | M6: Description | N6: Orientation | O6: Scaling | P6: AdjustTo | Q6: FitWide | R6: FitHeight | S6: Repeat | T6: Mar | U6: Mar | V6: Mar | W6: Mar | X6: Hor | Y6: Vert
B7: Client: | K7: RFCID_2 | L7: Input - Key Assumptions | N7: FALSE | O7: FALSE | P7: 100 | Q7: 1 | R7: 1 | X7: FALSE | Y7: FALSE
K8: RFCID_3 | L8: Misc Inputs | N8: FALSE | O8: TRUE | P8: 100 | Q8: 1 | R8: 1 | X8: FALSE | Y8: FALSE
K9: RFCID_25 | L9: Input - ENR CCI Factors | N9: TRUE | O9: FALSE | P9: 100 | Q9: 1 | R9: 1 | X9: FALSE | Y9: FALSE
B10: CheckNav | C10: FALSE | K10: RFCID_10 | L10: Input - CIP | N10: FALSE | O10: FALSE | P10: 100 | Q10: 1 | R10: 1 | X10: FALSE | Y10: FALSE
B11: Check Home Close | C11: FALSE | K11: RFCID_5 | L11: Input - Sewer O&M Expenses | N11: TRUE | O11: FALSE | P11: 100 | Q11: 1 | R11: 2 | X11: FALSE | Y11: FALSE
K12: RFCID_6 | L12: Input - Current Sewer Rate Structure | N12: FALSE | O12: FALSE | P12: 100 | Q12: 1 | R12: 1 | X12: FALSE | Y12: FALSE
K13: RFCID_7 | L13: Input - Sewer Account & Consumption Summary | N13: TRUE | O13: FALSE | P13: 100 | Q13: 1 | R13: 1 | X13: FALSE | Y13: FALSE
K14: RFCID_22 | L14: Input - Influent Flow Data | N14: FALSE | O14: FALSE | P14: 100 | Q14: 1 | R14: 1 | X14: FALSE | Y14: FALSE
K15: RFCID_23 | L15: Input - WW Customer Strengths | N15: FALSE | O15: FALSE | P15: 100 | Q15: 1 | R15: 1 | X15: FALSE | Y15: FALSE
K16: RFCID_9 | L16: Input - Sewer Fund Revenues from Operating Budget | N16: FALSE | O16: FALSE | P16: 100 | Q16: 1 | R16: 1 | X16: FALSE | Y16: FALSE
K17: RFCID_15 | L17: Input - Sewer Beginning Fund Balances | N17: TRUE | O17: FALSE | P17: 100 | Q17: 1 | R17: 1 | X17: FALSE | Y17: FALSE
K18: RFCID_11 | L18: Input - Sewer Debt Service | N18: FALSE | O18: FALSE | P18: 100 | Q18: 1 | R18: 1 | X18: FALSE | Y18: FALSE
K19: RFCID_16 | L19: Input - Sewer Asset List | N19: TRUE | O19: FALSE | P19: 100 | Q19: 1 | R19: 1 | X19: FALSE | Y19: FALSE
K20: RFCID_17 | L20: Input - Water Asset List | N20: TRUE | O20: FALSE | P20: 100 | Q20: 1 | R20: 3 | X20: FALSE | Y20: FALSE
K21: RFCID_20 | L21: Input - Current Water Rate Structure | N21: TRUE | O21: TRUE | P21: 100 | Q21: 1 | R21: 1 | X21: FALSE | Y21: FALSE
K22: RFCID_21 | L22: Input - Water O&M Expenses | N22: TRUE | O22: FALSE | P22: 100 | Q22: 1 | R22: 4 | X22: FALSE | Y22: FALSE
K23: RFCID_29 | L23: Input - Water Fund Revenues from Operating Budget | N23: FALSE | O23: FALSE | P23: 100 | Q23: 1 | R23: 1 | X23: FALSE | Y23: FALSE
K24: RFCID_26 | L24: Input - Water Supply Cost Calculations | N24: FALSE | O24: FALSE | P24: 100 | Q24: 1 | R24: 1 | X24: FALSE | Y24: FALSE
K25: RFCID_24 | L25: Input - Peaking Factors | N25: FALSE | O25: FALSE | P25: 100 | Q25: 1 | R25: 1 | X25: FALSE | Y25: FALSE
K26: RFCID_28 | L26: Input - Water & RW Debts | N26: TRUE | O26: FALSE | P26: 100 | Q26: 1 | R26: 2 | X26: FALSE | Y26: FALSE
K27: RFCID_27 | L27: Input - RW Expansion O&M Cost | N27: FALSE | O27: FALSE | P27: 100 | Q27: 1 | R27: 1 | X27: FALSE | Y27: FALSE
K28: RFCID_8 | L28: Results - Calculated Revenues from Sewer Rates | N28: FALSE | O28: FALSE | P28: 100 | Q28: 1 | R28: 1 | X28: FALSE | Y28: FALSE
K29: RFCID_12 | L29: Results - Sewer Operating Cash Flows | N29: TRUE | O29: FALSE | P29: 100 | Q29: 1 | R29: 1 | X29: FALSE | Y29: FALSE
K30: RFCID_13 | L30: Results - Sewer Fund Balances | N30: TRUE | O30: FALSE | P30: 100 | Q30: 1 | R30: 1 | X30: FALSE | Y30: FALSE
K31: RFCID_14 | L31: Sewer Proforma Statement | N31: TRUE | O31: FALSE | P31: 100 | Q31: 1 | R31: 1 | X31: FALSE | Y31: FALSE
K32: RFCID_18 | L32: Sewer Rates Dashboard | N32: FALSE | O32: FALSE | P32: 100 | Q32: 1 | R32: 1 | X32: FALSE | Y32: FALSE
K33: RFCID_19 | L33: Sewer Financial Plan Dashboard | N33: TRUE | O33: FALSE | P33: 100 | Q33: 1 | R33: 1 | X33: FALSE | Y33: FALSE
K34: RFCID_36 | L34: Sewer Cost of Service Analysis | N34: TRUE | O34: FALSE | P34: 100 | Q34: 1 | R34: 4 | X34: FALSE | Y34: FALSE
K35: RFCID_38 | L35: Results - Calculated Revenues from Current Water Rates | N35: FALSE | O35: FALSE | P35: 100 | Q35: 1 | R35: 1 | X35: FALSE | Y35: FALSE
K36: RFCID_30 | L36: Results - Water Operating Cash Flows | N36: TRUE | O36: FALSE | P36: 100 | Q36: 1 | R36: 1 | X36: FALSE | Y36: FALSE
K37: RFCID_31 | L37: Results - Water Reserve Activities | N37: FALSE | O37: FALSE | P37: 100 | Q37: 1 | R37: 1 | X37: FALSE | Y37: FALSE
K38: RFCID_32 | L38: Water Proforma Statement | N38: FALSE | O38: FALSE | P38: 100 | Q38: 1 | R38: 1 | X38: FALSE | Y38: FALSE
K39: RFCID_37 | L39: Water Cost of Service Analysis | N39: TRUE | O39: FALSE | P39: 100 | Q39: 1 | R39: 4 | X39: FALSE | Y39: FALSE
K40: RFCID_34 | L40: Water Financial Plan Dashboard | N40: TRUE | O40: FALSE | P40: 100 | Q40: 1 | R40: 1 | X40: FALSE | Y40: FALSE
K41: RFCID_33 | L41: RW Proforma Statement | N41: FALSE | O41: FALSE | P41: 100 | Q41: 1 | R41: 1 | X41: FALSE | Y41: FALSE
K42: RFCID_35 | L42: RW Financial Plan Dashboard | N42: TRUE | O42: FALSE | P42: 100 | Q42: 1 | R42: 1 | X42: FALSE | Y42: FALSE
K43: RFCID_39 | L43: Results - RW Operating Cash Flows | N43: FALSE | O43: FALSE | P43: 100 | Q43: 1 | R43: 2 | X43: FALSE | Y43: FALSE
K44: RFCID_40 | L44: RW Rates | N44: FALSE | O44: FALSE | P44: 100 | Q44: 1 | R44: 1 | X44: FALSE | Y44: FALSE

Sheet MPScenarios (hidden)
A1: Scenario Names | B1: CreatedBy | C1: Date | K1: Scenario Name | L1: CreatedBy | M1: Date
J2: Control Names
J3: Values

Sheet Home
F3: =Model -> Financial Plan & COS Model
A5: Client | B5: City of San Clemente
A6: Contact | B6: Tom Rendena | F6: Inputs | I6: Tables / Schedule / Results
B7: Municipal Services Manager | F7: Sewer Funds | I7: Sewer Funds
B8: 100 Avendia Presidio | F8: Input - Current Sewer Rate Structure | I8: Results - Calculated Revenues from Sewer Rates
B9: San Clemente, CA 92672 | F9: Input - Sewer O&M Expenses | I9: Results - Sewer Operating Cash Flows
B10: (949) 361 - 8312 | F10: Input - Influent Flow Data | I10: Results - Sewer Fund Balances
A11: Model | B11: Financial Plan & COS Model | F11: Input - WW Customer Strengths | I11: Sewer Proforma Statement
F12: Input - Sewer Account & Consumption Summary | I12: Sewer Rates Dashboard
A13: Prepared by | F13: Input - Sewer Fund Revenues from Operating Budget | I13: Sewer Financial Plan Dashboard
F14: Input - Sewer Beginning Fund Balances | I14: Sewer Cost of Service Analysis
F15: Input - Sewer Asset List
F16: Input - Sewer Debt Service
A17: Contacts
A18: Sanjay Gaur, Manager
A19: Khanh Phan - Sr Consultant
F20: Water Funds | I20: Water Funds
F21: Input - Current Water Rate Structure | I21: Water Proforma Statement
A22: Color Key | F22: Input - Water O&M Expenses | I22: Water Financial Plan Dashboard
A23: Inputs | F23: Input - Peaking Factors | I23: Results - Water Operating Cash Flows
A24: Selecting cells | F24: Input - Water Asset List | I24: Results - Water Reserve Activities
A25: Important Result | F25: Input - Water Supply Cost Calculations | I25: Water Cost of Service Analysis
A26: Need to be confirmed | F26: Input - Water & RW Debts
A27: ERROR | F27: Input - Water Fund Revenues from Operating Budget
F32: Reclaimed Water Funds | I32: Reclaimed Water Funds
F33: Input - RW Expansion O&M Cost | I33: RW Proforma Statement
I34: RW Financial Plan Dashboard
I35: RW Rates
F40: General Inputs
F41: Input - Key Assumptions
F42: Misc Inputs
F43: Input - CIP

Sheet Notes
A1: =client -> City of San Clemente | F1: =Model -> Financial Plan & COS Model
A2: Notes | F2: =rfc_budyear -> 2012
A3: Date | B3: Notes
A4: 2011-10-31 | B4: Discussion with Tom Rendina about Recycled Water
B5: Distribution conversion cost will be paid by customers directly by cash or installment payments --> Do not include in the RW analysis
B6: Connection Fees --> Restricted Fund: Exclude it from the analysis
B7: Recycled Water Fund (#465) will be modeled as separated enterprise fund to identify the deficit, subsidy from water fund and the break even point of the expansion.
B8: The increase in RW sale will be the corresponding decrease in potable water sales.
B9: #461 will be allocated between water & RW
A11: 2011-11-21 | B11: Need to have reserve policy
B12: Need to have R&R Funding Schedule (B&C Study) | C12: 3% inflated per year
B13: Need to do proforma for water, RW alone, without debt coverage
A16: 2011-11-29 | B16: Water - 3 scenarios: Status Quo, Fully Funding Depreciation, Reduced $500,000 depreciation funding until Fy 2015
B17: Sewer - 3 scenarios: Status Quo, Fully Funding Depreciation, Reduced $500,000 depreciation funding until Fy 2015
B18: RW - uniform rates
B19: Meet with City Manager - ~ end of Jan for Water Rates
B21: Dec 13 - with City Manager - Fplans, Sewer Rates, RW Rates, and discuss policy options on Water Rates
B22: Mid Jan - webminar with Staff to review Water Rates
A24: 2012-02-13 | B24: Web conference with Tom & Dave
B25: RW Discussion
B26: 2 Rate Options - Modified Status Quo & Uniform
B27: Discussed about tiered rate structure for non-potable (Reclaimed) water: non contract usage within efficient level (based on lot size and seasons) will be assessed at non-potable rates, usage above efficient level will pay Tier 3 potable water rates
B28: Contract rates - same as proposed under 2 options
B29: Financial Plan:
B30: Continue to have $188K/yr subsidy from Water
B32: Water Fplan Discussion
B33: With $188K/yr subsidy to RW --> Rev adjustments = 8.5%, 8.5%, 6%, 4.5%, 4.5%

Sheet S DB
J1: Sewer Operating Fund
G2: Increments | H2: =rfc_budyear -> 2012 | I2: =H2+1 -> 2013 | J2: =I2+1 -> 2014 | K2: 2015 | L2: 2016 | M2: 2017
C3: Sewer Rev Adjmts | G3: 0.005 | I3: 0.08 | J3: 0.08 | K3: 0.06 | L3: 0.04 | M3: 0.03
C4: New Debt | G4: 100000 | H4: 0
H5: Conventional | I5: Conventional | J5: Conventional | K5: Conventional | L5: Conventional | M5: Conventional
C6: Depreciation Funding Adjustments from prior year | I6: -500000 | K6: 500000
C7: Total Depreciation Funding with escalators & adjustments | H7: =SUM('S CF'!H55:H56) -> 2736000 | I7: =SUM('S CF'!I55:I56) -> 2318080 | J7: =SUM('S CF'!J55:J56) -> 2387622.4 | K7: =SUM('S CF'!K55:K56) -> 2959251.072 | L7: =SUM('S CF'!L55:L56) -> 3048028.604 | M7: =SUM('S CF'!M55:M56) -> 3139469.462
G8: ='S CF'!D61 -> NET INCOME | H8: ='S CF'!H61 -> -736369.736 | I8: ='S CF'!I61 -> 79978.83311 | J8: ='S CF'!J61 -> 250310.717 | K8: ='S CF'!K61 -> 26815.54782 | L8: ='S CF'!L61 -> 120674.7723 | M8: ='S CF'!M61 -> 115012.2216
G9: Depreciation Funding | H9: =SUM('S CF'!H55:H56) -> 2736000 | I9: =SUM('S CF'!I55:I56) -> 2318080 | J9: =SUM('S CF'!J55:J56) -> 2387622.4 | K9: =SUM('S CF'!K55:K56) -> 2959251.072 | L9: =SUM('S CF'!L55:L56) -> 3048028.604 | M9: =SUM('S CF'!M55:M56) -> 3139469.462
E10: Target Coverage | F10: 1.5 | H10: Residential Return Factors | I10: 0.9 | K10: Non-Residential Return Factors | L10: 0.9
A54: DO NOT CHANGE BELOW THIS LINE! CHANGES MAY CAUSE ERRORS IN THE MODEL
D57: Miscellaneous List
F58: Rev Adjustment Increments | I58: New Debt Increments | K58: Debt Type
F59: 0.005 | I59: 100000 | K59: ='Key Assumptions'!G30 -> Conventional
F60: 0.01 | I60: 500000 | K60: ='Key Assumptions'!G37 -> SRF
F61: 0.02 | I61: 1000000
G63: Chart 1 - Sewer Rev Adjustments
H64: =H2 -> 2012 | I64: =I2 -> 2013 | J64: 2014 | K64: 2015 | L64: 2016 | M64: 2017
G65: =C3 -> Sewer Rev Adjmts | H65: =H3 -> 0 | I65: =I3 -> 0.08 | J65: 0.08 | K65: 0.06 | L65: 0.04 | M65: 0.03
G68: Chart 2 - Sewer Operating Financial Plan
G69: O&M Expenses | H69: ='S CF'!H49 -> 5936480 | I69: ='S CF'!I49 -> 6130447.4 | J69: ='S CF'!J49 -> 6331455.602 | K69: ='S CF'!K49 -> 6539785.482 | L69: ='S CF'!L49 -> 6755729.995 | M69: ='S CF'!M49 -> 6979594.726
G70: Debt Service | H70: =SUM('S CF'!H52:H53) -> 0 | I70: =SUM('S CF'!I52:I53) -> 0 | J70: =SUM('S CF'!J52:J53) -> 0 | K70: =SUM('S CF'!K52:K53) -> 0 | L70: =SUM('S CF'!L52:L53) -> 0 | M70: =SUM('S CF'!M52:M53) -> 0
G71: Depreciation Funding | H71: =SUM('S CF'!H55:H56) -> 2736000 | I71: =SUM('S CF'!I55:I56) -> 2318080 | J71: =SUM('S CF'!J55:J56) -> 2387622.4 | K71: =SUM('S CF'!K55:K56) -> 2959251.072 | L71: =SUM('S CF'!L55:L56) -> 3048028.604 | M71: =SUM('S CF'!M55:M56) -> 3139469.462
G72: Reserve Funding | H72: =H74-SUM(H69:H71) -> -736369.736 | I72: =I74-SUM(I69:I71) -> 79978.83311 | J72: 250310.717 | K72: 26815.54782 | L72: 120674.7723 | M72: 115012.2216
G73: Current Rev | H73: =SUM('S CF'!H11,'S CF'!H28,'S CF'!H40) -> 7936110.264 | I73: =SUM('S CF'!I11,'S CF'!I28,'S CF'!I40) -> 7961999.877 | J73: =SUM('S CF'!J11,'S CF'!J28,'S CF'!J40) -> 7739554.92 | K73: =SUM('S CF'!K11,'S CF'!K28,'S CF'!K40) -> 7744817.918 | L73: =SUM('S CF'!L11,'S CF'!L28,'S CF'!L40) -> 7748136.785 | M73: =SUM('S CF'!M11,'S CF'!M28,'S CF'!M40) -> 7752779.014
G74: Proposed Rev | H74: ='S CF'!H42 -> 7936110.264 | I74: ='S CF'!I42 -> 8528506.233 | J74: ='S CF'!J42 -> 8969388.719 | K74: ='S CF'!K42 -> 9525852.101 | L74: ='S CF'!L42 -> 9924433.371 | M74: ='S CF'!M42 -> 10234076.41
G76: ="Chart 3 -"&J1&" Balances" -> Chart 3 -Sewer Operating Fund Balances
G77: ='S CF'!D122 -> Sewer Operating Fund | H77: ='S CF'!H122 -> 87862.26396 | I77: ='S CF'!I122 -> 203351.0971 | J77: ='S CF'!J122 -> 489171.814 | K77: ='S CF'!K122 -> 551497.3619 | L77: ='S CF'!L122 -> 707682.1342 | M77: ='S CF'!M122 -> 858204.3557
G78: ='S CF'!D123 -> Sewer Depreciation Fund - 476 | H78: ='S CF'!H123 -> 5336263.624 | I78: ='S CF'!I123 -> 4164804.344 | J78: ='S CF'!J123 -> 5439575.482 | K78: ='S CF'!K123 -> 7231345.907 | L78: ='S CF'!L123 -> 9459186.496 | M78: ='S CF'!M123 -> 10976884.46
G79: ='S CF'!D124 -> Sewer Other Agency Depr. Fund - 478 | H79: ='S CF'!H124 -> 1649414.807 | I79: ='S CF'!I124 -> 1942730.791 | J79: ='S CF'!J124 -> 2252272.657 | K79: ='S CF'!K124 -> 2578753.366 | L79: ='S CF'!L124 -> 2922914.156 | M79: ='S CF'!M124 -> 3285525.604
G80: Sewer Funds | H80: =SUM(H77:H79) -> 7073540.695 | I80: =SUM(I77:I79) -> 6310886.232 | J80: 8181019.953 | K80: 10361596.63 | L80: 13089782.79 | M80: 15120614.42
D81: =MATCH($J$1,G77:G80,0) -> 1 | G81: Ending Balances | H81: =INDEX(H77:H80,$D$81) -> 87862.26396 | I81: =INDEX(I77:I80,$D$81) -> 203351.0971 | J81: 489171.814 | K81: 551497.3619 | L81: 707682.1342 | M81: 858204.3557
G82: Alert Balances | H82: =IF(H81<H83,H81,#N/A) -> 87862.26396 | I82: =IF(I81<I83,I81,#N/A) -> 203351.0971 | J82: 489171.814
D83: =MATCH($J$1,G84:G87,0) -> 1 | G83: Target Balances | H83: =INDEX(H84:H87,$D$83) -> 474918.4 | I83: =INDEX(I84:I87,$D$83) -> 490435.792 | J83: 506516.4482 | K83: 523182.8385 | L83: 540458.3996 | M83: 558367.5781
G84: ='S CF'!D127 -> Sewer Operating Fund | H84: =IF('S CF'!H127=0,#N/A,'S CF'!H127) -> 474918.4 | I84: =IF('S CF'!I127=0,#N/A,'S CF'!I127) -> 490435.792 | J84: =IF('S CF'!J127=0,#N/A,'S CF'!J127) -> 506516.4482 | K84: =IF('S CF'!K127=0,#N/A,'S CF'!K127) -> 523182.8385 | L84: =IF('S CF'!L127=0,#N/A,'S CF'!L127) -> 540458.3996 | M84: =IF('S CF'!M127=0,#N/A,'S CF'!M127) -> 558367.5781
G85: ='S CF'!D128 -> Sewer Depreciation Fund - 476 | H85: =IF('S CF'!H128=0,#N/A,'S CF'!H128) -> 1611333.333 | I85: =IF('S CF'!I128=0,#N/A,'S CF'!I128) -> 1611333.333 | J85: =IF('S CF'!J128=0,#N/A,'S CF'!J128) -> 1611333.333 | K85: =IF('S CF'!K128=0,#N/A,'S CF'!K128) -> 1611333.333 | L85: =IF('S CF'!L128=0,#N/A,'S CF'!L128) -> 1611333.333 | M85: =IF('S CF'!M128=0,#N/A,'S CF'!M128) -> 1611333.333
G86: ='S CF'!D129 -> Sewer Other Agency Depr. Fund - 478 | H86: =IF('S CF'!H129=0,#N/A,'S CF'!H129) ->  | I86: =IF('S CF'!I129=0,#N/A,'S CF'!I129) ->  | J86: =IF('S CF'!J129=0,#N/A,'S CF'!J129) ->  | K86: =IF('S CF'!K129=0,#N/A,'S CF'!K129) ->  | L86: =IF('S CF'!L129=0,#N/A,'S CF'!L129) ->  | M86: =IF('S CF'!M129=0,#N/A,'S CF'!M129) -> 
G87: Sewer Funds | H87: =SUM(IFERROR(H84:H86,0)) -> 2086251.733 | I87: =SUM(IFERROR(I84:I86,0)) -> 2101769.125 | J87: =SUM(IFERROR(J84:J86,0)) -> 2117849.781 | K87: =SUM(IFERROR(K84:K86,0)) -> 2134516.172 | L87: =SUM(IFERROR(L84:L86,0)) -> 2151791.733 | M87: =SUM(IFERROR(M84:M86,0)) -> 2169700.911
G89: Chart 4 - Sewer CIP & Funding Sources
G90: CIP | H90: =SUM('CIP & Assets'!H75:H76) -> 1500000 | I90: =SUM('CIP & Assets'!I75:I76) -> 2450000 | J90: =SUM('CIP & Assets'!J75:J76) -> 884000 | K90: =SUM('CIP & Assets'!K75:K76) -> 973440 | L90: =SUM('CIP & Assets'!L75:L76) -> 674918.4 | M90: =SUM('CIP & Assets'!M75:M76) -> 1520816.128
G91: CIP by Depreciation Fund | H91: ='CIP & Assets'!H75 -> 1500000 | I91: ='CIP & Assets'!I75 -> 2450000 | J91: ='CIP & Assets'!J75 -> 884000 | K91: ='CIP & Assets'!K75 -> 973440 | L91: ='CIP & Assets'!L75 -> 674918.4 | M91: ='CIP & Assets'!M75 -> 1520816.128
G92: CIP by Other Agency | H92: ='CIP & Assets'!H76 -> 0 | I92: ='CIP & Assets'!I76 -> 0 | J92: ='CIP & Assets'!J76 -> 0 | K92: ='CIP & Assets'!K76 -> 0 | L92: ='CIP & Assets'!L76 -> 0 | M92: ='CIP & Assets'!M76 -> 0
G94: Chart 5 - Sewer Coverage Ratios
G95: ='Operating Pro-forma'!D52 -> Debt Coverage Ratio | H95: ='Operating Pro-forma'!H52 ->  | I95: ='Operating Pro-forma'!I52 ->  | J95: ='Operating Pro-forma'!J52 ->  | K95: ='Operating Pro-forma'!K52 ->  | L95: ='Operating Pro-forma'!L52 ->  | M95: ='Operating Pro-forma'!M52 -> 
G96: ='Operating Pro-forma'!D53 -> Target Debt Coverage Ratio | H96: =IF(H70=0,#N/A,$F$10) ->  | I96: =IF(I70=0,#N/A,$F$10) -> 

Sheet W DB
N1: Select Water Fund to Display on Chart 3 | O1: Water Operating Fund
G2: Increments | H2: =rfc_budyear -> 2012 | I2: =H2+1 -> 2013 | J2: =I2+1 -> 2014 | K2: 2015 | L2: 2016 | M2: 2017
C3: Water Rev Adjmts | G3: 0.005 | I3: 0.07 | J3: 0.07 | K3: 0.06 | L3: 0.045 | M3: 0.045 | O3: Water Loss | P3: 0.0436
C4: Water New Debt | G4: 1000000 | O4: Target Debt Coverage Ratios | P4: 1.2
H5: Conventional | I5: Conventional | J5: Conventional | K5: Conventional | L5: Conventional | M5: Conventional
C6: Depreciation Funding Adjustments from prior year | K6: 500000
C7: Total Depreciation Funding with escalators & adjustments | H7: =SUM('W CF'!H60:H61) -> 2551750 | I7: =SUM('W CF'!I60:I61) -> 2607302.5 | J7: =SUM('W CF'!J60:J61) -> 2664521.575 | K7: =SUM('W CF'!K60:K61) -> 3223457.222 | L7: =SUM('W CF'!L60:L61) -> 3299160.939 | M7: =SUM('W CF'!M60:M61) -> 3377135.767
C8: Demand Factors | G8: ='Key Assumptions'!G19 -> Residential | H8: 1.13 | I8: 1 | J8: 1 | K8: 1 | L8: 1 | M8: 1
G9: ='Key Assumptions'!G20 -> Non-Residential | H9: 1.13 | I9: 1 | J9: 1 | K9: 1 | L9: 1 | M9: 1
C10: Projected Potable Water Demand | G10: AF w/out loss | H10: ='W & RW Rev'!H191 -> 8673.434848 | I10: ='W & RW Rev'!I191 -> 8673.434848 | J10: ='W & RW Rev'!J191 -> 8673.434848 | K10: ='W & RW Rev'!K191 -> 8438.434848 | L10: ='W & RW Rev'!L191 -> 8185.434848 | M10: ='W & RW Rev'!M191 -> 7872.434848
G11: ="WATER "&'W CF'!D66 -> WATER NET INCOME | H11: ='W CF'!H66 -> -1386800 | I11: ='W CF'!I66 -> 253290.9797 | J11: ='W CF'!J66 -> 751380.5127 | K11: ='W CF'!K66 -> 443287.6678 | L11: ='W CF'!L66 -> 423045.1312 | M11: ='W CF'!M66 -> 267839.9182
G12: ="WATER & RW "&'Operating Pro-forma'!D124 -> WATER & RW NET CASH BALANCES | H12: ='Operating Pro-forma'!H124 -> -260231.6244 | I12: ='Operating Pro-forma'!I124 -> 513244.6757 | J12: ='Operating Pro-forma'!J124 -> 1169470.615 | K12: ='Operating Pro-forma'!K124 -> 443287.6678 | L12: ='Operating Pro-forma'!L124 -> 423045.1312 | M12: ='Operating Pro-forma'!M124 -> 458918.1359 | N12: with CIP and Debt Proceeds, RW Subsidy but w/out Depreciation Funding
A56: DO NOT CHANGE BELOW THIS LINE! CHANGES MAY CAUSE ERRORS IN THE MODEL
D59: Miscellaneous List
F60: Rev Adjustment Increments | I60: New Debt Increments | K60: Debt Type
F61: 0.005 | I61: 500000 | K61: ='Key Assumptions'!G30 -> Conventional
F62: 0.01 | I62: 1000000 | K62: ='Key Assumptions'!G37 -> SRF
F63: 0.02 | I63: 2000000
H65: =H2 -> 2012 | I65: 2013 | J65: 2014 | K65: 2015 | L65: 2016 | M65: 2017
G66: Chart 1 - Potable Water Rev Adjustments
G67: =C3 -> Water Rev Adjmts | H67: =H3 -> 0 | I67: =I3 -> 0.07 | J67: 0.07 | K67: 0.06 | L67: 0.045 | M67: 0.045
G70: Chart 2 - Water Operating FPlan (excl. RW)
G71: O&M Expenses | H71: ='W CF'!H54 -> 13412450 | I71: ='W CF'!I54 -> 13751187.85 | J71: ='W CF'!J54 -> 14297425.11 | K71: ='W CF'!K54 -> 14680667.15 | L71: ='W CF'!L54 -> 14991059.53 | M71: ='W CF'!M54 -> 15297512.32
G72: Debt Service | H72: =SUM('W CF'!H57:H58) -> 0 | I72: =SUM('W CF'!I57:I58) -> 0 | J72: =SUM('W CF'!J57:J58) -> 0 | K72: =SUM('W CF'!K57:K58) -> 0 | L72: =SUM('W CF'!L57:L58) -> 0 | M72: =SUM('W CF'!M57:M58) -> 0
G73: RW Funding | H73: ='W CF'!H53 -> 188000 | I73: ='W CF'!I53 -> 188000 | J73: ='W CF'!J53 -> 188000 | K73: ='W CF'!K53 -> 188000 | L73: ='W CF'!L53 -> 188000 | M73: ='W CF'!M53 -> 188000
G74: Depreciation Funding | H74: =SUM('W CF'!H60:H61) -> 2551750 | I74: =SUM('S CF'!I55:I56) -> 2318080 | J74: =SUM('S CF'!J55:J56) -> 2387622.4 | K74: =SUM('S CF'!K55:K56) -> 2959251.072 | L74: =SUM('S CF'!L55:L56) -> 3048028.604 | M74: =SUM('S CF'!M55:M56) -> 3139469.462
G75: Reserve Funding | H75: =H77-SUM(H71:H74) -> -1574800 | I75: =I77-SUM(I71:I74) -> 354513.4797 | J75: 840279.6877 | K75: 519493.818 | L75: 486177.4659 | M75: 317506.223
G76: Current Rev | H76: =SUM('W CF'!H11,'W CF'!H34,'W CF'!H42) -> 14577400 | I76: =SUM('W CF'!I11,'W CF'!I34,'W CF'!I42) -> 15681853.82 | J76: =SUM('W CF'!J11,'W CF'!J34,'W CF'!J42) -> 15703838.38 | K76: =SUM('W CF'!K11,'W CF'!K34,'W CF'!K42) -> 15403535.12 | L76: =SUM('W CF'!L11,'W CF'!L34,'W CF'!L42) -> 15073097.04 | M76: =SUM('W CF'!M11,'W CF'!M34,'W CF'!M42) -> 14657630.68
G77: Proposed Rev | H77: ='W CF'!H44 -> 14577400 | I77: ='W CF'!I44 -> 16611781.33 | J77: ='W CF'!J44 -> 17713327.19 | K77: ='W CF'!K44 -> 18347412.04 | L77: ='W CF'!L44 -> 18713265.6 | M77: ='W CF'!M44 -> 18942488
G79: ="Chart 3 -"&O1&" Balances" -> Chart 3 -Water Operating Fund Balances
G80: ='W CF'!D137 -> Water Operating Fund | H80: ='W CF'!H137 -> -292655 | I80: ='W CF'!I137 -> -39364.0203 | J80: ='W CF'!J137 -> 712016.4924 | K80: ='W CF'!K137 -> 1155304.16 | L80: ='W CF'!L137 -> 1578349.291 | M80: ='W CF'!M137 -> 1846189.21
G81: ='W CF'!D138 -> Water Depreciation Fund - 466 | H81: ='W CF'!H138 -> 5233392.259 | I81: ='W CF'!I138 -> 6488084.307 | J81: ='W CF'!J138 -> 5277554.892 | K81: ='W CF'!K138 -> 6334379.485 | L81: ='W CF'!L138 -> 6994428.793 | M81: ='W CF'!M138 -> 8100664.777
G82: ='W CF'!D139 -> Water Acreage Fee Reserve - 467 | H82: ='W CF'!H139 -> 825094.3096 | I82: ='W CF'!I139 -> 778568.7556 | J82: ='W CF'!J139 -> 595956.3979 | K82: ='W CF'!K139 -> 372259.8565 | L82: ='W CF'!L139 -> 360663.9654 | M82: ='W CF'!M139 -> 347993.0809
G83: ='W CF'!D140 -> Water Other Agency Depr. Fund - 468 | H83: ='W CF'!H140 -> 1915698.076 | I83: ='W CF'!I140 -> 84752.83988 | J83: ='W CF'!J140 -> -1071407.72 | K83: ='W CF'!K140 -> -2180480.297 | L83: ='W CF'!L140 -> -1602427.419 | M83: ='W CF'!M140 -> -923758.062
G84: Water Funds | H84: =SUM(H80:H83) -> 7681529.645 | I84: =SUM(I80:I83) -> 7312041.883 | J84: 5514120.063 | K84: 5681463.205 | L84: 7331014.631 | M84: 9371089.005
D85: =MATCH($O$1,G80:G84,0) -> 1 | G85: Ending Balances | H85: =INDEX(H80:H84,$D$85) -> -292655 | I85: -39364.0203 | J85: 712016.4924 | K85: 1155304.16 | L85: 1578349.291 | M85: 1846189.21
G86: Alert Balances | H86: =IF(H85<H87,H85,#N/A) -> -292655 | I86: =IF(I85<I87,I85,#N/A) -> -39364.0203 | J86: 712016.4924 | K86: 1155304.16
D87: =MATCH($O$1,G88:G92,0) -> 1 | G87: Target Balances | H87: =INDEX(H88:H92,$D$87) -> 1072996 | I87: =INDEX(I88:I92,$D$87) -> 1100095.028 | J87: 1143794.008 | K87: 1174453.372 | L87: 1199284.762 | M87: 1223800.986
G88: ='W CF'!D143 -> Water Operating Fund | H88: =IF('W CF'!H143=0,#N/A,'W CF'!H143) -> 1072996 | I88: =IF('W CF'!I143=0,#N/A,'W CF'!I143) -> 1100095.028 | J88: =IF('W CF'!J143=0,#N/A,'W CF'!J143) -> 1143794.008 | K88: =IF('W CF'!K143=0,#N/A,'W CF'!K143) -> 1174453.372 | L88: =IF('W CF'!L143=0,#N/A,'W CF'!L143) -> 1199284.762 | M88: =IF('W CF'!M143=0,#N/A,'W CF'!M143) -> 1223800.986
G89: ='W CF'!D144 -> Water Depreciation Fund - 466 | H89: =IF('W CF'!H144=0,#N/A,'W CF'!H144) -> 1673333.333 | I89: =IF('W CF'!I144=0,#N/A,'W CF'!I144) -> 1708693.333 | J89: =IF('W CF'!J144=0,#N/A,'W CF'!J144) -> 2142366.72 | K89: =IF('W CF'!K144=0,#N/A,'W CF'!K144) -> 2142366.72 | L89: =IF('W CF'!L144=0,#N/A,'W CF'!L144) -> 2142366.72 | M89: =IF('W CF'!M144=0,#N/A,'W CF'!M144) -> 2142366.72
G90: ='W CF'!D145 -> Water Acreage Fee Reserve - 467 | H90: =IF('W CF'!H145=0,#N/A,'W CF'!H145) ->  | I90: =IF('W CF'!I145=0,#N/A,'W CF'!I145) ->  | J90: =IF('W CF'!J145=0,#N/A,'W CF'!J145) ->  | K90: =IF('W CF'!K145=0,#N/A,'W CF'!K145) ->  | L90: =IF('W CF'!L145=0,#N/A,'W CF'!L145) ->  | M90: =IF('W CF'!M145=0,#N/A,'W CF'!M145) -> 
G91: ='W CF'!D146 -> Water Other Agency Depr. Fund - 468 | H91: =IF('W CF'!H146=0,#N/A,'W CF'!H146) ->  | I91: =IF('W CF'!I146=0,#N/A,'W CF'!I146) ->  | J91: =IF('W CF'!J146=0,#N/A,'W CF'!J146) ->  | K91: =IF('W CF'!K146=0,#N/A,'W CF'!K146) ->  | L91: =IF('W CF'!L146=0,#N/A,'W CF'!L146) ->  | M91: =IF('W CF'!M146=0,#N/A,'W CF'!M146) -> 
G92: =G84 -> Water Funds | H92: =SUM(IFERROR(H88:H91,0)) -> 2746329.333 | I92: =SUM(IFERROR(I88:I91,0)) -> 2808788.362 | J92: =SUM(IFERROR(J88:J91,0)) -> 3286160.728 | K92: =SUM(IFERROR(K88:K91,0)) -> 3316820.092 | L92: =SUM(IFERROR(L88:L91,0)) -> 3341651.482 | M92: =SUM(IFERROR(M88:M91,0)) -> 3366167.706
G94: Chart 5 - Water CIP & Funding Sources
G95: CIP | H95: =SUM(H96:H98) -> 2600000 | I95: =SUM(I96:I98) -> 3192000 | J95: 5138640 | K95: 3411366.4 | L95: 2002257.92 | M95: 1555911.885
G96: ="By "&'CIP & Assets'!G77 -> By Water Depreciation | H96: ='CIP & Assets'!H77 -> 1300000 | I96: ='CIP & Assets'!I77 -> 600000 | J96: ='CIP & Assets'!J77 -> 3120000 | K96: ='CIP & Assets'!K77 -> 1406080 | L96: ='CIP & Assets'!L77 -> 1901020.16 | M96: ='CIP & Assets'!M77 -> 1555911.885
G97: ="By "&'CIP & Assets'!G78 -> By Water Acreage Fees | H97: ='CIP & Assets'!H78 -> 25000 | I97: ='CIP & Assets'!I78 -> 50000 | J97: ='CIP & Assets'!J78 -> 182000 | K97: ='CIP & Assets'!K78 -> 216320 | L97: ='CIP & Assets'!L78 -> 0 | M97: ='CIP & Assets'!M78 -> 0
G98: ="By "&'CIP & Assets'!G79 -> By Water Other Agency | H98: ='CIP & Assets'!H79 -> 1275000 | I98: ='CIP & Assets'!I79 -> 2542000 | J98: ='CIP & Assets'!J79 -> 1836640 | K98: ='CIP & Assets'!K79 -> 1788966.4 | L98: ='CIP & Assets'!L79 -> 101237.76 | M98: ='CIP & Assets'!M79 -> 0
G100: Chart 4 - Water Debt Coverage Ratios (incl. RW SRF Loans)
G101: Water Debt Coverage | H101: ='Operating Pro-forma'!H133 ->  | I101: ='Operating Pro-forma'!I133 ->  | J101: ='Operating Pro-forma'!J133 ->  | K101: ='Operating Pro-forma'!K133 -> 4.772212714 | L101: ='Operating Pro-forma'!L133 -> 5.170161437 | M101: ='Operating Pro-forma'!M133 -> 5.582483554
G102: Target Debt Coverage | H102: =P4 -> 1.2 | I102: =H102 -> 1.2 | J102: =I102 -> 1.2 | K102: 1.2 | L102: 1.2 | M102: 1.2

Sheet RW DB
G2: Increments | H2: =rfc_budyear -> 2012 | I2: =H2+1 -> 2013 | J2: =I2+1 -> 2014 | K2: 2015 | L2: 2016 | M2: 2017
C3: RW Rev Adjmts | G3: 0.01 | H3: 0 | I3: 0 | J3: 0 | K3: 0.04 | L3: 0.04 | M3: 0.04 | N3: MWD Credit | O3: 250 | P3: per AF expanded RW sales
C4: Subsidy from Water for RW ($ / AF) | H4: =188000/'W &RW O&M'!H424 -> 234.9868508 | I4: =H4 -> 234.9868508 | J4: =I4 -> 234.9868508 | K4: =188000/K10 -> 181.634656 | L4: =188000/L10 -> 145.95766 | M4: 117.4233251 | N4: % Water Admin to RW
C5: Effluent Water Purchase Cost ($ / AF) | H5: ='W &RW O&M'!H314/'W &RW O&M'!H424 -> 571.2305355 | I5: =H5/2 -> 285.6152677 | J5: 0 | K5: 0 | L5: 0 | M5: 0
C6: RW New Debt | G6: 1000000 | I6: 9000000 | J6: =5600000 -> 5600000 | N6: RW Expanded Capacity | O6: 932 | P6: AF Produced
H7: SRF | I7: SRF | J7: SRF | K7: SRF | L7: SRF | M7: SRF
C8: Expanded RW Demand | G8: converted AF | K8: =235 -> 235 | L8: =253 -> 253 | M8: =313 -> 313 | N8: Total converted accts | O8: 113 | P8: from IRR to RW
G9: % of conversion completed | H9: =SUM($H8:H8)/$O$6 -> 0 | I9: =SUM($H8:I8)/$O$6 -> 0 | J9: =SUM($H8:J8)/$O$6 -> 0 | K9: =SUM($H8:K8)/$O$6 -> 0.2521459227 | L9: =SUM($H8:L8)/$O$6 -> 0.5236051502 | M9: =SUM($H8:M8)/$O$6 -> 0.8594420601 | N9: RW Loss | O9: 0
C10: Projected RW Demand | G10: AFY w/out loss | H10: =SUM('W & RW Rev'!H192:H193) -> 800.0447658 | I10: =SUM('W & RW Rev'!I192:I193) -> 800.0447658 | J10: =SUM('W & RW Rev'!J192:J193) -> 800.0447658 | K10: =SUM('W & RW Rev'!K192:K193) -> 1035.044766 | L10: =SUM('W & RW Rev'!L192:L193) -> 1288.044766 | M10: =SUM('W & RW Rev'!M192:M193) -> 1601.044766 | N10: Expanded Workforce | O10: 1.5
C11: Transfers from Water Funds to subsidy RW | H11: ='RW CF'!H80+'RW CF'!H81 -> 188000 | I11: ='RW CF'!I80+'RW CF'!I81 -> 188000 | J11: ='RW CF'!J80+'RW CF'!J81 -> 188000 | K11: ='RW CF'!K80+'RW CF'!K81 -> 188000 | L11: ='RW CF'!L80+'RW CF'!L81 -> 188000 | M11: ='RW CF'!M80+'RW CF'!M81 -> 188000 | N11: Funding Depreciation | O11: TRUE
C12: Operating Net Income w/out Subsidy | H12: ='RW CF'!H32-'RW CF'!H39-'RW CF'!H46 -> -131641.6244 | I12: ='RW CF'!I32-'RW CF'!I39-'RW CF'!I46 -> 71953.69596 | J12: ='RW CF'!J32-'RW CF'!J39-'RW CF'!J46 -> 230090.1019 | K12: ='RW CF'!K32-'RW CF'!K39-'RW CF'!K46 -> -760278.2141 | L12: ='RW CF'!L32-'RW CF'!L39-'RW CF'!L46 -> -451528.4217 | M12: ='RW CF'!M32-'RW CF'!M39-'RW CF'!M46 -> 3078.217726
A57: DO NOT CHANGE BELOW THIS LINE! CHANGES MAY CAUSE ERRORS IN THE MODEL
D60: Miscellaneous List
F61: Rev Adjustment Increments | I61: New Debt Increments | K61: Debt Type
F62: 0.005 | I62: 500000 | K62: ='Key Assumptions'!G30 -> Conventional
F63: 0.01 | I63: 1000000 | K63: ='Key Assumptions'!G37 -> SRF
F64: 0.02 | I64: 2000000
H66: =H2 -> 2012 | I66: 2013 | J66: 2014 | K66: 2015 | L66: 2016 | M66: 2017
G67: Chart 1 - RW Rev Adjustments
G68: =C3 -> RW Rev Adjmts | H68: =H3 -> 0 | I68: =I3 -> 0 | J68: 0 | K68: 0.04 | L68: 0.04 | M68: 0.04
G71: Chart 3 - RW Operating Financial Plan
G72: O&M Expenses | H72: ='RW CF'!H39 -> 924480 | I72: ='RW CF'!I39 -> 710614.4 | J72: ='RW CF'!J39 -> 561466.726 | K72: ='RW CF'!K39 -> 673453.8446 | L72: ='RW CF'!L39 -> 754324.1532 | M72: ='RW CF'!M39 -> 850450.7657
G73: Debt Service | H73: =SUM('RW CF'!H42:H43) -> 0 | I73: =SUM('RW CF'!I42:I43) -> 0 | J73: =SUM('RW CF'!J42:J43) -> 0 | K73: =SUM('RW CF'!K42:K43) -> 919000 | L73: =SUM('RW CF'!L42:L43) -> 919000 | M73: =SUM('RW CF'!M42:M43) -> 919000
G74: Depreciation Funding | H74: =SUM('RW CF'!H44:H45) -> 38250 | I74: =SUM('RW CF'!I44:I45) -> 39397.5 | J74: =SUM('RW CF'!J44:J45) -> 40579.425 | K74: =SUM('RW CF'!K44:K45) -> 372196.8078 | L74: =SUM('RW CF'!L44:L45) -> 373700.712 | M74: =SUM('RW CF'!M44:M45) -> 375248.4833
G75: Subsidy from Other Funds | H75: =-H102 -> -188000 | I75: =-I102 -> -188000 | J75: -188000 | K75: -760278.2141 | L75: -451528.4217 | M75: -188000
G76: Reserve Funding | H76: =H78-SUM(H72:H75) -> 56358.37563 | I76: =I78-SUM(I72:I75) -> 259953.696 | J76: 418090.1019 | K76: 0 | L76: 0 | M76: 191078.2177
G77: Current Rev | H77: ='RW CF'!H32-SUM('RW CF'!H17:H22) -> 831088.3756 | I77: ='RW CF'!I32-SUM('RW CF'!I17:I22) -> 821965.596 | J77: ='RW CF'!J32-SUM('RW CF'!J17:J22) -> 832136.2529 | K77: ='RW CF'!K32-SUM('RW CF'!K17:K22) -> 1166363.531 | L77: ='RW CF'!L32-SUM('RW CF'!L17:L22) -> 1492545.315 | M77: ='RW CF'!M32-SUM('RW CF'!M17:M22) -> 1945844.435
G78: Proposed Rev | H78: ='RW CF'!H32 -> 831088.3756 | I78: ='RW CF'!I32 -> 821965.596 | J78: ='RW CF'!J32 -> 832136.2529 | K78: ='RW CF'!K32 -> 1204372.438 | L78: ='RW CF'!L32 -> 1595496.444 | M78: ='RW CF'!M32 -> 2147777.467
G80: Chart 5 - Interfund Subsidies for O&M
G81: Total Subsidies | H81: =SUM(H82:H83) -> 188000 | I81: =SUM(I82:I83) -> 188000 | J81: 188000 | K81: 760278.2141 | L81: 451528.4217 | M81: 188000
G82: From Water Funds | H82: =H11 -> 188000 | I82: =I11 -> 188000 | J82: 188000 | K82: 188000 | L82: 188000 | M82: 188000
G83: From City's Depreciation Reserves | H83: ='RW CF'!H82 -> 0 | I83: ='RW CF'!I82 -> 0 | J83: ='RW CF'!J82 -> 0 | K83: ='RW CF'!K82 -> 572278.2141 | L83: ='RW CF'!L82 -> 263528.4217 | M83: ='RW CF'!M82 -> 0
G85: Chart 2 - RW CIP & Funding Sources
G86: CIP | H86: ='CIP & Assets'!H80 -> 194500 | I86: ='CIP & Assets'!I80 -> 14300000 | J86: ='CIP & Assets'!J80 -> 9916600 | K86: ='CIP & Assets'!K80 -> 0 | L86: ='CIP & Assets'!L80 -> 0 | M86: ='CIP & Assets'!M80 -> 0
G87: CIP by RW Depreciation & Debt | H87: =H86-SUM(H88:H89) -> 0 | I87: 9000000 | J87: 5600000 | K87: 0 | L87: 0 | M87: 0
G88: CIP by City's Depreciation Reserves | H88: =SUM('RW CF'!H94:H95) -> 194500 | I88: =SUM('RW CF'!I94:I95) -> 1101000 | J88: =SUM('RW CF'!J94:J95) -> 2415600 | K88: =SUM('RW CF'!K94:K95) -> 0 | L88: =SUM('RW CF'!L94:L95) -> 0 | M88: =SUM('RW CF'!M94:M95) -> 0
G89: CIP by Grants | H89: =SUM('RW CF'!H91:H92) -> 0 | I89: =SUM('RW CF'!I91:I92) -> 4199000 | J89: =SUM('RW CF'!J91:J92) -> 1901000 | K89: =SUM('RW CF'!K91:K92) -> 0 | L89: =SUM('RW CF'!L91:L92) -> 0 | M89: =SUM('RW CF'!M91:M92) -> 0
G91: ="Chart 4 -"&G92&" Balance" -> Chart 4 -465 RW Operating Balance
G92: ='RW CF'!D76 -> 465 RW Operating | H92: ='RW CF'!H84 -> 56358.37563 | I92: ='RW CF'!I84 -> 316312.0716 | J92: ='RW CF'!J84 -> 734402.1735 | K92: ='RW CF'!K84 -> 734402.1735 | L92: ='RW CF'!L84 -> 734402.1735 | M92: ='RW CF'!M84 -> 925480.3913
G93: Targtet Balance | H93: ='RW CF'!H106 -> 73958.4 | I93: ='RW CF'!I106 -> 56849.152 | J93: ='RW CF'!J106 -> 44917.33808 | K93: ='RW CF'!K106 -> 53876.30757 | L93: ='RW CF'!L106 -> 60345.93226 | M93: ='RW CF'!M106 -> 68036.06125
G95: Chart 6 - Cumulative Subsidies from FY 2012 for RW O&M & CIP
G97: =G101 -> Existing | H97: =SUM($H101:H101,$H105:H105) -> 188000 | I97: =SUM($H101:I101,$H105:I105) -> 376000 | J97: =SUM($H101:J101,$H105:J105) -> 564000 | K97: =SUM($H101:K101,$H105:K105) -> 752000 | L97: =SUM($H101:L101,$H105:L105) -> 940000 | M97: =SUM($H101:M101,$H105:M105) -> 1128000
G98: =G102 -> Existing + Expanded | H98: =SUM($H102:H102,$H106:H106) -> 382500 | I98: =SUM($H102:I102,$H106:I106) -> 1671500 | J98: =SUM($H102:J102,$H106:J106) -> 4275100 | K98: =SUM($H102:K102,$H106:K106) -> 5035378.214 | L98: =SUM($H102:L102,$H106:L106) -> 5486906.636 | M98: =SUM($H102:M102,$H106:M106) -> 5674906.636
G100: O&M
G101: Existing | H101: =H11 -> 188000 | I101: =I11 -> 188000 | J101: 188000 | K101: 188000 | L101: 188000 | M101: 188000
G102: Existing + Expanded | H102: =-MIN(0,'Operating Pro-forma'!H234,-H11) -> 188000 | I102: =-MIN(0,'Operating Pro-forma'!I234,-I11) -> 188000 | J102: =-MIN(0,'Operating Pro-forma'!J234,-J11) -> 188000 | K102: =-MIN(0,'Operating Pro-forma'!K234,-K11) -> 760278.2141 | L102: =-MIN(0,'Operating Pro-forma'!L234,-L11) -> 451528.4217 | M102: =-MIN(0,'Operating Pro-forma'!M234,-M11) -> 188000
G104: CIP
G105: =G101 -> Existing | H105: 0 | I105: 0 | J105: 0 | K105: 0 | L105: 0 | M105: 0
G106: =G102 -> Existing + Expanded | H106: =SUM('RW CF'!H94:H95) -> 194500 | I106: =SUM('RW CF'!I94:I95) -> 1101000 | J106: =SUM('RW CF'!J94:J95) -> 2415600 | K106: =SUM('RW CF'!K94:K95) -> 0 | L106: =SUM('RW CF'!L94:L95) -> 0 | M106: =SUM('RW CF'!M94:M95) -> 0
G108: Existing | H108: =M97 -> 1128000
G109: Expansion O&M | H109: =SUM(H102:M102)-H108 -> 835806.6357
G110: Expansion CIP | H110: =SUM(H106:M106)-SUM(H105:M105) -> 3711100

Sheet Operating Pro-forma
A1: =client -> City of San Clemente | F1: =Model -> Financial Plan & COS Model
A2: Sewer Operating Pro-forma | F2: =rfc_budyear -> 2012
H5: =rfc_budyear -> 2012 | I5: =H5+1 -> 2013 | J5: 2014 | K5: 2015 | L5: 2016 | M5: 2017
H6: =IF(H5=rfc_budyear,"Budgeted",IF(H5<=rfc_budyear-2,"Actual",IF(H5=rfc_budyear-1,"Estimated","Projected"))) -> Budgeted | I6: Projected | J6: Projected | K6: Projected | L6: Projected | M6: Projected
D8: REVENUES
E9: Revenues from Current Rates | H9: ='S CF'!H11 -> 7473140 | I9: ='S CF'!I11 -> 7725086.676 | J9: ='S CF'!J11 -> 7725086.676 | K9: ='S CF'!K11 -> 7725086.676 | L9: ='S CF'!L11 -> 7725086.676 | M9: ='S CF'!M11 -> 7725086.676
E10: Revenue Adjustments | H10: =SUM('S CF'!H16:H21) -> 0 | I10: =SUM('S CF'!I16:I21) -> 566506.3563 | J10: =SUM('S CF'!J16:J21) -> 1229833.799 | K10: =SUM('S CF'!K16:K21) -> 1781034.183 | L10: =SUM('S CF'!L16:L21) -> 2176296.586 | M10: =SUM('S CF'!M16:M21) -> 2481297.396
E11: Other Operating Revenues | H11: ='S CF'!H28 -> 459510 | I11: ='S CF'!I28 -> 231030 | J11: ='S CF'!J28 -> 2550.25 | K11: ='S CF'!K28 -> 2575.7525 | L11: ='S CF'!L28 -> 2601.510025 | M11: ='S CF'!M28 -> 2627.525125
E12: Non-Operating Revenues | H12: ='S CF'!H40 -> 3460.263959 | I12: ='S CF'!I40 -> 5883.200415 | J12: ='S CF'!J40 -> 11917.99367 | K12: ='S CF'!K40 -> 17155.48914 | L12: ='S CF'!L40 -> 20448.59846 | M12: ='S CF'!M40 -> 25064.81242
D13: TOTAL REVENUES | H13: =SUM(H9:H12) -> 7936110.264 | I13: =SUM(I9:I12) -> 8528506.233 | J13: 8969388.719 | K13: 9525852.101 | L13: 9924433.371 | M13: 10234076.41
D15: OPERATING EXPENSES
D16: O&M EXPENSES
E17: ='S CF'!D46 -> 471 SEWER ADMINISTRATION | H17: ='S O&M'!H251 -> 1270690 | I17: ='S O&M'!I251 -> 1309058.2 | J17: ='S O&M'!J251 -> 1348662.556 | K17: ='S O&M'!K251 -> 1389545.863 | L17: ='S O&M'!L251 -> 1431752.514 | M17: ='S O&M'!M251 -> 1475328.565
E18: ='S CF'!D47 -> 472 TREATMENT | H18: ='S O&M'!H252 -> 3162660 | I18: ='S O&M'!I252 -> 3271574.7 | J18: ='S O&M'!J252 -> 3384670.005 | K18: ='S O&M'!K252 -> 3502121.22 | L18: ='S O&M'!L252 -> 3624111.487 | M18: ='S O&M'!M252 -> 3750832.153
E19: ='S CF'!D48 -> 473 COLLECTION | H19: ='S O&M'!H253 -> 1503130 | I19: ='S O&M'!I253 -> 1549814.5 | J19: ='S O&M'!J253 -> 1598123.041 | K19: ='S O&M'!K253 -> 1648118.399 | L19: ='S O&M'!L253 -> 1699865.994 | M19: ='S O&M'!M253 -> 1753434.007
D20: ="SUBTOTAL "&D16 -> SUBTOTAL O&M EXPENSES | H20: =SUM(H17:H19) -> 5936480 | I20: =SUM(I17:I19) -> 6130447.4 | J20: 6331455.602 | K20: 6539785.482 | L20: 6755729.995 | M20: 6979594.726
D22: DEPRECIATION FUNDING
E23: =E17 -> 471 SEWER ADMINISTRATION | H23: ='S O&M'!H244 -> 32500 | I23: ='S O&M'!I244 -> 33475 | J23: ='S O&M'!J244 -> 34479.25 | K23: ='S O&M'!K244 -> 35513.6275 | L23: ='S O&M'!L244 -> 36579.03633 | M23: ='S O&M'!M244 -> 37676.40741
E24: =E18 -> 472 TREATMENT | H24: ='S O&M'!H245+'S O&M'!H246 -> 1006200 | I24: ='S O&M'!I245+'S O&M'!I246 -> 1036386 | J24: ='S O&M'!J245+'S O&M'!J246 -> 1067477.58 | K24: ='S O&M'!K245+'S O&M'!K246 -> 1099501.907 | L24: ='S O&M'!L245+'S O&M'!L246 -> 1132486.965 | M24: ='S O&M'!M245+'S O&M'!M246 -> 1166461.574
E25: 473 COLLECTION | H25: ='S O&M'!H247 -> 1697300 | I25: ='S O&M'!I247 -> 1248219 | J25: ='S O&M'!J247 -> 1285665.57 | K25: ='S O&M'!K247 -> 1824235.537 | L25: ='S O&M'!L247 -> 1878962.603 | M25: ='S O&M'!M247 -> 1935331.481
D26: ="SUBTOTAL "&D22 -> SUBTOTAL DEPRECIATION FUNDING | H26: =SUM(H23:H25) -> 2736000 | I26: =SUM(I23:I25) -> 2318080 | J26: 2387622.4 | K26: 2959251.072 | L26: 3048028.604 | M26: 3139469.462
D28: SEWER DEBT SERVICE
E29: Existing Debt Service | H29: ='S Debt'!H11 -> 0 | I29: ='S Debt'!I11 -> 0 | J29: ='S Debt'!J11 -> 0 | K29: ='S Debt'!K11 -> 0 | L29: ='S Debt'!L11 -> 0 | M29: ='S Debt'!M11 -> 0
E30: New Debt Service | H30: ='S Debt'!H37 -> 0 | I30: ='S Debt'!I37 -> 0 | J30: ='S Debt'!J37 -> 0 | K30: ='S Debt'!K37 -> 0 | L30: ='S Debt'!L37 -> 0 | M30: ='S Debt'!M37 -> 0
D31: ="SUBTOTAL "&D28 -> SUBTOTAL SEWER DEBT SERVICE | H31: =SUM(H29:H30) -> 0 | I31: =SUM(I29:I30) -> 0 | J31: 0 | K31: 0 | L31: 0 | M31: 0
D33: TOTAL OPERATING EXPENSES | H33: =SUM(H20,H26,H31) -> 8672480 | I33: =SUM(I20,I26,I31) -> 8448527.4 | J33: 8719078.002 | K33: 9499036.554 | L33: 9803758.599 | M33: 10119064.19
D35: NET INCOME | H35: =H13-H20-H26-H31 -> -736369.736 | I35: 79978.83311 | J35: 250310.717 | K35: 26815.54782 | L35: 120674.7723 | M35: 115012.2216
D37: Net Transfers from / (to) Other Funds | H37: =SUM(H38:H43) -> 781410 | I37: =SUM(I38:I43) -> 35510 | J37: 35510 | K37: 35510 | L37: 35510 | M37: 35510
E38: ='S CF'!D82 -> GENERAL FUND | H38: ='S CF'!H82 -> 35510 | I38: ='S CF'!I82 -> 35510 | J38: ='S CF'!J82 -> 35510 | K38: ='S CF'!K82 -> 35510 | L38: ='S CF'!L82 -> 35510 | M38: ='S CF'!M82 -> 35510
E39: ='S CF'!D83 -> WATER FUND | H39: ='S CF'!H83 -> 0 | I39: ='S CF'!I83 -> 0 | J39: ='S CF'!J83 -> 0 | K39: ='S CF'!K83 -> 0 | L39: ='S CF'!L83 -> 0 | M39: ='S CF'!M83 -> 0
E40: ='S CF'!D84 -> CLEAN OCEAN FUND | H40: ='S CF'!H84 -> 0 | I40: ='S CF'!I84 -> 0 | J40: ='S CF'!J84 -> 0 | K40: ='S CF'!K84 -> 0 | L40: ='S CF'!L84 -> 0 | M40: ='S CF'!M84 -> 0
E41: ='S CF'!D85 -> OTHER FUNDS | H41: ='S CF'!H85 -> 45900 | I41: ='S CF'!I85 -> 0 | J41: ='S CF'!J85 -> 0 | K41: ='S CF'!K85 -> 0 | L41: ='S CF'!L85 -> 0 | M41: ='S CF'!M85 -> 0
E42: ='S CF'!D86 -> SEWER DEPRECIATION FUND | H42: ='S CF'!H86 -> 700000 | I42: ='S CF'!I86 -> 0 | J42: ='S CF'!J86 -> 0 | K42: ='S CF'!K86 -> 0 | L42: ='S CF'!L86 -> 0 | M42: ='S CF'!M86 -> 0
E43: ='S CF'!D87 -> SEWER DEPRECIATION OTHER AGENCY FUND | H43: ='S CF'!H87 -> 0 | I43: ='S CF'!I87 -> 0 | J43: ='S CF'!J87 -> 0 | K43: ='S CF'!K87 -> 0 | L43: ='S CF'!L87 -> 0 | M43: ='S CF'!M87 -> 0
D45: NET CASH BALANCES | H45: =H35+H37 -> 45040.26396 | I45: =I35+I37 -> 115488.8331 | J45: 285820.717 | K45: 62325.54782 | L45: 156184.7723 | M45: 150522.2216
D47: Beginning Operating Fund Balances | H47: ='S CF'!H79 -> 42822 | I47: =H48 -> 87862.26396 | J47: =I48 -> 203351.0971 | K47: 489171.814 | L47: 551497.3619 | M47: 707682.1342
D48: Ending Operating Fund Balances | H48: =H47+H45 -> 87862.26396 | I48: =I47+I45 -> 203351.0971 | J48: 489171.814 | K48: 551497.3619 | L48: 707682.1342 | M48: 858204.3557
D50: Target Fund Balances | H50: ='S CF'!H127 -> 474918.4 | I50: ='S CF'!I127 -> 490435.792 | J50: ='S CF'!J127 -> 506516.4482 | K50: ='S CF'!K127 -> 523182.8385 | L50: ='S CF'!L127 -> 540458.3996 | M50: ='S CF'!M127 -> 558367.5781
D52: Debt Coverage Ratio | H52: =IFERROR(#REF!/H31,#N/A) ->  | I52: =IFERROR(#REF!/I31,#N/A) ->  | J52: =IFERROR(#REF!/J31,#N/A) ->  | K52: =IFERROR(#REF!/K31,#N/A) ->  | L52: =IFERROR(#REF!/L31,#N/A) ->  | M52: =IFERROR(#REF!/M31,#N/A) -> 
D53: Target Debt Coverage Ratio | H53: ='S DB'!$F$10 -> 1.5 | I53: =H53 -> 1.5 | J53: =I53 -> 1.5 | K53: 1.5 | L53: 1.5 | M53: 1.5
D55: Check for erros | H55: =IF(AND(H56:M57),"No Errors","ERRORS") -> No Errors
D56: Check with Cflows | G56: Fund Balances | H56: =ROUND(H48,0)=ROUND('S CF'!H88,0) -> TRUE | I56: =ROUND(I48,0)=ROUND('S CF'!I88,0) -> TRUE | J56: =ROUND(J48,0)=ROUND('S CF'!J88,0) -> TRUE | K56: =ROUND(K48,0)=ROUND('S CF'!K88,0) -> TRUE | L56: =ROUND(L48,0)=ROUND('S CF'!L88,0) -> TRUE | M56: =ROUND(M48,0)=ROUND('S CF'!M88,0) -> TRUE | N56: =IF(AND(H56:M56),"No Errors", "ERRORS") -> No Errors
G57: Debt Coverage | H57: =IFERROR(ROUND(H52,3),"")=IFERROR(ROUND('S CF'!H63,3),"") -> TRUE | I57: =IFERROR(ROUND(I52,3),"")=IFERROR(ROUND('S CF'!I63,3),"") -> TRUE | J57: =IFERROR(ROUND(J52,3),"")=IFERROR(ROUND('S CF'!J63,3),"") -> TRUE | K57: =IFERROR(ROUND(K52,3),"")=IFERROR(ROUND('S CF'!K63,3),"") -> TRUE | L57: =IFERROR(ROUND(L52,3),"")=IFERROR(ROUND('S CF'!L63,3),"") -> TRUE | M57: =IFERROR(ROUND(M52,3),"")=IFERROR(ROUND('S CF'!M63,3),"") -> TRUE | N57: =IF(AND(H57:M57),"No Errors", "ERRORS") -> No Errors
A64: =client -> City of San Clemente | F64: =Model -> Financial Plan & COS Model
A65: Water & RW Operating Pro-forma | F65: =rfc_budyear -> 2012
H69: =rfc_budyear -> 2012 | I69: =H69+1 -> 2013 | J69: =I69+1 -> 2014 | K69: =J69+1 -> 2015 | L69: =K69+1 -> 2016 | M69: =L69+1 -> 2017
H70: =IF(H69=rfc_budyear,"Budgeted",IF(H69<=rfc_budyear-2,"Actual",IF(H69=rfc_budyear-1,"Estimated","Projected"))) -> Budgeted | I70: Projected | J70: Projected | K70: Projected | L70: Projected | M70: Projected
D72: REVENUES
E73: Water Revenues from Current Rates | H73: ='W CF'!H11 -> 13399700 | I73: ='W CF'!I11 -> 14492376.82 | J73: ='W CF'!J11 -> 14492376.82 | K73: ='W CF'!K11 -> 14162139.82 | L73: ='W CF'!L11 -> 13806572.9 | M73: ='W CF'!M11 -> 13368488.07
E74: Water Revenue Adjustments | H74: =SUM('W CF'!H16:H21) -> 0 | I74: =SUM('W CF'!I16:I21) -> 929927.5126 | J74: =SUM('W CF'!J16:J21) -> 2009488.816 | K74: =SUM('W CF'!K16:K21) -> 2943876.924 | L74: =SUM('W CF'!L16:L21) -> 3640168.56 | M74: =SUM('W CF'!M16:M21) -> 4284857.32
E75: Other Water Operating Revenues | H75: ='W CF'!H34 -> 520200 | I75: ='W CF'!I34 -> 525402 | J75: ='W CF'!J34 -> 530656.02 | K75: ='W CF'!K34 -> 535962.5802 | L75: ='W CF'!L34 -> 541322.206 | M75: ='W CF'!M34 -> 546735.4281
E76: Water Non-Operating Revenues | H76: ='W CF'!H42 -> 657500 | I76: ='W CF'!I42 -> 664075 | J76: ='W CF'!J42 -> 680805.5371 | K76: ='W CF'!K42 -> 705432.7173 | L76: ='W CF'!L42 -> 725201.9383 | M76: ='W CF'!M42 -> 742407.1855
E77: RW Revenues from Current Rates | H77: ='RW CF'!H12 -> 775573 | I77: ='RW CF'!I12 -> 775573.2562 | J77: ='RW CF'!J12 -> 775573.2562 | K77: ='RW CF'!K12 -> 1036606.556 | L77: ='RW CF'!L12 -> 1317633.896 | M77: ='RW CF'!M12 -> 1665308.036
E78: RW Revenue Adjustments | H78: =SUM('RW CF'!H17:H22) -> 0 | I78: =SUM('RW CF'!I17:I22) -> 0 | J78: =SUM('RW CF'!J17:J22) -> 0 | K78: =SUM('RW CF'!K17:K22) -> 38008.90706 | L78: =SUM('RW CF'!L17:L22) -> 102951.1284 | M78: =SUM('RW CF'!M17:M22) -> 201933.0321
E79: Other RW Operating Revenues | H79: ='RW CF'!H30 -> 55515.37563 | I79: ='RW CF'!I30 -> 46392.33977 | J79: ='RW CF'!J30 -> 56562.99673 | K79: ='RW CF'!K30 -> 129756.9751 | L79: ='RW CF'!L30 -> 174911.4189 | M79: ='RW CF'!M30 -> 280536.3985
D80: TOTAL REVENUES | H80: =SUM(H73:H79) -> 15408488.38 | I80: =SUM(I73:I79) -> 17433746.93 | J80: 18545463.45 | K80: 19551784.48 | L80: 20308762.04 | M80: 21090265.47
D82: O&M EXPENSES
E83: ='W CF'!D48 -> 461 WATER ADMINISTRATION | H83: ='W &RW O&M'!H386 -> 1185490 | I83: ='W &RW O&M'!I386 -> 1220822 | J83: ='W &RW O&M'!J386 -> 1257256.424 | K83: ='W &RW O&M'!K386 -> 1294829.55 | L83: ='W &RW O&M'!L386 -> 1333578.926 | M83: ='W &RW O&M'!M386 -> 1373543.418
E84: ='W CF'!D49 -> 462 WATER PRODUCTION | H84: ='W &RW O&M'!H387 -> 2057100 | I84: ='W &RW O&M'!I387 -> 2118776.9 | J84: ='W &RW O&M'!J387 -> 2182446.203 | K84: ='W &RW O&M'!K387 -> 2248177.664 | L84: ='W &RW O&M'!L387 -> 2316043.687 | M84: ='W &RW O&M'!M387 -> 2386119.434
E85: ='W CF'!D50 -> Water Cost | H85: ='W &RW O&M'!H388 -> 7292830 | I85: ='W &RW O&M'!I388 -> 7445642.253 | J85: ='W &RW O&M'!J388 -> 7799491.881 | K85: ='W &RW O&M'!K388 -> 7983636.5 | L85: ='W &RW O&M'!L388 -> 8087963.535 | M85: ='W &RW O&M'!M388 -> 8181114.187
E86: ='W CF'!D51 -> 463 TRANSMISSION & DISTRIBUTION | H86: ='W &RW O&M'!H389 -> 2461730 | I86: ='W &RW O&M'!I389 -> 2543492 | J86: ='W &RW O&M'!J389 -> 2628362.3 | K86: ='W &RW O&M'!K389 -> 2716472.12 | L86: ='W &RW O&M'!L389 -> 2807958.618 | M86: ='W &RW O&M'!M389 -> 2902965.173
E87: ='W CF'!D52 -> 464 WATER CONSERVATION | H87: ='W &RW O&M'!H390 -> 227300 | I87: ='W &RW O&M'!I390 -> 234454.7 | J87: ='W &RW O&M'!J390 -> 241868.297 | K87: ='W &RW O&M'!K390 -> 249551.3201 | L87: ='W &RW O&M'!L390 -> 257514.7635 | M87: ='W &RW O&M'!M390 -> 265770.1078
E88: ='RW CF'!D36 -> 465 WATER RECLAMATION | H88: ='RW CF'!H39 -> 924480 | I88: ='RW CF'!I39 -> 710614.4 | J88: ='RW CF'!J39 -> 561466.726 | K88: ='RW CF'!K39 -> 673453.8446 | L88: ='RW CF'!L39 -> 754324.1532 | M88: ='RW CF'!M39 -> 850450.7657
D90: ="SUBTOTAL "&D82 -> SUBTOTAL O&M EXPENSES | H90: =SUM(H83:H88) -> 14148930 | I90: =SUM(I83:I88) -> 14273802.25 | J90: 14670891.83 | K90: 15166121 | L90: 15557383.68 | M90: 15959963.09
D92: GROSS EARNINGS | H92: =H80-H90 -> 1259558.376 | I92: =I80-I90 -> 3159944.676 | J92: 3874571.615 | K92: 4385663.484 | L92: 4751378.36 | M92: 5130302.386
D94: DEPRECIATION FUNDING
E95: =E83 -> 461 WATER ADMINISTRATION | H95: =SUMIF('W &RW O&M'!$B$375:$B$382,VALUE(LEFT($E95,3)),'W &RW O&M'!H$375:H$382) -> 8560 | I95: =SUMIF('W &RW O&M'!$B$375:$B$382,VALUE(LEFT($E95,3)),'W &RW O&M'!I$375:I$382) -> 8816.8 | J95: =SUMIF('W &RW O&M'!$B$375:$B$382,VALUE(LEFT($E95,3)),'W &RW O&M'!J$375:J$382) -> 9081.304 | K95: =SUMIF('W &RW O&M'!$B$375:$B$382,VALUE(LEFT($E95,3)),'W &RW O&M'!K$375:K$382) -> 9353.74312 | L95: =SUMIF('W &RW O&M'!$B$375:$B$382,VALUE(LEFT($E95,3)),'W &RW O&M'!L$375:L$382) -> 9634.355414 | M95: =SUMIF('W &RW O&M'!$B$375:$B$382,VALUE(LEFT($E95,3)),'W &RW O&M'!M$375:M$382) -> 9923.386076
E96: =E84 -> 462 WATER PRODUCTION | H96: =SUMIF('W &RW O&M'!$B$375:$B$382,VALUE(LEFT($E96,3)),'W &RW O&M'!H$375:H$382) -> 2017780 | I96: =SUMIF('W &RW O&M'!$B$375:$B$382,VALUE(LEFT($E96,3)),'W &RW O&M'!I$375:I$382) -> 2057313.4 | J96: =SUMIF('W &RW O&M'!$B$375:$B$382,VALUE(LEFT($E96,3)),'W &RW O&M'!J$375:J$382) -> 2098032.802 | K96: =SUMIF('W &RW O&M'!$B$375:$B$382,VALUE(LEFT($E96,3)),'W &RW O&M'!K$375:K$382) -> 2639973.786 | L96: =SUMIF('W &RW O&M'!$B$375:$B$382,VALUE(LEFT($E96,3)),'W &RW O&M'!L$375:L$382) -> 2698173 | M96: =SUMIF('W &RW O&M'!$B$375:$B$382,VALUE(LEFT($E96,3)),'W &RW O&M'!M$375:M$382) -> 2758118.19
E97: =E86 -> 463 TRANSMISSION & DISTRIBUTION | H97: =SUMIF('W &RW O&M'!$B$375:$B$382,VALUE(LEFT($E97,3)),'W &RW O&M'!H$375:H$382) -> 525410 | I97: =SUMIF('W &RW O&M'!$B$375:$B$382,VALUE(LEFT($E97,3)),'W &RW O&M'!I$375:I$382) -> 541172.3 | J97: =SUMIF('W &RW O&M'!$B$375:$B$382,VALUE(LEFT($E97,3)),'W &RW O&M'!J$375:J$382) -> 557407.469 | K97: =SUMIF('W &RW O&M'!$B$375:$B$382,VALUE(LEFT($E97,3)),'W &RW O&M'!K$375:K$382) -> 574129.6931 | L97: =SUMIF('W &RW O&M'!$B$375:$B$382,VALUE(LEFT($E97,3)),'W &RW O&M'!L$375:L$382) -> 591353.5839 | M97: =SUMIF('W &RW O&M'!$B$375:$B$382,VALUE(LEFT($E97,3)),'W &RW O&M'!M$375:M$382) -> 609094.1914
E98: 464 WATER CONSERVATION | H98: =SUMIF('W &RW O&M'!$B$375:$B$382,VALUE(LEFT($E98,3)),'W &RW O&M'!H$375:H$382) -> 0 | I98: =SUMIF('W &RW O&M'!$B$375:$B$382,VALUE(LEFT($E98,3)),'W &RW O&M'!I$375:I$382) -> 0 | J98: =SUMIF('W &RW O&M'!$B$375:$B$382,VALUE(LEFT($E98,3)),'W &RW O&M'!J$375:J$382) -> 0 | K98: =SUMIF('W &RW O&M'!$B$375:$B$382,VALUE(LEFT($E98,3)),'W &RW O&M'!K$375:K$382) -> 0 | L98: =SUMIF('W &RW O&M'!$B$375:$B$382,VALUE(LEFT($E98,3)),'W &RW O&M'!L$375:L$382) -> 0 | M98: =SUMIF('W &RW O&M'!$B$375:$B$382,VALUE(LEFT($E98,3)),'W &RW O&M'!M$375:M$382) -> 0
E99: 465 WATER RECLAMATION | H99: =SUMIF('W &RW O&M'!$B$375:$B$382,VALUE(LEFT($E99,3)),'W &RW O&M'!H$375:H$382) -> 38250 | I99: =SUMIF('W &RW O&M'!$B$375:$B$382,VALUE(LEFT($E99,3)),'W &RW O&M'!I$375:I$382) -> 39397.5 | J99: =SUMIF('W &RW O&M'!$B$375:$B$382,VALUE(LEFT($E99,3)),'W &RW O&M'!J$375:J$382) -> 40579.425 | K99: =SUMIF('W &RW O&M'!$B$375:$B$382,VALUE(LEFT($E99,3)),'W &RW O&M'!K$375:K$382) -> 372196.8078 | L99: =SUMIF('W &RW O&M'!$B$375:$B$382,VALUE(LEFT($E99,3)),'W &RW O&M'!L$375:L$382) -> 373700.712 | M99: =SUMIF('W &RW O&M'!$B$375:$B$382,VALUE(LEFT($E99,3)),'W &RW O&M'!M$375:M$382) -> 375248.4833
D100: ="SUBTOTAL "&D94 -> SUBTOTAL DEPRECIATION FUNDING | H100: =SUM(H95:H99) -> 2590000 | I100: =SUM(I95:I99) -> 2646700 | J100: 2705101 | K100: 3595654.03 | L100: 3672861.651 | M100: 3752384.25
D102: WATER DEBT SERVICE
E103: Existing Debt Service | H103: ='W CF'!H57 -> 0 | I103: ='W CF'!I57 -> 0 | J103: ='W CF'!J57 -> 0 | K103: ='W CF'!K57 -> 0 | L103: ='W CF'!L57 -> 0 | M103: ='W CF'!M57 -> 0
E104: New Debt Service | H104: ='W CF'!H58 -> 0 | I104: ='W CF'!I58 -> 0 | J104: ='W CF'!J58 -> 0 | K104: ='W CF'!K58 -> 0 | L104: ='W CF'!L58 -> 0 | M104: ='W CF'!M58 -> 0
D105: ="SUBTOTAL "&D102 -> SUBTOTAL WATER DEBT SERVICE | H105: =SUM(H103:H104) -> 0 | I105: =SUM(I103:I104) -> 0 | J105: 0 | K105: 0 | L105: 0 | M105: 0
D107: RW DEBT SERVICE
E108: Existing Debt Service | H108: ='RW CF'!H42 -> 0 | I108: ='RW CF'!I42 -> 0 | J108: ='RW CF'!J42 -> 0 | K108: ='RW CF'!K42 -> 0 | L108: ='RW CF'!L42 -> 0 | M108: ='RW CF'!M42 -> 0
E109: New Debt Service | H109: ='RW CF'!H43 -> 0 | I109: ='RW CF'!I43 -> 0 | J109: ='RW CF'!J43 -> 0 | K109: ='RW CF'!K43 -> 919000 | L109: ='RW CF'!L43 -> 919000 | M109: ='RW CF'!M43 -> 919000
D110: ="SUBTOTAL "&D107 -> SUBTOTAL RW DEBT SERVICE | H110: =SUM(H108:H109) -> 0 | I110: =SUM(I108:I109) -> 0 | J110: 0 | K110: 919000 | L110: 919000 | M110: 919000
D112: NET INCOME | H112: =H80-H90-H100-H105-H110 -> -1330441.624 | I112: 513244.6757 | J112: 1169470.615 | K112: -128990.5463 | L112: 159516.7095 | M112: 458918.1359
D114: Net Transfers from / (to) Other Funds | H114: =SUM(H115:H123) -> 1070210 | I114: =SUM(I115:I123) -> 0 | J114: 0 | K114: 572278.2141 | L114: 263528.4217 | M114: 0
E115: ='W CF'!D82 -> GENERAL FUND | H115: ='W CF'!H82 -> 16710 | I115: ='W CF'!I82 -> 0 | J115: ='W CF'!J82 -> 0 | K115: ='W CF'!K82 -> 0 | L115: ='W CF'!L82 -> 0 | M115: ='W CF'!M82 -> 0
E116: ='W CF'!D83 -> SEWER FUND | H116: ='W CF'!H83 -> 0 | I116: ='W CF'!I83 -> 0 | J116: ='W CF'!J83 -> 0 | K116: ='W CF'!K83 -> 0 | L116: ='W CF'!L83 -> 0 | M116: ='W CF'!M83 -> 0
E117: ='W CF'!D84 -> CLEAN OCEAN FUND | H117: ='W CF'!H84 -> 0 | I117: ='W CF'!I84 -> 0 | J117: ='W CF'!J84 -> 0 | K117: ='W CF'!K84 -> 0 | L117: ='W CF'!L84 -> 0 | M117: ='W CF'!M84 -> 0
E118: ='W CF'!D85 -> OTHER FUNDS | H118: ='W CF'!H85 -> 53500 | I118: ='W CF'!I85 -> 0 | J118: ='W CF'!J85 -> 0 | K118: ='W CF'!K85 -> 0 | L118: ='W CF'!L85 -> 0 | M118: ='W CF'!M85 -> 0
E119: ='W CF'!D86 -> WATER ACREAGE FEES FUND | H119: ='W CF'!H86 -> 0 | I119: ='W CF'!I86 -> 0 | J119: ='W CF'!J86 -> 0 | K119: ='W CF'!K86 -> 0 | L119: ='W CF'!L86 -> 0 | M119: ='W CF'!M86 -> 0
E120: ='W CF'!D87 -> WATER DEPRECIATION FUND | H120: ='W CF'!H87 -> 1000000 | I120: ='W CF'!I87 -> 0 | J120: ='W CF'!J87 -> 0 | K120: ='W CF'!K87 -> 0 | L120: ='W CF'!L87 -> 0 | M120: ='W CF'!M87 -> 0
E121: ='W CF'!D88 -> WATER DEPRECIATION OTHER AGENCY FUND | H121: ='W CF'!H88 -> 0 | I121: ='W CF'!I88 -> 0 | J121: ='W CF'!J88 -> 0 | K121: ='W CF'!K88 -> 0 | L121: ='W CF'!L88 -> 0 | M121: ='W CF'!M88 -> 0
E122: ='RW CF'!D82 -> Loans from City's Depreciation Reserves | H122: ='RW CF'!H82 -> 0 | I122: ='RW CF'!I82 -> 0 | J122: ='RW CF'!J82 -> 0 | K122: ='RW CF'!K82 -> 572278.2141 | L122: ='RW CF'!L82 -> 263528.4217 | M122: ='RW CF'!M82 -> 0
D124: NET CASH BALANCES | H124: =H112+H114 -> -260231.6244 | I124: =I112+I114 -> 513244.6757 | J124: 1169470.615 | K124: 443287.6678 | L124: 423045.1312 | M124: 458918.1359
D126: Beginning Operating Fund Balances | H126: =SUM(H127:H128) -> 23935 | I126: =H129 -> -236296.6244 | J126: =I129 -> 276948.0513 | K126: 1446418.666 | L126: 1889706.334 | M126: 2312751.465
E127: Water | H127: =SUM('W CF'!H79) -> 23935
E128: RW | H128: ='RW CF'!H77 -> 0
D129: Ending Total Fund Balances | H129: =H126+H124 -> -236296.6244 | I129: =I126+I124 -> 276948.0513 | J129: =J126+J124 -> 1446418.666 | K129: 1889706.334 | L129: 2312751.465 | M129: 2771669.601
D131: Target Fund Balances | H131: ='W CF'!H142 -> 2746329.333 | I131: ='W CF'!I142 -> 2808788.362 | J131: ='W CF'!J142 -> 3286160.728 | K131: ='W CF'!K142 -> 3316820.092 | L131: ='W CF'!L142 -> 3341651.482 | M131: ='W CF'!M142 -> 3366167.706
D133: Debt Coverage Ratio | H133: =IFERROR(H92/SUM(H105,H110),#N/A) ->  | K133: 4.772212714 | L133: 5.170161437 | M133: 5.582483554
D134: Target Debt Coverage | H134: ='W DB'!$P$4 -> 1.2 | I134: =H134 -> 1.2 | J134: =I134 -> 1.2 | K134: 1.2 | L134: 1.2 | M134: 1.2
C136: Checks for Errors | E136: Water Ending Balances | H136: ='W CF'!H90 -> -292655 | I136: ='W CF'!I90 -> -39364.0203 | J136: ='W CF'!J90 -> 712016.4924 | K136: ='W CF'!K90 -> 1155304.16 | L136: ='W CF'!L90 -> 1578349.291 | M136: ='W CF'!M90 -> 1846189.21
E137: RW Ending Balances | H137: ='RW CF'!H84 -> 56358.37563 | I137: ='RW CF'!I84 -> 316312.0716 | J137: ='RW CF'!J84 -> 734402.1735 | K137: ='RW CF'!K84 -> 734402.1735 | L137: ='RW CF'!L84 -> 734402.1735 | M137: ='RW CF'!M84 -> 925480.3913
E138: Total Water Funds | H138: =SUM(H136:H137) -> -236296.6244 | I138: =SUM(I136:I137) -> 276948.0513 | J138: 1446418.666 | K138: 1889706.334 | L138: 2312751.465 | M138: 2771669.601
H139: =ROUND(H138,0)=ROUND(H129,0) -> TRUE | I139: =ROUND(I138,0)=ROUND(I129,0) -> TRUE | J139: TRUE | K139: TRUE | L139: TRUE | M139: TRUE | N139: =IF(AND(H139:M139),"No Errors", "ERRORS") -> No Errors
J140: =J138-J129 -> 2.095475793e-09
A142: =client -> City of San Clemente | F142: =Model -> Financial Plan & COS Model
A143: Water Operating Pro-forma | F143: =rfc_budyear -> 2012
H147: =rfc_budyear -> 2012 | I147: =H147+1 -> 2013 | J147: =I147+1 -> 2014 | K147: =J147+1 -> 2015 | L147: =K147+1 -> 2016 | M147: =L147+1 -> 2017
H148: =IF(H147=rfc_budyear,"Budgeted",IF(H147<=rfc_budyear-2,"Actual",IF(H147=rfc_budyear-1,"Estimated","Projected"))) -> Budgeted | I148: Projected | J148: Projected | K148: Projected | L148: Projected | M148: Projected
D150: REVENUES
E151: Water Revenues from Current Rates | H151: ='W CF'!H11 -> 13399700 | I151: ='W CF'!I11 -> 14492376.82 | J151: ='W CF'!J11 -> 14492376.82 | K151: ='W CF'!K11 -> 14162139.82 | L151: ='W CF'!L11 -> 13806572.9 | M151: ='W CF'!M11 -> 13368488.07
E152: Water Revenue Adjustments | H152: =SUM('W CF'!H16:H21) -> 0 | I152: =SUM('W CF'!I16:I21) -> 929927.5126 | J152: =SUM('W CF'!J16:J21) -> 2009488.816 | K152: =SUM('W CF'!K16:K21) -> 2943876.924 | L152: =SUM('W CF'!L16:L21) -> 3640168.56 | M152: =SUM('W CF'!M16:M21) -> 4284857.32
E153: Other Water Operating Revenues | H153: ='W CF'!H34 -> 520200 | I153: ='W CF'!I34 -> 525402 | J153: ='W CF'!J34 -> 530656.02 | K153: ='W CF'!K34 -> 535962.5802 | L153: ='W CF'!L34 -> 541322.206 | M153: ='W CF'!M34 -> 546735.4281
E154: Water Non-Operating Revenues | H154: ='W CF'!H42 -> 657500 | I154: ='W CF'!I42 -> 664075 | J154: ='W CF'!J42 -> 680805.5371 | K154: ='W CF'!K42 -> 705432.7173 | L154: ='W CF'!L42 -> 725201.9383 | M154: ='W CF'!M42 -> 742407.1855
D155: TOTAL REVENUES | H155: =SUM(H151:H154) -> 14577400 | I155: =SUM(I151:I154) -> 16611781.33 | J155: 17713327.19 | K155: 18347412.04 | L155: 18713265.6 | M155: 18942488
D157: OPERATING EXPENSES
D158: O&M EXPENSES
E159: ='W CF'!D48 -> 461 WATER ADMINISTRATION | H159: ='W CF'!H48 -> 1185490 | I159: ='W CF'!I48 -> 1220822 | J159: ='W CF'!J48 -> 1257256.424 | K159: ='W CF'!K48 -> 1294829.55 | L159: ='W CF'!L48 -> 1333578.926 | M159: ='W CF'!M48 -> 1373543.418
E160: ='W CF'!D49 -> 462 WATER PRODUCTION | H160: ='W CF'!H49 -> 2057100 | I160: ='W CF'!I49 -> 2118776.9 | J160: ='W CF'!J49 -> 2182446.203 | K160: ='W CF'!K49 -> 2248177.664 | L160: ='W CF'!L49 -> 2316043.687 | M160: ='W CF'!M49 -> 2386119.434
E161: ='W CF'!D50 -> Water Cost | H161: ='W CF'!H50 -> 7292830 | I161: ='W CF'!I50 -> 7445642.253 | J161: ='W CF'!J50 -> 7799491.881 | K161: ='W CF'!K50 -> 7983636.5 | L161: ='W CF'!L50 -> 8087963.535 | M161: ='W CF'!M50 -> 8181114.187
E162: ='W CF'!D51 -> 463 TRANSMISSION & DISTRIBUTION | H162: ='W CF'!H51 -> 2461730 | I162: ='W CF'!I51 -> 2543492 | J162: ='W CF'!J51 -> 2628362.3 | K162: ='W CF'!K51 -> 2716472.12 | L162: ='W CF'!L51 -> 2807958.618 | M162: ='W CF'!M51 -> 2902965.173
E163: ='W CF'!D52 -> 464 WATER CONSERVATION | H163: ='W CF'!H52 -> 227300 | I163: ='W CF'!I52 -> 234454.7 | J163: ='W CF'!J52 -> 241868.297 | K163: ='W CF'!K52 -> 249551.3201 | L163: ='W CF'!L52 -> 257514.7635 | M163: ='W CF'!M52 -> 265770.1078
E164: ='W CF'!D53 -> 465 WATER RECLAMATION Funding | H164: ='W CF'!H53 -> 188000 | I164: ='W CF'!I53 -> 188000 | J164: ='W CF'!J53 -> 188000 | K164: ='W CF'!K53 -> 188000 | L164: ='W CF'!L53 -> 188000 | M164: ='W CF'!M53 -> 188000
D165: ="SUBTOTAL "&D158 -> SUBTOTAL O&M EXPENSES | H165: =SUM(H159:H164) -> 13412450 | I165: =SUM(I159:I164) -> 13751187.85 | J165: 14297425.11 | K165: 14680667.15 | L165: 14991059.53 | M165: 15297512.32
D167: DEPRECIATION FUNDING
E168: =E159 -> 461 WATER ADMINISTRATION | H168: =H95 -> 8560 | I168: =I95 -> 8816.8 | J168: 9081.304 | K168: 9353.74312 | L168: 9634.355414 | M168: 9923.386076
E169: =E160 -> 462 WATER PRODUCTION | H169: =H96 -> 2017780 | I169: =I96 -> 2057313.4 | J169: =J96 -> 2098032.802 | K169: =K96 -> 2639973.786 | L169: =L96 -> 2698173 | M169: =M96 -> 2758118.19
E170: =E162 -> 463 TRANSMISSION & DISTRIBUTION | H170: =H97 -> 525410 | I170: 541172.3 | J170: 557407.469 | K170: 574129.6931 | L170: 591353.5839 | M170: 609094.1914
E171: 464 WATER CONSERVATION | H171: 0 | I171: 0 | J171: 0 | K171: 0 | L171: 0 | M171: 0
D172: ="SUBTOTAL "&D167 -> SUBTOTAL DEPRECIATION FUNDING | H172: =SUM(H168:H171) -> 2551750 | I172: =SUM(I168:I171) -> 2607302.5 | J172: 2664521.575 | K172: 3223457.222 | L172: 3299160.939 | M172: 3377135.767
D174: WATER DEBT SERVICE
E175: Existing Debt Service | H175: ='W CF'!H57 -> 0 | I175: ='W CF'!I57 -> 0 | J175: ='W CF'!J57 -> 0 | K175: ='W CF'!K57 -> 0 | L175: ='W CF'!L57 -> 0 | M175: ='W CF'!M57 -> 0
E176: New Debt Service | H176: ='W CF'!H58 -> 0 | I176: ='W CF'!I58 -> 0 | J176: ='W CF'!J58 -> 0 | K176: ='W CF'!K58 -> 0 | L176: ='W CF'!L58 -> 0 | M176: ='W CF'!M58 -> 0
D177: ="SUBTOTAL "&D174 -> SUBTOTAL WATER DEBT SERVICE | H177: =SUM(H175:H176) -> 0 | I177: =SUM(I175:I176) -> 0 | J177: 0 | K177: 0 | L177: 0 | M177: 0
D178: ="TOTAL "&D157 -> TOTAL OPERATING EXPENSES | H178: =SUM(H165,H172,H177) -> 15964200 | I178: =SUM(I165,I172,I177) -> 16358490.35 | J178: 16961946.68 | K178: 17904124.38 | L178: 18290220.47 | M178: 18674648.09
D180: NET INCOME | H180: =H155-H165-H172-H177 -> -1386800 | I180: 253290.9797 | J180: 751380.5127 | K180: 443287.6678 | L180: 423045.1312 | M180: 267839.9182
D182: Net Transfers from / (to) Other Funds | H182: =SUM(H183:H190) -> 1070210 | I182: 0 | J182: 0 | K182: 0 | L182: 0 | M182: 0
E183: =E115 -> GENERAL FUND | H183: =H115 -> 16710 | I183: =I115 -> 0 | J183: 0 | K183: 0 | L183: 0 | M183: 0
E184: =E116 -> SEWER FUND | H184: =H116 -> 0 | I184: 0 | J184: 0 | K184: 0 | L184: 0 | M184: 0
E185: CLEAN OCEAN FUND | H185: 0 | I185: 0 | J185: 0 | K185: 0 | L185: 0 | M185: 0
E186: OTHER FUNDS | H186: 53500 | I186: 0 | J186: 0 | K186: 0 | L186: 0 | M186: 0
E187: WATER ACREAGE FEES FUND | H187: 0 | I187: 0 | J187: 0 | K187: 0 | L187: 0 | M187: 0
E188: WATER DEPRECIATION FUND | H188: 1000000 | I188: 0 | J188: 0 | K188: 0 | L188: 0 | M188: 0
E189: WATER DEPRECIATION OTHER AGENCY FUND | H189: 0 | I189: 0 | J189: 0 | K189: 0 | L189: 0 | M189: 0
D191: NET CASH BALANCES | H191: =H180+H182 -> -316590 | I191: =I180+I182 -> 253290.9797 | J191: 751380.5127 | K191: 443287.6678 | L191: 423045.1312 | M191: 267839.9182
D193: Beginning Operating Fund Balances | H193: ='W CF'!H79 -> 23935 | I193: ='W CF'!I79 -> -292655 | J193: ='W CF'!J79 -> -39364.0203 | K193: ='W CF'!K79 -> 712016.4924 | L193: ='W CF'!L79 -> 1155304.16 | M193: ='W CF'!M79 -> 1578349.291
D194: Ending Operating Fund Balances | H194: =SUM(H191:H193) -> -292655 | I194: =SUM(I191:I193) -> -39364.0203 | J194: 712016.4924 | K194: 1155304.16 | L194: 1578349.291 | M194: 1846189.21
D195: Target Operating Fund Balances | H195: ='W CF'!H143 -> 1072996 | I195: ='W CF'!I143 -> 1100095.028 | J195: ='W CF'!J143 -> 1143794.008 | K195: ='W CF'!K143 -> 1174453.372 | L195: ='W CF'!L143 -> 1199284.762 | M195: ='W CF'!M143 -> 1223800.986
H196: =ROUND(H136,0)=ROUND(H194,0) -> TRUE | I196: TRUE | J196: TRUE | K196: TRUE | L196: TRUE | M196: TRUE | N196: =IF(AND(H196:M196),"No Errors", "ERRORS") -> No Errors
A200: =client -> City of San Clemente | F200: =Model -> Financial Plan & COS Model
A201: Reclaimed Water Operating Pro-forma | F201: =rfc_budyear -> 2012
H205: =rfc_budyear -> 2012 | I205: =H205+1 -> 2013 | J205: =I205+1 -> 2014 | K205: =J205+1 -> 2015 | L205: =K205+1 -> 2016 | M205: =L205+1 -> 2017
H206: =IF(H205=rfc_budyear,"Budgeted",IF(H205<=rfc_budyear-2,"Actual",IF(H205=rfc_budyear-1,"Estimated","Projected"))) -> Budgeted | I206: Projected | J206: Projected | K206: Projected | L206: Projected | M206: Projected
D208: REVENUES
E209: RW Revenues from Current Rates - Existing | H209: ='RW CF'!H13 -> 775573 | I209: ='RW CF'!I13 -> 775573.2562 | J209: ='RW CF'!J13 -> 775573.2562 | K209: ='RW CF'!K13 -> 775573.2562 | L209: ='RW CF'!L13 -> 775573.2562 | M209: ='RW CF'!M13 -> 775573.2562
E210: RW Revenues from Current Rates - Expanded | H210: =SUM('RW CF'!H14) -> 0 | I210: =SUM('RW CF'!I14) -> 0 | J210: =SUM('RW CF'!J14) -> 0 | K210: =SUM('RW CF'!K14) -> 261033.3 | L210: =SUM('RW CF'!L14) -> 542060.64 | M210: =SUM('RW CF'!M14) -> 889734.78
E211: RW Revenue Adjustments | H211: =SUM('RW CF'!H17:H22) -> 0 | I211: =SUM('RW CF'!I17:I22) -> 0 | J211: =SUM('RW CF'!J17:J22) -> 0 | K211: =SUM('RW CF'!K17:K22) -> 38008.90706 | L211: =SUM('RW CF'!L17:L22) -> 102951.1284 | M211: =SUM('RW CF'!M17:M22) -> 201933.0321
E212: Other RW Operating Revenues | H212: ='RW CF'!H30 -> 55515.37563 | I212: ='RW CF'!I30 -> 46392.33977 | J212: ='RW CF'!J30 -> 56562.99673 | K212: ='RW CF'!K30 -> 129756.9751 | L212: ='RW CF'!L30 -> 174911.4189 | M212: ='RW CF'!M30 -> 280536.3985
D213: TOTAL REVENUES | H213: =SUM(H209:H212) -> 831088.3756 | I213: =SUM(I209:I212) -> 821965.596 | J213: 832136.2529 | K213: 1204372.438 | L213: 1595496.444 | M213: 2147777.467
D215: OPERATING EXPENSES
D216: O&M EXPENSES
E217: ='RW CF'!D36 -> 465 WATER RECLAMATION | H217: ='RW CF'!H36-H218 -> 467470 | I217: ='RW CF'!I36-I218 -> 482109.4 | J217: ='RW CF'!J36-J218 -> 497266.726 | K217: ='RW CF'!K36-K218 -> 512962.4126 | L217: ='RW CF'!L36-L218 -> 529217.7713 | M217: ='RW CF'!M36-M218 -> 546055.0308
E218: ='W &RW O&M'!B314 -> 465-42610-000-00000 PURCHASED WATER | H218: ='W &RW O&M'!H314 -> 457010 | I218: ='W &RW O&M'!I314 -> 228505 | J218: ='W &RW O&M'!J314 -> 0 | K218: ='W &RW O&M'!K314 -> 0 | L218: ='W &RW O&M'!L314 -> 0 | M218: ='W &RW O&M'!M314 -> 0
E219: ='RW CF'!D37 -> Expansion Cost* | H219: ='RW CF'!H37 -> 0 | I219: ='RW CF'!I37 -> 0 | J219: ='RW CF'!J37 -> 64200 | K219: ='RW CF'!K37 -> 160491.4321 | L219: ='RW CF'!L37 -> 225106.3819 | M219: ='RW CF'!M37 -> 304395.7348
E220: ='RW CF'!D38 -> 461 WATER ADMINISTRATION | H220: ='RW CF'!H38 -> 0 | I220: ='RW CF'!I38 -> 0 | J220: ='RW CF'!J38 -> 0 | K220: ='RW CF'!K38 -> 0 | L220: ='RW CF'!L38 -> 0 | M220: ='RW CF'!M38 -> 0
D221: ="SUBTOTAL "&D216 -> SUBTOTAL O&M EXPENSES | H221: =SUM(H217:H220) -> 924480 | I221: 710614.4 | J221: 561466.726 | K221: 673453.8446 | L221: 754324.1532 | M221: 850450.7657
D223: DEPRECIATION FUNDING
E224: ='RW CF'!D44 -> Existing Depreciation Funding | H224: ='RW CF'!H44 -> 38250 | I224: ='RW CF'!I44 -> 39397.5 | J224: ='RW CF'!J44 -> 40579.425 | K224: ='RW CF'!K44 -> 41796.80775 | L224: ='RW CF'!L44 -> 43050.71198 | M224: ='RW CF'!M44 -> 44342.23334
E225: ='RW CF'!D45 -> Expanded Depreciation Funding | H225: ='RW CF'!H45 -> 0 | I225: ='RW CF'!I45 -> 0 | J225: ='RW CF'!J45 -> 0 | K225: ='RW CF'!K45 -> 330400 | L225: ='RW CF'!L45 -> 330650 | M225: ='RW CF'!M45 -> 330906.25
D226: ="SUBTOTAL "&D223 -> SUBTOTAL DEPRECIATION FUNDING | H226: =SUM(H224:H225) -> 38250 | I226: 39397.5 | J226: 40579.425 | K226: 372196.8078 | L226: 373700.712 | M226: 375248.4833
D228: RW DEBT SERVICE
E229: Existing Debt Service | H229: ='RW CF'!H42 -> 0 | I229: ='RW CF'!I42 -> 0 | J229: ='RW CF'!J42 -> 0 | K229: ='RW CF'!K42 -> 0 | L229: ='RW CF'!L42 -> 0 | M229: ='RW CF'!M42 -> 0
E230: New Debt Service | H230: ='RW CF'!H43 -> 0 | I230: ='RW CF'!I43 -> 0 | J230: ='RW CF'!J43 -> 0 | K230: ='RW CF'!K43 -> 919000 | L230: ='RW CF'!L43 -> 919000 | M230: ='RW CF'!M43 -> 919000
D231: ="SUBTOTAL "&D228 -> SUBTOTAL RW DEBT SERVICE | H231: =SUM(H229:H230) -> 0 | I231: =SUM(I229:I230) -> 0 | J231: 0 | K231: 919000 | L231: 919000 | M231: 919000
D232: TOTAL OPERATING EXPENSES | H232: =SUM(H221,H226,H231) -> 962730 | I232: =SUM(I221,I226,I231) -> 750011.9 | J232: 602046.151 | K232: 1964650.652 | L232: 2047024.865 | M232: 2144699.249
D234: NET INCOME | H234: =H213-H221-H226-H231 -> -131641.6244 | I234: =I213-I221-I226-I231 -> 71953.69596 | J234: 230090.1019 | K234: -760278.2141 | L234: -451528.4217 | M234: =M213-M221-M226-M231 -> 3078.217726
D236: Net Transfers from / (to) Other Funds | H236: =SUM(H237:H239) -> 188000 | I236: 188000 | J236: 188000 | K236: 760278.2141 | L236: 451528.4217 | M236: 188000
E237: Subsidy from Water Fund | H237: =SUM('RW CF'!H80:H81) -> 188000 | I237: =SUM('RW CF'!I80:I81) -> 188000 | J237: =SUM('RW CF'!J80:J81) -> 188000 | K237: =SUM('RW CF'!K80:K81) -> 188000 | L237: =SUM('RW CF'!L80:L81) -> 188000 | M237: =SUM('RW CF'!M80:M81) -> 188000
E238: ='RW CF'!D82 -> Loans from City's Depreciation Reserves | H238: ='RW CF'!H82 -> 0 | I238: ='RW CF'!I82 -> 0 | J238: ='RW CF'!J82 -> 0 | K238: ='RW CF'!K82 -> 572278.2141 | L238: ='RW CF'!L82 -> 263528.4217 | M238: ='RW CF'!M82 -> 0
D240: NET CASH BALANCES | H240: =H234+H236 -> 56358.37563 | I240: =I234+I236 -> 259953.696 | J240: 418090.1019 | K240: 0 | L240: 0 | M240: 191078.2177
D242: Beginning Operating Fund Balances | H242: ='RW CF'!H77 -> 0 | I242: ='RW CF'!I77 -> 56358.37563 | J242: ='RW CF'!J77 -> 316312.0716 | K242: ='RW CF'!K77 -> 734402.1735 | L242: ='RW CF'!L77 -> 734402.1735 | M242: ='RW CF'!M77 -> 734402.1735
D243: Ending Operating Fund Balances | H243: =SUM(H240:H242) -> 56358.37563 | I243: =SUM(I240:I242) -> 316312.0716 | J243: 734402.1735 | K243: 734402.1735 | L243: 734402.1735 | M243: 925480.3913
D244: Target Operating Fund Balances | H244: ='RW CF'!H106 -> 73958.4 | I244: ='RW CF'!I106 -> 56849.152 | J244: ='RW CF'!J106 -> 44917.33808 | K244: ='RW CF'!K106 -> 53876.30757 | L244: ='RW CF'!L106 -> 60345.93226 | M244: ='RW CF'!M106 -> 68036.06125
H245: =ROUND(H137,0)=ROUND(H243,0) -> TRUE | I245: TRUE | J245: TRUE | K245: TRUE | L245: TRUE | M245: TRUE | N245: =IF(AND(H245:M245),"No Errors", "ERRORS") -> No Errors

Sheet COS
A1: =client -> City of San Clemente | F1: =Model -> Financial Plan & COS Model
A2: Sewer COS | F2: =rfc_budyear -> 2012
B4: O&M Categories | C4: WW Flow | D4: BOD | E4: TSS | F4: Customer Service | G4: General | H4: Total
B5: Administration | F5: 0.5 | G5: 0.5 | H5: =SUM(C5:G5) -> 1
B6: Treatment | C6: 0.5 | D6: 0.25 | E6: 0.25 | H6: =SUM(C6:G6) -> 1
B7: Collection | C7: 1 | H7: 1
B9: =B5 -> Administration | C9: =$H9*C5 -> 0 | D9: =$H9*D5 -> 0 | E9: 0 | F9: 654529.1 | G9: 654529.1 | H9: ='S CF'!N46 -> 1309058.2
B10: =B6 -> Treatment | C10: =$H10*C6 -> 1635787.35 | D10: 817893.675 | E10: 817893.675 | F10: 0 | G10: 0 | H10: ='S CF'!N47 -> 3271574.7
B11: Collection | C11: =$H11*C7 -> 1549814.5 | D11: 0 | E11: 0 | F11: 0 | G11: 0 | H11: ='S CF'!N48 -> 1549814.5
B12: TOTAL | C12: =SUM(C9:C11) -> 3185601.85 | D12: =SUM(D9:D11) -> 817893.675 | E12: 817893.675 | F12: 654529.1 | G12: 654529.1 | H12: 6130447.4 | I12: =SUM(C12:G12)=H12 -> TRUE
C13: =C12/$H12 -> 0.5196361117 | D13: =D12/$H12 -> 0.1334150057 | E13: 0.1334150057 | F13: 0.1067669384 | G13: 0.1067669384
B15: Capital (from Asset List) | C15: WW Flow | D15: BOD | E15: TSS | F15: Customer Service | G15: General | H15: Total
B16: ='CIP & Assets'!C224 -> Lift Station | C16: 0.8 | D16: 0.1 | E16: 0.1 | H16: =SUM(C16:G16) -> 1
B17: ='CIP & Assets'!C225 -> Treatment Plant | C17: =C6 -> 0.5 | D17: =D6 -> 0.25 | E17: 0.25 | H17: =SUM(C17:G17) -> 1
B18: ='CIP & Assets'!C226 -> Pump Station | C18: 0.8 | D18: 0.1 | E18: 0.1 | H18: 1
B19: ='CIP & Assets'!C227 -> Sewer Pipes | C19: 1 | H19: 1
B20: ='CIP & Assets'!C228 -> General Equipment | F20: 0.5 | G20: 0.5 | H20: 1
B21: ='CIP & Assets'!C229 -> Fleet | F21: 0.5 | G21: 0.5 | H21: 1
B22: ='CIP & Assets'!C230 -> Land | F22: 0.5 | G22: 0.5 | H22: 1
B23: ='CIP & Assets'!C231 -> Buildings | F23: 0.5 | G23: 0.5 | H23: 1
H24: RC
B25: =B16 -> Lift Station | C25: =$H25*C16 -> 10518204.1 | D25: =$H25*D16 -> 1314775.512 | E25: 1314775.512 | F25: 0 | G25: 0 | H25: ='CIP & Assets'!E224 -> 13147755.12
B26: =B17 -> Treatment Plant | C26: =$H26*C17 -> 61844817 | D26: 30922408.5 | E26: 30922408.5 | F26: 0 | G26: 0 | H26: ='CIP & Assets'!E225 -> 123689634
B27: Pump Station | C27: =$H27*C18 -> 6723688.803 | D27: 840461.1003 | E27: 840461.1003 | F27: 0 | G27: 0 | H27: ='CIP & Assets'!E226 -> 8404611.003
B28: Sewer Pipes | C28: =$H28*C19 -> 105512772 | D28: 0 | E28: 0 | F28: 0 | G28: 0 | H28: ='CIP & Assets'!E227 -> 105512772
B29: General Equipment | C29: =$H29*C20 -> 0 | D29: 0 | E29: 0 | F29: 373199.3293 | G29: 373199.3293 | H29: ='CIP & Assets'!E228 -> 746398.6586
B30: Fleet | C30: =$H30*C21 -> 0 | D30: 0 | E30: 0 | F30: 61594.07617 | G30: 61594.07617 | H30: ='CIP & Assets'!E229 -> 123188.1523
B31: Land | C31: =$H31*C22 -> 0 | D31: 0 | E31: 0 | F31: 394226.0817 | G31: 394226.0817 | H31: ='CIP & Assets'!E230 -> 788452.1635
B32: Buildings | C32: =$H32*C23 -> 0 | D32: 0 | E32: 0 | F32: 11557.40933 | G32: 11557.40933 | H32: ='CIP & Assets'!E231 -> 23114.81867
B33: TOTAL | C33: =SUM(C25:C32) -> 184599481.9 | D33: 33077645.11 | E33: 33077645.11 | F33: 840576.8966 | G33: 840576.8966 | H33: 252435925.9 | I33: =SUM(C33:G33)=H33 -> TRUE
C34: =C33/$H33 -> 0.7312726238 | D34: =D33/$H33 -> 0.1310338257 | E34: 0.1310338257 | F34: 0.003329862394 | G34: 0.003329862394 | H34: 1
B39: Mass Balance | E39: WW Flow | F39: BOD | G39: TSS | H39: Flow | I39: BOD | J39: TSS
E40: mgd | F40: mg/L | G40: mg/L | H40: hcf | I40: lb/yr | J40: lb/yr
B42: Total Flow | E42: ='Key Assumptions'!K81 -> 4.059064637 | F42: =I42/365/8.34/E42 -> 305.2057061 | G42: =J42/365/8.34/E42 -> 293.7095949 | H42: ='Key Assumptions'!H81/100 -> 1981188.49 | I42: ='Key Assumptions'!L81 -> 3771182.338 | J42: ='Key Assumptions'!M81 -> 3629134.104
B43: I&I | D43: ='Key Assumptions'!H83 -> 0.07 | E43: =D43*E42 -> 0.2841345246 | F43: ='Key Assumptions'!I83 -> 100 | G43: ='Key Assumptions'!J83 -> 100 | H43: =E43*1000000*365/748 -> 138648.5314 | I43: =F43*E43*8.34*365 -> 86493.39064 | J43: =G43*E43*8.34*365 -> 86493.39064
B44: Net Flow | E44: =E42-E43 -> 3.774930113 | F44: =I44/365/8.34/E44 -> 320.6512969 | G44: =J44/365/8.34/E44 -> 308.289887 | H44: =H42-H43 -> 1842539.959 | I44: =I42-I43 -> 3684688.947 | J44: 3542640.713
B46: Non-Residential Flow (Average strength as defined by customer classes) | H46: =NonResReturnFactor -> 0.9 | I46: Return Factor
B47: ='S Rev'!D23 -> Low strength commercial/Schools/Religious Institutions | E47: =H47/365*748/1000000 -> 0.2730992388 | F47: ='Key Assumptions'!I91 -> 149 | G47: ='Key Assumptions'!J91 -> 149 | H47: =NonResReturnFactor*'S Rev'!N170 -> 133263.666 | I47: =$E47*365*8.34*F47 -> 123869.8675 | J47: =$E47*365*8.34*G47 -> 123869.8675
B48: ='S Rev'!D24 -> Medium strength commercial | E48: =H48/365*748/1000000 -> 0.1506948978 | F48: ='Key Assumptions'!I92 -> 290 | G48: ='Key Assumptions'!J92 -> 290 | H48: =NonResReturnFactor*'S Rev'!N171 -> 73534.275 | I48: 133031.7981 | J48: 133031.7981
B49: ='S Rev'!D25 -> Commercial/residential | E49: =H49/365*748/1000000 -> 0.001730640427 | F49: ='Key Assumptions'!I93 -> 290 | G49: ='Key Assumptions'!J93 -> 290 | H49: =NonResReturnFactor*'S Rev'!N172 -> 844.497 | I49: 1527.790332 | J49: 1527.790332
B50: ='S Rev'!D26 -> Medium high strength commercial | E50: =H50/365*748/1000000 -> 0.01502674619 | F50: ='Key Assumptions'!I94 -> 500 | G50: ='Key Assumptions'!J94 -> 500 | H50: =NonResReturnFactor*'S Rev'!N173 -> 7332.57 | I50: 22871.45904 | J50: 22871.45904
B51: ='S Rev'!D27 -> High strength commercial | E51: =H51/365*748/1000000 -> 0.1192793097 | F51: ='Key Assumptions'!I95 -> 900 | G51: ='Key Assumptions'!J95 -> 900 | H51: =NonResReturnFactor*'S Rev'!N174 -> 58204.476 | I51: 326788.332 | J51: 326788.332
B53: Subtotal Non-Residential Flow | E53: =SUM(E47:E52) -> 0.559830833 | F53: =I53/365/8.34/E53 -> 356.8219768 | G53: =J53/365/8.34/E53 -> 356.8219768 | H53: =SUM(H47:H52) -> 273179.484 | I53: =SUM(I47:I52) -> 608089.2471 | J53: 608089.2471
B55: Net Residential Flow | D55: Calculated | E55: =E44-E53 -> 3.21509928 | F55: =I55/365/8.34/E55 -> 314.3530585 | G55: =J55/365/8.34/E55 -> 299.8392116 | H55: =H44-H53 -> 1569360.475 | I55: =I44-I53 -> 3076599.7 | J55: 2934551.466
B56: Residential (LA data) | D56: LA Data | E56: 230 | F56: 215 | G56: 205 | H56: =SUM(E107:E108) -> 1831196.727 | I56: ="Res WW Flows = Res Billed Usage * Res Return Factor of "&TEXT(ResReturnFactor,"#%") -> Res WW Flows = Res Billed Usage * Res Return Factor of 90%
B57: Residential (LACSD data) | D57: LACSD Data | E57: 260 | F57: 337 | G57: 269
B58: Residential Strengths | C58: =MATCH(D58,ResStrengthOptions,0) -> 2 | D58: =Rates!E20 -> LA Data | F58: =INDEX(F55:F57,$C58) -> 215 | G58: =INDEX(G55:G57,$C58) -> 205
B59: Estimated GPCD | E59: =H55/C62/365*748 -> 50.45438822
B62: Total Population | C62: 63743 | D62: Based on California E-5 Report 1/1/11
B63: Average Density | C63: =C62/C64 -> 2.45108821
B64: Housing Units | C64: 26006
B67: Allocation of Revenue Requirements | E67: =rfc_testyear -> 2013
E68: O&M | F68: Capital | G68: Total
B69: Revenue Requirements
B70: O&M Expenses
B71: ='S CF'!D46 -> 471 SEWER ADMINISTRATION | E71: ='S CF'!N46 -> 1309058.2 | G71: =SUM(E71:F71) -> 1309058.2
B72: ='S CF'!D47 -> 472 TREATMENT | E72: ='S CF'!N47 -> 3271574.7 | G72: =SUM(E72:F72) -> 3271574.7
B73: ='S CF'!D48 -> 473 COLLECTION | E73: ='S CF'!N48 -> 1549814.5 | G73: 1549814.5
B74: Non-Operating Expenses
B75: Debt Service | F75: =SUM('S CF'!N52:N53) -> 0 | G75: 0
B76: Depreciation Funding | F76: =SUM('S CF'!N55:N56) -> 2318080 | G76: 2318080
B78: ="Subtotal "&B69 -> Subtotal Revenue Requirements | E78: =SUM(E70:E77) -> 6130447.4 | F78: =SUM(F70:F77) -> 2318080 | G78: 8448527.4
B79: Less
B80: Other Revenue Sources
B81: ='S CF'!D24 -> Other Operating Revenues
B82: ='S CF'!D25 -> 32374-000-00000 CHGS MODIFICATION CONN FEES | E82: ='S CF'!N25 -> 0 | G82: =SUM(E82:F82) -> 0
B83: ='S CF'!D26 -> 34430-000-00000 EFFLUENT WATER SALES | E83: ='S CF'!N26 -> 228505 | G83: 228505
B84: ='S CF'!D27 -> 36810-000-00000 WORK ORDERS | E84: ='S CF'!N27 -> 2525 | G84: 2525
B85: ='S CF'!D30 -> Non-Operating Revenues
B86: ='S CF'!D31 -> 36110-000-00000 INVESTMENT EARNINGS | F86: ='S CF'!N31 -> 4368.200415 | G86: 4368.200415
B87: ='S CF'!D32 -> 36130-000-00000 UNREALIZED GAIN / LOSS ON INVESTMENT | E87: ='S CF'!N32 -> 0 | G87: 0
B88: ='S CF'!D33 -> 36180-000-00000 INTEREST EARNINGS - OTHER | E88: ='S CF'!N33 -> 0 | G88: 0
B89: ='S CF'!D34 -> 33180-000-00000 OTHER FEDERAL GRANT | E89: ='S CF'!N34 -> 0 | G89: 0
B90: ='S CF'!D35 -> 33481-000-18201 PROP 50 | E90: ='S CF'!N35 -> 0 | G90: 0
B91: ='S CF'!D36 -> 36850-000-00000 MISCELLANEOUS INCOME | E91: ='S CF'!N36 -> 1010 | G91: 1010
B92: ='S CF'!D37 -> 36855-000-00000 MISCELLANEOUS REIMBURSEMENTS | E92: ='S CF'!N37 -> 505 | G92: 505
B93: ='S CF'!D38 -> 36858-000-00000 OTHER AGENCY REVENUE | E93: ='S CF'!N38 -> 0 | G93: 0
B94: ='S CF'!D39 -> 39110-000-00000 GAIN/LOSS - DISPOSAL GEN'L FIXED ASSETS | E94: ='S CF'!N39 -> 0 | G94: 0
B95: ="Subtotal "&B80 -> Subtotal Other Revenue Sources | E95: =SUM(E81:E94) -> 232545 | F95: =SUM(F81:F94) -> 4368.200415 | G95: 236913.2004
B96: Less
B97: Adjustments
B98: Adjustment for Annual Cash Balance | E98: =-'S CF'!N61 -> -79978.83311 | G98: =SUM(E98:F98) -> -79978.83311
B99: Adjustment for Annualize Increases | E99: ='S CF'!O22/'S CF'!Q22*('S CF'!Q22-12) -> -51500.57784 | G99: -51500.57784
B100: ="Subtotal "&B97 -> Subtotal Adjustments | E100: =SUM(E98:E99) -> -131479.4109 | F100: =SUM(F98:F99) -> 0 | G100: -131479.4109
B102: Revenue to be Recovered from Rates | E102: =E78-E95-E100 -> 6029381.811 | F102: =F78-F95-F100 -> 2313711.8 | G102: 8343093.611 | H102: =ROUND(G102+G99,0)=ROUND('S CF'!N22,0) -> TRUE
B104: Development of Unit Costs | E104: =rfc_testyear -> 2013
E105: hcf / yr | F105: lbs / yr | G105: lbs / yr | H105: bills / year
D106: Units of Service by Customer Classes | E106: WW Flow | F106: BOD | G106: TSS | H106: Accounts
D107: ='S Rev'!E158 -> Single-family residential* | E107: ='S Rev'!N168*ResReturnFactor -> 1280391.867 | F107: =$E107*748/1000000*8.34*F$58 -> 1717311.251 | G107: =$E107*748/1000000*8.34*G$58 -> 1637436.309 | H107: ='S Rev'!N158*bills -> 139380
D108: ='S Rev'!E159 -> Multi-family residential/Mobile Home | E108: ='S Rev'!N169*ResReturnFactor -> 550804.86 | F108: =$E108*748/1000000*8.34*F$58 -> 738760.8495 | G108: =$E108*748/1000000*8.34*G$58 -> 704399.8797 | H108: ='S Rev'!N159*bills -> 41040
D109: ='S Rev'!E160 -> Low strength commercial/Schools/Religious Institutions | E109: ='S Rev'!N170*NonResReturnFactor -> 133263.666 | F109: =I47 -> 123869.8675 | G109: =J47 -> 123869.8675 | H109: ='S Rev'!N160*bills -> 6156
D110: ='S Rev'!E161 -> Medium strength commercial | E110: ='S Rev'!N171*NonResReturnFactor -> 73534.275 | F110: =I48 -> 133031.7981 | G110: 133031.7981 | H110: ='S Rev'!N161*bills -> 2268
D111: ='S Rev'!E162 -> Commercial/residential | E111: ='S Rev'!N172*NonResReturnFactor -> 844.497 | F111: =I49 -> 1527.790332 | G111: 1527.790332 | H111: ='S Rev'!N162*bills -> 84
D112: ='S Rev'!E163 -> Medium high strength commercial | E112: ='S Rev'!N173*NonResReturnFactor -> 7332.57 | F112: =I50 -> 22871.45904 | G112: 22871.45904 | H112: ='S Rev'!N163*bills -> 132
D113: ='S Rev'!E164 -> High strength commercial | E113: ='S Rev'!N174*NonResReturnFactor -> 58204.476 | F113: =I51 -> 326788.332 | G113: 326788.332 | H113: ='S Rev'!N164*bills -> 1116
D114: Total | E114: =SUM(E107:E113) -> 2104376.211 | F114: =SUM(F107:F113) -> 3064161.348 | G114: 2949925.436 | H114: 190176
D115: Influent less I&I | E115: =H44 -> 1842539.959 | F115: =I44 -> 3684688.947 | G115: 3542640.713
E117: =C4 -> WW Flow | F117: =D4 -> BOD | G117: TSS | H117: Customer Service | I117: General | J117: Total
D118: % Cost Allocations
D119: Operating Cost | E119: =C13 -> 0.5196361117 | F119: =D13 -> 0.1334150057 | G119: 0.1334150057 | H119: 0.1067669384 | I119: 0.1067669384 | J119: =SUM(E119:I119) -> 1
D120: Capital Cost | E120: =C34 -> 0.7312726238 | F120: =D34 -> 0.1310338257 | G120: 0.1310338257 | H120: 0.003329862394 | I120: 0.003329862394 | J120: =SUM(E120:I120) -> 1
D121: Sewer System Cost
D122: Operating Cost | E122: =$J122*E119 -> 3133084.52 | F122: =$J122*F119 -> 804410.0089 | G122: 804410.0089 | H122: 643738.6365 | I122: 643738.6365 | J122: =E102 -> 6029381.811 | K122: =ROUND(J122,0)=ROUND(SUM(E122:I122),0) -> TRUE
D123: Capital Cost | E123: =$J123*E120 -> 1691954.098 | F123: 303174.5086 | G123: 303174.5086 | H123: 7704.341912 | I123: 7704.341912 | J123: =F102 -> 2313711.8 | K123: =ROUND(J123,0)=ROUND(SUM(E123:I123),0) -> TRUE
D124: Total Costs | E124: =SUM(E122:E123) -> 4825038.619 | F124: =SUM(F122:F123) -> 1107584.517 | G124: 1107584.517 | H124: 651442.9784 | I124: 651442.9784 | J124: 8343093.611 | K124: TRUE
D126: % Allocation of General Costs | E126: =E124/($J124-$I124) -> 0.6273086038 | F126: =F124/($J124-$I124) -> 0.1439982873 | G126: 0.1439982873 | H126: 0.08469482164 | J126: =SUM(E126:I126) -> 1
D127: General Cost Re-allocation | E127: =$I124*E126 -> 408655.7852 | F127: =$I124*F126 -> 93806.67316 | G127: 93806.67316 | H127: 55173.84686 | I127: =-SUM(E127:H127) -> -651442.9784 | J127: =SUM(E127:I127) -> 0 | K127: =-ROUND(I127,0)=ROUND(I124,0) -> TRUE
D129: Required Cost of Service | E129: =E124+E127 -> 5233694.404 | F129: =F124+F127 -> 1201391.191 | G129: 1201391.191 | H129: 706616.8253 | I129: 0 | J129: 8343093.611 | K129: =ROUND(J129,0)=ROUND(J124,0) -> TRUE
D131: Units of Service | E131: =E114 -> 2104376.211 | F131: =F114 -> 3064161.348 | G131: 2949925.436 | H131: 190176
E132: hcf / yr | F132: lbs / yr | G132: lbs / yr | H132: bills / year
D134: Unit Cost of Service | E134: =E129/E131 -> 2.487052637 | F134: =F129/F131 -> 0.392078306 | G134: 0.407261545 | H134: 3.715594109
C137: Cost Allocation to Customer Classes | H137: =rfc_testyear -> 2013
E139: =E117 -> WW Flow | F139: =F117 -> BOD | G139: =G117 -> TSS | H139: =H117 -> Customer Service | I139: =J117 -> Total | J139: Current Rev | K139: % Change
D140: Unit Cost of Service | E140: =E134 -> 2.487052637 | F140: =F134 -> 0.392078306 | G140: 0.407261545 | H140: 3.715594109 | J140: =rfc_budyear -> 2012
E141: =E132 -> hcf / yr | F141: =F132 -> lbs / yr | G141: lbs / yr | H141: bills / year
D143: Customer Classes
D144: =D107 -> Single-family residential* | E144: =E$140*E107 -> 3184401.969 | F144: 673320.4863 | G144: 666864.8411 | H144: 517879.5069 | I144: =SUM(E144:H144) -> 5042466.803 | J144: ='S Rev'!N186+'S Rev'!N194 -> 4552990.551 | K144: =I144/J144-1 -> 0.1075065381
D145: Multi-family residential/Mobile Home | E145: 1369880.679 | F145: 289652.1024 | G145: 286874.9833 | H145: 152487.9822 | I145: =SUM(E145:H145) -> 2098895.747 | J145: ='S Rev'!N187+'S Rev'!N195 -> 1837339.972 | K145: =I145/J145-1 -> 0.1423556767
D146: Low strength commercial/Schools/Religious Institutions | E146: 331433.7519 | F146: 48566.68783 | G146: 50447.43363 | H146: 22873.19733 | I146: 453321.0707 | J146: ='S Rev'!N188+'S Rev'!N196 -> 606560.0222 | K146: -0.2526360886
D147: Medium strength commercial | E147: 182883.6125 | F147: 52158.88206 | G147: 54178.73564 | H147: 8426.967439 | I147: 297648.1977 | J147: ='S Rev'!N189+'S Rev'!N197 -> 303392.7015 | K147: -0.01893421895
D148: Commercial/residential | E148: 2100.30849 | F148: 599.0134454 | G148: 622.2102511 | H148: 312.1099051 | I148: 3633.642092 | J148: ='S Rev'!N190+'S Rev'!N198 -> 6899.13813 | K148: -0.4733194171
D149: Medium high strength commercial | E149: 18236.48755 | F149: 8967.402917 | G149: 9314.665745 | H149: 490.4584224 | I149: 37009.01464 | J149: ='S Rev'!N191+'S Rev'!N199 -> 36716.16 | K149: 0.00797617823
D150: High strength commercial | E150: 144757.5955 | F150: 128126.6157 | G150: 133088.321 | H150: 4146.603026 | I150: 410119.1352 | J150: ='S Rev'!N192+'S Rev'!N200 -> 381188.1313 | K150: 0.0758969167
D151: Total | E151: =SUM(E144:E150) -> 5233694.404 | F151: =SUM(F144:F150) -> 1201391.191 | G151: 1201391.191 | H151: 706616.8253 | I151: =SUM(E151:H151) -> 8343093.611 | J151: =SUM(J144:J150) -> 7725086.676 | K151: =I151/J151-1 -> 0.08
I152: =ROUND(I151,0)=ROUND(G102,0) -> TRUE | J152: =ROUND(J151,0)=ROUND('S CF'!N11,0) -> TRUE
D154: Costs to be recovered by
D155: Monthly Service Charges | E155: 0.8236 | H155: 1
D156: Commodity Charges | E156: =1-E155 -> 0.1764 | F156: 1 | G156: 1 | H156: =1-H155 -> 0
D158: =D155 -> Monthly Service Charges | E158: =E$151*E155 -> 4310470.711 | F158: =F$151*F155 -> 0 | G158: 0 | H158: 706616.8253 | I158: =SUM(E158:H158) -> 5017087.536
D159: =D156 -> Commodity Charges | E159: =E$151*E156 -> 923223.6929 | F159: =F$151*F156 -> 1201391.191 | G159: 1201391.191 | H159: 0 | I159: 3326006.074
D161: Monthly Service Charges | E161: Meter Counts | F161: Current Meter Ratios | G161: Equiv Meters | H161: Proposed Service Charges | I161: Current Service Charges | J161: Projected Rev | K161: Current Rev
D162: Meter Size
D163: ='S Rev'!C9 -> ⅝ in. | E163: ='S Rev'!N145 -> 0 | F163: ='S Rev'!D9 -> 1 | G163: =F163*E163 -> 0 | H163: =ROUNDUP($I$158/$G$173*$F163/bills,2) -> 22.46 | I163: ='S Rev'!H9 -> 20.8 | J163: =H163*E163*bills -> 0 | K163: =I163*E163*bills -> 0 | L163: =H163/I163-1 -> 0.07980769231
D164: ='S Rev'!C10 -> ¾ in. | E164: ='S Rev'!N146 -> 0 | F164: ='S Rev'!D10 -> 1 | G164: =F164*E164 -> 0 | H164: 22.46 | I164: ='S Rev'!H10 -> 20.8 | J164: 0 | K164: =I164*E164*bills -> 0 | L164: =H164/I164-1 -> 0.07980769231
D165: ='S Rev'!C11 -> 1 in. | E165: ='S Rev'!N147 -> 15176 | F165: ='S Rev'!D11 -> 1 | G165: 15176 | H165: 22.46 | I165: ='S Rev'!H11 -> 20.8 | J165: 4090235.52 | K165: 3787929.6 | L165: 0.07980769231
D166: ='S Rev'!C12 -> 1½ in. | E166: ='S Rev'!N148 -> 255 | F166: ='S Rev'!D12 -> 3.298557692 | G166: 841.1322115 | H166: 74.07 | I166: ='S Rev'!H12 -> 68.61 | J166: 226654.2 | K166: 209946.6 | L166: 0.07958023612
D167: ='S Rev'!C13 -> 2 in. | E167: ='S Rev'!N149 -> 386 | F167: ='S Rev'!D13 -> 5.297596154 | G167: 2044.872115 | H167: 118.96 | I167: ='S Rev'!H13 -> 110.19 | J167: 551022.72 | K167: 510400.08 | L167: 0.07958979944
D168: ='S Rev'!C14 -> 2½ in. | E168: ='S Rev'!N150 -> 0 | F168: ='S Rev'!D14 -> 10.99567308 | G168: 0 | H168: 246.92 | I168: ='S Rev'!H14 -> 228.71 | J168: 0 | K168: 0 | L168: 0.07962048008
D169: ='S Rev'!C15 -> 3 in. | E169: ='S Rev'!N151 -> 14 | F169: ='S Rev'!D15 -> 10.99567308 | G169: 153.9394231 | H169: 246.92 | I169: ='S Rev'!H15 -> 228.71 | J169: 41482.56 | K169: 38423.28 | L169: 0.07962048008
D170: ='S Rev'!C16 -> 4 in. | E170: ='S Rev'!N152 -> 10 | F170: ='S Rev'!D16 -> 16.99278846 | G170: 169.9278846 | H170: 381.58 | I170: ='S Rev'!H16 -> 353.45 | J170: 45789.6 | K170: 42414 | L170: 0.07958692884
D171: ='S Rev'!C17 -> 5 in. | E171: ='S Rev'!N153 -> 0 | F171: ='S Rev'!D17 -> 25.13942308 | G171: 0 | H171: 564.52 | I171: ='S Rev'!H17 -> 522.9 | J171: 0 | K171: 0 | L171: 0.07959456875
D172: ='S Rev'!C18 -> 6 in. | E172: ='S Rev'!N154 -> 7 | F172: ='S Rev'!D18 -> 33.28557692 | G172: 232.9990385 | H172: 747.44 | I172: ='S Rev'!H18 -> 692.34 | J172: 62784.96 | K172: 58156.56 | L172: 0.07958517491
D173: Total | E173: =SUM(E163:E172) -> 15848 | G173: =SUM(G163:G172) -> 18618.87067 | J173: =SUM(J163:J172) -> 5017969.56 | K173: =SUM(K163:K172) -> 4647270.12 | L173: =J173/K173-1 -> 0.07976713865
J174: =IF(J173>=I158,"Sufficient","Not Sufficient") -> Sufficient
C176: Commodity Revenue Requirements by Customer Classes | D176: =E139 -> WW Flow | E176: =F139 -> BOD | F176: =G139 -> TSS | G176: =H139 -> Customer Service | H176: =I139 -> Total | I176: Flow (hcf) | J176: Rate ($ / hcf) | K176: Current Rate | L176: Projected Rev | M176: Current Rev | N176: % Change | O176: Charged Flow (hcf) @ existing RF
C177: =D144 -> Single-family residential* | D177: =E144*E$156 -> 561728.5073 | E177: 673320.4863 | F177: 666864.8411 | G177: 0 | H177: =SUM(D177:G177) -> 1901913.835 | I177: =E107 -> 1280391.867 | J177: =ROUNDUP(H177/I177,2) -> 1.49 | K177: ='S Rev'!H21 -> 1.27 | L177: =J177*I177 -> 1907783.882 | M177: =K177*O177 -> 1626097.671 | N177: =L177/M177-1 -> 0.1732283465 | O177: ='S Rev'!N168*'S Rev'!I21 -> 1280391.867
C178: Multi-family residential/Mobile Home | D178: 241646.9518 | E178: 289652.1024 | F178: 286874.9833 | G178: 0 | H178: =SUM(D178:G178) -> 818174.0375 | I178: 550804.86 | J178: =ROUNDUP(H178/I178,2) -> 1.49 | K178: ='S Rev'!H22 -> 1.27 | L178: =J178*I178 -> 820699.2414 | M178: =K178*O178 -> 699522.1722 | N178: =L178/M178-1 -> 0.1732283465 | O178: ='S Rev'!N169*'S Rev'!I22 -> 550804.86
C179: Low strength commercial/Schools/Religious Institutions | D179: 58464.91383 | E179: 48566.68783 | F179: 50447.43363 | G179: 0 | H179: 157479.0353 | I179: 133263.666 | J179: 1.19 | K179: ='S Rev'!H23 -> 1.73 | L179: 158583.7625 | M179: 230546.1422 | N179: -0.3121387283 | O179: ='S Rev'!N170*'S Rev'!I23 -> 133263.666
C180: Medium strength commercial | D180: 32260.66925 | E180: 52158.88206 | F180: 54178.73564 | G180: 0 | H180: 138598.287 | I180: 73534.275 | J180: 1.89 | K180: ='S Rev'!H24 -> 2.26 | L180: 138979.7798 | M180: 166187.4615 | N180: -0.1637168142 | O180: ='S Rev'!N171*'S Rev'!I24 -> 73534.275
C181: Commercial/residential | D181: 370.4944177 | E181: 599.0134454 | F181: 622.2102511 | G181: 0 | H181: 1591.718114 | I181: 844.497 | J181: 1.89 | K181: ='S Rev'!H25 -> 2.29 | L181: 1596.09933 | M181: 1933.89813 | N181: -0.1746724891 | O181: ='S Rev'!N172*'S Rev'!I25 -> 844.497
C182: Medium high strength commercial | D182: 3216.916404 | E182: 8967.402917 | F182: 9314.665745 | G182: 0 | H182: 21498.98507 | I182: 7332.57 | J182: 2.94 | K182: ='S Rev'!H26 -> 4 | L182: 21557.7558 | M182: 29330.28 | N182: -0.265 | O182: ='S Rev'!N173*'S Rev'!I26 -> 7332.57
C183: High strength commercial | D183: 25535.23985 | E183: 128126.6157 | F183: 133088.321 | G183: 0 | H183: 286750.1765 | I183: 58204.476 | J183: 4.93 | K183: ='S Rev'!H27 -> 5.57 | L183: 286948.0667 | M183: 324198.9313 | N183: -0.1149012567 | O183: ='S Rev'!N174*'S Rev'!I27 -> 58204.476
C184: Total | D184: =SUM(D177:D183) -> 923223.6929 | E184: =SUM(E177:E183) -> 1201391.191 | F184: 1201391.191 | G184: 0 | H184: 3326006.074 | I184: =SUM(I177:I183) -> 2104376.211 | L184: =SUM(L177:L183) -> 3336148.587 | M184: 3077816.556 | N184: =L184/M184-1 -> 0.08393353735 | O184: =SUM(O177:O183) -> 2104376.211
H185: =ROUND(H184,0)=ROUND(I159,0) -> TRUE | L185: =IF(L184>=H184,"Sufficient","Not Sufficient") -> Sufficient
A209: =client -> City of San Clemente | F209: =Model -> Financial Plan & COS Model
A210: Water COS | F210: =rfc_budyear -> 2012
B213: O&M Categories | C213: Supply | D213: Base | E213: Max Day | F213: Max Hour | G213: B&CS | H213: Meter | I213: Conservation | J213: Fire | K213: General | L213: Total
B214: Water Administration | G214: 0.5 | H214: 0.1 | K214: 0.4 | L214: =SUM(C214:K214) -> 1
B215: Water Production | D215: ='Key Assumptions'!H116*(1-SUM($G$215:$K$215)) -> 0.5714285714 | E215: ='Key Assumptions'!I116*(1-SUM($G$215:$K$215)) -> 0.4285714286 | L215: =SUM(C215:K215) -> 1
B216: Water Cost | C216: 1 | L216: =SUM(C216:K216) -> 1
B217: Water T&D | D217: =1-SUM(E217:K217) -> 0.3389830508 | E217: ='Key Assumptions'!I117 -> 0.2542372881 | F217: ='Key Assumptions'!J117 -> 0.406779661 | L217: 1
B218: Conservation | I218: 1 | L218: =SUM(C218:K218) -> 1
B220: =B214 -> Water Administration | C220: =$L220*C214 -> 0 | D220: 0 | E220: 0 | F220: 0 | G220: 610411 | H220: 122082.2 | I220: 0 | J220: 0 | K220: 488328.8 | L220: ='W CF'!N48 -> 1220822
B221: =B215 -> Water Production | C221: =$L221*C215 -> 0 | D221: 1210729.657 | E221: 908047.2429 | F221: 0 | G221: 0 | H221: 0 | I221: 0 | J221: 0 | K221: 0 | L221: ='W CF'!N49 -> 2118776.9
B222: =B216 -> Water Cost | C222: 7445642.253 | D222: 0 | E222: 0 | F222: 0 | G222: 0 | H222: 0 | I222: 0 | J222: 0 | K222: 0 | L222: ='W CF'!N50 -> 7445642.253
B223: =B217 -> Water T&D | C223: =$L223*C217 -> 0 | D223: 862200.678 | E223: 646650.5085 | F223: 1034640.814 | G223: 0 | H223: 0 | I223: 0 | J223: 0 | K223: 0 | L223: ='W CF'!N51 -> 2543492
B224: Conservation | C224: =$L224*C218 -> 0 | D224: 0 | E224: 0 | F224: 0 | G224: 0 | H224: 0 | I224: 234454.7 | J224: 0 | K224: 0 | L224: ='W CF'!N52 -> 234454.7
B225: RW Subsidy | C225: =$L225*C218 -> 0 | D225: =$L225*D218 -> 0 | E225: 0 | F225: 0 | G225: 0 | H225: 0 | I225: 188000 | J225: 0 | K225: 0 | L225: ='W CF'!N53 -> 188000
B226: TOTAL | C226: =SUM(C220:C225) -> 7445642.253 | D226: =SUM(D220:D225) -> 2072930.335 | E226: 1554697.751 | F226: 1034640.814 | G226: 610411 | H226: 122082.2 | I226: 422454.7 | J226: 0 | K226: 488328.8 | L226: =SUM(L220:L225) -> 13751187.85 | M226: =SUM(C226:K226)=L226 -> TRUE
B227: % Allocation for Operating Cost | C227: =C226/$L226 -> 0.5414544789 | D227: =D226/$L226 -> 0.150745547 | E227: 0.1130591603 | F227: 0.07524010468 | G227: 0.04438969248 | H227: 0.008877938496 | I227: 0.03072132419 | J227: 0 | K227: 0.03551175398
B228: % Allocation of O&M w/o WS, Conservation | D228: =D226/($L$226-$C$226-$I$226) -> 0.3523539531 | E228: =E226/($L$226-$C$226-$I$226) -> 0.2642654648 | F228: 0.1758668753 | G228: 0.1037568534 | H228: 0.02075137068 | J228: 0 | K228: 0.08300548271 | L228: =SUM(C228:K228) -> 1
B229: Capital (from Asset List) | C229: =C213 -> Supply | D229: =D213 -> Base | E229: Max Day | F229: Max Hour | G229: B&CS | H229: Meter | I229: Conservation | J229: Fire | K229: General | L229: Total
B230: ='CIP & Assets'!B488 -> Reservoir | D230: 0.8 | H230: 0.1 | J230: 0.1 | L230: =SUM(C230:K230) -> 1
B231: ='CIP & Assets'!B489 -> Pump Station | D231: =1-SUM(E231:K231) -> 0.1389830508 | E231: ='Key Assumptions'!$I$117 -> 0.2542372881 | F231: ='Key Assumptions'!$J$117 -> 0.406779661 | H231: 0.1 | J231: 0.1 | L231: 1
B232: ='CIP & Assets'!B490 -> Pressure Reducing Station | D232: =1-SUM(E232:K232) -> 0.1389830508 | E232: ='Key Assumptions'!$I$117 -> 0.2542372881 | F232: ='Key Assumptions'!$J$117 -> 0.406779661 | H232: 0.1 | J232: 0.1 | L232: 1
B233: ='CIP & Assets'!B491 -> Well | D233: 0.8 | H233: 0.1 | J233: 0.1 | L233: 1
B234: ='CIP & Assets'!B492 -> Filter Station | D234: 1 | L234: 1
B235: ='CIP & Assets'!B493 -> System Reliefs | D235: 1 | L235: 1
B236: ='CIP & Assets'!B494 -> Turnouts | D236: 1 | L236: 1
B237: ='CIP & Assets'!B495 -> Interconnection | D237: 1 | L237: 1
B238: ='CIP & Assets'!B496 -> Land & Buildings | D238: 0.8 | G238: 0.1 | H238: 0.1 | L238: 1
B239: ='CIP & Assets'!B497 -> Water Line Infrastructure | D239: =1-SUM(E239:K239) -> 0.3714285714 | E239: ='Key Assumptions'!I116 -> 0.4285714286 | H239: 0.1 | J239: 0.1 | L239: 1
B240: ='CIP & Assets'!B498 -> Fleet Equipment | K240: 1 | L240: 1
B241: ='CIP & Assets'!B499 -> General Equipment | K241: 1 | L241: 1
L242: RC
B243: =B230 -> Reservoir | C243: =$L243*C230 -> 0 | D243: 14424791.21 | E243: 0 | F243: 0 | G243: 0 | H243: 1803098.901 | I243: 0 | J243: 1803098.901 | K243: 0 | L243: ='CIP & Assets'!D488 -> 18030989.01
B244: =B231 -> Pump Station | C244: =$L244*C231 -> 0 | D244: 1644809.847 | E244: 3008798.5 | F244: 4814077.6 | G244: 0 | H244: 1183460.743 | I244: 0 | J244: 1183460.743 | K244: 0 | L244: ='CIP & Assets'!D489 -> 11834607.43
B245: =B232 -> Pressure Reducing Station | C245: =$L245*C232 -> 0 | D245: 806304.981 | E245: 1474948.136 | F245: 2359917.018 | G245: 0 | H245: 580146.2668 | I245: 0 | J245: 580146.2668 | K245: 0 | L245: ='CIP & Assets'!D490 -> 5801462.668
B246: =B233 -> Well | C246: =$L246*C233 -> 0 | D246: 2715483.77 | E246: 0 | F246: 0 | G246: 0 | H246: 339435.4712 | I246: 0 | J246: 339435.4712 | K246: 0 | L246: ='CIP & Assets'!D491 -> 3394354.712
B247: =B234 -> Filter Station | C247: =$L247*C234 -> 0 | D247: 161989.5673 | E247: 0 | F247: 0 | G247: 0 | H247: 0 | I247: 0 | J247: 0 | K247: 0 | L247: ='CIP & Assets'!D492 -> 161989.5673
B248: System Reliefs | C248: =$L248*C235 -> 0 | D248: 809947.8366 | E248: 0 | F248: 0 | G248: 0 | H248: 0 | I248: 0 | J248: 0 | K248: 0 | L248: ='CIP & Assets'!D493 -> 809947.8366
B249: Turnouts | C249: =$L249*C236 -> 0 | D249: 2267853.943 | E249: 0 | F249: 0 | G249: 0 | H249: 0 | I249: 0 | J249: 0 | K249: 0 | L249: ='CIP & Assets'!D494 -> 2267853.943
B250: Interconnection | C250: =$L250*C237 -> 0 | D250: 1614603.889 | E250: 0 | F250: 0 | G250: 0 | H250: 0 | I250: 0 | J250: 0 | K250: 0 | L250: ='CIP & Assets'!D495 -> 1614603.889
B251: Land & Buildings | C251: =$L251*C238 -> 0 | D251: 16000357.37 | E251: 0 | F251: 0 | G251: 2000044.672 | H251: 2000044.672 | I251: 0 | J251: 0 | K251: 0 | L251: ='CIP & Assets'!D496 -> 20000446.72
B252: Water Line Infrastructure | C252: =$L252*C239 -> 0 | D252: 27676680.46 | E252: 31934631.3 | F252: 0 | G252: 0 | H252: 7451413.97 | I252: 0 | J252: 7451413.97 | K252: 0 | L252: ='CIP & Assets'!D497 -> 74514139.7
B253: Fleet Equipment | C253: =$L253*C240 -> 0 | D253: 0 | E253: 0 | F253: 0 | G253: 0 | H253: 0 | I253: 0 | J253: 0 | K253: 141313.8055 | L253: ='CIP & Assets'!D498 -> 141313.8055
B254: General Equipment | C254: =$L254*C241 -> 0 | D254: 0 | E254: 0 | F254: 0 | G254: 0 | H254: 0 | I254: 0 | J254: 0 | K254: 1232331.951 | L254: ='CIP & Assets'!D499 -> 1232331.951
B255: TOTAL | C255: =SUM(C243:C254) -> 0 | D255: 68122822.87 | E255: 36418377.94 | F255: 7173994.618 | G255: =SUM(G243:G254) -> 2000044.672 | H255: 13357600.02 | I255: 0 | J255: =SUM(J243:J254) -> 11357555.35 | K255: =SUM(K243:K254) -> 1373645.757 | L255: =SUM(L243:L254) -> 139804041.2 | M255: =SUM(C255:K255)=L255 -> TRUE
B256: % Allocation for Capital Cost | C256: =C255/$L255 -> 0 | D256: 0.4872736315 | E256: 0.2604958885 | F256: 0.05131464409 | G256: 0.01430605764 | H256: 0.09554516383 | I256: 0 | J256: 0.0812391062 | K256: 0.009825508224 | L256: 1
B258: Allocation of Revenue Requirements at Current Rates | E258: =rfc_testyear -> 2013
... 97 more rows

Sheet Rates
A1: =client -> City of San Clemente | H1: =Model -> Financial Plan & COS Model
A2: Sewer Rates | H2: =rfc_budyear -> 2012
H4: Revenue Adjustments | I4: =INDEX('S DB'!$H$3:$M$3,MATCH(Rates!I5,'S DB'!$H$2:$M$2,0)) -> 0.08 | J4: =INDEX('S DB'!$H$3:$M$3,MATCH(Rates!J5,'S DB'!$H$2:$M$2,0)) -> 0.08 | K4: =INDEX('S DB'!$H$3:$M$3,MATCH(Rates!K5,'S DB'!$H$2:$M$2,0)) -> 0.06 | L4: =INDEX('S DB'!$H$3:$M$3,MATCH(Rates!L5,'S DB'!$H$2:$M$2,0)) -> 0.04 | M4: =INDEX('S DB'!$H$3:$M$3,MATCH(Rates!M5,'S DB'!$H$2:$M$2,0)) -> 0.03 | O4: =MATCH(O5,'S Rev'!$F$51:$M$51,0) -> 4 | P4: =MATCH(P5,'S Rev'!$F$51:$M$51,0) -> 5 | Q4: =MATCH(Q5,'S Rev'!$F$51:$M$51,0) -> 6 | R4: =MATCH(R5,'S Rev'!$F$51:$M$51,0) -> 7 | S4: =MATCH(S5,'S Rev'!$F$51:$M$51,0) -> 8
F5: ='S Rev'!H8 -> 2012 | G5: ="Proposed Rates for FY "&rfc_testyear -> Proposed Rates for FY 2013 | I5: =rfc_testyear -> 2013 | J5: =I5+1 -> 2014 | K5: =J5+1 -> 2015 | L5: 2016 | M5: 2017 | O5: =I5 -> 2013 | P5: =J5 -> 2014 | Q5: 2015 | R5: 2016 | S5: 2017
D6: Monthly Fixed Fees by Meter Sizes | E6: Ratios | F6: Current | G6: Status Quo | H6: Revised COS | I6: Status Quo | J6: Projected | K6: Projected | L6: Projected | M6: Projected | O6: Projected | P6: Projected | Q6: Projected | R6: Projected | S6: Projected
I7: =MATCH(I6,G6:H6,0) -> 1 | N7: Eff Months | O7: =INDEX('S CF'!$G$16:$G$21,MATCH(O5,'S CF'!$D$16:$D$21,0)) -> 11 | P7: =INDEX('S CF'!$G$16:$G$21,MATCH(P5,'S CF'!$D$16:$D$21,0)) -> 11 | Q7: =INDEX('S CF'!$G$16:$G$21,MATCH(Q5,'S CF'!$D$16:$D$21,0)) -> 11 | R7: =INDEX('S CF'!$G$16:$G$21,MATCH(R5,'S CF'!$D$16:$D$21,0)) -> 11 | S7: =INDEX('S CF'!$G$16:$G$21,MATCH(S5,'S CF'!$D$16:$D$21,0)) -> 11
D8: ='S Rev'!C9 -> ⅝ in. | E8: ='S Rev'!D9 -> 1 | F8: ='S Rev'!H9 -> 20.8 | G8: =ROUNDUP(F8*(1+$I$4),2) -> 22.47 | H8: =COS!H163 -> 22.46 | I8: =INDEX(G8:H8,$I$7) -> 22.47 | J8: =ROUNDUP(I8*(1+J$4),2) -> 24.27 | K8: =ROUNDUP(J8*(1+K$4),2) -> 25.73 | L8: 26.76 | M8: 27.57 | O8: =INDEX('S Rev'!$F145:$M145,O$4) -> 0 | P8: =INDEX('S Rev'!$F145:$M145,P$4) -> 0 | Q8: =INDEX('S Rev'!$F145:$M145,Q$4) -> 0 | R8: =INDEX('S Rev'!$F145:$M145,R$4) -> 0 | S8: =INDEX('S Rev'!$F145:$M145,S$4) -> 0
D9: ='S Rev'!C10 -> ¾ in. | E9: ='S Rev'!D10 -> 1 | F9: ='S Rev'!H10 -> 20.8 | G9: =ROUNDUP(F9*(1+$I$4),2) -> 22.47 | H9: =COS!H164 -> 22.46 | I9: 22.47 | J9: =ROUNDUP(I9*(1+J$4),2) -> 24.27 | K9: 25.73 | L9: 26.76 | M9: 27.57 | O9: =INDEX('S Rev'!$F146:$M146,O$4) -> 0 | P9: =INDEX('S Rev'!$F146:$M146,P$4) -> 0 | Q9: =INDEX('S Rev'!$F146:$M146,Q$4) -> 0 | R9: =INDEX('S Rev'!$F146:$M146,R$4) -> 0 | S9: =INDEX('S Rev'!$F146:$M146,S$4) -> 0
D10: ='S Rev'!C11 -> 1 in. | E10: ='S Rev'!D11 -> 1 | F10: ='S Rev'!H11 -> 20.8 | G10: 22.47 | H10: =COS!H165 -> 22.46 | I10: 22.47 | J10: 24.27 | K10: 25.73 | L10: 26.76 | M10: 27.57 | O10: =INDEX('S Rev'!$F147:$M147,O$4) -> 15176 | P10: =INDEX('S Rev'!$F147:$M147,P$4) -> 15176 | Q10: =INDEX('S Rev'!$F147:$M147,Q$4) -> 15176 | R10: =INDEX('S Rev'!$F147:$M147,R$4) -> 15176 | S10: =INDEX('S Rev'!$F147:$M147,S$4) -> 15176
D11: ='S Rev'!C12 -> 1½ in. | E11: ='S Rev'!D12 -> 3.298557692 | F11: ='S Rev'!H12 -> 68.61 | G11: 74.1 | H11: =COS!H166 -> 74.07 | I11: 74.1 | J11: 80.03 | K11: 84.84 | L11: 88.24 | M11: 90.89 | O11: =INDEX('S Rev'!$F148:$M148,O$4) -> 255 | P11: =INDEX('S Rev'!$F148:$M148,P$4) -> 255 | Q11: =INDEX('S Rev'!$F148:$M148,Q$4) -> 255 | R11: =INDEX('S Rev'!$F148:$M148,R$4) -> 255 | S11: =INDEX('S Rev'!$F148:$M148,S$4) -> 255
D12: ='S Rev'!C13 -> 2 in. | E12: ='S Rev'!D13 -> 5.297596154 | F12: ='S Rev'!H13 -> 110.19 | G12: 119.01 | H12: =COS!H167 -> 118.96 | I12: 119.01 | J12: 128.54 | K12: 136.26 | L12: 141.72 | M12: 145.98 | O12: =INDEX('S Rev'!$F149:$M149,O$4) -> 386 | P12: =INDEX('S Rev'!$F149:$M149,P$4) -> 386 | Q12: =INDEX('S Rev'!$F149:$M149,Q$4) -> 386 | R12: =INDEX('S Rev'!$F149:$M149,R$4) -> 386 | S12: =INDEX('S Rev'!$F149:$M149,S$4) -> 386
D13: ='S Rev'!C14 -> 2½ in. | E13: ='S Rev'!D14 -> 10.99567308 | F13: ='S Rev'!H14 -> 228.71 | G13: 247.01 | H13: =COS!H168 -> 246.92 | I13: 247.01 | J13: 266.78 | K13: 282.79 | L13: 294.11 | M13: 302.94 | O13: =INDEX('S Rev'!$F150:$M150,O$4) -> 0 | P13: =INDEX('S Rev'!$F150:$M150,P$4) -> 0 | Q13: =INDEX('S Rev'!$F150:$M150,Q$4) -> 0 | R13: =INDEX('S Rev'!$F150:$M150,R$4) -> 0 | S13: =INDEX('S Rev'!$F150:$M150,S$4) -> 0
D14: ='S Rev'!C15 -> 3 in. | E14: ='S Rev'!D15 -> 10.99567308 | F14: ='S Rev'!H15 -> 228.71 | G14: 247.01 | H14: =COS!H169 -> 246.92 | I14: 247.01 | J14: 266.78 | K14: 282.79 | L14: 294.11 | M14: 302.94 | O14: =INDEX('S Rev'!$F151:$M151,O$4) -> 14 | P14: =INDEX('S Rev'!$F151:$M151,P$4) -> 14 | Q14: =INDEX('S Rev'!$F151:$M151,Q$4) -> 14 | R14: =INDEX('S Rev'!$F151:$M151,R$4) -> 14 | S14: =INDEX('S Rev'!$F151:$M151,S$4) -> 14
D15: ='S Rev'!C16 -> 4 in. | E15: ='S Rev'!D16 -> 16.99278846 | F15: ='S Rev'!H16 -> 353.45 | G15: 381.73 | H15: =COS!H170 -> 381.58 | I15: 381.73 | J15: 412.27 | K15: 437.01 | L15: 454.5 | M15: 468.14 | O15: =INDEX('S Rev'!$F152:$M152,O$4) -> 10 | P15: =INDEX('S Rev'!$F152:$M152,P$4) -> 10 | Q15: =INDEX('S Rev'!$F152:$M152,Q$4) -> 10 | R15: =INDEX('S Rev'!$F152:$M152,R$4) -> 10 | S15: =INDEX('S Rev'!$F152:$M152,S$4) -> 10
D16: ='S Rev'!C17 -> 5 in. | E16: ='S Rev'!D17 -> 25.13942308 | F16: ='S Rev'!H17 -> 522.9 | G16: 564.74 | H16: =COS!H171 -> 564.52 | I16: 564.74 | J16: 609.92 | K16: 646.52 | L16: 672.39 | M16: 692.57 | O16: =INDEX('S Rev'!$F153:$M153,O$4) -> 0 | P16: =INDEX('S Rev'!$F153:$M153,P$4) -> 0 | Q16: =INDEX('S Rev'!$F153:$M153,Q$4) -> 0 | R16: =INDEX('S Rev'!$F153:$M153,R$4) -> 0 | S16: =INDEX('S Rev'!$F153:$M153,S$4) -> 0
D17: ='S Rev'!C18 -> 6 in. | E17: ='S Rev'!D18 -> 33.28557692 | F17: ='S Rev'!H18 -> 692.34 | G17: 747.73 | H17: =COS!H172 -> 747.44 | I17: 747.73 | J17: 807.55 | K17: 856.01 | L17: 890.26 | M17: 916.97 | O17: =INDEX('S Rev'!$F154:$M154,O$4) -> 7 | P17: =INDEX('S Rev'!$F154:$M154,P$4) -> 7 | Q17: =INDEX('S Rev'!$F154:$M154,Q$4) -> 7 | R17: =INDEX('S Rev'!$F154:$M154,R$4) -> 7 | S17: =INDEX('S Rev'!$F154:$M154,S$4) -> 7
D19: Commodity Charges ($/ccf) by Customer Classes | E19: Strengths used in COS calculations
D20: ='S Rev'!D21 &" - "&ROUND(COS!F58,0)&" mg/L" -> Single-family residential* - 215 mg/L | E20: LA Data | F20: ='S Rev'!H21 -> 1.27 | G20: =ROUNDUP(F20*(1+$I$4),2) -> 1.38 | H20: =COS!J177 -> 1.49 | I20: =INDEX(G20:H20,$I$7) -> 1.38 | J20: =ROUNDUP(I20*(1+J$4),2) -> 1.5 | K20: 1.59 | L20: 1.66 | M20: 1.71 | O20: =INDEX('S Rev'!$F168:$M168,O$4)*ResReturnFactor -> 1280391.867 | P20: =INDEX('S Rev'!$F168:$M168,P$4)*ResReturnFactor -> 1280391.867 | Q20: =INDEX('S Rev'!$F168:$M168,Q$4)*ResReturnFactor -> 1280391.867 | R20: =INDEX('S Rev'!$F168:$M168,R$4)*ResReturnFactor -> 1280391.867 | S20: =INDEX('S Rev'!$F168:$M168,S$4)*ResReturnFactor -> 1280391.867
D21: ='S Rev'!D22 &" - "&ROUND(COS!F58,0)&" mg/L" -> Multi-family residential/Mobile Home - 215 mg/L | E21: =E20 -> LA Data | F21: ='S Rev'!H22 -> 1.27 | G21: 1.38 | H21: =COS!J178 -> 1.49 | I21: 1.38 | J21: 1.5 | K21: 1.59 | L21: 1.66 | M21: 1.71 | O21: =INDEX('S Rev'!$F169:$M169,O$4)*ResReturnFactor -> 550804.86 | P21: =INDEX('S Rev'!$F169:$M169,P$4)*ResReturnFactor -> 550804.86 | Q21: =INDEX('S Rev'!$F169:$M169,Q$4)*ResReturnFactor -> 550804.86 | R21: =INDEX('S Rev'!$F169:$M169,R$4)*ResReturnFactor -> 550804.86 | S21: =INDEX('S Rev'!$F169:$M169,S$4)*ResReturnFactor -> 550804.86
D22: ='S Rev'!D23 -> Low strength commercial/Schools/Religious Institutions | E22: 149 | F22: ='S Rev'!H23 -> 1.73 | G22: 1.87 | H22: =COS!J179 -> 1.19 | I22: 1.87 | J22: 2.02 | K22: 2.15 | L22: 2.24 | M22: 2.31 | O22: =INDEX('S Rev'!$F170:$M170,O$4)*NonResReturnFactor -> 133263.666 | P22: =INDEX('S Rev'!$F170:$M170,P$4)*NonResReturnFactor -> 133263.666 | Q22: =INDEX('S Rev'!$F170:$M170,Q$4)*NonResReturnFactor -> 133263.666 | R22: =INDEX('S Rev'!$F170:$M170,R$4)*NonResReturnFactor -> 133263.666 | S22: =INDEX('S Rev'!$F170:$M170,S$4)*NonResReturnFactor -> 133263.666
D23: ='S Rev'!D24 -> Medium strength commercial | E23: 290 | F23: ='S Rev'!H24 -> 2.26 | G23: 2.45 | H23: =COS!J180 -> 1.89 | I23: 2.45 | J23: 2.65 | K23: 2.81 | L23: 2.93 | M23: 3.02 | O23: =INDEX('S Rev'!$F171:$M171,O$4)*NonResReturnFactor -> 73534.275 | P23: =INDEX('S Rev'!$F171:$M171,P$4)*NonResReturnFactor -> 73534.275 | Q23: =INDEX('S Rev'!$F171:$M171,Q$4)*NonResReturnFactor -> 73534.275 | R23: =INDEX('S Rev'!$F171:$M171,R$4)*NonResReturnFactor -> 73534.275 | S23: =INDEX('S Rev'!$F171:$M171,S$4)*NonResReturnFactor -> 73534.275
D24: ='S Rev'!D25 -> Commercial/residential | E24: 290 | F24: ='S Rev'!H25 -> 2.29 | G24: 2.48 | H24: =COS!J181 -> 1.89 | I24: 2.48 | J24: 2.68 | K24: 2.85 | L24: 2.97 | M24: 3.06 | O24: =INDEX('S Rev'!$F172:$M172,O$4)*NonResReturnFactor -> 844.497 | P24: =INDEX('S Rev'!$F172:$M172,P$4)*NonResReturnFactor -> 844.497 | Q24: =INDEX('S Rev'!$F172:$M172,Q$4)*NonResReturnFactor -> 844.497 | R24: =INDEX('S Rev'!$F172:$M172,R$4)*NonResReturnFactor -> 844.497 | S24: =INDEX('S Rev'!$F172:$M172,S$4)*NonResReturnFactor -> 844.497
D25: ='S Rev'!D26 -> Medium high strength commercial | E25: 500 | F25: ='S Rev'!H26 -> 4 | G25: 4.32 | H25: =COS!J182 -> 2.94 | I25: 4.32 | J25: 4.67 | K25: 4.96 | L25: 5.16 | M25: 5.32 | O25: =INDEX('S Rev'!$F173:$M173,O$4)*NonResReturnFactor -> 7332.57 | P25: =INDEX('S Rev'!$F173:$M173,P$4)*NonResReturnFactor -> 7332.57 | Q25: =INDEX('S Rev'!$F173:$M173,Q$4)*NonResReturnFactor -> 7332.57 | R25: =INDEX('S Rev'!$F173:$M173,R$4)*NonResReturnFactor -> 7332.57 | S25: =INDEX('S Rev'!$F173:$M173,S$4)*NonResReturnFactor -> 7332.57
D26: ='S Rev'!D27 -> High strength commercial | E26: 900 | F26: ='S Rev'!H27 -> 5.57 | G26: 6.02 | H26: =COS!J183 -> 4.93 | I26: 6.02 | J26: 6.51 | K26: 6.91 | L26: 7.19 | M26: 7.41 | O26: =INDEX('S Rev'!$F174:$M174,O$4)*NonResReturnFactor -> 58204.476 | P26: =INDEX('S Rev'!$F174:$M174,P$4)*NonResReturnFactor -> 58204.476 | Q26: =INDEX('S Rev'!$F174:$M174,Q$4)*NonResReturnFactor -> 58204.476 | R26: =INDEX('S Rev'!$F174:$M174,R$4)*NonResReturnFactor -> 58204.476 | S26: =INDEX('S Rev'!$F174:$M174,S$4)*NonResReturnFactor -> 58204.476
D28: Revenue Proof
D29: Fixed Fees | I29: =SUMPRODUCT(I8:I17,O8:O17)*O7+SUMPRODUCT(F8:F17,O8:O17)*(bills-O7) -> 4989096.44 | J29: =SUMPRODUCT(J8:J17,P8:P17)*P7+SUMPRODUCT(I8:I17,P8:P17)*(bills-P7) -> 5388764.51 | K29: =SUMPRODUCT(K8:K17,Q8:Q17)*Q7+SUMPRODUCT(J8:J17,Q8:Q17)*(bills-Q7) -> 5721189.05 | L29: =SUMPRODUCT(L8:L17,R8:R17)*R7+SUMPRODUCT(K8:K17,R8:R17)*(bills-R7) -> 5959331.91 | M29: =SUMPRODUCT(M8:M17,S8:S17)*S7+SUMPRODUCT(L8:L17,S8:S17)*(bills-S7) -> 6144167.14
D30: Commodity Charges | I30: =SUMPRODUCT(I20:I26,O20:O26)*O7/bills+SUMPRODUCT(F20:F26,O20:O26)*(bills-O7)/bills -> 3318678.933 | J30: =SUMPRODUCT(J20:J26,P20:P26)*P7/bills+SUMPRODUCT(I20:I26,P20:P26)*(bills-P7)/bills -> 3602463.058 | K30: =SUMPRODUCT(K20:K26,Q20:Q26)*Q7/bills+SUMPRODUCT(J20:J26,Q20:Q26)*(bills-Q7)/bills -> 3827432.845 | L30: =SUMPRODUCT(L20:L26,R20:R26)*R7/bills+SUMPRODUCT(K20:K26,R20:R26)*(bills-R7)/bills -> 3998681.444 | M30: =SUMPRODUCT(M20:M26,S20:S26)*S7/bills+SUMPRODUCT(L20:L26,S20:S26)*(bills-S7)/bills -> 4124017.534
D31: Total Revenues from Rates | I31: =SUM(I29:I30) -> 8307775.373 | J31: =SUM(J29:J30) -> 8991227.568 | K31: 9548621.895 | L31: 9958013.354 | M31: 10268184.67
D32: Revenue Requirements | I32: =INDEX('S CF'!$H$22:$M$22,MATCH(I$5,'S CF'!$H$7:$M$7,0)) -> 8291593.033 | J32: =INDEX('S CF'!$H$22:$M$22,MATCH(J$5,'S CF'!$H$7:$M$7,0)) -> 8954920.475 | K32: =INDEX('S CF'!$H$22:$M$22,MATCH(K$5,'S CF'!$H$7:$M$7,0)) -> 9506120.86 | L32: =INDEX('S CF'!$H$22:$M$22,MATCH(L$5,'S CF'!$H$7:$M$7,0)) -> 9901383.263 | M32: =INDEX('S CF'!$H$22:$M$22,MATCH(M$5,'S CF'!$H$7:$M$7,0)) -> 10206384.07
B37: Residential Sample Bills | F37: =F5 -> 2012 | G37: =I5 -> 2013 | H37: =J5 -> 2014 | I37: 2015 | J37: 2016 | K37: 2017
F38: =F6 -> Current | G38: =I6 -> Status Quo | H38: =J6 -> Projected | I38: Projected | J38: Projected | K38: Projected
D39: Monthly Fixed Fees for | E39: 1 in. | F39: =INDEX(F$8:F$17,MATCH($E39,$D$8:$D$17,0)) -> 20.8 | G39: =INDEX(I$8:I$17,MATCH($E39,$D$8:$D$17,0)) -> 22.47 | H39: =INDEX(J$8:J$17,MATCH($E39,$D$8:$D$17,0)) -> 24.27 | I39: =INDEX(K$8:K$17,MATCH($E39,$D$8:$D$17,0)) -> 25.73 | J39: =INDEX(L$8:L$17,MATCH($E39,$D$8:$D$17,0)) -> 26.76 | K39: =INDEX(M$8:M$17,MATCH($E39,$D$8:$D$17,0)) -> 27.57
D40: Commodity Charges for | E40: 10 | F40: =F20*$E40*ResReturnFactor -> 11.43 | G40: =I20*$E40*ResReturnFactor -> 12.42 | H40: =J20*$E40*ResReturnFactor -> 13.5 | I40: =K20*$E40*ResReturnFactor -> 14.31 | J40: =L20*$E40*ResReturnFactor -> 14.94 | K40: =M20*$E40*ResReturnFactor -> 15.39
D41: Monthly Bills | F41: =SUM(F39:F40) -> 32.23 | G41: 34.89 | H41: 37.77 | I41: 40.04 | J41: 41.7 | K41: 42.96
D42: % Impacts | G42: =G41/F41-1 -> 0.08253180267 | H42: =H41/G41-1 -> 0.08254514187 | I42: 0.06010060895 | J42: 0.04145854146 | K42: 0.03021582734
A70: =client -> City of San Clemente | H70: =Model -> Financial Plan & COS Model
A71: RW Rates | H71: =rfc_budyear -> 2012
F72: Contract Rates expire at end of | G72: 2013
F73: Select RW Rate Option | G73: Option 3 - Subsidized Contract Rates
G74: Current Rates | H74: =H86 -> 2012 | I74: 2013 | J74: 2014 | K74: 2015 | L74: 2016 | M74: 2017
G75: Effective Months | H75: =INDEX('RW CF'!$G$17:$G$22,MATCH(H$74,'RW CF'!$D$17:$D$22,0)) -> 11 | I75: =INDEX('RW CF'!$G$17:$G$22,MATCH(I$74,'RW CF'!$D$17:$D$22,0)) -> 11 | J75: =INDEX('RW CF'!$G$17:$G$22,MATCH(J$74,'RW CF'!$D$17:$D$22,0)) -> 11 | K75: =INDEX('RW CF'!$G$17:$G$22,MATCH(K$74,'RW CF'!$D$17:$D$22,0)) -> 11 | L75: =INDEX('RW CF'!$G$17:$G$22,MATCH(L$74,'RW CF'!$D$17:$D$22,0)) -> 11 | M75: =INDEX('RW CF'!$G$17:$G$22,MATCH(M$74,'RW CF'!$D$17:$D$22,0)) -> 11
F76: ='W & RW Rev'!D26 -> Non Contract | G76: =G93 -> 2.55 | H76: =CHOOSE($J$127,H93,H99,H105) -> 2.55 | I76: =CHOOSE($J$127,I93,I99,I105) -> 2.55 | J76: 2.389 | K76: 2.484 | L76: 2.583 | M76: 2.686
F77: ='W & RW Rev'!D27 -> Contract Tier 1 | G77: =G94 -> 2.066115702 | H77: =CHOOSE($J$127,H94,H100,H106) -> 2.066115702 | I77: 2.066115702 | J77: 2.066115702 | K77: 2.149 | L77: 2.235 | M77: 2.325
F78: ='W & RW Rev'!D28 -> Contract Tier 2 | G78: 1.836547291 | H78: 1.836547291 | I78: 1.836547291 | J78: 2.066115702 | K78: 2.149 | L78: 2.235 | M78: 2.325
F79: ='W & RW Rev'!D29 -> Expanded | G79: 2.55 | H79: 2.55 | I79: 2.55 | J79: 2.389 | K79: 2.484 | L79: 2.583 | M79: 2.686
F81: Revenue Proof for Selected Rates | G81: =SUMPRODUCT(G115:G118,G76:G79) -> 775573.2562 | H81: =SUMPRODUCT(H115:H118,H76:H79)*H75/bills+SUMPRODUCT(H115:H118,G76:G79)*(bills-H75)/bills -> 775573.2562 | I81: 775573.2562 | J81: 763346.3465 | K81: 1029082.317 | L81: 1353944 | M81: 1773195.974
F82: Projected Revenues from RW Cash Flows | G82: =H82 -> 775573 | H82: ='RW CF'!H23 -> 775573 | I82: ='RW CF'!I23 -> 775573.2562 | J82: ='RW CF'!J23 -> 775573.2562 | K82: ='RW CF'!K23 -> 1074615.463 | L82: ='RW CF'!L23 -> 1420585.025 | M82: ='RW CF'!M23 -> 1867241.068
F83: Short-fall in RW Rev | G83: =MAX(0,-G81+G82) -> 0 | H83: =MAX(0,-H81+H82) -> 0 | I83: 1.164153218e-10 | J83: 12226.9097 | K83: 45533.14595 | L83: 66641.02507 | M83: 94045.09431
F84: Short-fall in $/AF | G84: =G83/SUM(G115:G118)*435.6 -> 0 | H84: 0 | I84: 1.455110099e-13 | J84: 15.28278194 | K84: 43.99147501 | L84: 51.73812808 | M84: 58.73982809
G86: Current Rates | H86: ='RW CF'!H8 -> 2012 | I86: ='RW CF'!I8 -> 2013 | J86: ='RW CF'!J8 -> 2014 | K86: ='RW CF'!K8 -> 2015 | L86: ='RW CF'!L8 -> 2016 | M86: ='RW CF'!M8 -> 2017
F87: Revenue Adjustments | H87: ='RW DB'!H3 -> 0 | I87: ='RW DB'!I3 -> 0 | J87: ='RW DB'!J3 -> 0 | K87: ='RW DB'!K3 -> 0.04 | L87: ='RW DB'!L3 -> 0.04 | M87: ='RW DB'!M3 -> 0.04
F88: Effective Months | H88: =INDEX('RW CF'!$G$17:$G$22,MATCH(H$86,'RW CF'!$D$17:$D$22,0)) -> 11 | I88: =INDEX('RW CF'!$G$17:$G$22,MATCH(I$86,'RW CF'!$D$17:$D$22,0)) -> 11 | J88: =INDEX('RW CF'!$G$17:$G$22,MATCH(J$86,'RW CF'!$D$17:$D$22,0)) -> 11 | K88: =INDEX('RW CF'!$G$17:$G$22,MATCH(K$86,'RW CF'!$D$17:$D$22,0)) -> 11 | L88: =INDEX('RW CF'!$G$17:$G$22,MATCH(L$86,'RW CF'!$D$17:$D$22,0)) -> 11 | M88: =INDEX('RW CF'!$G$17:$G$22,MATCH(M$86,'RW CF'!$D$17:$D$22,0)) -> 11
F89: Calculated COS Uniform Rate ($ / ccf) | H89: =ROUNDUP(I89/(1+I87),3) -> 2.389 | I89: 2.389 | J89: 2.389 | K89: 2.484 | L89: =ROUNDUP(M89/(1+M87),3) -> 2.583 | M89: =G131 -> 2.686
F90: Calculated COS Uniform Rate ($ / AF) | H90: =H89*435.6 -> 1040.6484 | I90: =I89*435.6 -> 1040.6484 | J90: 1040.6484 | K90: 1082.0304 | L90: 1125.1548 | M90: 1170.0216
F91: Proposed RW Rates ($ / ccf)
F92: Option 1 - Modified Status Quo
F93: ='W & RW Rev'!D26 -> Non Contract | G93: ='W & RW Rev'!H26 -> 2.55 | H93: =IF(H$87=0,G93,ROUNDUP(G93*(1+H$87),3)) -> 2.55 | I93: =IF(I$87=0,H93,ROUNDUP(H93*(1+I$87),3)) -> 2.55 | J93: 2.55 | K93: 2.652 | L93: 2.759 | M93: 2.87
F94: ='W & RW Rev'!D27 -> Contract Tier 1 | G94: ='W & RW Rev'!H27 -> 2.066115702 | H94: =IF(H$87=0,G94,ROUNDUP(G94*(1+H$87),3)) -> 2.066115702 | I94: 2.066115702 | J94: 2.066115702 | K94: 2.149 | L94: 2.235 | M94: 2.325
F95: ='W & RW Rev'!D28 -> Contract Tier 2 | G95: ='W & RW Rev'!H28 -> 1.836547291 | H95: 1.836547291 | I95: 1.836547291 | J95: =IF(J$86>$G$72,J$94,ROUNDUP(I95*(1+J87),3)) -> 2.066115702 | K95: =IF(K$86>$G$72,K$94,ROUNDUP(J95*(1+K87),3)) -> 2.149 | L95: =IF(L$86>$G$72,L$94,ROUNDUP(K95*(1+L87),3)) -> 2.235 | M95: =IF(M$86>$G$72,M$94,ROUNDUP(L95*(1+M87),3)) -> 2.325
F96: ='W & RW Rev'!D29 -> Expanded | G96: ='W & RW Rev'!H29 -> 2.55 | H96: 2.55 | I96: 2.55 | J96: 2.55 | K96: 2.652 | L96: 2.759 | M96: 2.87
F98: Option 2 - Uniform
F99: =F93 -> Non Contract | G99: =G93 -> 2.55 | H99: =IF(H$86>$G$72,H$89,H93) -> 2.55 | I99: 2.55 | J99: 2.389 | K99: 2.484 | L99: 2.583 | M99: 2.686
F100: =F94 -> Contract Tier 1 | G100: 2.066115702 | H100: 2.066115702 | I100: 2.066115702 | J100: 2.389 | K100: 2.484 | L100: 2.583 | M100: 2.686
F101: Contract Tier 2 | G101: 1.836547291 | H101: 1.836547291 | I101: 1.836547291 | J101: 2.389 | K101: 2.484 | L101: 2.583 | M101: 2.686
F102: Expanded | G102: 2.55 | H102: 2.55 | I102: 2.55 | J102: 2.389 | K102: 2.484 | L102: 2.583 | M102: 2.686
F104: Option 3 - Subsidized Contract Rates
F105: =F99 -> Non Contract | G105: =G99 -> 2.55 | H105: =IF(H$86>$G$72,H$89,H93) -> 2.55 | I105: 2.55 | J105: 2.389 | K105: 2.484 | L105: 2.583 | M105: 2.686
F106: =F100 -> Contract Tier 1 | G106: 2.066115702 | H106: =H94 -> 2.066115702 | I106: =I94 -> 2.066115702 | J106: 2.066115702 | K106: 2.149 | L106: 2.235 | M106: 2.325
F107: =F101 -> Contract Tier 2 | G107: 1.836547291 | H107: =H95 -> 1.836547291 | I107: =IF(I$86>$G$72,I$106,I95) -> 1.836547291 | J107: =IF(J$86>$G$72,J$106,J95) -> 2.066115702 | K107: =IF(K$86>$G$72,K$106,K95) -> 2.149 | L107: =IF(L$86>$G$72,L$106,L95) -> 2.235 | M107: =IF(M$86>$G$72,M$106,M95) -> 2.325
F108: =F102 -> Expanded | G108: 2.55 | H108: =IF(H$86>$G$72,H$89,H96) -> 2.55 | I108: 2.55 | J108: 2.389 | K108: 2.484 | L108: 2.583 | M108: 2.686
F110: Weighted Average Status Quo RW Rates w/o revenue adjustments | G110: =SUMPRODUCT($G$93:$G$96,G115:G118)/SUM(G115:G118) -> 2.225464473 | H110: 2.225464473 | I110: 2.225464473 | J110: 2.225464473 | K110: 2.252398013 | L110: 2.310853514 | M110: 2.357606017
F111: Weighted Average Status Quo RW Rates w revenue adjustments | G111: =SUMPRODUCT(G93:G96,G115:G118)/SUM(G115:G118) -> 2.225464473 | H111: 2.225464473 | I111: 2.225464473 | J111: 2.247562161 | K111: 2.360396654 | L111: 2.514890893 | M111: 2.665743127
F113: Revenue Proof Analysis
F114: RW Sales (ccf)
F115: =F93 -> Non Contract | G115: =H115 -> 130680 | H115: ='W & RW Rev'!H173 -> 130680 | I115: ='W & RW Rev'!I173 -> 130680 | J115: ='W & RW Rev'!J173 -> 130680 | K115: ='W & RW Rev'!K173 -> 130680 | L115: ='W & RW Rev'!L173 -> 130680 | M115: ='W & RW Rev'!M173 -> 130680
F116: =F94 -> Contract Tier 1 | G116: =H116 -> 184273.8 | H116: ='W & RW Rev'!H174 -> 184273.8 | I116: ='W & RW Rev'!I174 -> 184273.8 | J116: ='W & RW Rev'!J174 -> 184273.8 | K116: ='W & RW Rev'!K174+K119 -> 227833.8 | L116: ='W & RW Rev'!L174+L119 -> 227833.8 | M116: ='W & RW Rev'!M174+M119 -> 227833.8
F117: Contract Tier 2 | G117: 33545.7 | H117: ='W & RW Rev'!H175 -> 33545.7 | I117: ='W & RW Rev'!I175 -> 33545.7 | J117: ='W & RW Rev'!J175 -> 33545.7 | K117: ='W & RW Rev'!K175 -> 33545.7 | L117: ='W & RW Rev'!L175 -> 33545.7 | M117: ='W & RW Rev'!M175 -> 33545.7
F118: Expanded | G118: 0 | H118: ='W & RW Rev'!H176 -> 0 | I118: ='W & RW Rev'!I176 -> 0 | J118: ='W & RW Rev'!J176 -> 0 | K118: ='W & RW Rev'!K176-K119 -> 58806 | L118: ='W & RW Rev'!L176-L119 -> 169012.8 | M118: ='W & RW Rev'!M176-M119 -> 305355.6
F119: Expanded contract | K119: =43560 -> 43560 | L119: =43560 -> 43560 | M119: =43560 -> 43560
G122: ='RW CF'!M8 -> 2017
F123: Revenues @ current RW Rates | G123: ='RW CF'!M12 -> 1665308.036 | J123: RW Rate Options
F124: Plus Proposed Rev Adjustments | G124: =SUM('RW CF'!M17:M22) -> 201933.0321 | J124: =F92 -> Option 1 - Modified Status Quo
F125: Plus Annualized Rev Adj | G125: ='RW CF'!M22*(bills-'RW CF'!G22)/'RW CF'!G22 -> 6003.990573 | J125: =F98 -> Option 2 - Uniform
J126: =F104 -> Option 3 - Subsidized Contract Rates
F127: Total Cost of Service to be Recovered from RW Rates | G127: =SUM(G123:G126) -> 1873245.059 | J127: =MATCH(G73,J124:J126,0) -> 3
F129: Total RW Water Sales (ccf) | G129: ='W & RW Rev'!M187 -> 697415.1
F131: Unit Cost of Service ($/ccf) | G131: =ROUNDUP(G127/G129,3) -> 2.686

Sheet Misc Summary
G3: Water Operating Expenses | H3: =rfc_budyear -> 2012 | I3: =H3+1 -> 2013 | J3: =I3+1 -> 2014 | K3: 2015 | L3: 2016 | M3: 2017
H4: ='Operating Pro-forma'!H148 -> Budgeted | I4: ='Operating Pro-forma'!I148 -> Projected | J4: ='Operating Pro-forma'!J148 -> Projected | K4: ='Operating Pro-forma'!K148 -> Projected | L4: ='Operating Pro-forma'!L148 -> Projected | M4: ='Operating Pro-forma'!M148 -> Projected
G5: ='Operating Pro-forma'!E159 -> 461 WATER ADMINISTRATION | H5: ='Operating Pro-forma'!H159 -> 1185490 | I5: ='Operating Pro-forma'!I159 -> 1220822 | J5: ='Operating Pro-forma'!J159 -> 1257256.424 | K5: ='Operating Pro-forma'!K159 -> 1294829.55 | L5: ='Operating Pro-forma'!L159 -> 1333578.926 | M5: ='Operating Pro-forma'!M159 -> 1373543.418
G6: ='Operating Pro-forma'!E160 -> 462 WATER PRODUCTION | H6: ='Operating Pro-forma'!H160 -> 2057100 | I6: ='Operating Pro-forma'!I160 -> 2118776.9 | J6: ='Operating Pro-forma'!J160 -> 2182446.203 | K6: ='Operating Pro-forma'!K160 -> 2248177.664 | L6: ='Operating Pro-forma'!L160 -> 2316043.687 | M6: ='Operating Pro-forma'!M160 -> 2386119.434
G7: ='Operating Pro-forma'!E161 -> Water Cost | H7: ='Operating Pro-forma'!H161 -> 7292830 | I7: ='Operating Pro-forma'!I161 -> 7445642.253 | J7: ='Operating Pro-forma'!J161 -> 7799491.881 | K7: ='Operating Pro-forma'!K161 -> 7983636.5 | L7: ='Operating Pro-forma'!L161 -> 8087963.535 | M7: ='Operating Pro-forma'!M161 -> 8181114.187
G8: ='Operating Pro-forma'!E162 -> 463 TRANSMISSION & DISTRIBUTION | H8: ='Operating Pro-forma'!H162 -> 2461730 | I8: ='Operating Pro-forma'!I162 -> 2543492 | J8: ='Operating Pro-forma'!J162 -> 2628362.3 | K8: ='Operating Pro-forma'!K162 -> 2716472.12 | L8: ='Operating Pro-forma'!L162 -> 2807958.618 | M8: ='Operating Pro-forma'!M162 -> 2902965.173
G9: ='Operating Pro-forma'!E163 -> 464 WATER CONSERVATION | H9: ='Operating Pro-forma'!H163 -> 227300 | I9: ='Operating Pro-forma'!I163 -> 234454.7 | J9: ='Operating Pro-forma'!J163 -> 241868.297 | K9: ='Operating Pro-forma'!K163 -> 249551.3201 | L9: ='Operating Pro-forma'!L163 -> 257514.7635 | M9: ='Operating Pro-forma'!M163 -> 265770.1078
G10: ='Operating Pro-forma'!E164 -> 465 WATER RECLAMATION Funding | H10: ='Operating Pro-forma'!H164 -> 188000 | I10: ='Operating Pro-forma'!I164 -> 188000 | J10: ='Operating Pro-forma'!J164 -> 188000 | K10: ='Operating Pro-forma'!K164 -> 188000 | L10: ='Operating Pro-forma'!L164 -> 188000 | M10: ='Operating Pro-forma'!M164 -> 188000
G11: ='Operating Pro-forma'!D167 -> DEPRECIATION FUNDING | H11: ='Operating Pro-forma'!H172 -> 2551750 | I11: ='Operating Pro-forma'!I172 -> 2607302.5 | J11: ='Operating Pro-forma'!J172 -> 2664521.575 | K11: ='Operating Pro-forma'!K172 -> 3223457.222 | L11: ='Operating Pro-forma'!L172 -> 3299160.939 | M11: ='Operating Pro-forma'!M172 -> 3377135.767
G12: ='Operating Pro-forma'!D174 -> WATER DEBT SERVICE | H12: ='Operating Pro-forma'!H177 -> 0 | I12: ='Operating Pro-forma'!I177 -> 0 | J12: ='Operating Pro-forma'!J177 -> 0 | K12: ='Operating Pro-forma'!K177 -> 0 | L12: ='Operating Pro-forma'!L177 -> 0 | M12: ='Operating Pro-forma'!M177 -> 0
G13: TOTAL WATER OPERATING EXPENSES | H13: =SUM(H5:H12) -> 15964200 | I13: =SUM(I5:I12) -> 16358490.35 | J13: 16961946.68 | K13: 17904124.38 | L13: 18290220.47 | M13: 18674648.09
G14: =G13&" w/o Water Cost" -> TOTAL WATER OPERATING EXPENSES w/o Water Cost | H14: =H13-H7 -> 8671370 | I14: =I13-I7 -> 8912848.1 | J14: 9162454.799 | K14: 9920487.876 | L14: 10202256.93 | M14: 10493533.9
G15: % Change | I15: =I14/H14-1 -> 0.02784774494 | J15: =J14/I14-1 -> 0.02800526792 | K15: 0.08273253113 | L15: 0.02840274196 | M15: 0.02855024811
G18: Reclaimed Water Operating Expenses | H18: =rfc_budyear -> 2012 | I18: =H18+1 -> 2013 | J18: =I18+1 -> 2014 | K18: 2015 | L18: 2016 | M18: 2017
H19: =H4 -> Budgeted | I19: =I4 -> Projected | J19: Projected | K19: Projected | L19: Projected | M19: Projected
G20: ='Operating Pro-forma'!E217 -> 465 WATER RECLAMATION | H20: ='Operating Pro-forma'!H217 -> 467470 | I20: ='Operating Pro-forma'!I217 -> 482109.4 | J20: ='Operating Pro-forma'!J217 -> 497266.726 | K20: ='Operating Pro-forma'!K217 -> 512962.4126 | L20: ='Operating Pro-forma'!L217 -> 529217.7713 | M20: ='Operating Pro-forma'!M217 -> 546055.0308
G21: ='Operating Pro-forma'!E218 -> 465-42610-000-00000 PURCHASED WATER | H21: ='Operating Pro-forma'!H218 -> 457010 | I21: ='Operating Pro-forma'!I218 -> 228505 | J21: ='Operating Pro-forma'!J218 -> 0 | K21: ='Operating Pro-forma'!K218 -> 0 | L21: ='Operating Pro-forma'!L218 -> 0 | M21: ='Operating Pro-forma'!M218 -> 0
G22: ='Operating Pro-forma'!E219 -> Expansion Cost* | H22: ='Operating Pro-forma'!H219 -> 0 | I22: ='Operating Pro-forma'!I219 -> 0 | J22: ='Operating Pro-forma'!J219 -> 64200 | K22: ='Operating Pro-forma'!K219 -> 160491.4321 | L22: ='Operating Pro-forma'!L219 -> 225106.3819 | M22: ='Operating Pro-forma'!M219 -> 304395.7348
G23: ='Operating Pro-forma'!E220 -> 461 WATER ADMINISTRATION | H23: ='Operating Pro-forma'!H220 -> 0 | I23: ='Operating Pro-forma'!I220 -> 0 | J23: ='Operating Pro-forma'!J220 -> 0 | K23: ='Operating Pro-forma'!K220 -> 0 | L23: ='Operating Pro-forma'!L220 -> 0 | M23: ='Operating Pro-forma'!M220 -> 0
G24: ='Operating Pro-forma'!D223 -> DEPRECIATION FUNDING | H24: ='Operating Pro-forma'!H226 -> 38250 | I24: ='Operating Pro-forma'!I226 -> 39397.5 | J24: ='Operating Pro-forma'!J226 -> 40579.425 | K24: ='Operating Pro-forma'!K226 -> 372196.8078 | L24: ='Operating Pro-forma'!L226 -> 373700.712 | M24: ='Operating Pro-forma'!M226 -> 375248.4833
G25: ='Operating Pro-forma'!D228 -> RW DEBT SERVICE | H25: ='Operating Pro-forma'!H231 -> 0 | I25: ='Operating Pro-forma'!I231 -> 0 | J25: ='Operating Pro-forma'!J231 -> 0 | K25: ='Operating Pro-forma'!K231 -> 919000 | L25: ='Operating Pro-forma'!L231 -> 919000 | M25: ='Operating Pro-forma'!M231 -> 919000
G26: TOTAL RW OPERATING EXPENSES | H26: =SUM(H20:H25) -> 962730 | I26: 750011.9 | J26: 602046.151 | K26: 1964650.652 | L26: 2047024.865 | M26: 2144699.249
G28: Sewer Operating Expenses | H28: =rfc_budyear -> 2012 | I28: =H28+1 -> 2013 | J28: =I28+1 -> 2014 | K28: 2015 | L28: 2016 | M28: 2017
H29: =H4 -> Budgeted | I29: =I4 -> Projected | J29: Projected | K29: Projected | L29: Projected | M29: Projected
G30: ='Operating Pro-forma'!E17 -> 471 SEWER ADMINISTRATION | H30: ='Operating Pro-forma'!H17 -> 1270690 | I30: ='Operating Pro-forma'!I17 -> 1309058.2 | J30: ='Operating Pro-forma'!J17 -> 1348662.556 | K30: ='Operating Pro-forma'!K17 -> 1389545.863 | L30: ='Operating Pro-forma'!L17 -> 1431752.514 | M30: ='Operating Pro-forma'!M17 -> 1475328.565
G31: ='Operating Pro-forma'!E18 -> 472 TREATMENT | H31: ='Operating Pro-forma'!H18 -> 3162660 | I31: ='Operating Pro-forma'!I18 -> 3271574.7 | J31: ='Operating Pro-forma'!J18 -> 3384670.005 | K31: ='Operating Pro-forma'!K18 -> 3502121.22 | L31: ='Operating Pro-forma'!L18 -> 3624111.487 | M31: ='Operating Pro-forma'!M18 -> 3750832.153
G32: ='Operating Pro-forma'!E19 -> 473 COLLECTION | H32: ='Operating Pro-forma'!H19 -> 1503130 | I32: ='Operating Pro-forma'!I19 -> 1549814.5 | J32: ='Operating Pro-forma'!J19 -> 1598123.041 | K32: ='Operating Pro-forma'!K19 -> 1648118.399 | L32: ='Operating Pro-forma'!L19 -> 1699865.994 | M32: ='Operating Pro-forma'!M19 -> 1753434.007
G33: ='Operating Pro-forma'!D22 -> DEPRECIATION FUNDING | H33: ='Operating Pro-forma'!H26 -> 2736000 | I33: ='Operating Pro-forma'!I26 -> 2318080 | J33: ='Operating Pro-forma'!J26 -> 2387622.4 | K33: ='Operating Pro-forma'!K26 -> 2959251.072 | L33: ='Operating Pro-forma'!L26 -> 3048028.604 | M33: ='Operating Pro-forma'!M26 -> 3139469.462
G34: ='Operating Pro-forma'!D28 -> SEWER DEBT SERVICE | H34: ='Operating Pro-forma'!H31 -> 0 | I34: ='Operating Pro-forma'!I31 -> 0 | J34: ='Operating Pro-forma'!J31 -> 0 | K34: ='Operating Pro-forma'!K31 -> 0 | L34: ='Operating Pro-forma'!L31 -> 0 | M34: ='Operating Pro-forma'!M31 -> 0
G35: TOTAL SEWER OPERATING EXPENSES | H35: =SUM(H30:H34) -> 8672480 | I35: 8448527.4 | J35: 8719078.002 | K35: 9499036.554 | L35: 9803758.599 | M35: 10119064.19
G36: % Change | I36: =I35/H35-1 -> -0.0258233631 | J36: =J35/I35-1 -> 0.03202340351 | K36: 0.08945424636 | L36: 0.03207925809 | M36: 0.0321617047

Sheet Key Assumptions
A1: =client -> City of San Clemente | H1: =Model -> Financial Plan & COS Model
A2: Key Assumptions | H2: =rfc_budyear -> 2012
G4: Budget Year | H4: 2012
G5: Test Year | H5: 2013
G6: Number of Bills per Year | H6: 12
F9: Descriptions | H9: =rfc_budyear -> 2012 | I9: =H9+1 -> 2013 | J9: 2014 | K9: 2015 | L9: 2016 | M9: 2017
F10: Inflation Factors
G11: General | H11: 0.03 | I11: =H11 -> 0.03 | J11: 0.03 | K11: 0.03 | L11: 0.03 | M11: 0.03
G12: Salary | H12: 0.02 | I12: 0.02 | J12: 0.02 | K12: 0.02 | L12: 0.02 | M12: 0.02
G13: Benefits | H13: 0.05 | I13: 0.05 | J13: 0.05 | K13: 0.05 | L13: 0.05 | M13: 0.05
G14: Utilities | H14: 0.05 | I14: 0.05 | J14: 0.05 | K14: 0.05 | L14: 0.05 | M14: 0.05
G15: CCI | H15: 0.04 | I15: 0.04 | J15: 0.04 | K15: 0.04 | L15: 0.04 | M15: 0.04
F17: Growth Rates
G18: Account Growth
G19: Residential | H19: 0 | I19: =H19 -> 0 | J19: 0 | K19: 0 | L19: 0 | M19: 0
G20: Non-Residential | H20: 0 | I20: 0 | J20: 0 | K20: 0 | L20: 0 | M20: 0
G21: Demand Factor | H21: % of prior year consumption | J21: from Dashboard
G22: ='W DB'!G8 -> Residential | H22: ='W DB'!H8 -> 1.13 | I22: ='W DB'!I8 -> 1 | J22: ='W DB'!J8 -> 1 | K22: ='W DB'!K8 -> 1 | L22: ='W DB'!L8 -> 1 | M22: ='W DB'!M8 -> 1
G23: ='W DB'!G9 -> Non-Residential | H23: ='W DB'!H9 -> 1.13 | I23: ='W DB'!I9 -> 1 | J23: ='W DB'!J9 -> 1 | K23: ='W DB'!K9 -> 1 | L23: ='W DB'!L9 -> 1 | M23: ='W DB'!M9 -> 1
F25: Other Revenue Projections
G26: Other Rev | H26: 0.01 | I26: =H26 -> 0.01 | J26: 0.01 | K26: 0.01 | L26: 0.01 | M26: 0.01
G27: Interest Earnings | H27: 0.03 | I27: 0.03 | J27: 0.03 | K27: 0.03 | L27: 0.03 | M27: 0.03
F29: Proposed Debt Terms
G30: Conventional
G31: Interest Rates | H31: 0.05 | I31: 0.05 | J31: 0.05 | K31: 0.05 | L31: 0.05 | M31: 0.05
G32: Term (years) | H32: 30 | I32: 30 | J32: 30 | K32: 30 | L32: 30 | M32: 30
G33: Issuance Cost | H33: 0.02 | I33: 0.02 | J33: 0.02 | K33: 0.02 | L33: 0.02 | M33: 0.02
G34: Debt Service Reserve Requirements | H34: =IF(H35,-PMT(H31,H32,1),0) -> 0.06505143508 | I34: =IF(I35,-PMT(I31,I32,1),0) -> 0.06505143508 | J34: 0.06505143508 | K34: 0.06505143508 | L34: 0.06505143508 | M34: 0.06505143508
G35: Debt Service Reserve Required? | H35: TRUE | I35: TRUE | J35: TRUE | K35: TRUE | L35: TRUE | M35: TRUE
G37: SRF
G38: Interest Rates | H38: 0.023 | I38: 0.023 | J38: 0.023 | K38: 0.023 | L38: 0.023 | M38: 0.023
G39: Term (years) | H39: 20 | I39: 20 | J39: 20 | K39: 20 | L39: 20 | M39: 20
G40: Issuance Cost | H40: 0 | I40: 0 | J40: 0 | K40: 0 | L40: 0 | M40: 0
G41: Debt Service Reserve Requirements | H41: =IF(H42,-PMT(H38,H39,1),0) -> 0 | I41: =IF(I42,-PMT(I38,I39,1),0) -> 0 | J41: 0 | K41: 0 | L41: 0 | M41: 0
G42: Debt Service Reserve Required? | H42: FALSE | I42: FALSE | J42: FALSE | K42: FALSE | L42: FALSE | M42: FALSE
A46: =client -> City of San Clemente | H46: =Model -> Financial Plan & COS Model
A47: Misc Inputs | H47: =rfc_budyear -> 2012
G49: Implementation Month | H49: Effective Months | I49: Days
F50: 1 | G50: Jan | H50: 6 | I50: 31
F51: 2 | G51: Feb | H51: 5 | I51: 28
F52: 3 | G52: Mar | H52: 4 | I52: 31
F53: 4 | G53: Apr | H53: 3 | I53: 30
F54: 5 | G54: May | H54: 2 | I54: 31
F55: 6 | G55: Jun | H55: 1 | I55: 30
F56: 7 | G56: Jul | H56: 12 | I56: 31
F57: 8 | G57: Aug | H57: 11 | I57: 31
F58: 9 | G58: Sep | H58: 10 | I58: 30
F59: 10 | G59: Oct | H59: 9 | I59: 31
F60: 11 | G60: Nov | H60: 8 | I60: 30
F61: 12 | G61: Dec | H61: 7 | I61: 31
A64: =client -> City of San Clemente | H64: =Model -> Financial Plan & COS Model
A65: Influent Flow Data | H65: =rfc_budyear -> 2012
D66: Source: | E66: Annual Influent Waste Water Flows 2010.xls sent by Tom Rendina 11/14/11
G68: Month | H68: Flow (cu ft) | I68: BOD (mg/L) | J68: TSS (mg/L) | K68: Flow (mgd) | L68: BOD (lbs) | M68: TSS (lbs)
E69: =INDEX($I$50:$I$61,MATCH(F69,Monthlist,0)) -> 31 | F69: =LEFT(G69,3) -> Jul | G69: Jul 2010 | H69: 16520321 | I69: 337.75 | J69: 266.3181818 | K69: =H69/100*748/E69/1000000 -> 3.986193583 | L69: =K69*I69*8.34*E69 -> 348081.9377 | M69: =K69*J69*8.34*E69 -> 274464.9852
E70: 31 | F70: =LEFT(G70,3) -> Aug | G70: Aug 2010 | H70: 16052941 | I70: 335.8 | J70: 279.1818182 | K70: =H70/100*748/E70/1000000 -> 3.873419312 | L70: =K70*I70*8.34*E70 -> 336281.4798 | M70: =K70*J70*8.34*E70 -> 279582.1172
E71: 30 | F71: Sep | G71: Sep 2010 | H71: 15472861 | I71: 347 | J71: 266.4318182 | K71: 3.857900009 | L71: 334940.5641 | M71: 257172.4019
E72: 31 | F72: Oct | G72: Oct 2010 | H72: 16127807 | I72: 298.75 | J72: 267.0952381 | K72: 3.891483754 | L72: 300573.6326 | M72: 268725.6434
E73: 30 | F73: Nov | G73: Nov 2010 | H73: 15207888 | I73: 269 | J73: 330.5909091 | K73: 3.791833408 | L73: 255204.7973 | M73: 313637.1225
E74: 31 | F74: Dec | G74: Dec 2010 | H74: 18675134 | I74: 268.6 | J74: 302.4347826 | K74: 4.506129107 | L74: 312922.9268 | M74: 352340.9431
E75: 31 | F75: Jan | G75: Jan 2011 | H75: 17223128 | I75: 261.25 | J75: 292.547619 | K75: 4.155774111 | L75: 280695.8403 | M75: 314323.0613
E76: 28 | F76: Feb | G76: Feb 2011 | H76: 14868850 | I76: 313.75 | J76: 302.175 | K76: 3.972107071 | L76: 291023.9716 | M76: 280287.39
E77: 31 | F77: Mar | G77: Mar 2011 | H77: 16822326 | I77: 301.8 | J77: 294.7608696 | K77: 4.059064467 | L77: 316718.1331 | M77: 309331.0548
E78: 30 | F78: Apr | G78: Apr 2011 | H78: 16485428 | I78: 298.25 | J78: 294.3095238 | K78: 4.110366715 | L78: 306724.4015 | M78: 302671.9616
E79: 31 | F79: May | G79: May 2011 | H79: 17148930 | I79: 320 | J79: 318.0454545 | K79: 4.137870852 | L79: 342337.6416 | M79: 340246.6588
E80: 30 | F80: Jun | G80: Jun 2011 | H80: 17513235 | I80: 316.4 | J80: 307.8636364 | K80: 4.36663326 | L80: 345677.0114 | M80: 336350.764
G81: Annual | H81: =SUM(H69:H80) -> 198118849 | K81: =AVERAGE(K69:K80) -> 4.059064637 | L81: =SUM(L69:L80) -> 3771182.338 | M81: =SUM(M69:M80) -> 3629134.104
G82: Average | H82: =AVERAGE(H69:H80) -> 16509904.08 | I82: =L81/365/8.34/K81 -> 305.2057061 | J82: =M81/365/8.34/K81 -> 293.7095949
G83: I&I | H83: 0.07 | I83: 100 | J83: 100 | K83: Provided by Tom Rendina
A85: =client -> City of San Clemente | H85: =Model -> Financial Plan & COS Model
A86: Non-Residential WW Strengths | H86: =rfc_budyear -> 2012
E88: Customer Classifications
I89: Strength Factors | K89: Notes
E90: Customer Classes | I90: BOD (mg/L) | J90: TSS (mg/L) | K90: BOD Strengths From Rate Ordinance
E91: ='S Rev'!D23 -> Low strength commercial/Schools/Religious Institutions | I91: =Rates!E22 -> 149 | J91: =I91 -> 149 | K91: 130 | L91: 149 | M91: BOD mg / L
E92: ='S Rev'!D24 -> Medium strength commercial | I92: =Rates!E23 -> 290 | J92: =I92 -> 290 | K92: 150 | L92: 282 | M92: BOD mg / L
E93: ='S Rev'!D25 -> Commercial/residential | I93: =Rates!E24 -> 290 | J93: 290 | K93: 283 | L93: 290 | M93: BOD mg / L
E94: ='S Rev'!D26 -> Medium high strength commercial | I94: =Rates!E25 -> 500 | J94: 500 | K94: 291 | L94: 500 | M94: BOD mg / L
E95: ='S Rev'!D27 -> High strength commercial | I95: =Rates!E26 -> 900 | J95: 900 | K95: 500 | L95: 900 | M95: BOD mg / L
A100: =client -> City of San Clemente | H100: =Model -> Financial Plan & COS Model
A101: Peaking Factors | H101: =rfc_budyear -> 2012
E102: Source:
I105: Max Day | J105: Max Hour | K105: Notes
G106: City's Potable Water System | I106: 1.75 | J106: 2.95
H107: ='W & RW Rev'!E181 -> Single Family Residential | I107: 1.75 | J107: 2.95
H108: ='W & RW Rev'!E182 -> Single Family Residential - Large Lot | I108: 1.75 | J108: 2.95
H109: ='W & RW Rev'!E183 -> Multi Family Residential - Mastered Meter | I109: 1.75 | J109: 2.95
H110: ='W & RW Rev'!E184 -> Multi Family Residential - Ind Meter | I110: 1.75 | J110: 2.95
H111: ='W & RW Rev'!E185 -> Commercial Potable | I111: 1.75 | J111: 2.95
H112: ='W & RW Rev'!E186 -> Irrigation Potable | I112: 1.75 | J112: 2.95
G114: System Wide | H114: Base | I114: Max Day | J114: Max Hour
G115: Base | H115: 1
G116: MD | H116: =1/I106 -> 0.5714285714 | I116: =1-H116 -> 0.4285714286
G117: MH | H117: =1/J106 -> 0.3389830508 | I117: =(I106-1)/J106 -> 0.2542372881 | J117: =1-SUM(H117:I117) -> 0.406779661
G120: Meter Size | H120: Current Ratio | I120: AWWA Meter Cost Ratios | J120: AWWA Capacity Ratios | M120: AWWA Meter Cost Ratio | N120: AWWA Max Flow Rate (gpm)
G121: ⅝ in. | H121: ='W & RW Rev'!N9/'W & RW Rev'!$N$11 -> 1 | I121: =MAX(1,M121/$M$123) -> 1 | J121: =MAX(1,N121/$N$123) -> 1 | M121: 1 | N121: 20
G122: ¾ in. | H122: ='W & RW Rev'!N10/'W & RW Rev'!$N$11 -> 1 | I122: 1 | J122: 1 | M122: 1 | N122: 30
G123: 1 in. | H123: ='W & RW Rev'!N11/'W & RW Rev'!$N$11 -> 1 | I123: 1 | J123: 1 | M123: 1.28 | N123: 50
G124: 1½ in. | H124: ='W & RW Rev'!N12/'W & RW Rev'!$N$11 -> 2.246341463 | I124: 1.28125 | J124: 2 | M124: 1.64 | N124: 100
G125: 2 in. | H125: ='W & RW Rev'!N13/'W & RW Rev'!$N$11 -> 3.356097561 | I125: 2.0625 | J125: 3.2 | M125: 2.64 | N125: 160
G126: 3 in. | H126: ='W & RW Rev'!N14/'W & RW Rev'!$N$11 -> 6.522764228 | I126: 7.8125 | J126: 7 | M126: 10 | N126: 350
G127: 4 in. | H127: ='W & RW Rev'!N15/'W & RW Rev'!$N$11 -> 9.854471545 | I127: 9.9453125 | J127: 12.6 | M127: 12.73 | N127: 630
G128: 6 in. | H128: ='W & RW Rev'!N16/'W & RW Rev'!$N$11 -> 18.9097561 | I128: 14.921875 | J128: 28 | M128: 19.1 | N128: 1400
A133: =client -> City of San Clemente | H133: =Model -> Financial Plan & COS Model
A134: ENR CCI 20 City | H134: =rfc_budyear -> 2012
D135: Source: | E135: Engineering News & Records Indices for Los Angeles & Riverside Counties
H136: 30 | I136: =AVERAGEIFS(K139:K206,G139:G206,">"&rfc_budyear-31,G139:G206,"<="&rfc_budyear-1) -> 0.02796946837
G138: Year | H138: Actual Annual Average | I138: Extrapolate Average | J138: Used in the Model
G139: 1953 | H139: 626 | I139: =IF(ISBLANK(H139),I138*(1+$I$136),H139) -> 626 | J139: =MAX(H139:I139) -> 626
G140: 1954 | H140: 667 | I140: =IF(ISBLANK(H140),I139*(1+$I$136),H140) -> 667 | J140: =MAX(H140:I140) -> 667 | K140: =IF(ISBLANK(H140),"",H140/H139-1) -> 0.06549520767
G141: 1955 | H141: 708 | I141: 708 | J141: 708 | K141: 0.06146926537
G142: 1956 | H142: 731 | I142: 731 | J142: 731 | K142: 0.03248587571
G143: 1957 | H143: 778 | I143: 778 | J143: 778 | K143: 0.06429548564
G144: 1958 | H144: 824 | I144: 824 | J144: 824 | K144: 0.05912596401
G145: 1959 | H145: 868 | I145: 868 | J145: 868 | K145: 0.05339805825
G146: 1960 | H146: 901 | I146: 901 | J146: 901 | K146: 0.03801843318
G147: 1961 | H147: 940 | I147: 940 | J147: 940 | K147: 0.04328523862
G148: 1962 | H148: 955 | I148: 955 | J148: 955 | K148: 0.01595744681
G149: 1963 | H149: 991 | I149: 991 | J149: 991 | K149: 0.03769633508
G150: 1964 | H150: 1017 | I150: 1017 | J150: 1017 | K150: 0.02623612513
G151: 1965 | H151: 1070 | I151: 1070 | J151: 1070 | K151: 0.05211406096
G152: 1966 | H152: 1126 | I152: 1126 | J152: 1126 | K152: 0.0523364486
G153: 1967 | H153: 1182 | I153: 1182 | J153: 1182 | K153: 0.04973357016
G154: 1968 | H154: 1275 | I154: 1275 | J154: 1275 | K154: 0.07868020305
G155: 1969 | H155: 1309 | I155: 1309 | J155: 1309 | K155: 0.02666666667
G156: 1970 | H156: 1482 | I156: 1482 | J156: 1482 | K156: 0.1321619557
G157: 1971 | H157: 1704 | I157: 1704 | J157: 1704 | K157: 0.1497975709
G158: 1972 | H158: 1966 | I158: 1966 | J158: 1966 | K158: 0.1537558685
G159: 1973 | H159: 2009 | I159: 2009 | J159: 2009 | K159: 0.02187182096
G160: 1974 | H160: 2280 | I160: 2280 | J160: 2280 | K160: 0.1348929816
G161: 1975 | H161: 2586 | I161: 2586 | J161: 2586 | K161: 0.1342105263
G162: 1976 | H162: 2923 | I162: 2923 | J162: 2923 | K162: 0.130317092
G163: 1977 | H163: 3162 | I163: 3162 | J163: 3162 | K163: 0.08176530961
G164: 1978 | H164: 3421 | I164: 3421 | J164: 3421 | K164: 0.08191018343
G165: 1979 | H165: 3639 | I165: 3639 | J165: 3639 | K165: 0.06372405729
G166: 1980 | H166: 4102 | I166: 4102 | J166: 4102 | K166: 0.1272327563
G167: 1981 | H167: 4531 | I167: 4531 | J167: 4531 | K167: 0.1045831302
G168: 1982 | H168: 4934 | I168: 4934 | J168: 4934 | K168: 0.08894283823
G169: 1983 | H169: 5064 | I169: 5064 | J169: 5064 | K169: 0.02634779084
G170: 1984 | H170: 5260 | I170: 5260 | J170: 5260 | K170: 0.03870458136
G171: 1985 | H171: 5447 | I171: 5447 | J171: 5447 | K171: 0.0355513308
G172: 1986 | H172: 5452 | I172: 5452 | J172: 5452 | K172: 0.0009179364788
G173: 1987 | H173: 5474 | I173: 5474 | J173: 5474 | K173: 0.004035216434
G174: 1988 | H174: 5771 | I174: 5771 | J174: 5771 | K174: 0.0542564852
G175: 1989 | H175: 5790 | I175: 5790 | J175: 5790 | K175: 0.003292323687
G176: 1990 | H176: 5995 | I176: 5995 | J176: 5995 | K176: 0.03540587219
G177: 1991 | H177: 6090 | I177: 6090 | J177: 6090 | K177: 0.01584653878
G178: 1992 | H178: 6349 | I178: 6349 | J178: 6349 | K178: 0.04252873563
G179: 1993 | H179: 6478 | I179: 6478 | J179: 6478 | K179: 0.02031816034
G180: 1994 | H180: 6533 | I180: 6533 | J180: 6533 | K180: 0.008490274776
G181: 1995 | H181: 6526 | I181: 6526 | J181: 6526 | K181: -0.001071483239
G182: 1996 | H182: 6558 | I182: 6558 | J182: 6558 | K182: 0.004903463071
G183: 1997 | H183: 6664 | I183: 6664 | J183: 6664 | K183: 0.01616346447
G184: 1998 | H184: 6852 | I184: 6852 | J184: 6852 | K184: 0.02821128451
G185: 1999 | H185: 6826 | I185: 6826 | J185: 6826 | K185: -0.003794512551
G186: 2000 | H186: 7068 | I186: 7068 | J186: 7068 | K186: 0.03545268093
G187: 2001 | H187: 7227 | I187: 7227 | J187: 7227 | K187: 0.02249575552
G188: 2002 | H188: 7403 | I188: 7403 | J188: 7403 | K188: 0.02435312024
G189: 2003 | H189: 7532 | I189: 7532 | J189: 7532 | K189: 0.01742536809
G190: 2004 | H190: 8192 | I190: 8192 | J190: 8192 | K190: 0.08762612852
G191: 2005 | H191: 8485 | I191: 8485 | J191: 8485 | K191: 0.03576660156
G192: 2006 | H192: 8879 | I192: 8879 | J192: 8879 | K192: 0.04643488509
G193: 2007 | H193: 9182 | I193: 9182 | J193: 9182 | K193: 0.03412546458
G194: 2008 | H194: 9823 | I194: 9823 | J194: 9823 | K194: 0.0698104988
G195: 2009 | H195: 9764 | I195: 9764 | J195: 9764 | K195: -0.006006311717
G196: 2010 | H196: 10004 | I196: 10004 | J196: 10004 | K196: =IF(ISBLANK(H196),"",H196/H195-1) -> 0.02458009013
G197: 2011 | I197: 10283.80656 | J197: 10283.80656 | K197: =IF(ISBLANK(H197),"",H197/H196-1) -> 
G198: 2012 | I198: 10571.43916 | J198: 10571.43916
G199: 2013 | I199: 10867.1167 | J199: 10867.1167
G200: 2014 | I200: 11171.06417 | J200: 11171.06417
G201: 2015 | I201: 11483.5129 | J201: 11483.5129
G202: 2016 | I202: 11804.70065 | J202: 11804.70065
G203: 2017 | I203: 12134.87185 | J203: 12134.87185
G204: 2018 | I204: =IF(ISBLANK(H204),I203*(1+$I$136),H204) -> 12474.27777 | J204: =MAX(H204:I204) -> 12474.27777
G205: 2019 | I205: 12823.17668 | J205: 12823.17668
G206: 2020 | I206: 13181.83412 | J206: 13181.83412
A235: End of Worksheet

Sheet CIP & Assets
A1: =client -> City of San Clemente
A2: CIP
B3: Source: | C3: 03 CIP only.xlsx & 04 Maintenance Other.xlsx sent by Tom Rendina 8/31/11
A5: Inflated? | B5: Type | C5: Fund | D5: Descriptions | G5: Funded By | H5: =rfc_budyear -> 2012 | I5: =H5+1 -> 2013 | J5: =I5+1 -> 2014 | K5: 2015 | L5: 2016 | M5: 2017 | N5: 5-yr Total
A6: TRUE | B6: Sewer Maintenance | C6: 054-476 | D6: Digester #2 Cleaning, Residual Disposal & Inspection | G6: Sewer Depreciation | H6: 0 | I6: 230000 | J6: 0 | K6: 0 | L6: 0 | M6: 0 | N6: =SUM(H6:M6) -> 230000
A7: TRUE | B7: Sewer Maintenance | C7: 054-476 | D7: Digester Boiler Flame Pack Replacement | G7: Sewer Depreciation | H7: 150000 | I7: 0 | J7: 0 | K7: 0 | L7: 0 | M7: 0 | N7: =SUM(H7:M7) -> 150000
A8: TRUE | B8: Sewer Maintenance | C8: 054-476 | D8: Progressive Cavity Pump Replacements | G8: Sewer Depreciation | H8: 0 | I8: 500000 | J8: 0 | K8: 0 | L8: 0 | M8: 0 | N8: 500000
A9: TRUE | B9: Sewer Maintenance | C9: 054-476 | D9: Sewer System Rehabilitation | G9: Sewer Depreciation | H9: 400000 | I9: 400000 | J9: 300000 | K9: 300000 | L9: 300000 | M9: 300000 | N9: 2000000
A10: TRUE | B10: Sewer Maintenance | C10: 054-476 | D10: WRP Building Painting & Maintenance | G10: Sewer Depreciation | H10: 0 | I10: 0 | J10: 200000 | K10: 0 | L10: 0 | M10: 0 | N10: 200000
A11: TRUE | B11: Sewer CIP | C11: 054-476 | D11: Aeration Basin Blower Rehabilitation | G11: Sewer Depreciation | H11: 150000 | I11: 400000 | J11: 0 | K11: 0 | L11: 0 | M11: 0 | N11: 550000
A12: TRUE | B12: Sewer CIP | C12: 054-476 | D12: Cypress Shores PS Force Main Slip Line | G12: Sewer Depreciation | H12: 0 | I12: 0 | J12: 250000 | K12: 0 | L12: 0 | M12: 0 | N12: 250000
A13: TRUE | B13: Sewer CIP | C13: 054-476 | D13: Digester Structural Rehabilitation | G13: Sewer Depreciation | H13: 0 | I13: 0 | J13: 0 | K13: 0 | L13: 200000 | M13: 1000000 | N13: 1200000
A14: TRUE | B14: Sewer CIP | C14: 054-476 | D14: Frontera Pump Station Force Main Slip Line | G14: Sewer Depreciation | H14: 0 | I14: 0 | J14: 0 | K14: 250000 | L14: 0 | M14: 0 | N14: 250000
A15: TRUE | B15: Sewer CIP | C15: 054-476 | D15: La Pata Recycled Water Force Main Slip Line | G15: Sewer Depreciation | H15: 0 | I15: 0 | J15: 0 | K15: 250000 | L15: 0 | M15: 0 | N15: 250000
A16: TRUE | B16: Sewer CIP | C16: 054-476 | D16: Main PS Force Main Cathodic Protection | G16: Sewer Depreciation | H16: 500000 | I16: 0 | J16: 0 | K16: 0 | L16: 0 | M16: 0 | N16: 500000
A17: TRUE | B17: Sewer CIP | C17: 054-476 | D17: Sewer Facilities Generator Replacements (AQMD) | G17: Sewer Depreciation | H17: 0 | I17: 100000 | J17: 100000 | K17: 100000 | L17: 100000 | M17: 0 | N17: 400000
A18: TRUE | B18: Sewer CIP | C18: 054-476 | D18: WRP Digesters Mechanical Rehabilitation | G18: Sewer Depreciation | H18: 0 | I18: 300000 | J18: 0 | K18: 0 | L18: 0 | M18: 0 | N18: 300000
A19: TRUE | B19: Sewer CIP | C19: 054-476 | D19: WRP Solids Handling | G19: Sewer Depreciation | H19: 300000 | I19: 0 | J19: 0 | K19: 0 | L19: 0 | M19: 0 | N19: 300000
A20: TRUE | B20: Water Maintenance | C20: 052-466 | D20: City-Wide Cathodic Protection | G20: Water Depreciation | H20: 500000 | I20: 0 | J20: 0 | K20: 0 | L20: 0 | M20: 0 | N20: 500000
A21: TRUE | B21: Water Maintenance | C21: 052-466 | D21: Reservoir No. 9 Site Drainage Improvements | G21: Water Depreciation | H21: 100000 | I21: 0 | J21: 0 | K21: 0 | L21: 0 | M21: 0 | N21: 100000
A22: TRUE | B22: Water Maintenance | C22: 052-466 | D22: Water Plant Chemical Treatment Replacement | G22: Water Depreciation | H22: 0 | I22: 100000 | J22: 0 | K22: 0 | L22: 0 | M22: 0 | N22: 100000
A23: TRUE | B23: Water Maintenance | C23: 052-466 | D23: Water System Rehabilitation | G23: Water Depreciation | H23: 300000 | I23: 300000 | J23: 300000 | K23: 300000 | L23: 300000 | M23: 300000 | N23: 1800000
A24: TRUE | B24: Water Acreage Maintenance | C24: 052-467 | D24: Dana Point Ocean Water Desalination Project | G24: Water Acreage Fees | H24: 25000 | N24: 25000
A25: TRUE | B25: Water Other Agency Maintenance | C25: 052-468 | D25: JWRSS Agency Projects | G25: Water Other Agency | H25: 1275000 | I25: 2542000 | J25: 1766000 | K25: 1654000 | L25: 90000 | M25: 0 | N25: 7327000
A26: TRUE | B26: Water CIP | C26: 052-466 | D26: Bahia Pump Station Rehabilitation | G26: Water Depreciation | H26: 0 | I26: 0 | J26: 0 | K26: 200000 | L26: 0 | M26: 0 | N26: 200000
A27: TRUE | B27: Water CIP | C27: 054-476 | D27: Calafia Pump Station Surge Tank Rehabilitation | G27: Water Depreciation | H27: 200000 | I27: 0 | J27: 0 | K27: 0 | L27: 0 | M27: 0 | N27: 200000
A28: TRUE | B28: Water CIP | C28: 052-466 | D28: Del Cerro Pressure Reduction Station Rehabilitation | G28: Water Depreciation | H28: 0 | I28: 200000 | J28: 0 | K28: 0 | L28: 0 | M28: 0 | N28: 200000
A29: TRUE | B29: Water CIP | C29: 052-466 | D29: El Camino Real Pipe Connection | G29: Water Depreciation | H29: 0 | I29: 0 | J29: 0 | K29: 0 | L29: 40000 | M29: 180000 | N29: 220000
A30: TRUE | B30: Water CIP | C30: 052-466 | D30: La Pata, Esmarca, Patricia Check Valves | G30: Water Depreciation | H30: 0 | I30: 0 | J30: 0 | K30: 0 | L30: 300000 | M30: 0 | N30: 300000
A31: TRUE | B31: Water CIP | C31: 052-466 | D31: Palisades Reservoir Altitude Valve | G31: Water Depreciation | H31: 0 | I31: 0 | J31: 0 | K31: 0 | L31: 0 | M31: 200000 | N31: 200000
A32: TRUE | B32: Water CIP | C32: 052-466 | D32: Paradiso Pressure Reduction Station Rehabilitation | G32: Water Depreciation | H32: 0 | I32: 0 | J32: 200000 | K32: 0 | L32: 0 | M32: 0 | N32: 200000
A33: TRUE | B33: Water CIP | C33: 052-466 | D33: Reservoir 8 (Acapulco) Pump Station Rehabilitation | G33: Water Depreciation | H33: 0 | I33: 0 | J33: 0 | K33: 0 | L33: 0 | M33: 150000 | N33: 150000
A34: TRUE | B34: Water CIP | C34: 052-466 | D34: Reservoir Improvement Projects | G34: Water Depreciation | H34: 0 | I34: 0 | J34: 0 | K34: 500000 | L34: 500000 | M34: 500000 | N34: 1500000
A35: TRUE | B35: Water CIP | C35: 052-466 | D35: Reservoir No. 1 Expansion | G35: Water Depreciation | H35: 0 | I35: 0 | J35: 2500000 | K35: 0 | L35: 0 | M35: 0 | N35: 2500000
A36: TRUE | B36: Water CIP | C36: 052-466 | D36: Reservoir No. 12 Rehabilitation | G36: Water Depreciation | H36: 0 | I36: 0 | J36: 0 | K36: 100000 | L36: 450000 | M36: 0 | N36: 550000
A37: TRUE | B37: Water CIP | C37: 052-466 | D37: Reservoir No.6 Removal | G37: Water Depreciation | H37: 0 | I37: 0 | J37: 0 | K37: 0 | L37: 100000 | M37: 0 | N37: 100000
A38: TRUE | B38: Water CIP | C38: 052-466 | D38: San Pablo South Pressure Reduction Station Rehabilitation | G38: Water Depreciation | H38: 0 | I38: 0 | J38: 0 | K38: 200000 | L38: 0 | M38: 0 | N38: 200000
A39: TRUE | B39: Water CIP | C39: 052-466 | D39: Vista Cayenta Pressure Reduction Station Rehabilitation | G39: Water Depreciation | H39: 200000 | I39: 0 | J39: 0 | K39: 0 | L39: 0 | M39: 0 | N39: 200000
A40: TRUE | B40: Water Acreage CIP | C40: 052-467 | D40: Calle Escuelita Pump Station Modifications (Hermosa) | G40: Water Acreage Fees | H40: 0 | I40: 50000 | J40: 175000 | K40: 0 | L40: 0 | M40: 0 | N40: 225000
A41: TRUE | B41: Water Acreage CIP | C41: 052-467 | D41: Calle Lobina Connection | G41: Water Acreage Fees | H41: 0 | I41: 0 | J41: 0 | K41: 200000 | L41: 0 | M41: 0 | N41: 200000
A42: FALSE | B42: RW Expansion | C42: 052-465 | D42: Recycled Water Expansion* | G42: Recycled Water Fund 465 | H42: 194500 | I42: =12000000+2300000 -> 14300000 | J42: =7616600+2.3*10^6 -> 9916600 | N42: 24411100
A43: TRUE | B43: Sewer CIP | C43: 054-476 | D43: WRP Chlorinator Replacement | G43: Sewer Depreciation | I43: 520000 | N43: 520000
N44: 0
N45: 0
N46: 0
N47: 0
N48: 0
N49: 0
N50: 0
N51: 0
N52: 0
N53: 0
N54: 0
N55: 0
N56: 0
N57: 0
N58: 0
N59: 0
N60: 0
N61: 0
N62: 0
N63: 0
N64: 0
N65: 0
N66: 0
N67: 0
D70: TOTAL CIP (Non-inflated) | H70: =SUM(H6:H69) -> 4294500 | I70: =SUM(I6:I69) -> 19942000 | J70: =SUM(J6:J69) -> 15707600 | K70: 4054000 | L70: 2380000 | M70: 2630000
H71: =H5 -> 2012 | I71: =I5 -> 2013 | J71: 2014 | K71: 2015 | L71: 2016 | M71: 2017
D72: Escalation Factor | G72: by CCI | H72: ='Key Assumptions'!H15 -> 0.04 | I72: ='Key Assumptions'!I15 -> 0.04 | J72: ='Key Assumptions'!J15 -> 0.04 | K72: ='Key Assumptions'!K15 -> 0.04 | L72: ='Key Assumptions'!L15 -> 0.04 | M72: ='Key Assumptions'!M15 -> 0.04
G73: Cummulative Escalating Factors | H73: 1 | I73: 1 | J73: =I73*(1+J72) -> 1.04 | K73: =J73*(1+K72) -> 1.0816 | L73: 1.124864 | M73: 1.16985856
G74: Inflated CIP | H74: =SUMIF($A$6:$A$67,TRUE,H6:H67)*H73+SUMIF($A$6:$A$67,FALSE,H6:H67) -> 4294500 | I74: =SUMIF($A$6:$A$67,TRUE,I6:I67)*I73+SUMIF($A$6:$A$67,FALSE,I6:I67) -> 19942000 | J74: =SUMIF($A$6:$A$67,TRUE,J6:J67)*J73+SUMIF($A$6:$A$67,FALSE,J6:J67) -> 15939240 | K74: 4384806.4 | L74: 2677176.32 | M74: 3076728.013 | N74: =SUM(H74:M74) -> 50314450.73
F75: Funded by | G75: Sewer Depreciation | H75: =SUMIFS(H$6:H$67,$G$6:$G$67,$G75,$A$6:$A$67,TRUE)*H$73+SUMIFS(H$6:H$67,$G$6:$G$67,$G75,$A$6:$A$67,FALSE) -> 1500000 | I75: =SUMIFS(I$6:I$67,$G$6:$G$67,$G75,$A$6:$A$67,TRUE)*I$73+SUMIFS(I$6:I$67,$G$6:$G$67,$G75,$A$6:$A$67,FALSE) -> 2450000 | J75: 884000 | K75: 973440 | L75: 674918.4 | M75: 1520816.128 | N75: 8003174.528
G76: Sewer Other Agency Depr. | H76: =SUMIFS(H$6:H$67,$G$6:$G$67,$G76,$A$6:$A$67,TRUE)*H$73+SUMIFS(H$6:H$67,$G$6:$G$67,$G76,$A$6:$A$67,FALSE) -> 0 | I76: 0 | J76: 0 | K76: 0 | L76: 0 | M76: 0 | N76: 0
G77: Water Depreciation | H77: =SUMIFS(H$6:H$67,$G$6:$G$67,$G77,$A$6:$A$67,TRUE)*H$73+SUMIFS(H$6:H$67,$G$6:$G$67,$G77,$A$6:$A$67,FALSE) -> 1300000 | I77: 600000 | J77: 3120000 | K77: 1406080 | L77: 1901020.16 | M77: 1555911.885 | N77: 9883012.045
G78: Water Acreage Fees | H78: 25000 | I78: 50000 | J78: 182000 | K78: 216320 | L78: 0 | M78: 0 | N78: 473320
G79: Water Other Agency | H79: 1275000 | I79: 2542000 | J79: 1836640 | K79: 1788966.4 | L79: 101237.76 | M79: 0 | N79: 7543844.16
G80: Recycled Water Fund 465 | H80: 194500 | I80: =SUMIFS(I$6:I$67,$G$6:$G$67,$G80,$A$6:$A$67,TRUE)*I$73+SUMIFS(I$6:I$67,$G$6:$G$67,$G80,$A$6:$A$67,FALSE) -> 14300000 | J80: =SUMIFS(J$6:J$67,$G$6:$G$67,$G80,$A$6:$A$67,TRUE)*J$73+SUMIFS(J$6:J$67,$G$6:$G$67,$G80,$A$6:$A$67,FALSE) -> 9916600 | K80: 0 | L80: 0 | M80: 0 | N80: 24411100
H81: =H74=SUM(H75:H80) -> TRUE | I81: =I74=SUM(I75:I80) -> TRUE | J81: TRUE | K81: TRUE | L81: TRUE | M81: TRUE | N81: TRUE
B82: * Provided by Tom Rendina 10/31/11 "Reclaimed Water Model_Oct 17 2011_Variable.xlsx"
B83: *Includes increased cost of $2.3M from original estimated cost
A85: =client -> City of San Clemente
A86: Current Asset List
B87: Source: | C87: Utilities Asset 054 2011.xls sent by Tom Rendina 9/13/11
C88: Sewer Line Infrastructure 2011.xls sent by Tom Rendina 9/13/11
C89: Sewer Auto 2011.xls sent by Tom Rendina 9/13/11 | G89: Budget Year | H89: =rfc_budyear -> 2012
C90: Land & Buildings 2011.xls sent by Tom Rendina 9/13/11 | G90: ENR CCI for Budget Year | H90: =INDEX('Key Assumptions'!$J$139:$J$206,MATCH(H89,'Key Assumptions'!$G$139:$G$206,0)) -> 10571.43916
C91: Sewer General Equip 2011.xls sent by Tom Rendina 9/13/11
B93: Description | C93: Asset Type | D93: Date Acquired | E93: Acquired Cost | F93: Life (yrs) | G93: Accum. Depr. | H93: ENR CCI @ Acquired Yr | I93: Replacement Cost
B94: No. 1 Buildings | C94: Lift Station | D94: 1982 | E94: 697542 | F94: 50 | G94: 436309 | H94: =IFERROR(INDEX('Key Assumptions'!$J$139:$J$206,MATCH(D94,'Key Assumptions'!$G$139:$G$206,0)),MIN('Key Assumptions'!$J$139:$J$206)) -> 4934 | I94: =SewerAssetlist[[#This Row],[Acquired Cost]]*(H$90/SewerAssetlist[[#This Row],[ENR CCI @ Acquired Yr]]) -> 1494532.391
B95: No. 1 Equipment | C95: Lift Station | D95: 1982 | E95: 913615 | F95: 10 | G95: 913615 | H95: =IFERROR(INDEX('Key Assumptions'!$J$139:$J$206,MATCH(D95,'Key Assumptions'!$G$139:$G$206,0)),MIN('Key Assumptions'!$J$139:$J$206)) -> 4934 | I95: =SewerAssetlist[[#This Row],[Acquired Cost]]*(H$90/SewerAssetlist[[#This Row],[ENR CCI @ Acquired Yr]]) -> 1957483.865
B96: No. 2 Buildings | C96: Lift Station | D96: 1983 | E96: 187921 | F96: 50 | G96: 114346 | H96: =IFERROR(INDEX('Key Assumptions'!$J$139:$J$206,MATCH(D96,'Key Assumptions'!$G$139:$G$206,0)),MIN('Key Assumptions'!$J$139:$J$206)) -> 5064 | I96: =SewerAssetlist[[#This Row],[Acquired Cost]]*(H$90/SewerAssetlist[[#This Row],[ENR CCI @ Acquired Yr]]) -> 392297.6736
B97: No. 2 Equipment | C97: Lift Station | D97: 1982 | E97: 23375 | F97: 10 | G97: 23375 | H97: =IFERROR(INDEX('Key Assumptions'!$J$139:$J$206,MATCH(D97,'Key Assumptions'!$G$139:$G$206,0)),MIN('Key Assumptions'!$J$139:$J$206)) -> 4934 | I97: =SewerAssetlist[[#This Row],[Acquired Cost]]*(H$90/SewerAssetlist[[#This Row],[ENR CCI @ Acquired Yr]]) -> 50082.56799
B98: No. 3 Buildings | C98: Lift Station | D98: 1981 | E98: 77237 | F98: 50 | G98: 50513 | H98: =IFERROR(INDEX('Key Assumptions'!$J$139:$J$206,MATCH(D98,'Key Assumptions'!$G$139:$G$206,0)),MIN('Key Assumptions'!$J$139:$J$206)) -> 4531 | I98: =SewerAssetlist[[#This Row],[Acquired Cost]]*(H$90/SewerAssetlist[[#This Row],[ENR CCI @ Acquired Yr]]) -> 180204.4243
B99: No. 3 Equipment | C99: Lift Station | D99: 1981 | E99: 94401 | F99: 10 | G99: 94401 | H99: =IFERROR(INDEX('Key Assumptions'!$J$139:$J$206,MATCH(D99,'Key Assumptions'!$G$139:$G$206,0)),MIN('Key Assumptions'!$J$139:$J$206)) -> 4531 | I99: =SewerAssetlist[[#This Row],[Acquired Cost]]*(H$90/SewerAssetlist[[#This Row],[ENR CCI @ Acquired Yr]]) -> 220250.3705
B100: No. 4 Buildings | C100: Lift Station | D100: 1981 | E100: 56250 | F100: 50 | G100: 36788 | H100: =IFERROR(INDEX('Key Assumptions'!$J$139:$J$206,MATCH(D100,'Key Assumptions'!$G$139:$G$206,0)),MIN('Key Assumptions'!$J$139:$J$206)) -> 4531 | I100: =SewerAssetlist[[#This Row],[Acquired Cost]]*(H$90/SewerAssetlist[[#This Row],[ENR CCI @ Acquired Yr]]) -> 131238.8994
B101: No. 4 Equipment | C101: Lift Station | D101: 1981 | E101: 68750 | F101: 10 | G101: 68750 | H101: =IFERROR(INDEX('Key Assumptions'!$J$139:$J$206,MATCH(D101,'Key Assumptions'!$G$139:$G$206,0)),MIN('Key Assumptions'!$J$139:$J$206)) -> 4531 | I101: =SewerAssetlist[[#This Row],[Acquired Cost]]*(H$90/SewerAssetlist[[#This Row],[ENR CCI @ Acquired Yr]]) -> 160403.0992
B102: No. 5 Buildings | C102: Lift Station | D102: 1974 | E102: 63900 | F102: 50 | G102: 51568 | H102: =IFERROR(INDEX('Key Assumptions'!$J$139:$J$206,MATCH(D102,'Key Assumptions'!$G$139:$G$206,0)),MIN('Key Assumptions'!$J$139:$J$206)) -> 2280 | I102: =SewerAssetlist[[#This Row],[Acquired Cost]]*(H$90/SewerAssetlist[[#This Row],[ENR CCI @ Acquired Yr]]) -> 296278.4924
B103: No. 5 Equipment | C103: Lift Station | D103: 1974 | E103: 78100 | F103: 10 | G103: 78100 | H103: =IFERROR(INDEX('Key Assumptions'!$J$139:$J$206,MATCH(D103,'Key Assumptions'!$G$139:$G$206,0)),MIN('Key Assumptions'!$J$139:$J$206)) -> 2280 | I103: =SewerAssetlist[[#This Row],[Acquired Cost]]*(H$90/SewerAssetlist[[#This Row],[ENR CCI @ Acquired Yr]]) -> 362118.1573
B104: No. 6 Buildings | C104: Lift Station | D104: 1974 | E104: 63000 | F104: 50 | G104: 50835 | H104: =IFERROR(INDEX('Key Assumptions'!$J$139:$J$206,MATCH(D104,'Key Assumptions'!$G$139:$G$206,0)),MIN('Key Assumptions'!$J$139:$J$206)) -> 2280 | I104: =SewerAssetlist[[#This Row],[Acquired Cost]]*(H$90/SewerAssetlist[[#This Row],[ENR CCI @ Acquired Yr]]) -> 292105.5558
B105: No. 6 Equipment | C105: Lift Station | D105: 1974 | E105: 77000 | F105: 10 | G105: 77000 | H105: =IFERROR(INDEX('Key Assumptions'!$J$139:$J$206,MATCH(D105,'Key Assumptions'!$G$139:$G$206,0)),MIN('Key Assumptions'!$J$139:$J$206)) -> 2280 | I105: =SewerAssetlist[[#This Row],[Acquired Cost]]*(H$90/SewerAssetlist[[#This Row],[ENR CCI @ Acquired Yr]]) -> 357017.9016
B106: No. 8 Buildings | C106: Lift Station | D106: 1975 | E106: 315211 | F106: 50 | G106: 247741 | H106: =IFERROR(INDEX('Key Assumptions'!$J$139:$J$206,MATCH(D106,'Key Assumptions'!$G$139:$G$206,0)),MIN('Key Assumptions'!$J$139:$J$206)) -> 2586 | I106: =SewerAssetlist[[#This Row],[Acquired Cost]]*(H$90/SewerAssetlist[[#This Row],[ENR CCI @ Acquired Yr]]) -> 1288566.864
B107: No. 8 Equipment | C107: Lift Station | D107: 1975 | E107: 385259 | F107: 10 | G107: 385259 | H107: =IFERROR(INDEX('Key Assumptions'!$J$139:$J$206,MATCH(D107,'Key Assumptions'!$G$139:$G$206,0)),MIN('Key Assumptions'!$J$139:$J$206)) -> 2586 | I107: =SewerAssetlist[[#This Row],[Acquired Cost]]*(H$90/SewerAssetlist[[#This Row],[ENR CCI @ Acquired Yr]]) -> 1574919.598
B108: No. 9 Buildings | C108: Lift Station | D108: 1975 | E108: 315985 | F108: 50 | G108: 248342 | H108: =IFERROR(INDEX('Key Assumptions'!$J$139:$J$206,MATCH(D108,'Key Assumptions'!$G$139:$G$206,0)),MIN('Key Assumptions'!$J$139:$J$206)) -> 2586 | I108: =SewerAssetlist[[#This Row],[Acquired Cost]]*(H$90/SewerAssetlist[[#This Row],[ENR CCI @ Acquired Yr]]) -> 1291730.937
B109: No. 9 Equipment | C109: Lift Station | D109: 1975 | E109: 386204 | F109: 10 | G109: 386204 | H109: =IFERROR(INDEX('Key Assumptions'!$J$139:$J$206,MATCH(D109,'Key Assumptions'!$G$139:$G$206,0)),MIN('Key Assumptions'!$J$139:$J$206)) -> 2586 | I109: =SewerAssetlist[[#This Row],[Acquired Cost]]*(H$90/SewerAssetlist[[#This Row],[ENR CCI @ Acquired Yr]]) -> 1578782.711
B110: No. 10 Buildings | C110: Lift Station | D110: 1983 | E110: 20804 | F110: 50 | G110: 12657 | H110: =IFERROR(INDEX('Key Assumptions'!$J$139:$J$206,MATCH(D110,'Key Assumptions'!$G$139:$G$206,0)),MIN('Key Assumptions'!$J$139:$J$206)) -> 5064 | I110: =SewerAssetlist[[#This Row],[Acquired Cost]]*(H$90/SewerAssetlist[[#This Row],[ENR CCI @ Acquired Yr]]) -> 43429.74336
B111: No. 10 Equipment | C111: Lift Station | D111: 1983 | E111: 25428 | F111: 10 | G111: 25428 | H111: =IFERROR(INDEX('Key Assumptions'!$J$139:$J$206,MATCH(D111,'Key Assumptions'!$G$139:$G$206,0)),MIN('Key Assumptions'!$J$139:$J$206)) -> 5064 | I111: =SewerAssetlist[[#This Row],[Acquired Cost]]*(H$90/SewerAssetlist[[#This Row],[ENR CCI @ Acquired Yr]]) -> 53082.65305
B112: Main Lift | C112: Lift Station | D112: 1983 | E112: 44630 | F112: 10 | G112: 44630 | H112: =IFERROR(INDEX('Key Assumptions'!$J$139:$J$206,MATCH(D112,'Key Assumptions'!$G$139:$G$206,0)),MIN('Key Assumptions'!$J$139:$J$206)) -> 5064 | I112: =SewerAssetlist[[#This Row],[Acquired Cost]]*(H$90/SewerAssetlist[[#This Row],[ENR CCI @ Acquired Yr]]) -> 93168.11412
B113: Misc. Equipment | C113: Lift Station | D113: 1984 | E113: 112430 | F113: 10 | G113: 112430 | H113: =IFERROR(INDEX('Key Assumptions'!$J$139:$J$206,MATCH(D113,'Key Assumptions'!$G$139:$G$206,0)),MIN('Key Assumptions'!$J$139:$J$206)) -> 5260 | I113: =SewerAssetlist[[#This Row],[Acquired Cost]]*(H$90/SewerAssetlist[[#This Row],[ENR CCI @ Acquired Yr]]) -> 225959.4877
B114: Sewer Treatment Plant | C114: Treatment Plant | D114: 1989 | E114: 61848237.4 | F114: 50 | G114: 27213226.26 | H114: =IFERROR(INDEX('Key Assumptions'!$J$139:$J$206,MATCH(D114,'Key Assumptions'!$G$139:$G$206,0)),MIN('Key Assumptions'!$J$139:$J$206)) -> 5790 | I114: =SewerAssetlist[[#This Row],[Acquired Cost]]*(H$90/SewerAssetlist[[#This Row],[ENR CCI @ Acquired Yr]]) -> 112923122.5
B115: Chlorine Scrubber | C115: Treatment Plant | D115: 2002 | E115: 6415 | F115: 10 | G115: 5773.5 | H115: =IFERROR(INDEX('Key Assumptions'!$J$139:$J$206,MATCH(D115,'Key Assumptions'!$G$139:$G$206,0)),MIN('Key Assumptions'!$J$139:$J$206)) -> 7403 | I115: =SewerAssetlist[[#This Row],[Acquired Cost]]*(H$90/SewerAssetlist[[#This Row],[ENR CCI @ Acquired Yr]]) -> 9160.581148
B116: WRP Solids Handling Equip. Rehab | C116: Treatment Plant | D116: 2004 | E116: 623251.25 | F116: 10 | G116: 436275.91 | H116: =IFERROR(INDEX('Key Assumptions'!$J$139:$J$206,MATCH(D116,'Key Assumptions'!$G$139:$G$206,0)),MIN('Key Assumptions'!$J$139:$J$206)) -> 8192 | I116: =SewerAssetlist[[#This Row],[Acquired Cost]]*(H$90/SewerAssetlist[[#This Row],[ENR CCI @ Acquired Yr]]) -> 804280.1115
B117: PA 4 Sewer Lift Station - Build | C117: Lift Station | D117: 2004 | E117: 345510 | F117: 50 | G117: 48371.4 | H117: =IFERROR(INDEX('Key Assumptions'!$J$139:$J$206,MATCH(D117,'Key Assumptions'!$G$139:$G$206,0)),MIN('Key Assumptions'!$J$139:$J$206)) -> 8192 | I117: =SewerAssetlist[[#This Row],[Acquired Cost]]*(H$90/SewerAssetlist[[#This Row],[ENR CCI @ Acquired Yr]]) -> 445866.4484
B118: PA 4 Sewer Lift Station- Equip | C118: Lift Station | D118: 2004 | E118: 422290 | F118: 10 | G118: 295603 | H118: =IFERROR(INDEX('Key Assumptions'!$J$139:$J$206,MATCH(D118,'Key Assumptions'!$G$139:$G$206,0)),MIN('Key Assumptions'!$J$139:$J$206)) -> 8192 | I118: =SewerAssetlist[[#This Row],[Acquired Cost]]*(H$90/SewerAssetlist[[#This Row],[ENR CCI @ Acquired Yr]]) -> 544947.8814
B119: La Rambla Pump Station Replacement | C119: Pump Station | D119: 2006 | E119: 1193314.87 | F119: 30 | G119: 198885.8117 | H119: =IFERROR(INDEX('Key Assumptions'!$J$139:$J$206,MATCH(D119,'Key Assumptions'!$G$139:$G$206,0)),MIN('Key Assumptions'!$J$139:$J$206)) -> 8879 | I119: =SewerAssetlist[[#This Row],[Acquired Cost]]*(H$90/SewerAssetlist[[#This Row],[ENR CCI @ Acquired Yr]]) -> 1420774.361
B120: Linda Lane Pump Station Replacement | C120: Pump Station | D120: 2006 | E120: 1964602.72 | F120: 30 | G120: 327433.7867 | H120: =IFERROR(INDEX('Key Assumptions'!$J$139:$J$206,MATCH(D120,'Key Assumptions'!$G$139:$G$206,0)),MIN('Key Assumptions'!$J$139:$J$206)) -> 8879 | I120: =SewerAssetlist[[#This Row],[Acquired Cost]]*(H$90/SewerAssetlist[[#This Row],[ENR CCI @ Acquired Yr]]) -> 2339078.515
B121: Vapex V-1500 Hydroxyl Ion Fog Odor Contr. | C121: Treatment Plant | D121: 2007 | E121: 71250 | F121: 15 | G121: 20451.5 | H121: =IFERROR(INDEX('Key Assumptions'!$J$139:$J$206,MATCH(D121,'Key Assumptions'!$G$139:$G$206,0)),MIN('Key Assumptions'!$J$139:$J$206)) -> 9182 | I121: =SewerAssetlist[[#This Row],[Acquired Cost]]*(H$90/SewerAssetlist[[#This Row],[ENR CCI @ Acquired Yr]]) -> 82031.69685
B122: Wtr Recl Odor Cntrl Imp-Chlor Monitor | C122: Treatment Plant | D122: 2007 | E122: 229780.89 | F122: 30 | G122: 30637.452 | H122: =IFERROR(INDEX('Key Assumptions'!$J$139:$J$206,MATCH(D122,'Key Assumptions'!$G$139:$G$206,0)),MIN('Key Assumptions'!$J$139:$J$206)) -> 9182 | I122: =SewerAssetlist[[#This Row],[Acquired Cost]]*(H$90/SewerAssetlist[[#This Row],[ENR CCI @ Acquired Yr]]) -> 264551.8078
B123: Frontera Pump Station Replacement | C123: Pump Station | D123: 2007 | E123: 942615.39 | F123: 30 | G123: 125682.052 | H123: =IFERROR(INDEX('Key Assumptions'!$J$139:$J$206,MATCH(D123,'Key Assumptions'!$G$139:$G$206,0)),MIN('Key Assumptions'!$J$139:$J$206)) -> 9182 | I123: =SewerAssetlist[[#This Row],[Acquired Cost]]*(H$90/SewerAssetlist[[#This Row],[ENR CCI @ Acquired Yr]]) -> 1085253.894
B124: Cypress Shores Pump Station | C124: Pump Station | D124: 2008 | E124: 1515832.7 | F124: 30 | G124: 202111.0267 | H124: =IFERROR(INDEX('Key Assumptions'!$J$139:$J$206,MATCH(D124,'Key Assumptions'!$G$139:$G$206,0)),MIN('Key Assumptions'!$J$139:$J$206)) -> 9823 | I124: =SewerAssetlist[[#This Row],[Acquired Cost]]*(H$90/SewerAssetlist[[#This Row],[ENR CCI @ Acquired Yr]]) -> 1631327.819
B125: WRP Land Outfall Cathodic Protection | C125: Treatment Plant | D125: 2008 | E125: 5065502.11 | F125: 30 | G125: 506550.211 | H125: =IFERROR(INDEX('Key Assumptions'!$J$139:$J$206,MATCH(D125,'Key Assumptions'!$G$139:$G$206,0)),MIN('Key Assumptions'!$J$139:$J$206)) -> 9823 | I125: =SewerAssetlist[[#This Row],[Acquired Cost]]*(H$90/SewerAssetlist[[#This Row],[ENR CCI @ Acquired Yr]]) -> 5451455.501
B126: Aeration System Replac-Electric/Diffuser | C126: Treatment Plant | D126: 2008 | E126: 2160017.91 | F126: 30 | G126: 216001.791 | H126: =IFERROR(INDEX('Key Assumptions'!$J$139:$J$206,MATCH(D126,'Key Assumptions'!$G$139:$G$206,0)),MIN('Key Assumptions'!$J$139:$J$206)) -> 9823 | I126: =SewerAssetlist[[#This Row],[Acquired Cost]]*(H$90/SewerAssetlist[[#This Row],[ENR CCI @ Acquired Yr]]) -> 2324595.127
B127: San Gabriel Pump Station | C127: Pump Station | D127: 2008 | E127: 302612.92 | F127: 30 | G127: 30261.292 | H127: =IFERROR(INDEX('Key Assumptions'!$J$139:$J$206,MATCH(D127,'Key Assumptions'!$G$139:$G$206,0)),MIN('Key Assumptions'!$J$139:$J$206)) -> 9823 | I127: =SewerAssetlist[[#This Row],[Acquired Cost]]*(H$90/SewerAssetlist[[#This Row],[ENR CCI @ Acquired Yr]]) -> 325669.7622
B128: La Pata Pump Station | C128: Pump Station | D128: 2008 | E128: 1320119.31 | F128: 30 | G128: 132011.931 | H128: =IFERROR(INDEX('Key Assumptions'!$J$139:$J$206,MATCH(D128,'Key Assumptions'!$G$139:$G$206,0)),MIN('Key Assumptions'!$J$139:$J$206)) -> 9823 | I128: =SewerAssetlist[[#This Row],[Acquired Cost]]*(H$90/SewerAssetlist[[#This Row],[ENR CCI @ Acquired Yr]]) -> 1420702.532
B129: Columbo Pump Station Rehab | C129: Pump Station | D129: 2008 | E129: 168932.71 | F129: 30 | G129: 16893.271 | H129: =IFERROR(INDEX('Key Assumptions'!$J$139:$J$206,MATCH(D129,'Key Assumptions'!$G$139:$G$206,0)),MIN('Key Assumptions'!$J$139:$J$206)) -> 9823 | I129: =SewerAssetlist[[#This Row],[Acquired Cost]]*(H$90/SewerAssetlist[[#This Row],[ENR CCI @ Acquired Yr]]) -> 181804.1196
B130: Raw Influent Bar Screens | C130: Treatment Plant | D130: 2009 | E130: 608728.99 | F130: 20 | G130: 60872.899 | H130: =IFERROR(INDEX('Key Assumptions'!$J$139:$J$206,MATCH(D130,'Key Assumptions'!$G$139:$G$206,0)),MIN('Key Assumptions'!$J$139:$J$206)) -> 9764 | I130: =SewerAssetlist[[#This Row],[Acquired Cost]]*(H$90/SewerAssetlist[[#This Row],[ENR CCI @ Acquired Yr]]) -> 659068.157
B131: WRP Emergency Generator Modifications | C131: Treatment Plant | D131: 2009 | E131: 574804.92 | F131: 10 | G131: 114960.984 | H131: =IFERROR(INDEX('Key Assumptions'!$J$139:$J$206,MATCH(D131,'Key Assumptions'!$G$139:$G$206,0)),MIN('Key Assumptions'!$J$139:$J$206)) -> 9764 | I131: =SewerAssetlist[[#This Row],[Acquired Cost]]*(H$90/SewerAssetlist[[#This Row],[ENR CCI @ Acquired Yr]]) -> 622338.718
B132: COLUMBO LIFT STATION PROTECTION | C132: Lift Station | D132: 2011 | E132: 110204.91 | F132: 30 | G132: 0 | H132: =IFERROR(INDEX('Key Assumptions'!$J$139:$J$206,MATCH(D132,'Key Assumptions'!$G$139:$G$206,0)),MIN('Key Assumptions'!$J$139:$J$206)) -> 10283.80656 | I132: =SewerAssetlist[[#This Row],[Acquired Cost]]*(H$90/SewerAssetlist[[#This Row],[ENR CCI @ Acquired Yr]]) -> 113287.2827
B133: WRP & MAINTENANCE STORAGE AREA | C133: Treatment Plant | D133: 2011 | E133: 119837.95 | F133: 30 | G133: 0 | H133: =IFERROR(INDEX('Key Assumptions'!$J$139:$J$206,MATCH(D133,'Key Assumptions'!$G$139:$G$206,0)),MIN('Key Assumptions'!$J$139:$J$206)) -> 10283.80656 | I133: =SewerAssetlist[[#This Row],[Acquired Cost]]*(H$90/SewerAssetlist[[#This Row],[ENR CCI @ Acquired Yr]]) -> 123189.7538
B134: Sewer Lines | C134: Sewer Pipes | D134: 1925 | E134: 43595.70139 | F134: 75 | G134: 43595.70139 | H134: =IFERROR(INDEX('Key Assumptions'!$J$139:$J$206,MATCH(D134,'Key Assumptions'!$G$139:$G$206,0)),MIN('Key Assumptions'!$J$139:$J$206)) -> 626 | I134: =SewerAssetlist[[#This Row],[Acquired Cost]]*(H$90/SewerAssetlist[[#This Row],[ENR CCI @ Acquired Yr]]) -> 736212.9474
B135: Sewer Lines | C135: Sewer Pipes | D135: 1926 | E135: 311170.6 | F135: 75 | G135: 311170.6 | H135: =IFERROR(INDEX('Key Assumptions'!$J$139:$J$206,MATCH(D135,'Key Assumptions'!$G$139:$G$206,0)),MIN('Key Assumptions'!$J$139:$J$206)) -> 626 | I135: =SewerAssetlist[[#This Row],[Acquired Cost]]*(H$90/SewerAssetlist[[#This Row],[ENR CCI @ Acquired Yr]]) -> 5254825.986
B136: Sewer Lines | C136: Sewer Pipes | D136: 1927 | E136: 190107.4815 | F136: 75 | G136: 190107.4815 | H136: =IFERROR(INDEX('Key Assumptions'!$J$139:$J$206,MATCH(D136,'Key Assumptions'!$G$139:$G$206,0)),MIN('Key Assumptions'!$J$139:$J$206)) -> 626 | I136: =SewerAssetlist[[#This Row],[Acquired Cost]]*(H$90/SewerAssetlist[[#This Row],[ENR CCI @ Acquired Yr]]) -> 3210398.842
B137: Sewer Lines | C137: Sewer Pipes | D137: 1928 | E137: 106227.4167 | F137: 75 | G137: 106227.4167 | H137: =IFERROR(INDEX('Key Assumptions'!$J$139:$J$206,MATCH(D137,'Key Assumptions'!$G$139:$G$206,0)),MIN('Key Assumptions'!$J$139:$J$206)) -> 626 | I137: =SewerAssetlist[[#This Row],[Acquired Cost]]*(H$90/SewerAssetlist[[#This Row],[ENR CCI @ Acquired Yr]]) -> 1793892.449
B138: Sewer Lines | C138: Sewer Pipes | D138: 1929 | E138: 55613.1375 | F138: 75 | G138: 55613.1375 | H138: =IFERROR(INDEX('Key Assumptions'!$J$139:$J$206,MATCH(D138,'Key Assumptions'!$G$139:$G$206,0)),MIN('Key Assumptions'!$J$139:$J$206)) -> 626 | I138: =SewerAssetlist[[#This Row],[Acquired Cost]]*(H$90/SewerAssetlist[[#This Row],[ENR CCI @ Acquired Yr]]) -> 939154.792
B139: Sewer Lines | C139: Sewer Pipes | D139: 1930 | E139: 114712.3239 | F139: 75 | G139: 114712.3239 | H139: =IFERROR(INDEX('Key Assumptions'!$J$139:$J$206,MATCH(D139,'Key Assumptions'!$G$139:$G$206,0)),MIN('Key Assumptions'!$J$139:$J$206)) -> 626 | I139: =SewerAssetlist[[#This Row],[Acquired Cost]]*(H$90/SewerAssetlist[[#This Row],[ENR CCI @ Acquired Yr]]) -> 1937179.479
B140: Sewer Lines | C140: Sewer Pipes | D140: 1946 | E140: 30247.50154 | F140: 75 | G140: 26214.50004 | H140: =IFERROR(INDEX('Key Assumptions'!$J$139:$J$206,MATCH(D140,'Key Assumptions'!$G$139:$G$206,0)),MIN('Key Assumptions'!$J$139:$J$206)) -> 626 | I140: =SewerAssetlist[[#This Row],[Acquired Cost]]*(H$90/SewerAssetlist[[#This Row],[ENR CCI @ Acquired Yr]]) -> 510798.1189
B141: Sewer Lines | C141: Sewer Pipes | D141: 1950 | E141: 54225.6713 | F141: 75 | G141: 44103.5479 | H141: =IFERROR(INDEX('Key Assumptions'!$J$139:$J$206,MATCH(D141,'Key Assumptions'!$G$139:$G$206,0)),MIN('Key Assumptions'!$J$139:$J$206)) -> 626 | I141: =SewerAssetlist[[#This Row],[Acquired Cost]]*(H$90/SewerAssetlist[[#This Row],[ENR CCI @ Acquired Yr]]) -> 915724.2576
B142: Sewer Lines | C142: Sewer Pipes | D142: 1952 | E142: 42960.37809 | F142: 75 | G142: 33795.50008 | H142: =IFERROR(INDEX('Key Assumptions'!$J$139:$J$206,MATCH(D142,'Key Assumptions'!$G$139:$G$206,0)),MIN('Key Assumptions'!$J$139:$J$206)) -> 626 | I142: =SewerAssetlist[[#This Row],[Acquired Cost]]*(H$90/SewerAssetlist[[#This Row],[ENR CCI @ Acquired Yr]]) -> 725484.0629
B143: Sewer Lines | C143: Sewer Pipes | D143: 1953 | E143: 1888.888889 | F143: 75 | G143: 1460.74037 | H143: =IFERROR(INDEX('Key Assumptions'!$J$139:$J$206,MATCH(D143,'Key Assumptions'!$G$139:$G$206,0)),MIN('Key Assumptions'!$J$139:$J$206)) -> 626 | I143: =SewerAssetlist[[#This Row],[Acquired Cost]]*(H$90/SewerAssetlist[[#This Row],[ENR CCI @ Acquired Yr]]) -> 31898.20124
B144: Sewer Lines | C144: Sewer Pipes | D144: 1955 | E144: 26570.09259 | F144: 75 | G144: 19839.0058 | H144: =IFERROR(INDEX('Key Assumptions'!$J$139:$J$206,MATCH(D144,'Key Assumptions'!$G$139:$G$206,0)),MIN('Key Assumptions'!$J$139:$J$206)) -> 708 | I144: =SewerAssetlist[[#This Row],[Acquired Cost]]*(H$90/SewerAssetlist[[#This Row],[ENR CCI @ Acquired Yr]]) -> 396728.9794
B145: Sewer Lines | C145: Sewer Pipes | D145: 1956 | E145: 50005.00926 | F145: 75 | G145: 36670.33691 | H145: =IFERROR(INDEX('Key Assumptions'!$J$139:$J$206,MATCH(D145,'Key Assumptions'!$G$139:$G$206,0)),MIN('Key Assumptions'!$J$139:$J$206)) -> 731 | I145: =SewerAssetlist[[#This Row],[Acquired Cost]]*(H$90/SewerAssetlist[[#This Row],[ENR CCI @ Acquired Yr]]) -> 723153.0961
B146: Sewer Lines | C146: Sewer Pipes | D146: 1958 | E146: 14899.47454 | F146: 75 | G146: 10528.95932 | H146: =IFERROR(INDEX('Key Assumptions'!$J$139:$J$206,MATCH(D146,'Key Assumptions'!$G$139:$G$206,0)),MIN('Key Assumptions'!$J$139:$J$206)) -> 824 | I146: =SewerAssetlist[[#This Row],[Acquired Cost]]*(H$90/SewerAssetlist[[#This Row],[ENR CCI @ Acquired Yr]]) -> 191151.5639
B147: Sewer Lines | C147: Sewer Pipes | D147: 1960 | E147: 106125.6049 | F147: 75 | G147: 72165.41613 | H147: =IFERROR(INDEX('Key Assumptions'!$J$139:$J$206,MATCH(D147,'Key Assumptions'!$G$139:$G$206,0)),MIN('Key Assumptions'!$J$139:$J$206)) -> 901 | I147: =SewerAssetlist[[#This Row],[Acquired Cost]]*(H$90/SewerAssetlist[[#This Row],[ENR CCI @ Acquired Yr]]) -> 1245172.449
B148: Sewer Lines | C148: Sewer Pipes | D148: 1961 | E148: 98731.0517 | F148: 75 | G148: 65820.69805 | H148: =IFERROR(INDEX('Key Assumptions'!$J$139:$J$206,MATCH(D148,'Key Assumptions'!$G$139:$G$206,0)),MIN('Key Assumptions'!$J$139:$J$206)) -> 940 | I148: =SewerAssetlist[[#This Row],[Acquired Cost]]*(H$90/SewerAssetlist[[#This Row],[ENR CCI @ Acquired Yr]]) -> 1110350.326
B149: Sewer Lines | C149: Sewer Pipes | D149: 1962 | E149: 352441.4074 | F149: 75 | G149: 230261.7175 | H149: =IFERROR(INDEX('Key Assumptions'!$J$139:$J$206,MATCH(D149,'Key Assumptions'!$G$139:$G$206,0)),MIN('Key Assumptions'!$J$139:$J$206)) -> 955 | I149: =SewerAssetlist[[#This Row],[Acquired Cost]]*(H$90/SewerAssetlist[[#This Row],[ENR CCI @ Acquired Yr]]) -> 3901374.762
B150: Sewer Lines | C150: Sewer Pipes | D150: 1963 | E150: 495101.4466 | F150: 75 | G150: 316864.9252 | H150: =IFERROR(INDEX('Key Assumptions'!$J$139:$J$206,MATCH(D150,'Key Assumptions'!$G$139:$G$206,0)),MIN('Key Assumptions'!$J$139:$J$206)) -> 991 | I150: =SewerAssetlist[[#This Row],[Acquired Cost]]*(H$90/SewerAssetlist[[#This Row],[ENR CCI @ Acquired Yr]]) -> 5281468.035
B151: Sewer Lines | C151: Sewer Pipes | D151: 1964 | E151: 559751.8333 | F151: 75 | G151: 350777.8156 | H151: =IFERROR(INDEX('Key Assumptions'!$J$139:$J$206,MATCH(D151,'Key Assumptions'!$G$139:$G$206,0)),MIN('Key Assumptions'!$J$139:$J$206)) -> 1017 | I151: =SewerAssetlist[[#This Row],[Acquired Cost]]*(H$90/SewerAssetlist[[#This Row],[ENR CCI @ Acquired Yr]]) -> 5818468.489
B152: Sewer Lines | C152: Sewer Pipes | D152: 1965 | E152: 106369.154 | F152: 75 | G152: 65239.75077 | H152: =IFERROR(INDEX('Key Assumptions'!$J$139:$J$206,MATCH(D152,'Key Assumptions'!$G$139:$G$206,0)),MIN('Key Assumptions'!$J$139:$J$206)) -> 1070 | I152: =SewerAssetlist[[#This Row],[Acquired Cost]]*(H$90/SewerAssetlist[[#This Row],[ENR CCI @ Acquired Yr]]) -> 1050911.253
B153: Sewer Lines | C153: Sewer Pipes | D153: 1969 | E153: 550534.5 | F153: 75 | G153: 308299.32 | H153: =IFERROR(INDEX('Key Assumptions'!$J$139:$J$206,MATCH(D153,'Key Assumptions'!$G$139:$G$206,0)),MIN('Key Assumptions'!$J$139:$J$206)) -> 1309 | I153: =SewerAssetlist[[#This Row],[Acquired Cost]]*(H$90/SewerAssetlist[[#This Row],[ENR CCI @ Acquired Yr]]) -> 4446097.765
B154: Sewer Lines | C154: Sewer Pipes | D154: 1971 | E154: 68167.20602 | F154: 75 | G154: 36355.84216 | H154: =IFERROR(INDEX('Key Assumptions'!$J$139:$J$206,MATCH(D154,'Key Assumptions'!$G$139:$G$206,0)),MIN('Key Assumptions'!$J$139:$J$206)) -> 1704 | I154: =SewerAssetlist[[#This Row],[Acquired Cost]]*(H$90/SewerAssetlist[[#This Row],[ENR CCI @ Acquired Yr]]) -> 422902.2719
B155: Sewer Lines | C155: Sewer Pipes | D155: 1972 | E155: 214266.3765 | F155: 75 | G155: 111418.52 | H155: =IFERROR(INDEX('Key Assumptions'!$J$139:$J$206,MATCH(D155,'Key Assumptions'!$G$139:$G$206,0)),MIN('Key Assumptions'!$J$139:$J$206)) -> 1966 | I155: =SewerAssetlist[[#This Row],[Acquired Cost]]*(H$90/SewerAssetlist[[#This Row],[ENR CCI @ Acquired Yr]]) -> 1152138.334
B156: Sewer Lines | C156: Sewer Pipes | D156: 1973 | E156: 900595.8256 | F156: 75 | G156: 456301.8887 | H156: =IFERROR(INDEX('Key Assumptions'!$J$139:$J$206,MATCH(D156,'Key Assumptions'!$G$139:$G$206,0)),MIN('Key Assumptions'!$J$139:$J$206)) -> 2009 | I156: =SewerAssetlist[[#This Row],[Acquired Cost]]*(H$90/SewerAssetlist[[#This Row],[ENR CCI @ Acquired Yr]]) -> 4738971.619
B157: Sewer Lines | C157: Sewer Pipes | D157: 1974 | E157: 760589.2284 | F157: 75 | G157: 375224.0194 | H157: =IFERROR(INDEX('Key Assumptions'!$J$139:$J$206,MATCH(D157,'Key Assumptions'!$G$139:$G$206,0)),MIN('Key Assumptions'!$J$139:$J$206)) -> 2280 | I157: =SewerAssetlist[[#This Row],[Acquired Cost]]*(H$90/SewerAssetlist[[#This Row],[ENR CCI @ Acquired Yr]]) -> 3526545.069
B158: Sewer Lines | C158: Sewer Pipes | D158: 1975 | E158: 153162.2253 | F158: 75 | G158: 73517.86601 | H158: =IFERROR(INDEX('Key Assumptions'!$J$139:$J$206,MATCH(D158,'Key Assumptions'!$G$139:$G$206,0)),MIN('Key Assumptions'!$J$139:$J$206)) -> 2586 | I158: =SewerAssetlist[[#This Row],[Acquired Cost]]*(H$90/SewerAssetlist[[#This Row],[ENR CCI @ Acquired Yr]]) -> 626119.5464
B159: Sewer Lines | C159: Sewer Pipes | D159: 1976 | E159: 848955.436 | F159: 75 | G159: 396179.2016 | H159: =IFERROR(INDEX('Key Assumptions'!$J$139:$J$206,MATCH(D159,'Key Assumptions'!$G$139:$G$206,0)),MIN('Key Assumptions'!$J$139:$J$206)) -> 2923 | I159: =SewerAssetlist[[#This Row],[Acquired Cost]]*(H$90/SewerAssetlist[[#This Row],[ENR CCI @ Acquired Yr]]) -> 3070366.317
B160: Sewer Lines | C160: Sewer Pipes | D160: 1977 | E160: 2175844.24 | F160: 75 | G160: 986382.7231 | H160: =IFERROR(INDEX('Key Assumptions'!$J$139:$J$206,MATCH(D160,'Key Assumptions'!$G$139:$G$206,0)),MIN('Key Assumptions'!$J$139:$J$206)) -> 3162 | I160: =SewerAssetlist[[#This Row],[Acquired Cost]]*(H$90/SewerAssetlist[[#This Row],[ENR CCI @ Acquired Yr]]) -> 7274448.137
B161: Sewer Lines | C161: Sewer Pipes | D161: 1978 | E161: 177612.5926 | F161: 75 | G161: 78149.5358 | H161: =IFERROR(INDEX('Key Assumptions'!$J$139:$J$206,MATCH(D161,'Key Assumptions'!$G$139:$G$206,0)),MIN('Key Assumptions'!$J$139:$J$206)) -> 3421 | I161: =SewerAssetlist[[#This Row],[Acquired Cost]]*(H$90/SewerAssetlist[[#This Row],[ENR CCI @ Acquired Yr]]) -> 548851.4228
B162: Sewer Lines | C162: Sewer Pipes | D162: 1979 | E162: 416392.8287 | F162: 75 | G162: 177660.9388 | H162: =IFERROR(INDEX('Key Assumptions'!$J$139:$J$206,MATCH(D162,'Key Assumptions'!$G$139:$G$206,0)),MIN('Key Assumptions'!$J$139:$J$206)) -> 3639 | I162: =SewerAssetlist[[#This Row],[Acquired Cost]]*(H$90/SewerAssetlist[[#This Row],[ENR CCI @ Acquired Yr]]) -> 1209637.663
B163: Sewer Lines | C163: Sewer Pipes | D163: 1980 | E163: 2606189.625 | F163: 75 | G163: 1077225.05 | H163: =IFERROR(INDEX('Key Assumptions'!$J$139:$J$206,MATCH(D163,'Key Assumptions'!$G$139:$G$206,0)),MIN('Key Assumptions'!$J$139:$J$206)) -> 4102 | I163: =SewerAssetlist[[#This Row],[Acquired Cost]]*(H$90/SewerAssetlist[[#This Row],[ENR CCI @ Acquired Yr]]) -> 6716522.445
B164: Sewer Lines | C164: Sewer Pipes | D164: 1981 | E164: 71362.8125 | F164: 75 | G164: 28545.12833 | H164: =IFERROR(INDEX('Key Assumptions'!$J$139:$J$206,MATCH(D164,'Key Assumptions'!$G$139:$G$206,0)),MIN('Key Assumptions'!$J$139:$J$206)) -> 4531 | I164: =SewerAssetlist[[#This Row],[Acquired Cost]]*(H$90/SewerAssetlist[[#This Row],[ENR CCI @ Acquired Yr]]) -> 166499.1461
B165: Sewer Lines | C165: Sewer Pipes | D165: 1983 | E165: 71468.73457 | F165: 75 | G165: 26681.66292 | H165: =IFERROR(INDEX('Key Assumptions'!$J$139:$J$206,MATCH(D165,'Key Assumptions'!$G$139:$G$206,0)),MIN('Key Assumptions'!$J$139:$J$206)) -> 5064 | I165: =SewerAssetlist[[#This Row],[Acquired Cost]]*(H$90/SewerAssetlist[[#This Row],[ENR CCI @ Acquired Yr]]) -> 149195.7701
B166: Sewer Lines | C166: Sewer Pipes | D166: 1984 | E166: 5499587.744 | F166: 75 | G166: 1979851.583 | H166: =IFERROR(INDEX('Key Assumptions'!$J$139:$J$206,MATCH(D166,'Key Assumptions'!$G$139:$G$206,0)),MIN('Key Assumptions'!$J$139:$J$206)) -> 5260 | I166: =SewerAssetlist[[#This Row],[Acquired Cost]]*(H$90/SewerAssetlist[[#This Row],[ENR CCI @ Acquired Yr]]) -> 11052957.65
B167: Sewer Lines | C167: Sewer Pipes | D167: 1985 | E167: 1896622.296 | F167: 75 | G167: 657495.7245 | H167: =IFERROR(INDEX('Key Assumptions'!$J$139:$J$206,MATCH(D167,'Key Assumptions'!$G$139:$G$206,0)),MIN('Key Assumptions'!$J$139:$J$206)) -> 5447 | I167: =SewerAssetlist[[#This Row],[Acquired Cost]]*(H$90/SewerAssetlist[[#This Row],[ENR CCI @ Acquired Yr]]) -> 3680930.276
B168: Sewer Lines | C168: Sewer Pipes | D168: 1986 | E168: 176118.1983 | F168: 75 | G168: 58706.06529 | H168: =IFERROR(INDEX('Key Assumptions'!$J$139:$J$206,MATCH(D168,'Key Assumptions'!$G$139:$G$206,0)),MIN('Key Assumptions'!$J$139:$J$206)) -> 5452 | I168: =SewerAssetlist[[#This Row],[Acquired Cost]]*(H$90/SewerAssetlist[[#This Row],[ENR CCI @ Acquired Yr]]) -> 341493.5471
B169: Sewer Lines | C169: Sewer Pipes | D169: 1987 | E169: 129929.4043 | F169: 75 | G169: 41577.41412 | H169: =IFERROR(INDEX('Key Assumptions'!$J$139:$J$206,MATCH(D169,'Key Assumptions'!$G$139:$G$206,0)),MIN('Key Assumptions'!$J$139:$J$206)) -> 5474 | I169: =SewerAssetlist[[#This Row],[Acquired Cost]]*(H$90/SewerAssetlist[[#This Row],[ENR CCI @ Acquired Yr]]) -> 250920.861
B170: Sewer Lines | C170: Sewer Pipes | D170: 1988 | E170: 32727.88117 | F170: 75 | G170: 10036.5535 | H170: =IFERROR(INDEX('Key Assumptions'!$J$139:$J$206,MATCH(D170,'Key Assumptions'!$G$139:$G$206,0)),MIN('Key Assumptions'!$J$139:$J$206)) -> 5771 | I170: =SewerAssetlist[[#This Row],[Acquired Cost]]*(H$90/SewerAssetlist[[#This Row],[ENR CCI @ Acquired Yr]]) -> 59951.621
B171: Sewer Lines | C171: Sewer Pipes | D171: 1989 | E171: 967672.2029 | F171: 75 | G171: 283850.5121 | H171: =IFERROR(INDEX('Key Assumptions'!$J$139:$J$206,MATCH(D171,'Key Assumptions'!$G$139:$G$206,0)),MIN('Key Assumptions'!$J$139:$J$206)) -> 5790 | I171: =SewerAssetlist[[#This Row],[Acquired Cost]]*(H$90/SewerAssetlist[[#This Row],[ENR CCI @ Acquired Yr]]) -> 1766785.462
B172: Sewer Lines | C172: Sewer Pipes | D172: 1990 | E172: 155257.7963 | F172: 75 | G172: 43472.1879 | H172: =IFERROR(INDEX('Key Assumptions'!$J$139:$J$206,MATCH(D172,'Key Assumptions'!$G$139:$G$206,0)),MIN('Key Assumptions'!$J$139:$J$206)) -> 5995 | I172: =SewerAssetlist[[#This Row],[Acquired Cost]]*(H$90/SewerAssetlist[[#This Row],[ENR CCI @ Acquired Yr]]) -> 273777.8729
B173: Sewer Lines | C173: Sewer Pipes | D173: 1991 | E173: 730454.3403 | F173: 75 | G173: 194787.8224 | H173: =IFERROR(INDEX('Key Assumptions'!$J$139:$J$206,MATCH(D173,'Key Assumptions'!$G$139:$G$206,0)),MIN('Key Assumptions'!$J$139:$J$206)) -> 6090 | I173: =SewerAssetlist[[#This Row],[Acquired Cost]]*(H$90/SewerAssetlist[[#This Row],[ENR CCI @ Acquired Yr]]) -> 1267972.68
B174: Sewer Lines | C174: Sewer Pipes | D174: 1992 | E174: 1176406.15 | F174: 75 | G174: 298022.8907 | H174: =IFERROR(INDEX('Key Assumptions'!$J$139:$J$206,MATCH(D174,'Key Assumptions'!$G$139:$G$206,0)),MIN('Key Assumptions'!$J$139:$J$206)) -> 6349 | I174: =SewerAssetlist[[#This Row],[Acquired Cost]]*(H$90/SewerAssetlist[[#This Row],[ENR CCI @ Acquired Yr]]) -> 1958781.862
B175: Sewer Lines | C175: Sewer Pipes | D175: 1996 | E175: 2112677.685 | F175: 75 | G175: 422535.5416 | H175: =IFERROR(INDEX('Key Assumptions'!$J$139:$J$206,MATCH(D175,'Key Assumptions'!$G$139:$G$206,0)),MIN('Key Assumptions'!$J$139:$J$206)) -> 6558 | I175: =SewerAssetlist[[#This Row],[Acquired Cost]]*(H$90/SewerAssetlist[[#This Row],[ENR CCI @ Acquired Yr]]) -> 3405618.119
B176: Sewer Lines | C176: Sewer Pipes | D176: 1997 | E176: 119641.7245 | F176: 75 | G176: 22333.12599 | H176: =IFERROR(INDEX('Key Assumptions'!$J$139:$J$206,MATCH(D176,'Key Assumptions'!$G$139:$G$206,0)),MIN('Key Assumptions'!$J$139:$J$206)) -> 6664 | I176: =SewerAssetlist[[#This Row],[Acquired Cost]]*(H$90/SewerAssetlist[[#This Row],[ENR CCI @ Acquired Yr]]) -> 189793.6993
B177: Sewer Lines | C177: Sewer Pipes | D177: 1999 | E177: 547359.213 | F177: 75 | G177: 87577.47568 | H177: =IFERROR(INDEX('Key Assumptions'!$J$139:$J$206,MATCH(D177,'Key Assumptions'!$G$139:$G$206,0)),MIN('Key Assumptions'!$J$139:$J$206)) -> 6826 | I177: =SewerAssetlist[[#This Row],[Acquired Cost]]*(H$90/SewerAssetlist[[#This Row],[ENR CCI @ Acquired Yr]]) -> 847696.2527
B178: Sewer Lines | C178: Sewer Pipes | D178: 2003 | E178: 2443014.76 | F178: 75 | G178: 260588.2403 | H178: =IFERROR(INDEX('Key Assumptions'!$J$139:$J$206,MATCH(D178,'Key Assumptions'!$G$139:$G$206,0)),MIN('Key Assumptions'!$J$139:$J$206)) -> 7532 | I178: =SewerAssetlist[[#This Row],[Acquired Cost]]*(H$90/SewerAssetlist[[#This Row],[ENR CCI @ Acquired Yr]]) -> 3428861.114
B179: Sewer Lines | C179: Sewer Pipes | D179: 2004 | E179: 367063 | F179: 75 | G179: 34259.21667 | H179: =IFERROR(INDEX('Key Assumptions'!$J$139:$J$206,MATCH(D179,'Key Assumptions'!$G$139:$G$206,0)),MIN('Key Assumptions'!$J$139:$J$206)) -> 8192 | I179: =SewerAssetlist[[#This Row],[Acquired Cost]]*(H$90/SewerAssetlist[[#This Row],[ENR CCI @ Acquired Yr]]) -> 473679.7087
B180: Sewer Lines | C180: Sewer Pipes | D180: 2005 | E180: 530973 | F180: 75 | G180: 42477.84 | H180: =IFERROR(INDEX('Key Assumptions'!$J$139:$J$206,MATCH(D180,'Key Assumptions'!$G$139:$G$206,0)),MIN('Key Assumptions'!$J$139:$J$206)) -> 8485 | I180: =SewerAssetlist[[#This Row],[Acquired Cost]]*(H$90/SewerAssetlist[[#This Row],[ENR CCI @ Acquired Yr]]) -> 661537.863
B181: Sewer Lines | C181: Sewer Pipes | D181: 2006 | E181: 3865865.966 | F181: 75 | G181: 257724.3991 | H181: =IFERROR(INDEX('Key Assumptions'!$J$139:$J$206,MATCH(D181,'Key Assumptions'!$G$139:$G$206,0)),MIN('Key Assumptions'!$J$139:$J$206)) -> 8879 | I181: =SewerAssetlist[[#This Row],[Acquired Cost]]*(H$90/SewerAssetlist[[#This Row],[ENR CCI @ Acquired Yr]]) -> 4602744.327
B182: Sewer Lines | C182: Sewer Pipes | D182: 2007 | E182: 1192950.43 | F182: 75 | G182: 63624.02147 | H182: =IFERROR(INDEX('Key Assumptions'!$J$139:$J$206,MATCH(D182,'Key Assumptions'!$G$139:$G$206,0)),MIN('Key Assumptions'!$J$139:$J$206)) -> 9182 | I182: =SewerAssetlist[[#This Row],[Acquired Cost]]*(H$90/SewerAssetlist[[#This Row],[ENR CCI @ Acquired Yr]]) -> 1373470.148
B183: Sewer Lines | C183: Sewer Pipes | D183: 2008 | E183: 0 | F183: 75 | G183: 0 | H183: =IFERROR(INDEX('Key Assumptions'!$J$139:$J$206,MATCH(D183,'Key Assumptions'!$G$139:$G$206,0)),MIN('Key Assumptions'!$J$139:$J$206)) -> 9823 | I183: =SewerAssetlist[[#This Row],[Acquired Cost]]*(H$90/SewerAssetlist[[#This Row],[ENR CCI @ Acquired Yr]]) -> 0
B184: Sewer Lines | C184: Sewer Pipes | D184: 2009 | E184: 0 | F184: 75 | G184: 0 | H184: =IFERROR(INDEX('Key Assumptions'!$J$139:$J$206,MATCH(D184,'Key Assumptions'!$G$139:$G$206,0)),MIN('Key Assumptions'!$J$139:$J$206)) -> 9764 | I184: =SewerAssetlist[[#This Row],[Acquired Cost]]*(H$90/SewerAssetlist[[#This Row],[ENR CCI @ Acquired Yr]]) -> 0
B185: Sewer Lines | C185: Sewer Pipes | D185: 2010 | E185: 50302.13 | F185: 75 | G185: 0 | H185: =IFERROR(INDEX('Key Assumptions'!$J$139:$J$206,MATCH(D185,'Key Assumptions'!$G$139:$G$206,0)),MIN('Key Assumptions'!$J$139:$J$206)) -> 10004 | I185: =SewerAssetlist[[#This Row],[Acquired Cost]]*(H$90/SewerAssetlist[[#This Row],[ENR CCI @ Acquired Yr]]) -> 53155.32858
B186: Closed Circuit Sewer Insp. System | C186: General Equipment | D186: 1990 | E186: 67216 | F186: 10 | G186: 67216 | H186: =IFERROR(INDEX('Key Assumptions'!$J$139:$J$206,MATCH(D186,'Key Assumptions'!$G$139:$G$206,0)),MIN('Key Assumptions'!$J$139:$J$206)) -> 5995 | I186: =SewerAssetlist[[#This Row],[Acquired Cost]]*(H$90/SewerAssetlist[[#This Row],[ENR CCI @ Acquired Yr]]) -> 118527.0817
B187: Gorman Rupp Trailer w/Diesel Pump | C187: General Equipment | D187: 1990 | E187: 13886 | F187: 10 | G187: 13886 | H187: =IFERROR(INDEX('Key Assumptions'!$J$139:$J$206,MATCH(D187,'Key Assumptions'!$G$139:$G$206,0)),MIN('Key Assumptions'!$J$139:$J$206)) -> 5995 | I187: =SewerAssetlist[[#This Row],[Acquired Cost]]*(H$90/SewerAssetlist[[#This Row],[ENR CCI @ Acquired Yr]]) -> 24486.23924
B188: Self-Propelled Camera/Transporter | C188: General Equipment | D188: 1990 | E188: 8044 | F188: 10 | G188: 8044 | H188: =IFERROR(INDEX('Key Assumptions'!$J$139:$J$206,MATCH(D188,'Key Assumptions'!$G$139:$G$206,0)),MIN('Key Assumptions'!$J$139:$J$206)) -> 5995 | I188: =SewerAssetlist[[#This Row],[Acquired Cost]]*(H$90/SewerAssetlist[[#This Row],[ENR CCI @ Acquired Yr]]) -> 14184.5966
B189: 1- 2 Axle Trailer | C189: General Equipment | D189: 1991 | E189: 6261 | F189: 10 | G189: 6261 | H189: =IFERROR(INDEX('Key Assumptions'!$J$139:$J$206,MATCH(D189,'Key Assumptions'!$G$139:$G$206,0)),MIN('Key Assumptions'!$J$139:$J$206)) -> 6090 | I189: =SewerAssetlist[[#This Row],[Acquired Cost]]*(H$90/SewerAssetlist[[#This Row],[ENR CCI @ Acquired Yr]]) -> 10868.27268
B190: Self-Propelled Camera/Transporter | C190: General Equipment | D190: 1991 | E190: 7969 | F190: 10 | G190: 7969 | H190: =IFERROR(INDEX('Key Assumptions'!$J$139:$J$206,MATCH(D190,'Key Assumptions'!$G$139:$G$206,0)),MIN('Key Assumptions'!$J$139:$J$206)) -> 6090 | I190: =SewerAssetlist[[#This Row],[Acquired Cost]]*(H$90/SewerAssetlist[[#This Row],[ENR CCI @ Acquired Yr]]) -> 13833.13608
B191: Air Compressor | C191: General Equipment | D191: 1995 | E191: 6914.85 | F191: 10 | G191: 6915 | H191: =IFERROR(INDEX('Key Assumptions'!$J$139:$J$206,MATCH(D191,'Key Assumptions'!$G$139:$G$206,0)),MIN('Key Assumptions'!$J$139:$J$206)) -> 6526 | I191: =SewerAssetlist[[#This Row],[Acquired Cost]]*(H$90/SewerAssetlist[[#This Row],[ENR CCI @ Acquired Yr]]) -> 11201.3356
B192: Forklift, serial #540833, tag#2175 | C192: General Equipment | D192: 1995 | E192: 10000 | F192: 10 | G192: 10000 | H192: =IFERROR(INDEX('Key Assumptions'!$J$139:$J$206,MATCH(D192,'Key Assumptions'!$G$139:$G$206,0)),MIN('Key Assumptions'!$J$139:$J$206)) -> 6526 | I192: =SewerAssetlist[[#This Row],[Acquired Cost]]*(H$90/SewerAssetlist[[#This Row],[ENR CCI @ Acquired Yr]]) -> 16198.95673
B193: Forklift, serial #A571004/4902688, tag#2174 | C193: General Equipment | D193: 1995 | E193: 10000 | F193: 10 | G193: 10000 | H193: =IFERROR(INDEX('Key Assumptions'!$J$139:$J$206,MATCH(D193,'Key Assumptions'!$G$139:$G$206,0)),MIN('Key Assumptions'!$J$139:$J$206)) -> 6526 | I193: =SewerAssetlist[[#This Row],[Acquired Cost]]*(H$90/SewerAssetlist[[#This Row],[ENR CCI @ Acquired Yr]]) -> 16198.95673
B194: Cornell Pump | C194: General Equipment | D194: 1996 | E194: 6461.77 | F194: 10 | G194: 6461.77 | H194: =IFERROR(INDEX('Key Assumptions'!$J$139:$J$206,MATCH(D194,'Key Assumptions'!$G$139:$G$206,0)),MIN('Key Assumptions'!$J$139:$J$206)) -> 6558 | I194: =SewerAssetlist[[#This Row],[Acquired Cost]]*(H$90/SewerAssetlist[[#This Row],[ENR CCI @ Acquired Yr]]) -> 10416.31724
B195: Stationary Refrigerated Samplers | C195: General Equipment | D195: 1996 | E195: 12129.96 | F195: 10 | G195: 12129.96 | H195: =IFERROR(INDEX('Key Assumptions'!$J$139:$J$206,MATCH(D195,'Key Assumptions'!$G$139:$G$206,0)),MIN('Key Assumptions'!$J$139:$J$206)) -> 6558 | I195: =SewerAssetlist[[#This Row],[Acquired Cost]]*(H$90/SewerAssetlist[[#This Row],[ENR CCI @ Acquired Yr]]) -> 19553.39039
B196: Fiberglass Refrigerator | C196: General Equipment | D196: 1997 | E196: 9724 | F196: 10 | G196: 9720 | H196: =IFERROR(INDEX('Key Assumptions'!$J$139:$J$206,MATCH(D196,'Key Assumptions'!$G$139:$G$206,0)),MIN('Key Assumptions'!$J$139:$J$206)) -> 6664 | I196: =SewerAssetlist[[#This Row],[Acquired Cost]]*(H$90/SewerAssetlist[[#This Row],[ENR CCI @ Acquired Yr]]) -> 15425.67143
B197: Screw w/Polyurethane | C197: General Equipment | D197: 1998 | E197: 14387 | F197: 10 | G197: 14387 | H197: =IFERROR(INDEX('Key Assumptions'!$J$139:$J$206,MATCH(D197,'Key Assumptions'!$G$139:$G$206,0)),MIN('Key Assumptions'!$J$139:$J$206)) -> 6852 | I197: =SewerAssetlist[[#This Row],[Acquired Cost]]*(H$90/SewerAssetlist[[#This Row],[ENR CCI @ Acquired Yr]]) -> 22196.62803
B198: Electric Cart | C198: General Equipment | D198: 1999 | E198: 6276 | F198: 10 | G198: 6276 | H198: =IFERROR(INDEX('Key Assumptions'!$J$139:$J$206,MATCH(D198,'Key Assumptions'!$G$139:$G$206,0)),MIN('Key Assumptions'!$J$139:$J$206)) -> 6826 | I198: =SewerAssetlist[[#This Row],[Acquired Cost]]*(H$90/SewerAssetlist[[#This Row],[ENR CCI @ Acquired Yr]]) -> 9719.653119
B199: Trailer Mounted Sewage/Trash pump | C199: General Equipment | D199: 2001 | E199: 29115 | F199: 10 | G199: 29115 | H199: =IFERROR(INDEX('Key Assumptions'!$J$139:$J$206,MATCH(D199,'Key Assumptions'!$G$139:$G$206,0)),MIN('Key Assumptions'!$J$139:$J$206)) -> 7227 | I199: =SewerAssetlist[[#This Row],[Acquired Cost]]*(H$90/SewerAssetlist[[#This Row],[ENR CCI @ Acquired Yr]]) -> 42588.55006
B200: Carrymaster Electric Cart | C200: General Equipment | D200: 2002 | E200: 5800.03 | F200: 10 | G200: 5220.025 | H200: =IFERROR(INDEX('Key Assumptions'!$J$139:$J$206,MATCH(D200,'Key Assumptions'!$G$139:$G$206,0)),MIN('Key Assumptions'!$J$139:$J$206)) -> 7403 | I200: =SewerAssetlist[[#This Row],[Acquired Cost]]*(H$90/SewerAssetlist[[#This Row],[ENR CCI @ Acquired Yr]]) -> 8282.407712
B201: Sterilizer/Autoclave | C201: General Equipment | D201: 2002 | E201: 9168.72 | F201: 10 | G201: 8251.84 | H201: =IFERROR(INDEX('Key Assumptions'!$J$139:$J$206,MATCH(D201,'Key Assumptions'!$G$139:$G$206,0)),MIN('Key Assumptions'!$J$139:$J$206)) -> 7403 | I201: =SewerAssetlist[[#This Row],[Acquired Cost]]*(H$90/SewerAssetlist[[#This Row],[ENR CCI @ Acquired Yr]]) -> 13092.87663
B202: Video Insp. Eq. Sanitary Swr & Storm Dr | C202: General Equipment | D202: 2002 | E202: 149915 | F202: 10 | G202: 134923.5 | H202: =IFERROR(INDEX('Key Assumptions'!$J$139:$J$206,MATCH(D202,'Key Assumptions'!$G$139:$G$206,0)),MIN('Key Assumptions'!$J$139:$J$206)) -> 7403 | I202: =SewerAssetlist[[#This Row],[Acquired Cost]]*(H$90/SewerAssetlist[[#This Row],[ENR CCI @ Acquired Yr]]) -> 214077.712
B203: Commercial Water Softener | C203: General Equipment | D203: 2003 | E203: 11068.6 | F203: 10 | G203: 9132.02 | H203: =IFERROR(INDEX('Key Assumptions'!$J$139:$J$206,MATCH(D203,'Key Assumptions'!$G$139:$G$206,0)),MIN('Key Assumptions'!$J$139:$J$206)) -> 7532 | I203: =SewerAssetlist[[#This Row],[Acquired Cost]]*(H$90/SewerAssetlist[[#This Row],[ENR CCI @ Acquired Yr]]) -> 15535.1874
B204: Genset | C204: General Equipment | D204: 2004 | E204: 36230.11 | F204: 10 | G204: 25361.073 | H204: =IFERROR(INDEX('Key Assumptions'!$J$139:$J$206,MATCH(D204,'Key Assumptions'!$G$139:$G$206,0)),MIN('Key Assumptions'!$J$139:$J$206)) -> 8192 | I204: =SewerAssetlist[[#This Row],[Acquired Cost]]*(H$90/SewerAssetlist[[#This Row],[ENR CCI @ Acquired Yr]]) -> 46753.46726
B205: Tractor 6WD/W/Video Inspection Equip | C205: General Equipment | D205: 2005 | E205: 17345.66 | F205: 5 | G205: 17345.65233 | H205: =IFERROR(INDEX('Key Assumptions'!$J$139:$J$206,MATCH(D205,'Key Assumptions'!$G$139:$G$206,0)),MIN('Key Assumptions'!$J$139:$J$206)) -> 8485 | I205: =SewerAssetlist[[#This Row],[Acquired Cost]]*(H$90/SewerAssetlist[[#This Row],[ENR CCI @ Acquired Yr]]) -> 21610.91213
... 281 more rows

Sheet S Rev
A1: =client -> City of San Clemente | I1: =Model -> Financial Plan & COS Model
A2: Current Sewer Rate Structure | I2: =rfc_budyear -> 2012
B3: Source: | C3: San Clemente, California, Code of Ordinances >> Title 13 - PUBLIC SERVICES >> Chapter 13.24 - SEWER SERVICE SYSTEM >> Article IV. - Sewer Service Charges >>
C4: Sewer Rate History.xls sent by Tom Rendina 10/6/11 email
D5: METER SIZE MONTHLY FIXED FEE
D6: Effective Date | E6: 2008-07-01 | F6: 2009-09-01 | G6: 2010-09-01 | H6: 2011-08-01
D7: Effective Months | E7: =INDEX('Key Assumptions'!$H$50:$H$61,MATCH(MONTH(E6),'Key Assumptions'!$F$50:$F$61,0)) -> 12 | F7: =INDEX('Key Assumptions'!$H$50:$H$61,MATCH(MONTH(F6),'Key Assumptions'!$F$50:$F$61,0)) -> 10 | G7: =INDEX('Key Assumptions'!$H$50:$H$61,MATCH(MONTH(G6),'Key Assumptions'!$F$50:$F$61,0)) -> 10 | H7: =INDEX('Key Assumptions'!$H$50:$H$61,MATCH(MONTH(H6),'Key Assumptions'!$F$50:$F$61,0)) -> 11
C8: Meter Size | D8: Current Meter Ratios | E8: =F8-1 -> 2009 | F8: =G8-1 -> 2010 | G8: =H8-1 -> 2011 | H8: =rfc_budyear -> 2012
C9: ⅝ in. | D9: =H9/$H$9 -> 1 | E9: 18.3 | F9: 19.01 | G9: 19.62 | H9: 20.8
C10: ¾ in. | D10: 1 | E10: 18.3 | F10: 19.01 | G10: 19.62 | H10: 20.8
C11: 1 in. | D11: 1 | E11: 18.3 | F11: 19.01 | G11: 19.62 | H11: 20.8
C12: 1½ in. | D12: 3.298557692 | E12: 35.83 | F12: 49.98 | G12: 64.73 | H12: 68.61
C13: 2 in. | D13: 5.297596154 | E13: 57.54 | F13: 80.25 | G13: 103.95 | H13: 110.19
C14: 2½ in. | D14: 10.99567308 | E14: 110.56 | F14: 161.97 | G14: 215.76 | H14: 228.71
C15: 3 in. | D15: 10.99567308 | E15: 177.24 | F15: 219.05 | G15: 215.76 | H15: 228.71
C16: 4 in. | D16: 16.99278846 | E16: 225.5 | F16: 278.69 | G16: 333.44 | H16: 353.45
C17: 5 in. | D17: 25.13942308 | E17: 289.97 | F17: 397.79 | G17: 493.3 | H17: 522.9
C18: 6 in. | D18: 33.28557692 | E18: 385.81 | F18: 516.88 | G18: 653.15 | H18: 692.34
B20: Commodity Charges | E20: =E8 -> 2009 | F20: =F8 -> 2010 | G20: =G8 -> 2011 | H20: 2012 | I20: Current Return Factors | J20: × Portion Total Water Used
D21: Single-family residential* | E21: 1.28 | F21: 1.25 | G21: 1.2 | H21: 1.27 | I21: 0.9 | J21: =TEXT(I21,"#%")&" in WMA*" -> 90% in WMA*
D22: Multi-family residential/Mobile Home | E22: 1.28 | F22: 1.25 | G22: 1.2 | H22: 1.27 | I22: 0.9 | J22: =TEXT(I22,"#%")&" during billing period" -> 90% during billing period
D23: Low strength commercial/Schools/Religious Institutions | E23: 1.19 | F23: 1.41 | G23: 1.63 | H23: 1.73 | I23: 0.9 | J23: =TEXT(I23,"#%")&" during billing period" -> 90% during billing period | M23: ='Key Assumptions'!I91 -> 149 | N23: BOD mg / L | O23: ='Key Assumptions'!J91 -> 149 | P23: TSS mg/L
D24: Medium strength commercial | E24: 1.55 | F24: 1.83 | G24: 2.13 | H24: 2.26 | I24: 0.9 | J24: 90% during billing period | M24: ='Key Assumptions'!I92 -> 290 | N24: BOD mg / L | O24: ='Key Assumptions'!J92 -> 290 | P24: TSS mg/L
D25: Commercial/residential | E25: 1.58 | F25: 1.86 | G25: 2.16 | H25: 2.29 | I25: 0.9 | J25: 90% during billing period | M25: ='Key Assumptions'!I93 -> 290 | N25: BOD mg / L | O25: ='Key Assumptions'!J93 -> 290 | P25: TSS mg/L
D26: Medium high strength commercial | E26: 2.75 | F26: 3.25 | G26: 3.77 | H26: 4 | I26: 0.9 | J26: 90% during billing period | M26: ='Key Assumptions'!I94 -> 500 | N26: BOD mg / L | O26: ='Key Assumptions'!J94 -> 500 | P26: TSS mg/L
D27: High strength commercial | E27: 3.84 | F27: 4.54 | G27: 5.25 | H27: 5.57 | I27: 0.9 | J27: 90% during billing period | M27: ='Key Assumptions'!I95 -> 900 | N27: BOD mg / L | O27: ='Key Assumptions'!J95 -> 900 | P27: TSS mg/L
C29: * The sewer commodity rate for single-family dwellings shall be annually calculated by multiplying the per unit rate times ninety (90) percent of Winter Month Average (WMA). For the purposes of this section, winter months shall be defined as January, February, March and April. The WMA shall be calculated using the total consumption for a service location during the prior fiscal year's winter months divided by the number of winter months in which there was water consumption. If the winter average results in a fraction, the result shall be rounded down to the next whole number. If there was no winter month in the previous fiscal year in which water was actually consumed, the sewer commodity rate shall be based on a City average during the winter months and shall be annually calculated during the winter averaging process.
A39: =client -> City of San Clemente | I39: =Model -> Financial Plan & COS Model
A40: Account & Consumption Summary | I40: =rfc_budyear -> 2012
G42: Assumed Escalators | H42: =H51 -> 2012 | I42: 2013 | J42: 2014 | K42: 2015 | L42: 2016 | M42: 2017
G43: ='Key Assumptions'!G18 -> Account Growth
G44: ='Key Assumptions'!G19 -> Residential | H44: ='Key Assumptions'!H19 -> 0 | I44: ='Key Assumptions'!I19 -> 0 | J44: ='Key Assumptions'!J19 -> 0 | K44: ='Key Assumptions'!K19 -> 0 | L44: ='Key Assumptions'!L19 -> 0 | M44: ='Key Assumptions'!M19 -> 0
G45: ='Key Assumptions'!G20 -> Non-Residential | H45: ='Key Assumptions'!H20 -> 0 | I45: ='Key Assumptions'!I20 -> 0 | J45: ='Key Assumptions'!J20 -> 0 | K45: ='Key Assumptions'!K20 -> 0 | L45: ='Key Assumptions'!L20 -> 0 | M45: ='Key Assumptions'!M20 -> 0
G46: ='Key Assumptions'!G21 -> Demand Factor
G47: ='W DB'!G8 -> Residential | H47: 1.03 | I47: ='W DB'!I8 -> 1 | J47: ='W DB'!J8 -> 1 | K47: ='W DB'!K8 -> 1 | L47: ='W DB'!L8 -> 1 | M47: ='W DB'!M8 -> 1
G48: ='W DB'!G9 -> Non-Residential | H48: 1.03 | I48: ='W DB'!I9 -> 1 | J48: ='W DB'!J9 -> 1 | K48: ='W DB'!K9 -> 1 | L48: ='W DB'!L9 -> 1 | M48: ='W DB'!M9 -> 1
N49: =MATCH(N51,F51:M51,0) -> 4
B50: Source: | C50: Summary from consumption data sent by Tom Rendina
F51: =G51-1 -> 2010 | G51: =H51-1 -> 2011 | H51: =rfc_budyear -> 2012 | I51: =H51+1 -> 2013 | J51: =I51+1 -> 2014 | K51: 2015 | L51: 2016 | M51: =L51+1 -> 2017 | N51: =rfc_testyear -> 2013
B52: Customer Class / Meter Size | F52: =IF(F51=rfc_budyear,"Budgeted",IF(F51<=rfc_budyear-2,"Actual",IF(F51=rfc_budyear-1,"Estimated","Projected"))) -> Actual | G52: Estimated | H52: Budgeted | I52: Projected | J52: Projected | K52: Projected | L52: Projected | M52: Projected | N52: Test Year
E53: =D21 -> Single-family residential*
E54: =C$9 -> ⅝ in. | H54: =ROUND(G54*(1+H$44),0) -> 0 | I54: =ROUND(H54*(1+I$44),0) -> 0 | J54: 0 | K54: 0 | L54: 0 | M54: 0 | N54: =INDEX(F54:M54,$N$49) -> 0
E55: =C$10 -> ¾ in. | H55: =ROUND(G55*(1+H$44),0) -> 0 | I55: 0 | J55: 0 | K55: 0 | L55: 0 | M55: 0 | N55: =INDEX(F55:M55,$N$49) -> 0
E56: =C$11 -> 1 in. | F56: 11577 | G56: 11577 | H56: 11577 | I56: 11577 | J56: 11577 | K56: 11577 | L56: 11577 | M56: 11577 | N56: 11577
E57: =C$12 -> 1½ in. | F57: 26 | G57: 26 | H57: 26 | I57: 26 | J57: 26 | K57: 26 | L57: 26 | M57: 26 | N57: 26
E58: =C$13 -> 2 in. | F58: 12 | G58: 12 | H58: 12 | I58: 12 | J58: 12 | K58: 12 | L58: 12 | M58: 12 | N58: 12
E59: =C$14 -> 2½ in. | H59: 0 | I59: 0 | J59: 0 | K59: 0 | L59: 0 | M59: 0 | N59: 0
E60: =C$15 -> 3 in. | H60: 0 | I60: 0 | J60: 0 | K60: 0 | L60: 0 | M60: 0 | N60: 0
E61: =C$16 -> 4 in. | H61: 0 | I61: 0 | J61: 0 | K61: 0 | L61: 0 | M61: 0 | N61: 0
E62: =C$17 -> 5 in. | H62: 0 | I62: 0 | J62: 0 | K62: 0 | L62: 0 | M62: 0 | N62: 0
E63: =C$18 -> 6 in. | H63: 0 | I63: 0 | J63: 0 | K63: 0 | L63: 0 | M63: 0 | N63: 0
E64: ="Subtotal "&E53 -> Subtotal Single-family residential* | F64: =SUM(F54:F63) -> 11615 | G64: =SUM(G54:G63) -> 11615 | H64: =SUM(H54:H63) -> 11615 | I64: =SUM(I54:I63) -> 11615 | J64: =SUM(J54:J63) -> 11615 | K64: =SUM(K54:K63) -> 11615 | L64: =SUM(L54:L63) -> 11615 | M64: =SUM(M54:M63) -> 11615 | N64: =SUM(N54:N63) -> 11615
E66: =D22 -> Multi-family residential/Mobile Home
E67: =C$9 -> ⅝ in. | H67: =ROUND(G67*(1+H$44),0) -> 0 | I67: 0 | J67: 0 | K67: 0 | L67: 0 | M67: 0 | N67: =INDEX(F67:M67,$N$49) -> 0
E68: =C$10 -> ¾ in. | H68: =ROUND(G68*(1+H$44),0) -> 0 | I68: 0 | J68: 0 | K68: 0 | L68: 0 | M68: 0 | N68: =INDEX(F68:M68,$N$49) -> 0
E69: =C$11 -> 1 in. | F69: 3022 | G69: 3131 | H69: =ROUND(G69*(1+H$44),0) -> 3131 | I69: 3131 | J69: 3131 | K69: 3131 | L69: 3131 | M69: 3131 | N69: 3131
E70: =C$12 -> 1½ in. | F70: 129 | G70: 134 | H70: =ROUND(G70*(1+H$44),0) -> 134 | I70: 134 | J70: 134 | K70: 134 | L70: 134 | M70: 134 | N70: 134
E71: =C$13 -> 2 in. | F71: 142 | G71: 146 | H71: =ROUND(G71*(1+H$44),0) -> 146 | I71: 146 | J71: 146 | K71: 146 | L71: 146 | M71: 146 | N71: 146
E72: =C$14 -> 2½ in. | H72: =ROUND(G72*(1+H$44),0) -> 0 | I72: 0 | J72: 0 | K72: 0 | L72: 0 | M72: 0 | N72: 0
E73: =C$15 -> 3 in. | F73: 1 | G73: 1 | H73: =ROUND(G73*(1+H$44),0) -> 1 | I73: 1 | J73: 1 | K73: 1 | L73: 1 | M73: 1 | N73: 1
E74: =C$16 -> 4 in. | F74: 4 | G74: 4 | H74: =ROUND(G74*(1+H$44),0) -> 4 | I74: 4 | J74: 4 | K74: 4 | L74: 4 | M74: 4 | N74: 4
E75: =C$17 -> 5 in. | H75: =ROUND(G75*(1+H$44),0) -> 0 | I75: 0 | J75: 0 | K75: 0 | L75: 0 | M75: 0 | N75: 0
E76: =C$18 -> 6 in. | F76: 4 | G76: 4 | H76: =ROUND(G76*(1+H$44),0) -> 4 | I76: 4 | J76: 4 | K76: 4 | L76: 4 | M76: 4 | N76: 4
E77: ="Subtotal "&E66 -> Subtotal Multi-family residential/Mobile Home | F77: =SUM(F67:F76) -> 3302 | G77: =SUM(G67:G76) -> 3420 | H77: =SUM(H67:H76) -> 3420 | I77: =SUM(I67:I76) -> 3420 | J77: =SUM(J67:J76) -> 3420 | K77: =SUM(K67:K76) -> 3420 | L77: =SUM(L67:L76) -> 3420 | M77: =SUM(M67:M76) -> 3420 | N77: =SUM(N67:N76) -> 3420
E79: =D23 -> Low strength commercial/Schools/Religious Institutions
E80: =C$9 -> ⅝ in. | H80: =ROUND(G80*(1+H$45),0) -> 0 | I80: =ROUND(H80*(1+I$45),0) -> 0 | J80: 0 | K80: 0 | L80: 0 | M80: 0 | N80: =INDEX(F80:M80,$N$49) -> 0
E81: =C$10 -> ¾ in. | H81: =ROUND(G81*(1+H$45),0) -> 0 | I81: 0 | J81: 0 | K81: 0 | L81: 0 | M81: 0 | N81: =INDEX(F81:M81,$N$49) -> 0
E82: =C$11 -> 1 in. | F82: 292 | G82: 299 | H82: 299 | I82: 299 | J82: 299 | K82: 299 | L82: 299 | M82: 299 | N82: 299
E83: =C$12 -> 1½ in. | F83: 51 | G83: 57 | H83: 57 | I83: 57 | J83: 57 | K83: 57 | L83: 57 | M83: 57 | N83: 57
E84: =C$13 -> 2 in. | F84: 132 | G84: 140 | H84: 140 | I84: 140 | J84: 140 | K84: 140 | L84: 140 | M84: 140 | N84: 140
E85: =C$14 -> 2½ in. | H85: 0 | I85: 0 | J85: 0 | K85: 0 | L85: 0 | M85: 0 | N85: 0
E86: =C$15 -> 3 in. | F86: 8 | G86: 10 | H86: 10 | I86: 10 | J86: 10 | K86: 10 | L86: 10 | M86: 10 | N86: 10
E87: =C$16 -> 4 in. | F87: 4 | G87: 4 | H87: 4 | I87: 4 | J87: 4 | K87: 4 | L87: 4 | M87: 4 | N87: 4
E88: =C$17 -> 5 in. | H88: 0 | I88: 0 | J88: 0 | K88: 0 | L88: 0 | M88: 0 | N88: 0
E89: =C$18 -> 6 in. | F89: 3 | G89: 3 | H89: 3 | I89: 3 | J89: 3 | K89: 3 | L89: 3 | M89: 3 | N89: 3
E90: ="Subtotal "&E79 -> Subtotal Low strength commercial/Schools/Religious Institutions | F90: =SUM(F80:F89) -> 490 | G90: =SUM(G80:G89) -> 513 | H90: =SUM(H80:H89) -> 513 | I90: =SUM(I80:I89) -> 513 | J90: =SUM(J80:J89) -> 513 | K90: =SUM(K80:K89) -> 513 | L90: =SUM(L80:L89) -> 513 | M90: =SUM(M80:M89) -> 513 | N90: =SUM(N80:N89) -> 513
E92: =D24 -> Medium strength commercial
E93: =C$9 -> ⅝ in. | H93: =ROUND(G93*(1+H$45),0) -> 0 | I93: 0 | J93: 0 | K93: 0 | L93: 0 | M93: 0 | N93: =INDEX(F93:M93,$N$49) -> 0
E94: =C$10 -> ¾ in. | H94: =ROUND(G94*(1+H$45),0) -> 0 | I94: 0 | J94: 0 | K94: 0 | L94: 0 | M94: 0 | N94: =INDEX(F94:M94,$N$49) -> 0
E95: =C$11 -> 1 in. | F95: 101 | G95: 102 | H95: =ROUND(G95*(1+H$45),0) -> 102 | I95: 102 | J95: 102 | K95: 102 | L95: 102 | M95: 102 | N95: 102
E96: =C$12 -> 1½ in. | F96: 24 | G96: 24 | H96: =ROUND(G96*(1+H$45),0) -> 24 | I96: 24 | J96: 24 | K96: 24 | L96: 24 | M96: 24 | N96: 24
E97: =C$13 -> 2 in. | F97: 56 | G97: 59 | H97: =ROUND(G97*(1+H$45),0) -> 59 | I97: 59 | J97: 59 | K97: 59 | L97: 59 | M97: 59 | N97: 59
E98: =C$14 -> 2½ in. | H98: =ROUND(G98*(1+H$45),0) -> 0 | I98: 0 | J98: 0 | K98: 0 | L98: 0 | M98: 0 | N98: 0
E99: =C$15 -> 3 in. | F99: 2 | G99: 2 | H99: =ROUND(G99*(1+H$45),0) -> 2 | I99: 2 | J99: 2 | K99: 2 | L99: 2 | M99: 2 | N99: 2
E100: =C$16 -> 4 in. | F100: 2 | G100: 2 | H100: =ROUND(G100*(1+H$45),0) -> 2 | I100: 2 | J100: 2 | K100: 2 | L100: 2 | M100: 2 | N100: 2
E101: =C$17 -> 5 in. | H101: =ROUND(G101*(1+H$45),0) -> 0 | I101: 0 | J101: 0 | K101: 0 | L101: 0 | M101: 0 | N101: 0
E102: =C$18 -> 6 in. | H102: =ROUND(G102*(1+H$45),0) -> 0 | I102: 0 | J102: 0 | K102: 0 | L102: 0 | M102: 0 | N102: 0
E103: ="Subtotal "&E92 -> Subtotal Medium strength commercial | F103: =SUM(F93:F102) -> 185 | G103: =SUM(G93:G102) -> 189 | H103: =SUM(H93:H102) -> 189 | I103: =SUM(I93:I102) -> 189 | J103: =SUM(J93:J102) -> 189 | K103: =SUM(K93:K102) -> 189 | L103: =SUM(L93:L102) -> 189 | M103: =SUM(M93:M102) -> 189 | N103: =SUM(N93:N102) -> 189
E105: =D25 -> Commercial/residential
E106: =C$9 -> ⅝ in. | H106: =ROUND(G106*(1+H$45),0) -> 0 | I106: 0 | J106: 0 | K106: 0 | L106: 0 | M106: 0 | N106: =INDEX(F106:M106,$N$49) -> 0
E107: =C$10 -> ¾ in. | H107: =ROUND(G107*(1+H$45),0) -> 0 | I107: 0 | J107: 0 | K107: 0 | L107: 0 | M107: 0 | N107: =INDEX(F107:M107,$N$49) -> 0
E108: =C$11 -> 1 in. | F108: 3 | G108: 4 | H108: =ROUND(G108*(1+H$45),0) -> 4 | I108: 4 | J108: 4 | K108: 4 | L108: 4 | M108: 4 | N108: 4
E109: =C$12 -> 1½ in. | H109: =ROUND(G109*(1+H$45),0) -> 0 | I109: 0 | J109: 0 | K109: 0 | L109: 0 | M109: 0 | N109: 0
E110: =C$13 -> 2 in. | F110: 3 | G110: 3 | H110: =ROUND(G110*(1+H$45),0) -> 3 | I110: 3 | J110: 3 | K110: 3 | L110: 3 | M110: 3 | N110: 3
E111: =C$14 -> 2½ in. | H111: =ROUND(G111*(1+H$45),0) -> 0 | I111: 0 | J111: 0 | K111: 0 | L111: 0 | M111: 0 | N111: 0
E112: =C$15 -> 3 in. | H112: =ROUND(G112*(1+H$45),0) -> 0 | I112: 0 | J112: 0 | K112: 0 | L112: 0 | M112: 0 | N112: 0
E113: =C$16 -> 4 in. | H113: =ROUND(G113*(1+H$45),0) -> 0 | I113: 0 | J113: 0 | K113: 0 | L113: 0 | M113: 0 | N113: 0
E114: =C$17 -> 5 in. | H114: =ROUND(G114*(1+H$45),0) -> 0 | I114: 0 | J114: 0 | K114: 0 | L114: 0 | M114: 0 | N114: 0
E115: =C$18 -> 6 in. | H115: =ROUND(G115*(1+H$45),0) -> 0 | I115: 0 | J115: 0 | K115: 0 | L115: 0 | M115: 0 | N115: 0
E116: ="Subtotal "&E105 -> Subtotal Commercial/residential | F116: =SUM(F106:F115) -> 6 | G116: =SUM(G106:G115) -> 7 | H116: =SUM(H106:H115) -> 7 | I116: =SUM(I106:I115) -> 7 | J116: =SUM(J106:J115) -> 7 | K116: =SUM(K106:K115) -> 7 | L116: =SUM(L106:L115) -> 7 | M116: =SUM(M106:M115) -> 7 | N116: =SUM(N106:N115) -> 7
E118: =D26 -> Medium high strength commercial
E119: =C$9 -> ⅝ in. | H119: =ROUND(G119*(1+H$45),0) -> 0 | I119: 0 | J119: 0 | K119: 0 | L119: 0 | M119: 0 | N119: =INDEX(F119:M119,$N$49) -> 0
E120: =C$10 -> ¾ in. | H120: =ROUND(G120*(1+H$45),0) -> 0 | I120: 0 | J120: 0 | K120: 0 | L120: 0 | M120: 0 | N120: =INDEX(F120:M120,$N$49) -> 0
E121: =C$11 -> 1 in. | F121: 8 | G121: 8 | H121: =ROUND(G121*(1+H$45),0) -> 8 | I121: 8 | J121: 8 | K121: 8 | L121: 8 | M121: 8 | N121: 8
E122: =C$12 -> 1½ in. | H122: =ROUND(G122*(1+H$45),0) -> 0 | I122: 0 | J122: 0 | K122: 0 | L122: 0 | M122: 0 | N122: 0
E123: =C$13 -> 2 in. | F123: 2 | G123: 2 | H123: =ROUND(G123*(1+H$45),0) -> 2 | I123: 2 | J123: 2 | K123: 2 | L123: 2 | M123: 2 | N123: 2
E124: =C$14 -> 2½ in. | H124: =ROUND(G124*(1+H$45),0) -> 0 | I124: 0 | J124: 0 | K124: 0 | L124: 0 | M124: 0 | N124: 0
E125: =C$15 -> 3 in. | F125: 1 | G125: 1 | H125: =ROUND(G125*(1+H$45),0) -> 1 | I125: 1 | J125: 1 | K125: 1 | L125: 1 | M125: 1 | N125: 1
E126: =C$16 -> 4 in. | H126: =ROUND(G126*(1+H$45),0) -> 0 | I126: 0 | J126: 0 | K126: 0 | L126: 0 | M126: 0 | N126: 0
E127: =C$17 -> 5 in. | H127: =ROUND(G127*(1+H$45),0) -> 0 | I127: 0 | J127: 0 | K127: 0 | L127: 0 | M127: 0 | N127: 0
E128: =C$18 -> 6 in. | H128: =ROUND(G128*(1+H$45),0) -> 0 | I128: 0 | J128: 0 | K128: 0 | L128: 0 | M128: 0 | N128: 0
E129: ="Subtotal "&E118 -> Subtotal Medium high strength commercial | F129: =SUM(F119:F128) -> 11 | G129: =SUM(G119:G128) -> 11 | H129: =SUM(H119:H128) -> 11 | I129: =SUM(I119:I128) -> 11 | J129: =SUM(J119:J128) -> 11 | K129: =SUM(K119:K128) -> 11 | L129: =SUM(L119:L128) -> 11 | M129: =SUM(M119:M128) -> 11 | N129: =SUM(N119:N128) -> 11
E131: =D27 -> High strength commercial
E132: =C$9 -> ⅝ in. | H132: =ROUND(G132*(1+H$45),0) -> 0 | I132: 0 | J132: 0 | K132: 0 | L132: 0 | M132: 0 | N132: =INDEX(F132:M132,$N$49) -> 0
E133: =C$10 -> ¾ in. | H133: =ROUND(G133*(1+H$45),0) -> 0 | I133: 0 | J133: 0 | K133: 0 | L133: 0 | M133: 0 | N133: =INDEX(F133:M133,$N$49) -> 0
E134: =C$11 -> 1 in. | F134: 52 | G134: 55 | H134: =ROUND(G134*(1+H$45),0) -> 55 | I134: 55 | J134: 55 | K134: 55 | L134: 55 | M134: 55 | N134: 55
E135: =C$12 -> 1½ in. | F135: 14 | G135: 14 | H135: =ROUND(G135*(1+H$45),0) -> 14 | I135: 14 | J135: 14 | K135: 14 | L135: 14 | M135: 14 | N135: 14
E136: =C$13 -> 2 in. | F136: 23 | G136: 24 | H136: =ROUND(G136*(1+H$45),0) -> 24 | I136: 24 | J136: 24 | K136: 24 | L136: 24 | M136: 24 | N136: 24
E137: =C$14 -> 2½ in. | H137: =ROUND(G137*(1+H$45),0) -> 0 | I137: 0 | J137: 0 | K137: 0 | L137: 0 | M137: 0 | N137: 0
E138: =C$15 -> 3 in. | F138: 0 | G138: 0 | H138: =ROUND(G138*(1+H$45),0) -> 0 | I138: 0 | J138: 0 | K138: 0 | L138: 0 | M138: 0 | N138: 0
E139: =C$16 -> 4 in. | F139: 0 | G139: 0 | H139: =ROUND(G139*(1+H$45),0) -> 0 | I139: 0 | J139: 0 | K139: 0 | L139: 0 | M139: 0 | N139: 0
E140: =C$17 -> 5 in. | H140: =ROUND(G140*(1+H$45),0) -> 0 | I140: 0 | J140: 0 | K140: 0 | L140: 0 | M140: 0 | N140: 0
E141: =C$18 -> 6 in. | F141: 0 | G141: 0 | H141: =ROUND(G141*(1+H$45),0) -> 0 | I141: 0 | J141: 0 | K141: 0 | L141: 0 | M141: 0 | N141: 0
E142: ="Subtotal "&E131 -> Subtotal High strength commercial | F142: =SUM(F132:F141) -> 89 | G142: =SUM(G132:G141) -> 93 | H142: 93 | I142: 93 | J142: 93 | K142: 93 | L142: 93 | M142: 93 | N142: 93
E144: Sewer Accounts by Meter Size
E145: =C$9 -> ⅝ in. | F145: =SUM(F54,F67,F80,F93,F106,F119,F132) -> 0 | G145: =SUM(G54,G67,G80,G93,G106,G119,G132) -> 0 | H145: 0 | I145: 0 | J145: 0 | K145: 0 | L145: 0 | M145: 0 | N145: =INDEX(F145:M145,$N$49) -> 0
E146: =C$10 -> ¾ in. | F146: =SUM(F55,F68,F81,F94,F107,F120,F133) -> 0 | G146: 0 | H146: 0 | I146: 0 | J146: 0 | K146: 0 | L146: 0 | M146: 0 | N146: 0
E147: =C$11 -> 1 in. | F147: 15055 | G147: 15176 | H147: 15176 | I147: 15176 | J147: 15176 | K147: 15176 | L147: 15176 | M147: 15176 | N147: 15176
E148: =C$12 -> 1½ in. | F148: 244 | G148: 255 | H148: 255 | I148: 255 | J148: 255 | K148: 255 | L148: 255 | M148: 255 | N148: 255
E149: =C$13 -> 2 in. | F149: 370 | G149: 386 | H149: 386 | I149: 386 | J149: 386 | K149: 386 | L149: 386 | M149: 386 | N149: 386
E150: =C$14 -> 2½ in. | F150: 0 | G150: 0 | H150: 0 | I150: 0 | J150: 0 | K150: 0 | L150: 0 | M150: 0 | N150: 0
E151: =C$15 -> 3 in. | F151: 12 | G151: 14 | H151: 14 | I151: 14 | J151: 14 | K151: 14 | L151: 14 | M151: 14 | N151: 14
E152: =C$16 -> 4 in. | F152: 10 | G152: 10 | H152: 10 | I152: 10 | J152: 10 | K152: 10 | L152: 10 | M152: 10 | N152: 10
E153: =C$17 -> 5 in. | F153: 0 | G153: 0 | H153: 0 | I153: 0 | J153: 0 | K153: 0 | L153: 0 | M153: 0 | N153: 0
E154: =C$18 -> 6 in. | F154: 7 | G154: 7 | H154: 7 | I154: 7 | J154: 7 | K154: 7 | L154: 7 | M154: 7 | N154: 7
E155: TOTAL | F155: =SUM(F145:F154) -> 15698 | G155: =SUM(G145:G154) -> 15848 | H155: 15848 | I155: 15848 | J155: 15848 | K155: 15848 | L155: 15848 | M155: 15848 | N155: 15848
E157: Sewer Accounts by Customer Classes
E158: =D21 -> Single-family residential* | F158: =F64 -> 11615 | G158: =G64 -> 11615 | H158: 11615 | I158: 11615 | J158: 11615 | K158: 11615 | L158: 11615 | M158: 11615 | N158: =INDEX(F158:M158,$N$49) -> 11615
E159: Multi-family residential/Mobile Home | F159: =F77 -> 3302 | G159: =G77 -> 3420 | H159: 3420 | I159: 3420 | J159: 3420 | K159: 3420 | L159: 3420 | M159: 3420 | N159: 3420
E160: Low strength commercial/Schools/Religious Institutions | F160: =F90 -> 490 | G160: =G90 -> 513 | H160: 513 | I160: 513 | J160: 513 | K160: 513 | L160: 513 | M160: 513 | N160: 513
E161: Medium strength commercial | F161: =F103 -> 185 | G161: =G103 -> 189 | H161: 189 | I161: 189 | J161: 189 | K161: 189 | L161: 189 | M161: 189 | N161: 189
E162: Commercial/residential | F162: =F116 -> 6 | G162: =G116 -> 7 | H162: 7 | I162: 7 | J162: 7 | K162: 7 | L162: 7 | M162: 7 | N162: 7
E163: Medium high strength commercial | F163: =F129 -> 11 | G163: =G129 -> 11 | H163: 11 | I163: 11 | J163: 11 | K163: 11 | L163: 11 | M163: 11 | N163: 11
E164: High strength commercial | F164: =F142 -> 89 | G164: =G142 -> 93 | H164: 93 | I164: 93 | J164: 93 | K164: 93 | L164: 93 | M164: 93 | N164: 93
E165: TOTAL | F165: =SUM(F158:F164) -> 15698 | G165: =SUM(G158:G164) -> 15848 | H165: 15848 | I165: 15848 | J165: 15848 | K165: 15848 | L165: 15848 | M165: 15848 | N165: 15848
E167: Billed Usage (ccf) by Customer Classes | F167: Before Return Factors
E168: =D21 -> Single-family residential* | F168: 1507958 | G168: 1381221 | H168: =G168*(1+H$44)*H$47 -> 1422657.63 | I168: =H168*(1+I$44)*I$47 -> 1422657.63 | J168: 1422657.63 | K168: 1422657.63 | L168: 1422657.63 | M168: 1422657.63 | N168: =INDEX(F168:M168,$N$49) -> 1422657.63
E169: Multi-family residential/Mobile Home | F169: 593416 | G169: 594180 | H169: =G169*(1+H$44)*H$47 -> 612005.4 | I169: =H169*(1+I$44)*I$47 -> 612005.4 | J169: 612005.4 | K169: 612005.4 | L169: 612005.4 | M169: 612005.4 | N169: 612005.4
E170: Low strength commercial/Schools/Religious Institutions | F170: 144751 | G170: 143758 | H170: =G170*(1+H$45)*H$48 -> 148070.74 | I170: =H170*(1+I$45)*I$48 -> 148070.74 | J170: 148070.74 | K170: 148070.74 | L170: 148070.74 | M170: 148070.74 | N170: 148070.74
E171: Medium strength commercial | F171: 80233 | G171: 79325 | H171: =G171*(1+H$45)*H$48 -> 81704.75 | I171: 81704.75 | J171: 81704.75 | K171: 81704.75 | L171: 81704.75 | M171: 81704.75 | N171: 81704.75
E172: Commercial/residential | F172: 1012 | G172: 911 | H172: 938.33 | I172: 938.33 | J172: 938.33 | K172: 938.33 | L172: 938.33 | M172: 938.33 | N172: 938.33
E173: Medium high strength commercial | F173: 7616 | G173: 7910 | H173: 8147.3 | I173: 8147.3 | J173: 8147.3 | K173: 8147.3 | L173: 8147.3 | M173: 8147.3 | N173: 8147.3
E174: High strength commercial | F174: 65022 | G174: 62788 | H174: 64671.64 | I174: 64671.64 | J174: 64671.64 | K174: 64671.64 | L174: 64671.64 | M174: 64671.64 | N174: 64671.64
E175: TOTAL | F175: =SUM(F168:F174) -> 2400008 | G175: =SUM(G168:G174) -> 2270093 | H175: 2338195.79 | I175: 2338195.79 | J175: 2338195.79 | K175: 2338195.79 | L175: 2338195.79 | M175: 2338195.79 | N175: 2338195.79
H176: =H175/G175-1 -> 0.03 | I176: =I175/H175-1 -> 0 | J176: 0 | K176: 0 | L176: 0 | M176: 0
H177: =H175*ResReturnFactor -> 2104376.211
A179: =client -> City of San Clemente | I179: =Model -> Financial Plan & COS Model
A180: Calculated Revenues from Sewer Rates | I180: =rfc_budyear -> 2012
F183: =G183-1 -> 2010 | G183: =H183-1 -> 2011 | H183: =rfc_budyear -> 2012 | I183: =H183+1 -> 2013 | J183: =I183+1 -> 2014 | K183: =J183+1 -> 2015 | L183: =K183+1 -> 2016 | M183: =L183+1 -> 2017 | N183: =rfc_testyear -> 2013
F184: =IF(F183=rfc_budyear,"Budgeted",IF(F183<=rfc_budyear-2,"Actual",IF(F183=rfc_budyear-1,"Estimated","Projected"))) -> Actual | G184: Estimated | H184: Budgeted | I184: Projected | J184: Projected | K184: Projected | L184: Projected | M184: Projected | N184: Test Year
E185: Monthly Service Fees
E186: =D21 -> Single-family residential* | F186: =SUMPRODUCT(F54:F63,F$9:F$18)*F$7+SUMPRODUCT(F54:F63,E$9:E$18)*(bills-F$7) -> 2650374.82 | G186: =SUMPRODUCT(G54:G63,G$9:G$18)*G$7+SUMPRODUCT(G54:G63,F$9:F$18)*(bills-G$7) -> 2745393.7 | H186: =SUMPRODUCT(H54:H63,H$9:H$18)*H$7+SUMPRODUCT(H54:H63,G$9:G$18)*(bills-H$7) -> 2913056.26 | I186: =SUMPRODUCT(I54:I63,$H$9:$H$18)*bills -> 2926892.88 | J186: =SUMPRODUCT(J54:J63,$H$9:$H$18)*bills -> 2926892.88 | K186: =SUMPRODUCT(K54:K63,$H$9:$H$18)*bills -> 2926892.88 | L186: =SUMPRODUCT(L54:L63,$H$9:$H$18)*bills -> 2926892.88 | M186: =SUMPRODUCT(M54:M63,$H$9:$H$18)*bills -> 2926892.88 | N186: =INDEX(F186:M186,$N$49) -> 2926892.88
E187: Multi-family residential/Mobile Home | F187: =SUMPRODUCT(F67:F76,F$9:F$18)*F$7+SUMPRODUCT(F67:F76,E$9:E$18)*(bills-F$7) -> 928360.36 | G187: =SUMPRODUCT(G67:G76,G$9:G$18)*G$7+SUMPRODUCT(G67:G76,F$9:F$18)*(bills-G$7) -> 1057099.52 | H187: =SUMPRODUCT(H67:H76,H$9:H$18)*H$7+SUMPRODUCT(H67:H76,G$9:G$18)*(bills-H$7) -> 1132442.51 | I187: =SUMPRODUCT(I67:I76,$H$9:$H$18)*bills -> 1137817.8 | J187: =SUMPRODUCT(J67:J76,$H$9:$H$18)*bills -> 1137817.8 | K187: =SUMPRODUCT(K67:K76,$H$9:$H$18)*bills -> 1137817.8 | L187: =SUMPRODUCT(L67:L76,$H$9:$H$18)*bills -> 1137817.8 | M187: =SUMPRODUCT(M67:M76,$H$9:$H$18)*bills -> 1137817.8 | N187: 1137817.8
E188: Low strength commercial/Schools/Religious Institutions | F188: =SUMPRODUCT(F80:F89,F$9:F$18)*F$7+SUMPRODUCT(F80:F89,E$9:E$18)*(bills-F$7) -> 267594.12 | G188: =SUMPRODUCT(G80:G89,G$9:G$18)*G$7+SUMPRODUCT(G80:G89,F$9:F$18)*(bills-G$7) -> 344845.5 | H188: =SUMPRODUCT(H80:H89,H$9:H$18)*H$7+SUMPRODUCT(H80:H89,G$9:G$18)*(bills-H$7) -> 374239.19 | I188: =SUMPRODUCT(I80:I89,$H$9:$H$18)*bills -> 376013.88 | J188: =SUMPRODUCT(J80:J89,$H$9:$H$18)*bills -> 376013.88 | K188: =SUMPRODUCT(K80:K89,$H$9:$H$18)*bills -> 376013.88 | L188: =SUMPRODUCT(L80:L89,$H$9:$H$18)*bills -> 376013.88 | M188: =SUMPRODUCT(M80:M89,$H$9:$H$18)*bills -> 376013.88 | N188: 376013.88
E189: Medium strength commercial | F189: =SUMPRODUCT(F93:F102,F$9:F$18)*F$7+SUMPRODUCT(F93:F102,E$9:E$18)*(bills-F$7) -> 99561.98 | G189: =SUMPRODUCT(G93:G102,G$9:G$18)*G$7+SUMPRODUCT(G93:G102,F$9:F$18)*(bills-G$7) -> 125599.64 | H189: =SUMPRODUCT(H93:H102,H$9:H$18)*H$7+SUMPRODUCT(H93:H102,G$9:G$18)*(bills-H$7) -> 136557.68 | I189: =SUMPRODUCT(I93:I102,$H$9:$H$18)*bills -> 137205.24 | J189: =SUMPRODUCT(J93:J102,$H$9:$H$18)*bills -> 137205.24 | K189: =SUMPRODUCT(K93:K102,$H$9:$H$18)*bills -> 137205.24 | L189: =SUMPRODUCT(L93:L102,$H$9:$H$18)*bills -> 137205.24 | M189: =SUMPRODUCT(M93:M102,$H$9:$H$18)*bills -> 137205.24 | N189: 137205.24
E190: Commercial/residential | F190: =SUMPRODUCT(F106:F115,F$9:F$18)*F$7+SUMPRODUCT(F106:F115,E$9:E$18)*(bills-F$7) -> 3432.84 | G190: =SUMPRODUCT(G106:G115,G$9:G$18)*G$7+SUMPRODUCT(G106:G115,F$9:F$18)*(bills-G$7) -> 4536.88 | H190: =SUMPRODUCT(H106:H115,H$9:H$18)*H$7+SUMPRODUCT(H106:H115,G$9:G$18)*(bills-H$7) -> 4941.8 | I190: =SUMPRODUCT(I106:I115,$H$9:$H$18)*(bills) -> 4965.24 | J190: =SUMPRODUCT(J106:J115,$H$9:$H$18)*(bills) -> 4965.24 | K190: =SUMPRODUCT(K106:K115,$H$9:$H$18)*(bills) -> 4965.24 | L190: =SUMPRODUCT(L106:L115,$H$9:$H$18)*(bills) -> 4965.24 | M190: =SUMPRODUCT(M106:M115,$H$9:$H$18)*(bills) -> 4965.24 | N190: 4965.24
E191: Medium high strength commercial | F191: =SUMPRODUCT(F119:F128,F$9:F$18)*F$7+SUMPRODUCT(F119:F128,E$9:E$18)*(bills-F$7) -> 6193.74 | G191: =SUMPRODUCT(G119:G128,G$9:G$18)*G$7+SUMPRODUCT(G119:G128,F$9:F$18)*(bills-G$7) -> 6869.46 | H191: =SUMPRODUCT(H119:H128,H$9:H$18)*H$7+SUMPRODUCT(H119:H128,G$9:G$18)*(bills-H$7) -> 7351.01 | I191: =SUMPRODUCT(I119:I128,$H$9:$H$18)*(bills) -> 7385.88 | J191: =SUMPRODUCT(J119:J128,$H$9:$H$18)*(bills) -> 7385.88 | K191: =SUMPRODUCT(K119:K128,$H$9:$H$18)*(bills) -> 7385.88 | L191: =SUMPRODUCT(L119:L128,$H$9:$H$18)*(bills) -> 7385.88 | M191: =SUMPRODUCT(M119:M128,$H$9:$H$18)*(bills) -> 7385.88 | N191: 7385.88
E192: High strength commercial | F192: =SUMPRODUCT(F132:F141,F$9:F$18)*F$7+SUMPRODUCT(F132:F141,E$9:E$18)*(bills-F$7) -> 40893.18 | G192: =SUMPRODUCT(G132:G141,G$9:G$18)*G$7+SUMPRODUCT(G132:G141,F$9:F$18)*(bills-G$7) -> 52143.74 | H192: =SUMPRODUCT(H132:H141,H$9:H$18)*H$7+SUMPRODUCT(H132:H141,G$9:G$18)*(bills-H$7) -> 56720.22 | I192: =SUMPRODUCT(I132:I141,$H$9:$H$18)*(bills) -> 56989.2 | J192: =SUMPRODUCT(J132:J141,$H$9:$H$18)*(bills) -> 56989.2 | K192: =SUMPRODUCT(K132:K141,$H$9:$H$18)*(bills) -> 56989.2 | L192: =SUMPRODUCT(L132:L141,$H$9:$H$18)*(bills) -> 56989.2 | M192: =SUMPRODUCT(M132:M141,$H$9:$H$18)*(bills) -> 56989.2 | N192: 56989.2
E193: Commodity Charges
E194: =D21 -> Single-family residential* | F194: =F168*$I21*F21*F$7/bills+F168*$I21*E21*(bills-F$7)/bills -> 1703238.561 | G194: 1502077.838 | H194: 1618628.719 | I194: =I168*$I21*$H21 -> 1626097.671 | J194: =J168*$I21*$H21 -> 1626097.671 | K194: 1626097.671 | L194: 1626097.671 | M194: 1626097.671 | N194: 1626097.671
E195: Multi-family residential/Mobile Home | F195: 670263.372 | G195: 646170.75 | H195: 696309.1438 | I195: =I169*$I22*$H22 -> 699522.1722 | J195: 699522.1722 | K195: 699522.1722 | L195: 699522.1722 | M195: 699522.1722 | N195: 699522.1722
E196: Low strength commercial/Schools/Religious Institutions | F196: 178912.236 | G196: 206148.972 | H196: 229435.6116 | I196: 230546.1422 | J196: 230546.1422 | K196: 230546.1422 | L196: 230546.1422 | M196: 230546.1422 | N196: 230546.1422
E197: Medium strength commercial | F197: 128773.965 | G197: 148496.4 | H197: 165390.8402 | I197: 166187.4615 | J197: 166187.4615 | K197: 166187.4615 | L197: 166187.4615 | M197: 166187.4615 | N197: 166187.4615
E198: Commercial/residential | F198: 1651.584 | G198: 1729.989 | H198: 1924.749413 | I198: 1933.89813 | J198: 1933.89813 | K198: 1933.89813 | L198: 1933.89813 | M198: 1933.89813 | N198: 1933.89813
E199: Medium high strength commercial | F199: 21705.6 | G199: 26221.65 | H199: 29189.73908 | I199: 29330.28 | J199: 29330.28 | K199: 29330.28 | L199: 29330.28 | M199: 29330.28 | N199: 29330.28
E200: High strength commercial | F200: 258852.582 | G200: 289986.378 | H200: 322646.812 | I200: 324198.9313 | J200: 324198.9313 | K200: 324198.9313 | L200: 324198.9313 | M200: 324198.9313 | N200: 324198.9313
E202: Total Revenues from Current Rates | F202: =SUM(F186:F200) -> 6959808.94 | G202: =SUM(G186:G200) -> 7157320.417 | H202: 7688834.285 | I202: 7725086.676 | J202: 7725086.676 | K202: 7725086.676 | L202: 7725086.676 | M202: 7725086.676
E203: =E185 -> Monthly Service Fees | F203: =SUM(F186:F192) -> 3996411.04 | G203: =SUM(G186:G192) -> 4336488.44 | H203: =SUM(H186:H192) -> 4625308.67 | I203: 4647270.12 | J203: 4647270.12 | K203: 4647270.12 | L203: 4647270.12 | M203: 4647270.12
E204: =E193 -> Commodity Charges | F204: =SUM(F194:F200) -> 2963397.9 | G204: =SUM(G194:G200) -> 2820831.977 | H204: =SUM(H194:H200) -> 3063525.615 | I204: 3077816.556 | J204: 3077816.556 | K204: 3077816.556 | L204: 3077816.556 | M204: 3077816.556
E205: $ amount From Summary Table | F205: 3002495 | G205: 2827805
F206: =F203/F217 -> 0.9857483344 | G206: 0.9984432027 | H206: =H203/H217 -> 1.031921314
F207: 0.9398243973 | G207: 0.9733148768 | H207: 1.02427877
A209: =client -> City of San Clemente | I209: =Model -> Financial Plan & COS Model
A210: Sewer Fund Revenues | I210: =rfc_budyear -> 2012
B211: Source: | C211: Enterprise Funds 2012.xlsx sent by Tom Rendina on 10/5/11 & sewer_054_revenue.xls sent by Tom Rendina 8/31/11
F213: =G213-1 -> 2010 | G213: =H213-1 -> 2011 | H213: =rfc_budyear -> 2012 | I213: =H213+1 -> 2013 | J213: =I213+1 -> 2014 | K213: =J213+1 -> 2015 | L213: =K213+1 -> 2016 | M213: =L213+1 -> 2017 | N213: Notes
F214: =IF(F213=rfc_budyear,"Budgeted",IF(F213<=rfc_budyear-2,"Actual",IF(F213=rfc_budyear-1,"Estimated","Projected"))) -> Actual | G214: Estimated | H214: Budgeted | I214: Projected | J214: Projected | K214: Projected | L214: Projected | M214: Projected
B215: REVENUES
B216: Revenues from Rates
B217: 34425-000-00000 SEWER BASE FEE | F217: 4054190 | G217: 4343250 | H217: 4482230 | I217: =I203 -> 4647270.12 | J217: =J203 -> 4647270.12 | K217: 4647270.12 | L217: 4647270.12 | M217: 4647270.12
B218: 34420-000-00000 SEWER COMMODITY FEE | F218: 3153140 | G218: 2898170 | H218: 2990910 | I218: =I204 -> 3077816.556 | J218: 3077816.556 | K218: 3077816.556 | L218: 3077816.556 | M218: 3077816.556
B220: Other Operating Revenues
B221: 32260-000-00000 SEWER PERMITS | F221: 840 | G221: 750 | H221: 2000 | I221: =H221*(1+'Key Assumptions'!I$26) -> 2020 | J221: =I221*(1+'Key Assumptions'!J$26) -> 2040.2 | K221: =J221*(1+'Key Assumptions'!K$26) -> 2060.602 | L221: =K221*(1+'Key Assumptions'!L$26) -> 2081.20802 | M221: =L221*(1+'Key Assumptions'!M$26) -> 2102.0201
B222: 32374-000-00000 CHGS MODIFICATION CONN FEES | F222: 4580 | G222: 4580 | H222: 0 | I222: 0 | J222: 0 | K222: 0 | L222: 0 | M222: 0
B223: 34430-000-00000 EFFLUENT WATER SALES | F223: ='W &RW O&M'!F448 -> 442000 | G223: ='W &RW O&M'!G448 -> 442024.7331 | H223: ='W &RW O&M'!H448 -> 457010 | I223: ='W &RW O&M'!I448 -> 228505 | J223: ='W &RW O&M'!J448 -> 0 | K223: ='W &RW O&M'!K448 -> 0 | L223: ='W &RW O&M'!L448 -> 0 | M223: ='W &RW O&M'!M448 -> 0
B224: 36810-000-00000 WORK ORDERS | F224: 11570 | G224: 2500 | H224: 2500 | I224: =H224*(1+'Key Assumptions'!I$26) -> 2525 | J224: =I224*(1+'Key Assumptions'!J$26) -> 2550.25 | K224: =J224*(1+'Key Assumptions'!K$26) -> 2575.7525 | L224: =K224*(1+'Key Assumptions'!L$26) -> 2601.510025 | M224: =L224*(1+'Key Assumptions'!M$26) -> 2627.525125
B226: Non-Operating Revenues
B227: 36110-000-00000 INVESTMENT EARNINGS | F227: 379550 | G227: 354600 | H227: 330000 | I227: ='S CF'!I119 -> 200766.4039 | J227: ='S CF'!J119 -> 217378.5928 | K227: ='S CF'!K119 -> 278139.2488 | L227: ='S CF'!L119 -> 351770.6913 | M227: ='S CF'!M119 -> 423155.9582 | N227: Will be calculated on actual reserve balances
B228: 36130-000-00000 UNREALIZED GAIN / LOSS ON INVESTMENT | F228: 85030 | G228: 0 | H228: 0 | I228: =H228*(1+'Key Assumptions'!I$26) -> 0 | J228: =I228*(1+'Key Assumptions'!J$26) -> 0 | K228: =J228*(1+'Key Assumptions'!K$26) -> 0 | L228: =K228*(1+'Key Assumptions'!L$26) -> 0 | M228: =L228*(1+'Key Assumptions'!M$26) -> 0
B229: 36180-000-00000 INTEREST EARNINGS - OTHER | F229: 0 | G229: 0 | H229: 0 | I229: =H229*(1+'Key Assumptions'!I$26) -> 0 | J229: =I229*(1+'Key Assumptions'!J$26) -> 0 | K229: =J229*(1+'Key Assumptions'!K$26) -> 0 | L229: =K229*(1+'Key Assumptions'!L$26) -> 0 | M229: =L229*(1+'Key Assumptions'!M$26) -> 0
... 30 more rows

Sheet S O&M
A1: =client -> City of San Clemente | H1: =Model -> Financial Plan & COS Model
H2: =rfc_budyear -> 2012
G4: Escalation Factors | H4: =H14 -> 2012 | I4: =I14 -> 2013 | J4: 2014 | K4: 2015 | L4: 2016 | M4: 2017
G5: ='Key Assumptions'!G11 -> General | H5: ='Key Assumptions'!H11 -> 0.03 | I5: ='Key Assumptions'!I11 -> 0.03 | J5: ='Key Assumptions'!J11 -> 0.03 | K5: ='Key Assumptions'!K11 -> 0.03 | L5: ='Key Assumptions'!L11 -> 0.03 | M5: ='Key Assumptions'!M11 -> 0.03
G6: ='Key Assumptions'!G12 -> Salary | H6: ='Key Assumptions'!H12 -> 0.02 | I6: ='Key Assumptions'!I12 -> 0.02 | J6: ='Key Assumptions'!J12 -> 0.02 | K6: ='Key Assumptions'!K12 -> 0.02 | L6: ='Key Assumptions'!L12 -> 0.02 | M6: ='Key Assumptions'!M12 -> 0.02
G7: ='Key Assumptions'!G13 -> Benefits | H7: ='Key Assumptions'!H13 -> 0.05 | I7: ='Key Assumptions'!I13 -> 0.05 | J7: ='Key Assumptions'!J13 -> 0.05 | K7: ='Key Assumptions'!K13 -> 0.05 | L7: ='Key Assumptions'!L13 -> 0.05 | M7: ='Key Assumptions'!M13 -> 0.05
G8: ='Key Assumptions'!G14 -> Utilities | H8: ='Key Assumptions'!H14 -> 0.05 | I8: ='Key Assumptions'!I14 -> 0.05 | J8: ='Key Assumptions'!J14 -> 0.05 | K8: ='Key Assumptions'!K14 -> 0.05 | L8: ='Key Assumptions'!L14 -> 0.05 | M8: ='Key Assumptions'!M14 -> 0.05
G9: ='Key Assumptions'!G15 -> CCI | H9: ='Key Assumptions'!H15 -> 0.04 | I9: ='Key Assumptions'!I15 -> 0.04 | J9: ='Key Assumptions'!J15 -> 0.04 | K9: ='Key Assumptions'!K15 -> 0.04 | L9: ='Key Assumptions'!L15 -> 0.04 | M9: ='Key Assumptions'!M15 -> 0.04
G10: Overall Growth | H10: ='S Rev'!H176 -> 0.03 | I10: ='S Rev'!I176 -> 0 | J10: ='S Rev'!J176 -> 0 | K10: ='S Rev'!K176 -> 0 | L10: ='S Rev'!L176 -> 0 | M10: ='S Rev'!M176 -> 0
B12: Source: | C12: sewer_op expenses.xls sent by Tom Rendina 8/31/11
N13: =MATCH(N14,F14:M14,0) -> 4
B14: Descriptions | D14: Fixed | E14: Inflated | F14: =G14-1 -> 2010 | G14: =H14-1 -> 2011 | H14: =rfc_budyear -> 2012 | I14: =H14+1 -> 2013 | J14: 2014 | K14: 2015 | L14: 2016 | M14: 2017 | N14: =rfc_testyear -> 2013
D15: Variable | E15: by | F15: =IF(F14=rfc_budyear,"Budgeted",IF(F14<=rfc_budyear-2,"Actual",IF(F14=rfc_budyear-1,"Estimated","Projected"))) -> Actual | G15: Estimated | H15: Budgeted | I15: Projected | J15: Projected | K15: Projected | L15: Projected | M15: Projected | N15: Test Year
B16: 471 SEWER ADMINISTRATION
B17: 471-41000 PERSONNEL
B18: 471-41010-000-00000 SALARIES, REGULAR FULL TIME | D18: Fixed | E18: Salary | F18: 229480 | G18: 227500 | H18: 234660 | I18: =IF($D18=$D$14,1,1+I$10)*H18*(1+INDEX(I$5:I$9,MATCH($E18,$G$5:$G$9,0))) -> 239353.2 | J18: 244140.264 | K18: 249023.0693 | L18: 254003.5307 | M18: 259083.6013 | N18: =INDEX(F18:M18,$N$13) -> 239353.2
B19: 471-41320-000-00000 PREMIUM OVERTIME - REGULAR | D19: Fixed | E19: Salary | F19: 6350 | G19: 800 | H19: 2500 | I19: 2550 | J19: 2601 | K19: 2653.02 | L19: 2706.0804 | M19: 2760.202008 | N19: =INDEX(F19:M19,$N$13) -> 2550
B20: 471-41350-000-00000 ACCRUED LEAVE PAYOFF | D20: Fixed | E20: Salary | F20: 1010 | G20: 12570 | H20: 1000 | I20: 1020 | J20: 1040.4 | K20: 1061.208 | L20: 1082.43216 | M20: 1104.080803 | N20: 1020
B21: 471-41410-000-00000 EDUCATION INCENTIVE PAY | D21: Fixed | E21: Salary | F21: 140 | G21: 150 | H21: 290 | I21: 295.8 | J21: 301.716 | K21: 307.75032 | L21: 313.9053264 | M21: 320.1834329 | N21: 295.8
B22: 471-41460-000-00000 ASSIGNMENT PAY | D22: Fixed | E22: Salary | F22: 3540 | G22: 0 | H22: 4000 | I22: 4080 | J22: 4161.6 | K22: 4244.832 | L22: 4329.72864 | M22: 4416.323213 | N22: 4080
B23: 471-41710-000-00000 EDUCATIONAL REIMBURSEMENT | D23: Fixed | E23: General | F23: 2430 | G23: 0 | H23: 0 | I23: 0 | J23: 0 | K23: 0 | L23: 0 | M23: 0 | N23: 0
B24: 471-41951-000-00000 FICA | D24: Fixed | E24: Benefits | F24: 14320 | G24: 13860 | H24: 14370 | I24: 15088.5 | J24: 15842.925 | K24: 16635.07125 | L24: 17466.82481 | M24: 18340.16605 | N24: 15088.5
B25: 471-41954-000-00000 MEDICARE | D25: Fixed | E25: Benefits | F25: 3470 | G25: 3340 | H25: 3360 | I25: 3528 | J25: 3704.4 | K25: 3889.62 | L25: 4084.101 | M25: 4288.30605 | N25: 3528
B26: 471-41957-000-00000 STATE DISABILITY INSURANCE | D26: Fixed | E26: Benefits | F26: 2360 | G26: 2380 | H26: 2790 | I26: 2929.5 | J26: 3075.975 | K26: 3229.77375 | L26: 3391.262438 | M26: 3560.825559 | N26: 2929.5
B27: 471-41958-000-00000 A.D.& D. INSURANCE | D27: Fixed | E27: Benefits | F27: 50 | G27: 40 | H27: 50 | I27: 52.5 | J27: 55.125 | K27: 57.88125 | L27: 60.7753125 | M27: 63.81407813 | N27: 52.5
B28: 471-41959-000-00000 LONG TERM DISABILITY INSURANCE | D28: Fixed | E28: Benefits | F28: 790 | G28: 720 | H28: 790 | I28: =IF($D28=$D$14,1,1+I$10)*H28*(1+INDEX(I$5:I$9,MATCH($E28,$G$5:$G$9,0))) -> 829.5 | J28: 870.975 | K28: 914.52375 | L28: 960.2499375 | M28: 1008.262434 | N28: 829.5
B29: 471-41961-000-00000 STATE UNEMPLOYMENT INSURANCE | D29: Fixed | E29: Benefits | F29: 720 | G29: 680 | H29: 700 | I29: 735 | J29: 771.75 | K29: 810.3375 | L29: 850.854375 | M29: 893.3970938 | N29: 735
B30: 471-41963-000-00000 WORKER'S COMPENSATION INS. | D30: Fixed | E30: Benefits | F30: 7890 | G30: 6550 | H30: 6990 | I30: 7339.5 | J30: 7706.475 | K30: 8091.79875 | L30: 8496.388688 | M30: 8921.208122 | N30: 7339.5
B31: 471-41965-000-00000 LIFE INSURANCE | D31: Fixed | E31: Benefits | F31: 790 | G31: 720 | H31: 780 | I31: 819 | J31: 859.95 | K31: 902.9475 | L31: 948.094875 | M31: 995.4996188 | N31: 819
B32: 471-41967-000-00000 MEDICAL INSURANCE | D32: Fixed | E32: Benefits | F32: 44470 | G32: 44960 | H32: 50140 | I32: 52647 | J32: 55279.35 | K32: 58043.3175 | L32: 60945.48338 | M32: 63992.75754 | N32: 52647
B33: 471-41975-000-00000 SAN CLEMENTE RETIREMENT PREM. | D33: Fixed | E33: Benefits | F33: 47050 | G33: 42010 | H33: 53630 | I33: 56311.5 | J33: 59127.075 | K33: 62083.42875 | L33: 65187.60019 | M33: 68446.9802 | N33: 56311.5
B34: 471-41984-000-00000 DEFERRED COMPENSATION - P/T | D34: Fixed | E34: General | F34: 0 | G34: 0 | H34: 300 | I34: 309 | J34: 318.27 | K34: 327.8181 | L34: 337.652643 | M34: 347.7822223 | N34: 309
B35: Subtotal | C35: =B17 -> 471-41000 PERSONNEL | F35: =SUM(F18:F34) -> 364860 | G35: =SUM(G18:G34) -> 356280 | H35: 376350 | I35: 387888 | J35: 399857.25 | K35: 412276.3977 | L35: 425164.9648 | M35: 438543.3897 | N35: 387888
B37: 471-42000 SUPPLIES
B38: 471-42010-000-00000 OFFICE SUPPLIES | D38: Fixed | E38: General | F38: 1970 | G38: 1800 | H38: 1800 | I38: =IF($D38=$D$14,1,1+I$10)*H38*(1+INDEX(I$5:I$9,MATCH($E38,$G$5:$G$9,0))) -> 1854 | J38: 1909.62 | K38: 1966.9086 | L38: 2025.915858 | M38: 2086.693334 | N38: =INDEX(F38:M38,$N$13) -> 1854
B39: 471-42030-000-00000 POSTAGE | D39: Fixed | E39: General | F39: 580 | G39: 350 | H39: 350 | I39: 360.5 | J39: 371.315 | K39: 382.45445 | L39: 393.9280835 | M39: 405.745926 | N39: 360.5
B40: 471-42360-000-00000 EDUCATIONAL MATERIAL | D40: Fixed | E40: General | F40: 1320 | G40: 250 | H40: 1000 | I40: 1030 | J40: 1060.9 | K40: 1092.727 | L40: 1125.50881 | M40: 1159.274074 | N40: 1030
B41: 471-42380-000-00000 OFFICE FURNITURE/EQUIPMENT (NON-CAP) | D41: Fixed | E41: General | F41: 280 | G41: 0 | H41: 0 | I41: 0 | J41: 0 | K41: 0 | L41: 0 | M41: 0 | N41: 0
B42: 471-42410-000-00000 CLOTHING AND UNIFORMS | D42: Fixed | E42: General | F42: 3900 | G42: 4000 | H42: 5000 | I42: 5150 | J42: 5304.5 | K42: 5463.635 | L42: 5627.54405 | M42: 5796.370372 | N42: 5150
B43: 471-42490-000-00000 OTHER OPERATING SUPPLIES | D43: Fixed | E43: General | F43: 1490 | G43: 1500 | H43: 1700 | I43: 1751 | J43: 1803.53 | K43: 1857.6359 | L43: 1913.364977 | M43: 1970.765926 | N43: 1751
B44: Subtotal | C44: =B37 -> 471-42000 SUPPLIES | F44: =SUM(F38:F43) -> 9540 | G44: =SUM(G38:G43) -> 7900 | H44: 9850 | I44: 10145.5 | J44: 10449.865 | K44: 10763.36095 | L44: 11086.26178 | M44: 11418.84963 | N44: 10145.5
B46: 471-43000 CONTRACTUAL SERVICES
B47: 471-43050-000-00000 PRINTING AND BINDING | D47: Fixed | E47: General | F47: 40 | G47: 20 | H47: 0 | I47: =IF($D47=$D$14,1,1+I$10)*H47*(1+INDEX(I$5:I$9,MATCH($E47,$G$5:$G$9,0))) -> 0 | J47: 0 | K47: 0 | L47: 0 | M47: 0 | N47: =INDEX(F47:M47,$N$13) -> 0
B48: 471-43060-000-00000 TRAVEL AND TRAINING | D48: Fixed | E48: General | F48: 230 | G48: 1500 | H48: 1950 | I48: 2008.5 | J48: 2068.755 | K48: 2130.81765 | L48: 2194.74218 | M48: 2260.584445 | N48: 2008.5
B49: 471-43120-000-00000 PROPERTY INSURANCE | D49: Fixed | E49: General | F49: 199170 | G49: 182990 | H49: 192000 | I49: 197760 | J49: 203692.8 | K49: 209803.584 | L49: 216097.6915 | M49: 222580.6223 | N49: 197760
B50: 471-43410-000-00000 MAINTENANCE OF BUILDINGS | D50: Fixed | E50: General | F50: 0 | G50: 500 | H50: 500 | I50: 515 | J50: 530.45 | K50: 546.3635 | L50: 562.754405 | M50: 579.6370372 | N50: 515
B51: 471-43420-000-00000 MAINTENANCE OF IMPROVEMENTS | D51: Fixed | E51: General | F51: 1140 | G51: 5000 | H51: 2550 | I51: 2626.5 | J51: 2705.295 | K51: 2786.45385 | L51: 2870.047466 | M51: 2956.148889 | N51: 2626.5
B52: 471-43425-000-00000 MAINTENANCE OF LANDSCAPING | D52: Fixed | E52: General | F52: 26150 | G52: 45000 | H52: 45000 | I52: 46350 | J52: 47740.5 | K52: 49172.715 | L52: 50647.89645 | M52: 52167.33334 | N52: 46350
B53: 471-43480-000-00000 CONTRACTED CUSTODIAL SERVICES | D53: Fixed | E53: General | F53: 5630 | G53: 6100 | H53: 6100 | I53: 6283 | J53: 6471.49 | K53: 6665.6347 | L53: 6865.603741 | M53: 7071.571853 | N53: 6283
B54: 471-43565-000-00000 ANSWERING SERVICE | D54: Fixed | E54: General | F54: 2240 | G54: 2200 | H54: 2200 | I54: 2266 | J54: 2333.98 | K54: 2403.9994 | L54: 2476.119382 | M54: 2550.402963 | N54: 2266
B55: 471-43640-000-00000 OTHER LEGAL SERVICES | D55: Fixed | E55: General | F55: 620 | G55: 1500 | H55: 3000 | I55: 3090 | J55: 3182.7 | K55: 3278.181 | L55: 3376.52643 | M55: 3477.822223 | N55: 3090
B56: 471-43690-000-00000 OTHER PROFESSIONAL SERVICES | D56: Fixed | E56: General | F56: 11510 | G56: 25000 | H56: 75000 | I56: 77250 | J56: 79567.5 | K56: 81954.525 | L56: 84413.16075 | M56: 86945.55557 | N56: 77250
B57: 471-43750-000-00000 RENTAL OF UNIFORMS | D57: Fixed | E57: General | F57: 3900 | G57: 4500 | H57: 6360 | I57: 6550.8 | J57: 6747.324 | K57: 6949.74372 | L57: 7158.236032 | M57: 7372.983113 | N57: 6550.8
B58: 471-43890-000-00000 OTHER CONTRACTUAL SERVICES | D58: Fixed | E58: General | F58: 177390 | G58: 175920 | H58: 153000 | I58: 157590 | J58: 162317.7 | K58: 167187.231 | L58: 172202.8479 | M58: 177368.9334 | N58: 157590
B59: 471-43000-000-37804 UTILITY RATE REVIEW | D59: Fixed | E59: General | I59: 0 | J59: 0 | K59: 0 | L59: 0 | M59: 0 | N59: 0
B60: Subtotal | C60: =B46 -> 471-43000 CONTRACTUAL SERVICES | F60: =SUM(F47:F59) -> 428020 | G60: =SUM(G47:G59) -> 450230 | H60: 487660 | I60: 502289.8 | J60: 517358.494 | K60: 532879.2488 | L60: 548865.6263 | M60: 565331.5951 | N60: 502289.8
B62: 471-44000 OTHER CHARGES
B63: 471-44015-000-00000 FINES & CITATIONS | D63: Fixed | E63: General | F63: 0 | G63: 0 | H63: 0 | I63: =IF($D63=$D$14,1,1+I$10)*H63*(1+INDEX(I$5:I$9,MATCH($E63,$G$5:$G$9,0))) -> 0 | J63: 0 | K63: 0 | L63: 0 | M63: 0 | N63: =INDEX(F63:M63,$N$13) -> 0
B64: 471-44110-000-00000 DUES AND SUBSCRIPTIONS | D64: Fixed | E64: General | F64: 770 | G64: 400 | H64: 800 | I64: 824 | J64: 848.72 | K64: 874.1816 | L64: 900.407048 | M64: 927.4192594 | N64: 824
B65: 471-44260-000-00000 LICENSES AND PERMITS | D65: Fixed | E65: General | F65: 4130 | G65: 8500 | H65: 8000 | I65: 8240 | J65: 8487.2 | K65: 8741.816 | L65: 9004.07048 | M65: 9274.192594 | N65: 8240
B66: 471-44800-000-00000 DEPRECIATION | D66: Fixed | E66: General | F66: 111690 | G66: 32500 | H66: 32500 | I66: 33475 | J66: 34479.25 | K66: 35513.6275 | L66: 36579.03633 | M66: 37676.40741 | N66: 33475
B67: 471-44820-000-00000 REFUND OF PRIOR YEAR REVENUES | D67: Fixed | E67: General | F67: 0 | G67: 0 | H67: 0 | I67: 0 | J67: 0 | K67: 0 | L67: 0 | M67: 0 | N67: 0
B68: Subtotal | C68: =B62 -> 471-44000 OTHER CHARGES | F68: =SUM(F63:F67) -> 116590 | G68: =SUM(G63:G67) -> 41400 | H68: 41300 | I68: 42539 | J68: 43815.17 | K68: 45129.6251 | L68: 46483.51385 | M68: 47878.01927 | N68: 42539
B70: 471-45000 CAPITAL OUTLAY
B71: 471-45450-000-00000 COMPUTER EQUIPMENT | D71: Fixed | E71: General | F71: 0 | G71: 8700 | H71: 0 | I71: =IF($D71=$D$14,1,1+I$10)*H71*(1+INDEX(I$5:I$9,MATCH($E71,$G$5:$G$9,0))) -> 0 | J71: 0 | K71: 0 | L71: 0 | M71: 0 | N71: =INDEX(F71:M71,$N$13) -> 0
B72: 471-45500-000-00000 MACHINERY & EQUIPMENT | D72: Fixed | E72: General | F72: 0 | G72: 21700 | H72: 0 | I72: 0 | J72: 0 | K72: 0 | L72: 0 | M72: 0 | N72: 0
B73: 471-45000-000-37804 UTILITY RATE REVIEW | D73: Fixed | E73: General | I73: 0 | J73: 0 | K73: 0 | L73: 0 | M73: 0 | N73: 0
B74: Subtotal | C74: =B70 -> 471-45000 CAPITAL OUTLAY | F74: =SUM(F71:F73) -> 0 | G74: =SUM(G71:G73) -> 30400 | H74: 0 | I74: 0 | J74: 0 | K74: 0 | L74: 0 | M74: 0 | N74: 0
B76: 471-46000 INTERDEPARTMENTAL CHARGES
B77: 471-46030-000-00000 INSURANCE CHARGES | D77: Fixed | E77: General | F77: 94210 | G77: 92600 | H77: 147900 | I77: =IF($D77=$D$14,1,1+I$10)*H77*(1+INDEX(I$5:I$9,MATCH($E77,$G$5:$G$9,0))) -> 152337 | J77: 156907.11 | K77: 161614.3233 | L77: 166462.753 | M77: 171456.6356 | N77: =INDEX(F77:M77,$N$13) -> 152337
B78: 471-46050-000-00000 POSTAGE CHARGES | D78: Fixed | E78: General | F78: 50 | G78: 20 | H78: 40 | I78: 41.2 | J78: 42.436 | K78: 43.70908 | L78: 45.0203524 | M78: 46.37096297 | N78: 41.2
B79: 471-46060-000-00000 DUPLICATING CHARGES | D79: Fixed | E79: General | F79: 980 | G79: 460 | H79: 670 | I79: 690.1 | J79: 710.803 | K79: 732.12709 | L79: 754.0909027 | M79: 776.7136298 | N79: 690.1
B80: 471-46080-000-00000 INFORMATION TECHNOLOGY CHARGES | D80: Fixed | E80: General | F80: 11240 | G80: 21120 | H80: 15040 | I80: 15491.2 | J80: 15955.936 | K80: 16434.61408 | L80: 16927.6525 | M80: 17435.48208 | N80: 15491.2
B81: 471-46110-000-00000 COMMUNICATIONS CHARGES | D81: Fixed | E81: General | F81: 15080 | G81: 15370 | H81: 15940 | I81: 16418.2 | J81: 16910.746 | K81: 17418.06838 | L81: 17940.61043 | M81: 18478.82874 | N81: 16418.2
B82: 471-46130-000-00000 FLEET RENTAL CHARGES | D82: Fixed | E82: General | F82: 7120 | G82: 6200 | H82: 4540 | I82: 4676.2 | J82: 4816.486 | K82: 4960.98058 | L82: 5109.809997 | M82: 5263.104297 | N82: 4676.2
B83: 471-46340-000-00000 CHARGES FROM PARKS MAINTENANCE | D83: Fixed | E83: General | F83: 0 | G83: 1180 | H83: 1180 | I83: 1215.4 | J83: 1251.862 | K83: 1289.41786 | L83: 1328.100396 | M83: 1367.943408 | N83: 1215.4
B84: 471-46510-000-00000 GENERAL FUND OVERHEAD CHARGES | D84: Fixed | E84: General | F84: 313790 | G84: 155700 | H84: 198680 | I84: 204640.4 | J84: 210779.612 | K84: 217103.0004 | L84: 223616.0904 | M84: 230324.5731 | N84: 204640.4
B85: Subtotal | C85: =B76 -> 471-46000 INTERDEPARTMENTAL CHARGES | F85: =SUM(F77:F84) -> 442470 | G85: =SUM(G77:G84) -> 292650 | H85: 383990 | I85: 395509.7 | J85: 407374.991 | K85: 419596.2407 | L85: 432184.128 | M85: 445149.6518 | N85: 395509.7
B87: 471-47000 INTERFUND TRANSFERS
B88: 471-47250-000-00000 TRANSFER TO OTHER FUNDS | D88: Fixed | E88: General | F88: 4040 | G88: 4040 | H88: 4040 | I88: =IF($D88=$D$14,1,1+I$10)*H88*(1+INDEX(I$5:I$9,MATCH($E88,$G$5:$G$9,0))) -> 4161.2 | J88: =IF($D88=$D$14,1,1+J$10)*I88*(1+INDEX(J$5:J$9,MATCH($E88,$G$5:$G$9,0))) -> 4286.036 | K88: =IF($D88=$D$14,1,1+K$10)*J88*(1+INDEX(K$5:K$9,MATCH($E88,$G$5:$G$9,0))) -> 4414.61708 | L88: =IF($D88=$D$14,1,1+L$10)*K88*(1+INDEX(L$5:L$9,MATCH($E88,$G$5:$G$9,0))) -> 4547.055592 | M88: =IF($D88=$D$14,1,1+M$10)*L88*(1+INDEX(M$5:M$9,MATCH($E88,$G$5:$G$9,0))) -> 4683.46726 | N88: =INDEX(F88:M88,$N$13) -> 4161.2
B89: Subtotal | C89: =B87 -> 471-47000 INTERFUND TRANSFERS | F89: =SUM(F88) -> 4040 | G89: =SUM(G88) -> 4040 | H89: 4040 | I89: 4161.2 | J89: 4286.036 | K89: 4414.61708 | L89: 4547.055592 | M89: 4683.46726 | N89: 4161.2
B91: 471-48000 Debt Service
B92: 471-48000-000-00000 NO PROJECT NUMBER | D92: Fixed | E92: General | I92: =IF($D92=$D$14,1,1+I$10)*H92*(1+INDEX(I$5:I$9,MATCH($E92,$G$5:$G$9,0))) -> 0 | J92: 0 | K92: 0 | L92: 0 | M92: 0 | N92: =INDEX(F92:M92,$N$13) -> 0
B93: 471-48000-200-00000 NO PROJECT NUMBER | D93: Fixed | E93: General | I93: 0 | J93: 0 | K93: 0 | L93: 0 | M93: 0 | N93: 0
B94: Subtotal | C94: =B91 -> 471-48000 Debt Service | F94: =SUM(F92:F93) -> 0 | G94: =SUM(G92:G93) -> 0 | H94: 0 | I94: 0 | J94: 0 | K94: 0 | L94: 0 | M94: 0 | N94: 0
B96: Subtotal | C96: =B16 -> 471 SEWER ADMINISTRATION | F96: =SUM(F35,F44,F60,F68,F74,F85,F89,F94) -> 1365520 | G96: =SUM(G35,G44,G60,G68,G74,G85,G89,G94) -> 1182900 | H96: 1303190 | I96: 1342533.2 | J96: 1383141.806 | K96: 1425059.49 | L96: 1468331.55 | M96: 1513004.973 | N96: 1342533.2
B98: 472 TREATMENT
B99: 472-41000 PERSONNEL
B100: 472-41010-000-00000 SALARIES, REGULAR FULL TIME | D100: Fixed | E100: Salary | F100: 553720 | G100: 669490 | H100: 678730 | I100: =IF($D100=$D$14,1,1+I$10)*H100*(1+INDEX(I$5:I$9,MATCH($E100,$G$5:$G$9,0))) -> 692304.6 | J100: 706150.692 | K100: 720273.7058 | L100: 734679.18 | M100: 749372.7636 | N100: =INDEX(F100:M100,$N$13) -> 692304.6
B101: 472-41310-000-00000 REGULAR OVERTIME | D101: Fixed | E101: Salary | F101: 1980 | G101: 1300 | H101: 2000 | I101: 2040 | J101: 2080.8 | K101: 2122.416 | L101: 2164.86432 | M101: 2208.161606 | N101: 2040
B102: 472-41320-000-00000 PREMIUM OVERTIME - REGULAR | D102: Fixed | E102: Salary | F102: 12800 | G102: 15000 | H102: 20000 | I102: 20400 | J102: 20808 | K102: 21224.16 | L102: 21648.6432 | M102: 22081.61606 | N102: 20400
B103: 472-41350-000-00000 ACCRUED LEAVE PAYOFF | D103: Fixed | E103: Salary | F103: 3150 | G103: 4000 | H103: 4000 | I103: 4080 | J103: 4161.6 | K103: 4244.832 | L103: 4329.72864 | M103: 4416.323213 | N103: 4080
B104: 472-41360-000-00000 DISABILITY COMPENSATION | D104: Fixed | E104: Salary | F104: 7680 | G104: 1460 | H104: 0 | I104: 0 | J104: 0 | K104: 0 | L104: 0 | M104: 0 | N104: 0
B105: 472-41410-000-00000 EDUCATION INCENTIVE PAY | D105: Fixed | E105: General | F105: 260 | G105: 200 | H105: 270 | I105: 278.1 | J105: 286.443 | K105: 295.03629 | L105: 303.8873787 | M105: 313.0040001 | N105: 278.1
B106: 472-41460-000-00000 ASSIGNMENT PAY | D106: Fixed | E106: Benefits | F106: 18110 | G106: 17000 | H106: 17750 | I106: 18637.5 | J106: 19569.375 | K106: 20547.84375 | L106: 21575.23594 | M106: 22653.99773 | N106: 18637.5
B107: 472-41951-000-00000 FICA | D107: Fixed | E107: Benefits | F107: 42330 | G107: 41370 | H107: 42070 | I107: 44173.5 | J107: 46382.175 | K107: 48701.28375 | L107: 51136.34794 | M107: 53693.16533 | N107: 44173.5
B108: 472-41954-000-00000 MEDICARE | D108: Fixed | E108: Benefits | F108: 9900 | G108: 9990 | H108: 9840 | I108: 10332 | J108: 10848.6 | K108: 11391.03 | L108: 11960.5815 | M108: 12558.61058 | N108: 10332
B109: 472-41957-000-00000 STATE DISABILITY INSURANCE | D109: Fixed | E109: Benefits | F109: 7260 | G109: 7410 | H109: 8150 | I109: 8557.5 | J109: 8985.375 | K109: 9434.64375 | L109: 9906.375938 | M109: 10401.69473 | N109: 8557.5
B110: 472-41958-000-00000 A.D.& D. INSURANCE | D110: Fixed | E110: Benefits | F110: 130 | G110: 140 | H110: 140 | I110: =IF($D110=$D$14,1,1+I$10)*H110*(1+INDEX(I$5:I$9,MATCH($E110,$G$5:$G$9,0))) -> 147 | J110: 154.35 | K110: 162.0675 | L110: 170.170875 | M110: 178.6794187 | N110: 147
B111: 472-41959-000-00000 LONG TERM DISABILITY INSURANCE | D111: Fixed | E111: Benefits | F111: 2580 | G111: 2560 | H111: 2620 | I111: 2751 | J111: 2888.55 | K111: 3032.9775 | L111: 3184.626375 | M111: 3343.857694 | N111: 2751
B112: 472-41961-000-00000 STATE UNEMPLOYMENT INSURANCE | D112: Fixed | E112: Benefits | F112: 2100 | G112: 2040 | H112: 2040 | I112: 2142 | J112: 2249.1 | K112: 2361.555 | L112: 2479.63275 | M112: 2603.614387 | N112: 2142
B113: 472-41963-000-00000 WORKER'S COMPENSATION INS. | D113: Fixed | E113: Benefits | F113: 32880 | G113: 31220 | H113: 29910 | I113: 31405.5 | J113: 32975.775 | K113: 34624.56375 | L113: 36355.79194 | M113: 38173.58153 | N113: 31405.5
B114: 472-41965-000-00000 LIFE INSURANCE | D114: Fixed | E114: Benefits | F114: 2140 | G114: 2090 | H114: 2090 | I114: 2194.5 | J114: 2304.225 | K114: 2419.43625 | L114: 2540.408063 | M114: 2667.428466 | N114: 2194.5
B115: 472-41967-000-00000 MEDICAL INSURANCE | D115: Fixed | E115: Benefits | F115: 111660 | G115: 121100 | H115: 135970 | I115: 142768.5 | J115: 149906.925 | K115: 157402.2713 | L115: 165272.3848 | M115: 173536.0041 | N115: 142768.5
B116: 472-41975-000-00000 SAN CLEMENTE RETIREMENT PREM. | D116: Fixed | E116: General | F116: 134320 | G116: 131530 | H116: 156550 | I116: 161246.5 | J116: 166083.895 | K116: 171066.4119 | L116: 176198.4042 | M116: 181484.3563 | N116: 161246.5
B117: Subtotal | C117: =B99 -> 472-41000 PERSONNEL | F117: =SUM(F100:F116) -> 943000 | G117: =SUM(G100:G116) -> 1057900 | H117: 1112130 | I117: 1143458.2 | J117: 1175835.88 | K117: 1209304.234 | L117: 1243906.264 | M117: 1279686.859 | N117: 1143458.2
B119: 472-42000 SUPPLIES
B120: 472-42010-000-00000 OFFICE SUPPLIES | D120: Fixed | E120: General | F120: 720 | G120: 750 | H120: 750 | I120: =IF($D120=$D$14,1,1+I$10)*H120*(1+INDEX(I$5:I$9,MATCH($E120,$G$5:$G$9,0))) -> 772.5 | J120: 795.675 | K120: 819.54525 | L120: 844.1316075 | M120: 869.4555557 | N120: =INDEX(F120:M120,$N$13) -> 772.5
B121: 472-42030-000-00000 POSTAGE | D121: Fixed | E121: General | F121: 340 | G121: 200 | H121: 200 | I121: 206 | J121: 212.18 | K121: 218.5454 | L121: 225.101762 | M121: 231.8548149 | N121: 206
B122: 472-42070-000-00000 MAPS AND BLUEPRINTS | D122: Fixed | E122: General | F122: 8000 | G122: 0 | H122: 0 | I122: 0 | J122: 0 | K122: 0 | L122: 0 | M122: 0 | N122: 0
B123: 472-42150-000-00000 CHEMICAL SUPPLIES | D123: Fixed | E123: General | F123: 246980 | G123: 255000 | H123: 260000 | I123: 267800 | J123: 275834 | K123: 284109.02 | L123: 292632.2906 | M123: 301411.2593 | N123: 267800
B124: 472-42170-000-00000 LABORATORY SUPPLIES | D124: Fixed | E124: General | F124: 12760 | G124: 12000 | H124: 12000 | I124: 12360 | J124: 12730.8 | K124: 13112.724 | L124: 13506.10572 | M124: 13911.28889 | N124: 12360
B125: 472-42280-000-00000 PROTECTIVE SUPPLIES | D125: Fixed | E125: General | F125: 2650 | G125: 2200 | H125: 2200 | I125: 2266 | J125: 2333.98 | K125: 2403.9994 | L125: 2476.119382 | M125: 2550.402963 | N125: 2266
B126: 472-42360-000-00000 EDUCATIONAL MATERIAL | D126: Fixed | E126: General | F126: 0 | G126: 1000 | H126: 1000 | I126: 1030 | J126: 1060.9 | K126: 1092.727 | L126: 1125.50881 | M126: 1159.274074 | N126: 1030
B127: 472-42390-000-00000 SMALL TOOLS AND EQUIPMENT | D127: Fixed | E127: General | F127: 2050 | G127: 3000 | H127: 3000 | I127: 3090 | J127: 3182.7 | K127: 3278.181 | L127: 3376.52643 | M127: 3477.822223 | N127: 3090
B128: 472-42490-000-00000 OTHER OPERATING SUPPLIES | D128: Fixed | E128: General | F128: 13870 | G128: 15000 | H128: 15000 | I128: 15450 | J128: 15913.5 | K128: 16390.905 | L128: 16882.63215 | M128: 17389.11111 | N128: 15450
B129: 472-42495-000-00000 WATER METERS | D129: Fixed | E129: General | F129: 34490 | G129: 20000 | H129: 5000 | I129: 5150 | J129: 5304.5 | K129: 5463.635 | L129: 5627.54405 | M129: 5796.370372 | N129: 5150
B130: 472-42530-000-00000 PAINTING SUPPLIES | D130: Fixed | E130: General | F130: 160 | G130: 500 | H130: 750 | I130: 772.5 | J130: 795.675 | K130: 819.54525 | L130: 844.1316075 | M130: 869.4555557 | N130: 772.5
B131: 472-42590-000-00000 OTHER MAINTENANCE SUPPLIES | D131: Fixed | E131: General | F131: 63870 | G131: 65000 | H131: 65000 | I131: 66950 | J131: 68958.5 | K131: 71027.255 | L131: 73158.07265 | M131: 75352.81483 | N131: 66950
B132: 472-42610-000-00000 PURCHASED WATER | D132: Fixed | E132: Utilities | F132: 0 | G132: 344560 | H132: 344560 | I132: 361788 | J132: 379877.4 | K132: 398871.27 | L132: 418814.8335 | M132: 439755.5752 | N132: 361788
B133: Subtotal | C133: =B119 -> 472-42000 SUPPLIES | F133: =SUM(F120:F132) -> 385890 | G133: =SUM(G120:G132) -> 719210 | H133: 709460 | I133: 737635 | J133: 766999.81 | K133: 797607.3523 | L133: 829512.9983 | M133: 862774.6849 | N133: 737635
B135: 472-43000 CONTRACTUAL SERVICES
B136: 472-43060-000-00000 TRAVEL AND TRAINING | D136: Fixed | E136: General | F136: 4170 | G136: 3500 | H136: 2850 | I136: =IF($D136=$D$14,1,1+I$10)*H136*(1+INDEX(I$5:I$9,MATCH($E136,$G$5:$G$9,0))) -> 2935.5 | J136: 3023.565 | K136: 3114.27195 | L136: 3207.700109 | M136: 3303.931112 | N136: =INDEX(F136:M136,$N$13) -> 2935.5
B137: 472-43320-000-00000 NATURAL GAS | D137: Variable | E137: Utilities | F137: 18560 | G137: 18000 | H137: 25000 | I137: 26250 | J137: 27562.5 | K137: 28940.625 | L137: 30387.65625 | M137: 31907.03906 | N137: 26250
B138: 472-43330-000-00000 ELECTRICITY | D138: Variable | E138: Utilities | F138: 443710 | G138: 404130 | H138: 388970 | I138: 408418.5 | J138: 428839.425 | K138: 450281.3963 | L138: 472795.4661 | M138: 496435.2394 | N138: 408418.5
B139: 472-43340-000-00000 WATER | D139: Variable | E139: Utilities | F139: 53150 | G139: 40000 | H139: 45000 | I139: 47250 | J139: 49612.5 | K139: 52093.125 | L139: 54697.78125 | M139: 57432.67031 | N139: 47250
B140: 472-43370-000-00000 LANDFILL FEES | D140: Fixed | E140: General | F140: 294690 | G140: 260000 | H140: 310000 | I140: 319300 | J140: 328879 | K140: 338745.37 | L140: 348907.7311 | M140: 359374.963 | N140: 319300
B141: 472-43450-000-00000 MAINTENANCE OF OPERATING EQUIP | D141: Fixed | E141: General | F141: 50470 | G141: 100000 | H141: 119500 | I141: 123085 | J141: 126777.55 | K141: 130580.8765 | L141: 134498.3028 | M141: 138533.2519 | N141: 123085
B142: 472-43690-000-00000 OTHER PROFESSIONAL SERVICES | D142: Fixed | E142: General | F142: 9260 | G142: 10230 | H142: 10230 | I142: 10536.9 | J142: 10853.007 | K142: 11178.59721 | L142: 11513.95513 | M142: 11859.37378 | N142: 10536.9
B143: 472-43730-000-00000 RENTAL OF EQUIPMENT | D143: Fixed | E143: General | F143: 5550 | G143: 2500 | H143: 4000 | I143: 4120 | J143: 4243.6 | K143: 4370.908 | L143: 4502.03524 | M143: 4637.096297 | N143: 4120
B144: 472-43890-000-00000 OTHER CONTRACTUAL SERVICES | D144: Fixed | E144: General | F144: 28900 | G144: 23400 | H144: 23400 | I144: 24102 | J144: 24825.06 | K144: 25569.8118 | L144: 26336.90615 | M144: 27127.01334 | N144: 24102
B145: Subtotal | C145: =B135 -> 472-43000 CONTRACTUAL SERVICES | F145: =SUM(F136:F144) -> 908460 | G145: =SUM(G136:G144) -> 861760 | H145: 928950 | I145: 965997.9 | J145: 1004616.207 | K145: 1044874.982 | L145: 1086847.534 | M145: 1130610.578 | N145: 965997.9
B147: 472-44000 OTHER CHARGES
B148: 472-44110-000-00000 DUES AND SUBSCRIPTIONS | D148: Fixed | E148: General | F148: 760 | G148: 500 | H148: 650 | I148: =IF($D148=$D$14,1,1+I$10)*H148*(1+INDEX(I$5:I$9,MATCH($E148,$G$5:$G$9,0))) -> 669.5 | J148: 689.585 | K148: 710.27255 | L148: 731.5807265 | M148: 753.5281483 | N148: =INDEX(F148:M148,$N$13) -> 669.5
B149: 472-44260-000-00000 LICENSES AND PERMITS | D149: Fixed | E149: General | F149: 19610 | G149: 31900 | H149: 31900 | I149: 32857 | J149: 33842.71 | K149: 34857.9913 | L149: 35903.73104 | M149: 36980.84297 | N149: 32857
B150: 472-44800-000-00000 DEPRECIATION | D150: Fixed | E150: General | F150: 727610 | G150: 703000 | H150: =750200+6000 -> 756200 | I150: 778886 | J150: 802252.58 | K150: 826320.1574 | L150: 851109.7621 | M150: 876643.055 | N150: 778886
B151: 472-44801-000-00000 DEPREC. RESERVE CONTRIBUTION | D151: Fixed | E151: General | F151: 275000 | G151: 275000 | H151: 250000 | I151: 257500 | J151: 265225 | K151: 273181.75 | L151: 281377.2025 | M151: 289818.5186 | N151: 257500
B152: Subtotal | C152: =B147 -> 472-44000 OTHER CHARGES | F152: =SUM(F148:F151) -> 1022980 | G152: =SUM(G148:G151) -> 1010400 | H152: 1038750 | I152: 1069912.5 | J152: 1102009.875 | K152: 1135070.171 | L152: 1169122.276 | M152: 1204195.945 | N152: 1069912.5
B154: 472-45000 CAPITAL OUTLAY
B155: 472-45500-000-00000 MACHINERY & EQUIPMENT | D155: Fixed | E155: General | F155: 0 | G155: 0 | H155: 7000 | I155: =IF($D155=$D$14,1,1+I$10)*H155*(1+INDEX(I$5:I$9,MATCH($E155,$G$5:$G$9,0))) -> 7210 | J155: =IF($D155=$D$14,1,1+J$10)*I155*(1+INDEX(J$5:J$9,MATCH($E155,$G$5:$G$9,0))) -> 7426.3 | K155: =IF($D155=$D$14,1,1+K$10)*J155*(1+INDEX(K$5:K$9,MATCH($E155,$G$5:$G$9,0))) -> 7649.089 | L155: =IF($D155=$D$14,1,1+L$10)*K155*(1+INDEX(L$5:L$9,MATCH($E155,$G$5:$G$9,0))) -> 7878.56167 | M155: =IF($D155=$D$14,1,1+M$10)*L155*(1+INDEX(M$5:M$9,MATCH($E155,$G$5:$G$9,0))) -> 8114.91852 | N155: =INDEX(F155:M155,$N$13) -> 7210
B156: Subtotal | C156: =B154 -> 472-45000 CAPITAL OUTLAY | F156: =SUM(F155) -> 0 | G156: =SUM(G155) -> 0 | H156: 7000 | I156: 7210 | J156: 7426.3 | K156: 7649.089 | L156: 7878.56167 | M156: 8114.91852 | N156: 7210
B158: 472-46000 INTERDEPARTMENTAL CHARGES
B159: 472-46080-000-00000 INFORMATION TECHNOLOGY CHARGES | D159: Fixed | E159: General | F159: 33800 | G159: 41800 | H159: 38680 | I159: =IF($D159=$D$14,1,1+I$10)*H159*(1+INDEX(I$5:I$9,MATCH($E159,$G$5:$G$9,0))) -> 39840.4 | J159: 41035.612 | K159: 42266.68036 | L159: 43534.68077 | M159: 44840.72119 | N159: =INDEX(F159:M159,$N$13) -> 39840.4
B160: 472-46110-000-00000 COMMUNICATIONS CHARGES | D160: Fixed | E160: General | F160: 570 | G160: 1820 | H160: 1810 | I160: 1864.3 | J160: 1920.229 | K160: 1977.83587 | L160: 2037.170946 | M160: 2098.286074 | N160: 1864.3
B161: 472-46130-000-00000 FLEET RENTAL CHARGES | D161: Fixed | E161: General | F161: 74080 | G161: 90530 | H161: 78990 | I161: 81359.7 | J161: 83800.491 | K161: 86314.50573 | L161: 88903.9409 | M161: 91571.05913 | N161: 81359.7
B162: 472-46510-000-00000 GENERAL FUND OVERHEAD CHARGES | D162: Fixed | E162: General | F162: 80370 | G162: 155960 | H162: 253090 | I162: 260682.7 | J162: 268503.181 | K162: 276558.2764 | L162: 284855.0247 | M162: 293400.6755 | N162: 260682.7
B163: Subtotal | C163: =B158 -> 472-46000 INTERDEPARTMENTAL CHARGES | F163: =SUM(F159:F162) -> 188820 | G163: =SUM(G159:G162) -> 290110 | H163: 372570 | I163: 383747.1 | J163: 395259.513 | K163: 407117.2984 | L163: 419330.8173 | M163: 431910.7419 | N163: 383747.1
B165: Subtotal | C165: =B98 -> 472 TREATMENT | F165: =SUM(F117,F133,F145,F152,F156,F163) -> 3449150 | G165: =SUM(G117,G133,G145,G152,G156,G163) -> 3939380 | H165: 4168860 | I165: 4307960.7 | J165: 4452147.585 | K165: 4601623.127 | L165: 4756598.452 | M165: 4917293.727 | N165: 4307960.7
B167: 473 COLLECTION
B168: 473-41000 PERSONNEL
B169: 473-41010-000-00000 SALARIES, REGULAR FULL TIME | D169: Fixed | E169: Salary | F169: 472760 | G169: 430150 | H169: 447870 | I169: =IF($D169=$D$14,1,1+I$10)*H169*(1+INDEX(I$5:I$9,MATCH($E169,$G$5:$G$9,0))) -> 456827.4 | J169: 465963.948 | K169: 475283.227 | L169: 484788.8915 | M169: 494484.6693 | N169: =INDEX(F169:M169,$N$13) -> 456827.4
B170: 473-41310-000-00000 REGULAR OVERTIME | D170: Fixed | E170: Salary | F170: 0 | G170: 50 | H170: 50 | I170: 51 | J170: 52.02 | K170: 53.0604 | L170: 54.121608 | M170: 55.20404016 | N170: 51
B171: 473-41320-000-00000 PREMIUM OVERTIME - REGULAR | D171: Fixed | E171: Salary | F171: 24020 | G171: 30000 | H171: 30000 | I171: 30600 | J171: 31212 | K171: 31836.24 | L171: 32472.9648 | M171: 33122.4241 | N171: 30600
B172: 473-41350-000-00000 ACCRUED LEAVE PAYOFF | D172: Fixed | E172: Salary | F172: 1980 | G172: 2000 | H172: 2000 | I172: 2040 | J172: 2080.8 | K172: 2122.416 | L172: 2164.86432 | M172: 2208.161606 | N172: 2040
B173: 473-41360-000-00000 DISABILITY COMPENSATION | D173: Fixed | E173: Salary | F173: 0 | G173: 2000 | H173: 0 | I173: 0 | J173: 0 | K173: 0 | L173: 0 | M173: 0 | N173: 0
B174: 473-41460-000-00000 ASSIGNMENT PAY | D174: Fixed | E174: General | F174: 20960 | G174: 22000 | H174: 22000 | I174: 22660 | J174: 23339.8 | K174: 24039.994 | L174: 24761.19382 | M174: 25504.02963 | N174: 22660
B175: 473-41951-000-00000 FICA | D175: Fixed | E175: Benefits | F175: 28590 | G175: 28070 | H175: 27980 | I175: 29379 | J175: 30847.95 | K175: 32390.3475 | L175: 34009.86488 | M175: 35710.35812 | N175: 29379
B176: 473-41954-000-00000 MEDICARE | D176: Fixed | E176: Benefits | F176: 6690 | G176: 6680 | H176: 6550 | I176: 6877.5 | J176: 7221.375 | K176: 7582.44375 | L176: 7961.565938 | M176: 8359.644234 | N176: 6877.5
B177: 473-41957-000-00000 STATE DISABILITY INSURANCE | D177: Fixed | E177: Benefits | F177: 5040 | G177: 4930 | H177: 5370 | I177: 5638.5 | J177: 5920.425 | K177: 6216.44625 | L177: 6527.268563 | M177: 6853.631991 | N177: 5638.5
B178: 473-41958-000-00000 A.D.& D. INSURANCE | D178: Fixed | E178: Benefits | F178: 80 | G178: 80 | H178: 90 | I178: 94.5 | J178: 99.225 | K178: 104.18625 | L178: 109.3955625 | M178: 114.8653406 | N178: 94.5
B179: 473-41959-000-00000 LONG TERM DISABILITY INSURANCE | D179: Fixed | E179: Benefits | F179: 1770 | G179: 1760 | H179: 1870 | I179: =IF($D179=$D$14,1,1+I$10)*H179*(1+INDEX(I$5:I$9,MATCH($E179,$G$5:$G$9,0))) -> 1963.5 | J179: 2061.675 | K179: 2164.75875 | L179: 2272.996688 | M179: 2386.646522 | N179: 1963.5
B180: 473-41961-000-00000 STATE UNEMPLOYMENT INSURANCE | D180: Fixed | E180: Benefits | F180: 1400 | G180: 1410 | H180: 1340 | I180: 1407 | J180: 1477.35 | K180: 1551.2175 | L180: 1628.778375 | M180: 1710.217294 | N180: 1407
B181: 473-41963-000-00000 WORKER'S COMPENSATION INS. | D181: Fixed | E181: Benefits | F181: 21640 | G181: 20470 | H181: 19660 | I181: 20643 | J181: 21675.15 | K181: 22758.9075 | L181: 23896.85288 | M181: 25091.69552 | N181: 20643
B182: 473-41965-000-00000 LIFE INSURANCE | D182: Fixed | E182: Benefits | F182: 1470 | G182: 1450 | H182: 1460 | I182: 1533 | J182: 1609.65 | K182: 1690.1325 | L182: 1774.639125 | M182: 1863.371081 | N182: 1533
B183: 473-41967-000-00000 MEDICAL INSURANCE | D183: Fixed | E183: Benefits | F183: 86920 | G183: 97250 | H183: 108570 | I183: 113998.5 | J183: 119698.425 | K183: 125683.3463 | L183: 131967.5136 | M183: 138565.8892 | N183: 113998.5
B184: 473-41975-000-00000 SAN CLEMENTE RETIREMENT PREM. | D184: Fixed | E184: General | F184: 84580 | G184: 83410 | H184: 102940 | I184: 106028.2 | J184: 109209.046 | K184: 112485.3174 | L184: 115859.8769 | M184: 119335.6732 | N184: 106028.2
B185: Subtotal | C185: =B168 -> 473-41000 PERSONNEL | F185: =SUM(F169:F184) -> 757900 | G185: =SUM(G169:G184) -> 731710 | H185: 777750 | I185: 799741.1 | J185: 822468.839 | K185: 845962.041 | L185: 870250.7885 | M185: 895366.4813 | N185: 799741.1
B187: 473-42000 SUPPLIES
B188: 473-42010-000-00000 OFFICE SUPPLIES | D188: Fixed | E188: General | F188: 240 | G188: 250 | H188: 250 | I188: =IF($D188=$D$14,1,1+I$10)*H188*(1+INDEX(I$5:I$9,MATCH($E188,$G$5:$G$9,0))) -> 257.5 | J188: 265.225 | K188: 273.18175 | L188: 281.3772025 | M188: 289.8185186 | N188: =INDEX(F188:M188,$N$13) -> 257.5
B189: 473-42150-000-00000 CHEMICAL SUPPLIES | D189: Fixed | E189: General | F189: 17670 | G189: 25000 | H189: 30200 | I189: 31106 | J189: 32039.18 | K189: 33000.3554 | L189: 33990.36606 | M189: 35010.07704 | N189: 31106
B190: 473-42210-000-00000 PHOTOGRAPHIC SUPPLIES | D190: Fixed | E190: General | F190: 0 | G190: 100 | H190: 100 | I190: 103 | J190: 106.09 | K190: 109.2727 | L190: 112.550881 | M190: 115.9274074 | N190: 103
B191: 473-42280-000-00000 PROTECTIVE SUPPLIES | D191: Fixed | E191: General | F191: 4600 | G191: 4000 | H191: 4000 | I191: 4120 | J191: 4243.6 | K191: 4370.908 | L191: 4502.03524 | M191: 4637.096297 | N191: 4120
B192: 473-42390-000-00000 SMALL TOOLS AND EQUIPMENT | D192: Fixed | E192: General | F192: 970 | G192: 2200 | H192: 2200 | I192: 2266 | J192: 2333.98 | K192: 2403.9994 | L192: 2476.119382 | M192: 2550.402963 | N192: 2266
B193: 473-42490-000-00000 OTHER OPERATING SUPPLIES | D193: Fixed | E193: General | F193: 9800 | G193: 10000 | H193: 10000 | I193: 10300 | J193: 10609 | K193: 10927.27 | L193: 11255.0881 | M193: 11592.74074 | N193: 10300
B194: 473-42530-000-00000 PAINTING SUPPLIES | D194: Fixed | E194: General | F194: 50 | G194: 150 | H194: 150 | I194: 154.5 | J194: 159.135 | K194: 163.90905 | L194: 168.8263215 | M194: 173.8911111 | N194: 154.5
B195: 473-42590-000-00000 OTHER MAINTENANCE SUPPLIES | D195: Fixed | E195: General | F195: 30890 | G195: 30000 | H195: 30000 | I195: 30900 | J195: 31827 | K195: 32781.81 | L195: 33765.2643 | M195: 34778.22223 | N195: 30900
B196: Subtotal | C196: =B187 -> 473-42000 SUPPLIES | F196: =SUM(F188:F195) -> 64220 | G196: =SUM(G188:G195) -> 71700 | H196: 76900 | I196: 79207 | J196: 81583.21 | K196: 84030.7063 | L196: 86551.62749 | M196: 89148.17631 | N196: 79207
B198: 473-43000 CONTRACTUAL SERVICES
B199: 473-43060-000-00000 TRAVEL AND TRAINING | D199: Fixed | E199: General | F199: 2380 | G199: 3000 | H199: 3000 | I199: =IF($D199=$D$14,1,1+I$10)*H199*(1+INDEX(I$5:I$9,MATCH($E199,$G$5:$G$9,0))) -> 3090 | J199: 3182.7 | K199: 3278.181 | L199: 3376.52643 | M199: 3477.822223 | N199: =INDEX(F199:M199,$N$13) -> 3090
B200: 473-43330-000-00000 ELECTRICITY | D200: Variable | E200: Utilities | F200: 161400 | G200: 151800 | H200: 146100 | I200: 153405 | J200: 161075.25 | K200: 169129.0125 | L200: 177585.4631 | M200: 186464.7363 | N200: 153405
B201: 473-43340-000-00000 WATER | D201: Variable | E201: Utilities | F201: 520 | G201: 500 | H201: 500 | I201: 525 | J201: 551.25 | K201: 578.8125 | L201: 607.753125 | M201: 638.1407813 | N201: 525
B202: 473-43450-000-00000 MAINTENANCE OF OPERATING EQUIP | D202: Fixed | E202: General | F202: 69220 | G202: 65000 | H202: 65000 | I202: 66950 | J202: 68958.5 | K202: 71027.255 | L202: 73158.07265 | M202: 75352.81483 | N202: 66950
B203: 473-43690-000-00000 OTHER PROFESSIONAL SERVICES | D203: Fixed | E203: General | F203: 17870 | G203: 12000 | H203: 12000 | I203: 12360 | J203: 12730.8 | K203: 13112.724 | L203: 13506.10572 | M203: 13911.28889 | N203: 12360
B204: 473-43730-000-00000 RENTAL OF EQUIPMENT | D204: Fixed | E204: General | F204: 4840 | G204: 2500 | H204: 2500 | I204: 2575 | J204: 2652.25 | K204: 2731.8175 | L204: 2813.772025 | M204: 2898.185186 | N204: 2575
B205: 473-43890-000-00000 OTHER CONTRACTUAL SERVICES | D205: Fixed | E205: General | F205: 29400 | G205: 25500 | H205: 25500 | I205: 26265 | J205: 27052.95 | K205: 27864.5385 | L205: 28700.47466 | M205: 29561.48889 | N205: 26265
B206: 473-43000-000-35201 T STREET BEACH BLDG - SEWER EVALUATION | D206: Fixed | E206: General | I206: 0 | J206: 0 | K206: 0 | L206: 0 | M206: 0 | N206: 0
B207: 473-43000-000-35202 MPS EMERGENCY FORCE MAIN REPAIR | D207: Fixed | E207: General | I207: 0 | J207: 0 | K207: 0 | L207: 0 | M207: 0 | N207: 0
B208: Subtotal | C208: =B198 -> 473-43000 CONTRACTUAL SERVICES | F208: =SUM(F199:F207) -> 285630 | G208: =SUM(G199:G207) -> 260300 | H208: 254600 | I208: 265170 | J208: 276203.7 | K208: 287722.341 | L208: 299748.1677 | M208: 312304.4771 | N208: 265170
B210: 473-44000 OTHER CHARGES
B211: 473-44110-000-00000 DUES AND SUBSCRIPTIONS | D211: Fixed | E211: General | F211: 560 | G211: 1500 | H211: 1500 | I211: =IF($D211=$D$14,1,1+I$10)*H211*(1+INDEX(I$5:I$9,MATCH($E211,$G$5:$G$9,0))) -> 1545 | J211: 1591.35 | K211: 1639.0905 | L211: 1688.263215 | M211: 1738.911111 | N211: =INDEX(F211:M211,$N$13) -> 1545
B212: 473-44260-000-00000 LICENSES AND PERMITS | D212: Fixed | E212: General | F212: 6910 | G212: 14000 | H212: 15500 | I212: 15965 | J212: 16443.95 | K212: 16937.2685 | L212: 17445.38656 | M212: 17968.74815 | N212: 15965
B213: 473-44800-000-00000 DEPRECIATION | D213: Fixed | E213: General | F213: 1648300 | G213: 1564500 | H213: 1697300 | I213: =MAX(0,IF($D213=$D$14,1,1+I$10)*H213*(1+INDEX(I$5:I$9,MATCH($E213,$G$5:$G$9,0)))+'S DB'!I6) -> 1248219 | J213: =MAX(0,IF($D213=$D$14,1,1+J$10)*I213*(1+INDEX(J$5:J$9,MATCH($E213,$G$5:$G$9,0)))+'S DB'!J6) -> 1285665.57 | K213: =MAX(0,IF($D213=$D$14,1,1+K$10)*J213*(1+INDEX(K$5:K$9,MATCH($E213,$G$5:$G$9,0)))+'S DB'!K6) -> 1824235.537 | L213: =MAX(0,IF($D213=$D$14,1,1+L$10)*K213*(1+INDEX(L$5:L$9,MATCH($E213,$G$5:$G$9,0)))+'S DB'!L6) -> 1878962.603 | M213: =MAX(0,IF($D213=$D$14,1,1+M$10)*L213*(1+INDEX(M$5:M$9,MATCH($E213,$G$5:$G$9,0)))+'S DB'!M6) -> 1935331.481 | N213: 1248219 | O213: One scenario: reduce depreciation funding by $500K for 2 yrs
B214: Subtotal | C214: =B210 -> 473-44000 OTHER CHARGES | F214: =SUM(F211:F213) -> 1655770 | G214: =SUM(G211:G213) -> 1580000 | H214: 1714300 | I214: 1265729 | J214: 1303700.87 | K214: 1842811.896 | L214: 1898096.253 | M214: 1955039.141 | N214: 1265729
B216: 473-45000 CAPITAL OUTLAY
D217: Fixed | E217: General | I217: =IF($D217=$D$14,1,1+I$10)*H217*(1+INDEX(I$5:I$9,MATCH($E217,$G$5:$G$9,0))) -> 0 | J217: =IF($D217=$D$14,1,1+J$10)*I217*(1+INDEX(J$5:J$9,MATCH($E217,$G$5:$G$9,0))) -> 0 | K217: =IF($D217=$D$14,1,1+K$10)*J217*(1+INDEX(K$5:K$9,MATCH($E217,$G$5:$G$9,0))) -> 0 | L217: =IF($D217=$D$14,1,1+L$10)*K217*(1+INDEX(L$5:L$9,MATCH($E217,$G$5:$G$9,0))) -> 0 | M217: =IF($D217=$D$14,1,1+M$10)*L217*(1+INDEX(M$5:M$9,MATCH($E217,$G$5:$G$9,0))) -> 0 | N217: =INDEX(F217:M217,$N$13) -> 0
B218: Subtotal | C218: =B216 -> 473-45000 CAPITAL OUTLAY | F218: =SUM(F217) -> 0 | G218: =SUM(G217) -> 0 | H218: 0 | I218: 0 | J218: 0 | K218: 0 | L218: 0 | M218: 0 | N218: =SUM(N217) -> 0
B220: 473-46000 INTERDEPARTMENTAL CHARGES
B221: 473-46080-000-00000 INFORMATION TECHNOLOGY CHARGES | D221: Fixed | E221: General | F221: 8450 | G221: 8360 | H221: 21490 | I221: =IF($D221=$D$14,1,1+I$10)*H221*(1+INDEX(I$5:I$9,MATCH($E221,$G$5:$G$9,0))) -> 22134.7 | J221: 22798.741 | K221: 23482.70323 | L221: 24187.18433 | M221: 24912.79986 | N221: =INDEX(F221:M221,$N$13) -> 22134.7
B222: 473-46110-000-00000 COMMUNICATIONS CHARGES | D222: Fixed | E222: General | F222: 14530 | G222: 21270 | H222: 19660 | I222: 20249.8 | J222: 20857.294 | K222: 21483.01282 | L222: 22127.5032 | M222: 22791.3283 | N222: 20249.8
B223: 473-46130-000-00000 FLEET RENTAL CHARGES | D223: Fixed | E223: General | F223: 197800 | G223: 216940 | H223: 212840 | I223: 219225.2 | J223: 225801.956 | K223: 232576.0147 | L223: 239553.2951 | M223: 246739.894 | N223: 219225.2
... 33 more rows

Sheet S Debt
A1: =client -> City of San Clemente | F1: =Model -> Financial Plan & COS Model
A2: Sewer Debt Service | F2: =rfc_budyear -> 2012
F6: =G6-1 -> 2010 | G6: =H6-1 -> 2011 | H6: =rfc_budyear -> 2012 | I6: =H6+1 -> 2013 | J6: =I6+1 -> 2014 | K6: 2015 | L6: 2016 | M6: =L6+1 -> 2017
B7: Current Debt Service Payment Schedule | F7: =IF(F6=rfc_budyear,"Budgeted",IF(F6<=rfc_budyear-2,"Actual",IF(F6=rfc_budyear-1,"Estimated","Projected"))) -> Actual | G7: Estimated | H7: Budgeted | I7: Projected | J7: Projected | K7: Projected | L7: Projected | M7: Projected
E11: Total Current Debt Service | F11: =SUM(F8:F10) -> 0 | G11: =SUM(G8:G10) -> 0 | H11: 0 | I11: 0 | J11: 0 | K11: 0 | L11: 0 | M11: 0
H14: =rfc_budyear -> 2012 | I14: =H14+1 -> 2013 | J14: =I14+1 -> 2014 | K14: =J14+1 -> 2015 | L14: =K14+1 -> 2016 | M14: =L14+1 -> 2017
B15: Proposed Debt Service Calculations | H15: =IF(H14=rfc_budyear,"Budgeted",IF(H14<=rfc_budyear-2,"Actual",IF(H14=rfc_budyear-1,"Estimated","Projected"))) -> Budgeted | I15: Projected | J15: Projected | K15: Projected | L15: Projected | M15: Projected
E16: Proposed Debt Issues | F16: from Dashboard | H16: ='S DB'!H4 -> 0 | I16: ='S DB'!I4 -> 0 | J16: ='S DB'!J4 -> 0 | K16: ='S DB'!K4 -> 0 | L16: ='S DB'!L4 -> 0 | M16: ='S DB'!M4 -> 0
E17: Debt Type | H17: ='S DB'!H5 -> Conventional | I17: ='S DB'!I5 -> Conventional | J17: ='S DB'!J5 -> Conventional | K17: ='S DB'!K5 -> Conventional | L17: ='S DB'!L5 -> Conventional | M17: ='S DB'!M5 -> Conventional
E18: Payment Start Year for SRF Loans | H18: 2014 | I18: 2017 | J18: 2017 | K18: 2017 | L18: 2018 | M18: 2018
E20: Proposed Debt Terms
E21: Interest Rate | H21: =IF(H17='Key Assumptions'!$G$30,'Key Assumptions'!H31,'Key Assumptions'!H38) -> 0.05 | I21: =IF(I17='Key Assumptions'!$G$30,'Key Assumptions'!I31,'Key Assumptions'!I38) -> 0.05 | J21: =IF(J17='Key Assumptions'!$G$30,'Key Assumptions'!J31,'Key Assumptions'!J38) -> 0.05 | K21: =IF(K17='Key Assumptions'!$G$30,'Key Assumptions'!K31,'Key Assumptions'!K38) -> 0.05 | L21: =IF(L17='Key Assumptions'!$G$30,'Key Assumptions'!L31,'Key Assumptions'!L38) -> 0.05 | M21: =IF(M17='Key Assumptions'!$G$30,'Key Assumptions'!M31,'Key Assumptions'!M38) -> 0.05
E22: Term | F22: years | H22: =IF(H18='Key Assumptions'!$G$30,'Key Assumptions'!H32,'Key Assumptions'!H39) -> 20 | I22: =IF(I18='Key Assumptions'!$G$30,'Key Assumptions'!I32,'Key Assumptions'!I39) -> 20 | J22: =IF(J18='Key Assumptions'!$G$30,'Key Assumptions'!J32,'Key Assumptions'!J39) -> 20 | K22: =IF(K18='Key Assumptions'!$G$30,'Key Assumptions'!K32,'Key Assumptions'!K39) -> 20 | L22: =IF(L18='Key Assumptions'!$G$30,'Key Assumptions'!L32,'Key Assumptions'!L39) -> 20 | M22: =IF(M18='Key Assumptions'!$G$30,'Key Assumptions'!M32,'Key Assumptions'!M39) -> 20
E23: Issuance Cost | F23: % | H23: =IF(H19='Key Assumptions'!$G$30,'Key Assumptions'!H33,'Key Assumptions'!H40) -> 0 | I23: =IF(I19='Key Assumptions'!$G$30,'Key Assumptions'!I33,'Key Assumptions'!I40) -> 0 | J23: =IF(J19='Key Assumptions'!$G$30,'Key Assumptions'!J33,'Key Assumptions'!J40) -> 0 | K23: =IF(K19='Key Assumptions'!$G$30,'Key Assumptions'!K33,'Key Assumptions'!K40) -> 0 | L23: =IF(L19='Key Assumptions'!$G$30,'Key Assumptions'!L33,'Key Assumptions'!L40) -> 0 | M23: =IF(M19='Key Assumptions'!$G$30,'Key Assumptions'!M33,'Key Assumptions'!M40) -> 0
E24: Debt Service Reserve Requirements | F24: % | H24: =IF(H20='Key Assumptions'!$G$30,'Key Assumptions'!H34,'Key Assumptions'!H41) -> 0 | I24: =IF(I20='Key Assumptions'!$G$30,'Key Assumptions'!I34,'Key Assumptions'!I41) -> 0 | J24: =IF(J20='Key Assumptions'!$G$30,'Key Assumptions'!J34,'Key Assumptions'!J41) -> 0 | K24: =IF(K20='Key Assumptions'!$G$30,'Key Assumptions'!K34,'Key Assumptions'!K41) -> 0 | L24: =IF(L20='Key Assumptions'!$G$30,'Key Assumptions'!L34,'Key Assumptions'!L41) -> 0 | M24: =IF(M20='Key Assumptions'!$G$30,'Key Assumptions'!M34,'Key Assumptions'!M41) -> 0
E26: Proceeds to Depreciation Funds | H26: =H16*(1-H23-H24) -> 0 | I26: =I16*(1-I23-I24) -> 0 | J26: 0 | K26: 0 | L26: 0 | M26: 0
E27: Proceeds to Debt Service Reserve Funds | H27: =H16*H24 -> 0 | I27: =I16*I24 -> 0 | J27: 0 | K27: 0 | L27: 0 | M27: 0
E28: Annual Debt Service Payment | H28: =-PMT(H21,H22,H16,0) -> 0 | I28: =-PMT(I21,I22,I16,0) -> 0 | J28: 0 | K28: 0 | L28: 0 | M28: 0
E30: Debt Service Payments for Debt Issued in
D31: =INDEX($H$17:$M$17,F31) -> Conventional | E31: =H14 -> 2012 | F31: =MATCH(E31,$H$14:$M$14,0) -> 1 | G31: =INDEX(IF(D31='Key Assumptions'!$G$30,$H$14:$M$14,$H$18:$M$18),F31)-E31 -> 0 | H31: =IF(H$14<$E31+$G31,"",IF(H$14<$E31+INDEX($H$22:$M$22,$F31)+$G31,INDEX($H$28:$M$28,$F31),0)) -> 0 | I31: 0 | J31: =IF(J$14<$E31+$G31,"",IF(J$14<$E31+INDEX($H$22:$M$22,$F31)+$G31,INDEX($H$28:$M$28,$F31),0)) -> 0 | K31: 0 | L31: 0 | M31: =IF(M$14<$E31+$G31,"",IF(M$14<$E31+INDEX($H$22:$M$22,$F31)+$G31,INDEX($H$28:$M$28,$F31),0)) -> 0
D32: =INDEX($H$17:$M$17,F32) -> Conventional | E32: =E31+1 -> 2013 | F32: =MATCH(E32,$H$14:$M$14,0) -> 2 | G32: =INDEX(IF(D32='Key Assumptions'!$G$30,$H$14:$M$14,$H$18:$M$18),F32)-E32 -> 0 | I32: 0 | J32: 0 | K32: 0 | L32: 0 | M32: 0
D33: Conventional | E33: =E32+1 -> 2014 | F33: 3 | G33: =INDEX(IF(D33='Key Assumptions'!$G$30,$H$14:$M$14,$H$18:$M$18),F33)-E33 -> 0 | J33: 0 | K33: 0 | L33: 0 | M33: 0
D34: Conventional | E34: =E33+1 -> 2015 | F34: 4 | G34: =INDEX(IF(D34='Key Assumptions'!$G$30,$H$14:$M$14,$H$18:$M$18),F34)-E34 -> 0 | K34: 0 | L34: 0 | M34: 0
D35: Conventional | E35: =E34+1 -> 2016 | F35: 5 | G35: =INDEX(IF(D35='Key Assumptions'!$G$30,$H$14:$M$14,$H$18:$M$18),F35)-E35 -> 0 | L35: 0 | M35: 0
D36: Conventional | E36: =E35+1 -> 2017 | F36: 6 | G36: =INDEX(IF(D36='Key Assumptions'!$G$30,$H$14:$M$14,$H$18:$M$18),F36)-E36 -> 0 | M36: 0
E37: Total Proposed Debt Service | H37: =SUM(H31:H36) -> 0 | I37: =SUM(I31:I36) -> 0 | J37: 0 | K37: 0 | L37: 0 | M37: 0
A51: End of Worksheet

Sheet S CF
A1: =client -> City of San Clemente | F1: =Model -> Financial Plan & COS Model
A2: Operating Cash Flows | F2: =rfc_budyear -> 2012
H3: =H7 -> 2012 | I3: =I7 -> 2013 | J3: 2014 | K3: 2015 | L3: 2016 | M3: 2017
G4: Rev Adjustments | H4: ='S DB'!H3 -> 0 | I4: ='S DB'!I3 -> 0.08 | J4: ='S DB'!J3 -> 0.08 | K4: ='S DB'!K3 -> 0.06 | L4: ='S DB'!L3 -> 0.04 | M4: ='S DB'!M3 -> 0.03
G5: ='Key Assumptions'!G26 -> Other Rev | H5: ='Key Assumptions'!H26 -> 0.01 | I5: ='Key Assumptions'!I26 -> 0.01 | J5: ='Key Assumptions'!J26 -> 0.01 | K5: ='Key Assumptions'!K26 -> 0.01 | L5: ='Key Assumptions'!L26 -> 0.01 | M5: ='Key Assumptions'!M26 -> 0.01
G6: ='Key Assumptions'!G27 -> Interest Earnings | H6: ='Key Assumptions'!H27 -> 0.03 | I6: ='Key Assumptions'!I27 -> 0.03 | J6: ='Key Assumptions'!J27 -> 0.03 | K6: ='Key Assumptions'!K27 -> 0.03 | L6: ='Key Assumptions'!L27 -> 0.03 | M6: ='Key Assumptions'!M27 -> 0.03
H7: =rfc_budyear -> 2012 | I7: =H7+1 -> 2013 | J7: 2014 | K7: 2015 | L7: 2016 | M7: 2017 | N7: =rfc_testyear -> 2013
H8: =IF(H7=rfc_budyear,"Budgeted",IF(H7<=rfc_budyear-2,"Actual",IF(H7=rfc_budyear-1,"Estimated","Projected"))) -> Budgeted | I8: Projected | J8: Projected | K8: Projected | L8: Projected | M8: Projected | N8: Test Year
D9: REVENUES | N9: =MATCH(N7,H7:M7) -> 2
D10: OPERATING REVENUES
D11: Revenues from Current Rates | H11: =SUM(H12:H13) -> 7473140 | I11: =SUM(I12:I13) -> 7725086.676 | J11: 7725086.676 | K11: 7725086.676 | L11: 7725086.676 | M11: 7725086.676 | N11: =INDEX(H11:M11,$N$9) -> 7725086.676
D12: ='S Rev'!B217 -> 34425-000-00000 SEWER BASE FEE | H12: ='S Rev'!H217 -> 4482230 | I12: ='S Rev'!I217 -> 4647270.12 | J12: ='S Rev'!J217 -> 4647270.12 | K12: ='S Rev'!K217 -> 4647270.12 | L12: ='S Rev'!L217 -> 4647270.12 | M12: ='S Rev'!M217 -> 4647270.12 | N12: =INDEX(H12:M12,$N$9) -> 4647270.12
D13: ='S Rev'!B218 -> 34420-000-00000 SEWER COMMODITY FEE | H13: ='S Rev'!H218 -> 2990910 | I13: ='S Rev'!I218 -> 3077816.556 | J13: ='S Rev'!J218 -> 3077816.556 | K13: ='S Rev'!K218 -> 3077816.556 | L13: ='S Rev'!L218 -> 3077816.556 | M13: ='S Rev'!M218 -> 3077816.556 | N13: =INDEX(H13:M13,$N$9) -> 3077816.556
D14: Revenue Adjustments
D15: Year | E15: % | F15: Effective Months
D16: =H7 -> 2012 | E16: =INDEX($H$4:$M$4,MATCH(D16,$H$3:$M$3,0)) -> 0 | F16: Aug | G16: =INDEX('Key Assumptions'!$H$50:$H$61,MATCH(F16,Monthlist,0)) -> 11 | H16: =IF(H$7<$D16,"",IF(H$7=$D16,SUM(H$12:H15)*$E16*$G16/bills,SUM(H$12:H15)*$E16)) -> 0 | I16: =IF(I$7<$D16,"",IF(I$7=$D16,SUM(I$12:I15)*$E16*$G16/bills,SUM(I$12:I15)*$E16)) -> 0 | J16: =IF(J$7<$D16,"",IF(J$7=$D16,SUM(J$12:J15)*$E16*$G16/bills,SUM(J$12:J15)*$E16)) -> 0 | K16: =IF(K$7<$D16,"",IF(K$7=$D16,SUM(K$12:K15)*$E16*$G16/bills,SUM(K$12:K15)*$E16)) -> 0 | L16: =IF(L$7<$D16,"",IF(L$7=$D16,SUM(L$12:L15)*$E16*$G16/bills,SUM(L$12:L15)*$E16)) -> 0 | M16: =IF(M$7<$D16,"",IF(M$7=$D16,SUM(M$12:M15)*$E16*$G16/bills,SUM(M$12:M15)*$E16)) -> 0 | N16: 0 | O16: =IF(D16=rfc_testyear,N16,0) -> 0 | P16: =IF(D16=rfc_testyear,E16,0) -> 0 | Q16: =IF(D16=rfc_testyear,G16,0) -> 0
D17: =D16+1 -> 2013 | E17: =INDEX($H$4:$M$4,MATCH(D17,$H$3:$M$3,0)) -> 0.08 | F17: Aug | G17: =INDEX('Key Assumptions'!$H$50:$H$61,MATCH(F17,Monthlist,0)) -> 11 | H17: =IF(H$7<$D17,"",IF(H$7=$D17,SUM(H$12:H16)*$E17*$G17/bills,SUM(H$12:H16)*$E17)) ->  | I17: =IF(I$7<$D17,"",IF(I$7=$D17,SUM(I$12:I16)*$E17*$G17/bills,SUM(I$12:I16)*$E17)) -> 566506.3563 | J17: =IF(J$7<$D17,"",IF(J$7=$D17,SUM(J$12:J16)*$E17*$G17/bills,SUM(J$12:J16)*$E17)) -> 618006.9341 | K17: =IF(K$7<$D17,"",IF(K$7=$D17,SUM(K$12:K16)*$E17*$G17/bills,SUM(K$12:K16)*$E17)) -> 618006.9341 | L17: =IF(L$7<$D17,"",IF(L$7=$D17,SUM(L$12:L16)*$E17*$G17/bills,SUM(L$12:L16)*$E17)) -> 618006.9341 | M17: =IF(M$7<$D17,"",IF(M$7=$D17,SUM(M$12:M16)*$E17*$G17/bills,SUM(M$12:M16)*$E17)) -> 618006.9341 | N17: 566506.3563 | O17: 566506.3563 | P17: 0.08 | Q17: 11
D18: =D17+1 -> 2014 | E18: 0.08 | F18: Aug | G18: =INDEX('Key Assumptions'!$H$50:$H$61,MATCH(F18,Monthlist,0)) -> 11 | H18: =IF(H$7<$D18,"",IF(H$7=$D18,SUM(H$12:H17)*$E18*$G18/bills,SUM(H$12:H17)*$E18)) ->  | I18: =IF(I$7<$D18,"",IF(I$7=$D18,SUM(I$12:I17)*$E18*$G18/bills,SUM(I$12:I17)*$E18)) ->  | J18: =IF(J$7<$D18,"",IF(J$7=$D18,SUM(J$12:J17)*$E18*$G18/bills,SUM(J$12:J17)*$E18)) -> 611826.8648 | K18: =IF(K$7<$D18,"",IF(K$7=$D18,SUM(K$12:K17)*$E18*$G18/bills,SUM(K$12:K17)*$E18)) -> 667447.4888 | L18: =IF(L$7<$D18,"",IF(L$7=$D18,SUM(L$12:L17)*$E18*$G18/bills,SUM(L$12:L17)*$E18)) -> 667447.4888 | M18: =IF(M$7<$D18,"",IF(M$7=$D18,SUM(M$12:M17)*$E18*$G18/bills,SUM(M$12:M17)*$E18)) -> 667447.4888 | O18: 0 | P18: 0 | Q18: 0
D19: 2015 | E19: 0.06 | F19: Aug | G19: =INDEX('Key Assumptions'!$H$50:$H$61,MATCH(F19,Monthlist,0)) -> 11 | H19: =IF(H$7<$D19,"",IF(H$7=$D19,SUM(H$12:H18)*$E19*$G19/bills,SUM(H$12:H18)*$E19)) ->  | I19: =IF(I$7<$D19,"",IF(I$7=$D19,SUM(I$12:I18)*$E19*$G19/bills,SUM(I$12:I18)*$E19)) ->  | J19: =IF(J$7<$D19,"",IF(J$7=$D19,SUM(J$12:J18)*$E19*$G19/bills,SUM(J$12:J18)*$E19)) ->  | K19: =IF(K$7<$D19,"",IF(K$7=$D19,SUM(K$12:K18)*$E19*$G19/bills,SUM(K$12:K18)*$E19)) -> 495579.7605 | L19: =IF(L$7<$D19,"",IF(L$7=$D19,SUM(L$12:L18)*$E19*$G19/bills,SUM(L$12:L18)*$E19)) -> 540632.466 | M19: =IF(M$7<$D19,"",IF(M$7=$D19,SUM(M$12:M18)*$E19*$G19/bills,SUM(M$12:M18)*$E19)) -> 540632.466 | O19: 0 | P19: 0 | Q19: 0
D20: 2016 | E20: 0.04 | F20: Aug | G20: =INDEX('Key Assumptions'!$H$50:$H$61,MATCH(F20,Monthlist,0)) -> 11 | H20: =IF(H$7<$D20,"",IF(H$7=$D20,SUM(H$12:H19)*$E20*$G20/bills,SUM(H$12:H19)*$E20)) ->  | I20: =IF(I$7<$D20,"",IF(I$7=$D20,SUM(I$12:I19)*$E20*$G20/bills,SUM(I$12:I19)*$E20)) ->  | J20: =IF(J$7<$D20,"",IF(J$7=$D20,SUM(J$12:J19)*$E20*$G20/bills,SUM(J$12:J19)*$E20)) ->  | K20: =IF(K$7<$D20,"",IF(K$7=$D20,SUM(K$12:K19)*$E20*$G20/bills,SUM(K$12:K19)*$E20)) ->  | L20: =IF(L$7<$D20,"",IF(L$7=$D20,SUM(L$12:L19)*$E20*$G20/bills,SUM(L$12:L19)*$E20)) -> 350209.6974 | M20: =IF(M$7<$D20,"",IF(M$7=$D20,SUM(M$12:M19)*$E20*$G20/bills,SUM(M$12:M19)*$E20)) -> 382046.9426 | O20: 0 | P20: 0 | Q20: 0
D21: 2017 | E21: 0.03 | F21: Aug | G21: =INDEX('Key Assumptions'!$H$50:$H$61,MATCH(F21,Monthlist,0)) -> 11 | H21: =IF(H$7<$D21,"",IF(H$7=$D21,SUM(H$12:H20)*$E21*$G21/bills,SUM(H$12:H20)*$E21)) ->  | I21: =IF(I$7<$D21,"",IF(I$7=$D21,SUM(I$12:I20)*$E21*$G21/bills,SUM(I$12:I20)*$E21)) ->  | J21: =IF(J$7<$D21,"",IF(J$7=$D21,SUM(J$12:J20)*$E21*$G21/bills,SUM(J$12:J20)*$E21)) ->  | K21: =IF(K$7<$D21,"",IF(K$7=$D21,SUM(K$12:K20)*$E21*$G21/bills,SUM(K$12:K20)*$E21)) ->  | L21: =IF(L$7<$D21,"",IF(L$7=$D21,SUM(L$12:L20)*$E21*$G21/bills,SUM(L$12:L20)*$E21)) ->  | M21: =IF(M$7<$D21,"",IF(M$7=$D21,SUM(M$12:M20)*$E21*$G21/bills,SUM(M$12:M20)*$E21)) -> 273163.564 | O21: 0 | P21: 0 | Q21: 0
D22: Subtotal Revenues from Rates | H22: =SUM(H12:H21) -> 7473140 | I22: =SUM(I12:I21) -> 8291593.033 | J22: 8954920.475 | K22: 9506120.86 | L22: 9901383.263 | M22: 10206384.07 | N22: 8291593.033 | O22: 566506.3563 | P22: 0.08 | Q22: 11
D24: Other Operating Revenues
D25: ='S Rev'!B222 -> 32374-000-00000 CHGS MODIFICATION CONN FEES | H25: ='S Rev'!H222 -> 0 | I25: ='S Rev'!I222 -> 0 | J25: ='S Rev'!J222 -> 0 | K25: ='S Rev'!K222 -> 0 | L25: ='S Rev'!L222 -> 0 | M25: ='S Rev'!M222 -> 0 | N25: 0
D26: ='S Rev'!B223 -> 34430-000-00000 EFFLUENT WATER SALES | H26: ='S Rev'!H223 -> 457010 | I26: ='S Rev'!I223 -> 228505 | J26: ='S Rev'!J223 -> 0 | K26: ='S Rev'!K223 -> 0 | L26: ='S Rev'!L223 -> 0 | M26: ='S Rev'!M223 -> 0 | N26: 228505
D27: ='S Rev'!B224 -> 36810-000-00000 WORK ORDERS | H27: ='S Rev'!H224 -> 2500 | I27: ='S Rev'!I224 -> 2525 | J27: ='S Rev'!J224 -> 2550.25 | K27: ='S Rev'!K224 -> 2575.7525 | L27: ='S Rev'!L224 -> 2601.510025 | M27: ='S Rev'!M224 -> 2627.525125 | N27: 2525
D28: ="Subtotal "&D24 -> Subtotal Other Operating Revenues | H28: =SUM(H25:H27) -> 459510 | I28: 231030 | J28: 2550.25 | K28: 2575.7525 | L28: 2601.510025 | M28: 2627.525125 | N28: 231030
D30: Non-Operating Revenues
D31: ='S Rev'!B227 -> 36110-000-00000 INVESTMENT EARNINGS | H31: =H89 -> 1960.263959 | I31: =I89 -> 4368.200415 | J31: 10387.84367 | K31: 15610.03764 | L31: 18887.69244 | M31: 23488.29735 | N31: =INDEX(H31:M31,$N$9) -> 4368.200415
D32: ='S Rev'!B228 -> 36130-000-00000 UNREALIZED GAIN / LOSS ON INVESTMENT | H32: ='S Rev'!H228 -> 0 | I32: ='S Rev'!I228 -> 0 | J32: ='S Rev'!J228 -> 0 | K32: ='S Rev'!K228 -> 0 | L32: ='S Rev'!L228 -> 0 | M32: ='S Rev'!M228 -> 0 | N32: 0
D33: ='S Rev'!B229 -> 36180-000-00000 INTEREST EARNINGS - OTHER | H33: ='S Rev'!H229 -> 0 | I33: ='S Rev'!I229 -> 0 | J33: ='S Rev'!J229 -> 0 | K33: ='S Rev'!K229 -> 0 | L33: ='S Rev'!L229 -> 0 | M33: ='S Rev'!M229 -> 0 | N33: 0
D34: ='S Rev'!B230 -> 33180-000-00000 OTHER FEDERAL GRANT | H34: ='S Rev'!H230 -> 0 | I34: ='S Rev'!I230 -> 0 | J34: ='S Rev'!J230 -> 0 | K34: ='S Rev'!K230 -> 0 | L34: ='S Rev'!L230 -> 0 | M34: ='S Rev'!M230 -> 0 | N34: 0
D35: ='S Rev'!B231 -> 33481-000-18201 PROP 50 | H35: ='S Rev'!H231 -> 0 | I35: ='S Rev'!I231 -> 0 | J35: ='S Rev'!J231 -> 0 | K35: ='S Rev'!K231 -> 0 | L35: ='S Rev'!L231 -> 0 | M35: ='S Rev'!M231 -> 0 | N35: 0
D36: ='S Rev'!B232 -> 36850-000-00000 MISCELLANEOUS INCOME | H36: ='S Rev'!H232 -> 1000 | I36: ='S Rev'!I232 -> 1010 | J36: ='S Rev'!J232 -> 1020.1 | K36: ='S Rev'!K232 -> 1030.301 | L36: ='S Rev'!L232 -> 1040.60401 | M36: ='S Rev'!M232 -> 1051.01005 | N36: 1010
D37: ='S Rev'!B233 -> 36855-000-00000 MISCELLANEOUS REIMBURSEMENTS | H37: ='S Rev'!H233 -> 500 | I37: ='S Rev'!I233 -> 505 | J37: ='S Rev'!J233 -> 510.05 | K37: ='S Rev'!K233 -> 515.1505 | L37: ='S Rev'!L233 -> 520.302005 | M37: ='S Rev'!M233 -> 525.505025 | N37: 505
D38: ='S Rev'!B234 -> 36858-000-00000 OTHER AGENCY REVENUE | H38: ='S Rev'!H234 -> 0 | I38: ='S Rev'!I234 -> 0 | J38: ='S Rev'!J234 -> 0 | K38: ='S Rev'!K234 -> 0 | L38: ='S Rev'!L234 -> 0 | M38: ='S Rev'!M234 -> 0 | N38: 0
D39: ='S Rev'!B235 -> 39110-000-00000 GAIN/LOSS - DISPOSAL GEN'L FIXED ASSETS | H39: ='S Rev'!H235 -> 0 | I39: ='S Rev'!I235 -> 0 | J39: ='S Rev'!J235 -> 0 | K39: ='S Rev'!K235 -> 0 | L39: ='S Rev'!L235 -> 0 | M39: ='S Rev'!M235 -> 0 | N39: 0
D40: ="Subtotal "&D30 -> Subtotal Non-Operating Revenues | H40: =SUM(H31:H39) -> 3460.263959 | I40: 5883.200415 | J40: 11917.99367 | K40: 17155.48914 | L40: 20448.59846 | M40: 25064.81242 | N40: 5883.200415
D42: TOTAL REVENUES | H42: =SUM(H22,H28,H40) -> 7936110.264 | I42: 8528506.233 | J42: 8969388.719 | K42: 9525852.101 | L42: 9924433.371 | M42: 10234076.41 | N42: 8528506.233
D44: REVENUE REQUIREMENTS
D45: O&M Expenses
D46: ='S O&M'!C257 -> 471 SEWER ADMINISTRATION | H46: ='S O&M'!H251 -> 1270690 | I46: ='S O&M'!I251 -> 1309058.2 | J46: ='S O&M'!J251 -> 1348662.556 | K46: ='S O&M'!K251 -> 1389545.863 | L46: ='S O&M'!L251 -> 1431752.514 | M46: ='S O&M'!M251 -> 1475328.565 | N46: =INDEX(H46:M46,$N$9) -> 1309058.2
D47: ='S O&M'!C258 -> 472 TREATMENT | H47: ='S O&M'!H252 -> 3162660 | I47: ='S O&M'!I252 -> 3271574.7 | J47: ='S O&M'!J252 -> 3384670.005 | K47: ='S O&M'!K252 -> 3502121.22 | L47: ='S O&M'!L252 -> 3624111.487 | M47: ='S O&M'!M252 -> 3750832.153 | N47: 3271574.7
D48: ='S O&M'!C259 -> 473 COLLECTION | H48: ='S O&M'!H253 -> 1503130 | I48: ='S O&M'!I253 -> 1549814.5 | J48: ='S O&M'!J253 -> 1598123.041 | K48: ='S O&M'!K253 -> 1648118.399 | L48: ='S O&M'!L253 -> 1699865.994 | M48: ='S O&M'!M253 -> 1753434.007 | N48: 1549814.5
D49: ="Subtotal "&D45 -> Subtotal O&M Expenses | H49: =SUM(H46:H48) -> 5936480 | I49: =SUM(I46:I48) -> 6130447.4 | J49: 6331455.602 | K49: 6539785.482 | L49: 6755729.995 | M49: 6979594.726 | N49: 6130447.4
D51: Non-Operating Expenses
D52: Current Debt Service | H52: ='S Debt'!H11 -> 0 | I52: ='S Debt'!I11 -> 0 | J52: ='S Debt'!J11 -> 0 | K52: ='S Debt'!K11 -> 0 | L52: ='S Debt'!L11 -> 0 | M52: ='S Debt'!M11 -> 0 | N52: =INDEX(H52:M52,$N$9) -> 0
D53: Proposed Debt Service | H53: ='S Debt'!H37 -> 0 | I53: ='S Debt'!I37 -> 0 | J53: ='S Debt'!J37 -> 0 | K53: ='S Debt'!K37 -> 0 | L53: ='S Debt'!L37 -> 0 | M53: ='S Debt'!M37 -> 0 | N53: 0
D54: Depreciation Funding
D55: To Sewer Depreciation Fund | H55: =SUM('S O&M'!H244:H245,'S O&M'!H247) -> 2486000 | I55: =SUM('S O&M'!I244:I245,'S O&M'!I247) -> 2060580 | J55: =SUM('S O&M'!J244:J245,'S O&M'!J247) -> 2122397.4 | K55: =SUM('S O&M'!K244:K245,'S O&M'!K247) -> 2686069.322 | L55: =SUM('S O&M'!L244:L245,'S O&M'!L247) -> 2766651.402 | M55: =SUM('S O&M'!M244:M245,'S O&M'!M247) -> 2849650.944 | N55: 2060580
D56: To Other Agency Depreciation Fund | H56: ='S O&M'!H246 -> 250000 | I56: ='S O&M'!I246 -> 257500 | J56: ='S O&M'!J246 -> 265225 | K56: ='S O&M'!K246 -> 273181.75 | L56: ='S O&M'!L246 -> 281377.2025 | M56: ='S O&M'!M246 -> 289818.5186 | N56: 257500
D57: ="Subtotal "&D51 -> Subtotal Non-Operating Expenses | H57: =SUM(H52:H56) -> 2736000 | I57: =SUM(I52:I56) -> 2318080 | J57: 2387622.4 | K57: 2959251.072 | L57: 3048028.604 | M57: 3139469.462 | N57: 2318080
D59: TOTAL REVENUE REQUIREMENTS | H59: =SUM(H49,H57) -> 8672480 | I59: =SUM(I49,I57) -> 8448527.4 | J59: 8719078.002 | K59: 9499036.554 | L59: 9803758.599 | M59: 10119064.19 | N59: 8448527.4
D61: NET INCOME | H61: =H42-H59 -> -736369.736 | I61: =I42-I59 -> 79978.83311 | J61: 250310.717 | K61: 26815.54782 | L61: 120674.7723 | M61: 115012.2216 | N61: 79978.83311
D63: Debt Coverage | H63: =IFERROR((H42-H49)/SUM(H52:H53),"") ->  | I63: =IFERROR((I42-I49)/SUM(I52:I53),"") ->  | N63: =INDEX(H63:M63,$N$9) -> 
D64: Target Debt Coverage | H64: ='S DB'!$F$10 -> 1.5 | I64: =H64 -> 1.5 | J64: =I64 -> 1.5 | K64: 1.5 | L64: 1.5 | M64: 1.5 | N64: 1.5
A69: =client -> City of San Clemente | F69: =Model -> Financial Plan & COS Model
A70: Reserve Activities | F70: =rfc_budyear -> 2012
H71: ='Key Assumptions'!H9 -> 2012 | I71: ='Key Assumptions'!I9 -> 2013 | J71: ='Key Assumptions'!J9 -> 2014 | K71: ='Key Assumptions'!K9 -> 2015 | L71: ='Key Assumptions'!L9 -> 2016 | M71: ='Key Assumptions'!M9 -> 2017 | N71: =N75 -> 2013
G72: ='Key Assumptions'!G27 -> Interest Earnings | H72: ='Key Assumptions'!H27 -> 0.03 | I72: ='Key Assumptions'!I27 -> 0.03 | J72: ='Key Assumptions'!J27 -> 0.03 | K72: ='Key Assumptions'!K27 -> 0.03 | L72: ='Key Assumptions'!L27 -> 0.03 | M72: ='Key Assumptions'!M27 -> 0.03 | N72: =INDEX(H72:M72,$N$9) -> 0.03
G73: ='Key Assumptions'!G11 &" Escalator" -> General Escalator | H73: ='Key Assumptions'!H11 -> 0.03 | I73: ='Key Assumptions'!I11 -> 0.03 | J73: ='Key Assumptions'!J11 -> 0.03 | K73: ='Key Assumptions'!K11 -> 0.03 | L73: ='Key Assumptions'!L11 -> 0.03 | M73: ='Key Assumptions'!M11 -> 0.03 | N73: 0.03
G74: CCI Cummulative Escalators | H74: ='CIP & Assets'!H73 -> 1 | I74: ='CIP & Assets'!I73 -> 1 | J74: ='CIP & Assets'!J73 -> 1.04 | K74: ='CIP & Assets'!K73 -> 1.0816 | L74: ='CIP & Assets'!L73 -> 1.124864 | M74: ='CIP & Assets'!M73 -> 1.16985856 | N74: 1
H75: =rfc_budyear -> 2012 | I75: =H75+1 -> 2013 | J75: =I75+1 -> 2014 | K75: =J75+1 -> 2015 | L75: =K75+1 -> 2016 | M75: =L75+1 -> 2017 | N75: =rfc_testyear -> 2013
H76: =IF(H75=rfc_budyear,"Budgeted",IF(H75<=rfc_budyear-2,"Actual",IF(H75=rfc_budyear-1,"Estimated","Projected"))) -> Budgeted | I76: Projected | J76: Projected | K76: Projected | L76: Projected | M76: Projected | N76: Test Year
D78: Sewer Operating Fund
D79: Beginning Balance | H79: 42822 | I79: =H88 -> 87862.26396 | J79: =I88 -> 203351.0971 | K79: 489171.814 | L79: 551497.3619 | M79: 707682.1342 | N79: =INDEX(H79:M79,$N$9) -> 87862.26396
D80: =D61 -> NET INCOME | H80: =H61 -> -736369.736 | I80: =I61 -> 79978.83311 | J80: 250310.717 | K80: 26815.54782 | L80: 120674.7723 | M80: 115012.2216 | N80: 79978.83311
D81: Transfers from / (to) other Funds
D82: ='S Rev'!B239 -> GENERAL FUND | H82: ='S Rev'!H239 -> 35510 | I82: ='S Rev'!I239 -> 35510 | J82: ='S Rev'!J239 -> 35510 | K82: ='S Rev'!K239 -> 35510 | L82: ='S Rev'!L239 -> 35510 | M82: ='S Rev'!M239 -> 35510 | N82: 35510
D83: ='S Rev'!B240 -> WATER FUND | H83: ='S Rev'!H240 -> 0 | I83: ='S Rev'!I240 -> 0 | J83: ='S Rev'!J240 -> 0 | K83: ='S Rev'!K240 -> 0 | L83: ='S Rev'!L240 -> 0 | M83: ='S Rev'!M240 -> 0 | N83: 0
D84: ='S Rev'!B241 -> CLEAN OCEAN FUND | H84: ='S Rev'!H241 -> 0 | I84: ='S Rev'!I241 -> 0 | J84: ='S Rev'!J241 -> 0 | K84: ='S Rev'!K241 -> 0 | L84: ='S Rev'!L241 -> 0 | M84: ='S Rev'!M241 -> 0 | N84: 0
D85: ='S Rev'!B242 -> OTHER FUNDS | H85: ='S Rev'!H242 -> 45900 | I85: ='S Rev'!I242 -> 0 | J85: ='S Rev'!J242 -> 0 | K85: ='S Rev'!K242 -> 0 | L85: ='S Rev'!L242 -> 0 | M85: ='S Rev'!M242 -> 0 | N85: 0
D86: ='S Rev'!B243 -> SEWER DEPRECIATION FUND | H86: ='S Rev'!H243 -> 700000 | I86: ='S Rev'!I243 -> 0 | J86: ='S Rev'!J243 -> 0 | K86: ='S Rev'!K243 -> 0 | L86: ='S Rev'!L243 -> 0 | M86: ='S Rev'!M243 -> 0 | N86: 0
D87: ='S Rev'!B245 -> SEWER DEPRECIATION OTHER AGENCY FUND | H87: ='S Rev'!H245 -> 0 | I87: ='S Rev'!I245 -> 0 | J87: ='S Rev'!J245 -> 0 | K87: ='S Rev'!K245 -> 0 | L87: ='S Rev'!L245 -> 0 | M87: ='S Rev'!M245 -> 0 | N87: 0
D88: Ending Balance | H88: =SUM(H79:H87) -> 87862.26396 | I88: 203351.0971 | J88: 489171.814 | K88: 551497.3619 | L88: 707682.1342 | M88: 858204.3557 | N88: 203351.0971
D89: Interest Income | H89: =MAX(0,2*H79+SUM(H82:H87,H22,H28,H32:H39)-H59)/(2-H$72)*H$72 -> 1960.263959 | I89: =MAX(0,2*I79+SUM(I82:I87,I22,I28,I32:I39)-I59)/(2-I$72)*I$72 -> 4368.200415 | J89: 10387.84367 | K89: 15610.03764 | L89: 18887.69244 | M89: 23488.29735 | N89: 4368.200415
D91: Sewer Depreciation Fund - 476
D92: Beginning Balance | H92: 4996778 | I92: =H104 -> 5336263.624 | J92: =I104 -> 4164804.344 | K92: =J104 -> 5439575.482 | L92: =K104 -> 7231345.907 | M92: =L104 -> 9459186.496
D93: Depreciation Funding | H93: =H55 -> 2486000 | I93: =I55 -> 2060580 | J93: 2122397.4 | K93: 2686069.322 | L93: 2766651.402 | M93: 2849650.944
D94: Interdepartmental Charges | H94: -101510 | I94: =H94*(1+I$73) -> -104555.3 | J94: =I94*(1+J$73) -> -107691.959 | K94: -110922.7178 | L94: -114250.3993 | M94: -117677.9113
D95: Capital Expenditures | H95: =-'CIP & Assets'!H75 -> -1500000 | I95: =-'CIP & Assets'!I75 -> -2450000 | J95: =-'CIP & Assets'!J75 -> -884000 | K95: =-'CIP & Assets'!K75 -> -973440 | L95: =-'CIP & Assets'!L75 -> -674918.4 | M95: =-'CIP & Assets'!M75 -> -1520816.128
D96: Debt Proceeds for CIP | H96: ='S Debt'!H26 -> 0 | I96: ='S Debt'!I26 -> 0 | J96: ='S Debt'!J26 -> 0 | K96: ='S Debt'!K26 -> 0 | L96: ='S Debt'!L26 -> 0 | M96: ='S Debt'!M26 -> 0
D97: Transfers from / (to) other Funds
D98: ='S Rev'!B249 -> GENERAL FUND | H98: ='S Rev'!H249 -> 0 | I98: ='S Rev'!I249 -> 0 | J98: ='S Rev'!J249 -> 0 | K98: ='S Rev'!K249 -> 0 | L98: ='S Rev'!L249 -> 0 | M98: ='S Rev'!M249 -> 0
D99: ='S Rev'!B250 -> WATER FUND | H99: ='S Rev'!H250 -> 0 | I99: ='S Rev'!I250 -> 0 | J99: ='S Rev'!J250 -> 0 | K99: ='S Rev'!K250 -> 0 | L99: ='S Rev'!L250 -> 0 | M99: ='S Rev'!M250 -> 0
D100: ='S Rev'!B251 -> RW FUND | H100: ='S Rev'!H251 -> 0 | I100: ='S Rev'!I251 -> -820000 | J100: ='S Rev'!J251 -> 0 | K100: ='S Rev'!K251 -> 0 | L100: ='S Rev'!L251 -> 0 | M100: ='S Rev'!M251 -> 0
D101: ='S Rev'!B252 -> CLEAN OCEAN FUND | H101: ='S Rev'!H252 -> 0 | I101: ='S Rev'!I252 -> 0 | J101: ='S Rev'!J252 -> 0 | K101: ='S Rev'!K252 -> 0 | L101: ='S Rev'!L252 -> 0 | M101: ='S Rev'!M252 -> 0
D102: ='S Rev'!B253 -> SEWER OPERATING FUND | H102: ='S Rev'!H253 -> -700000 | I102: ='S Rev'!I253 -> 0 | J102: ='S Rev'!J253 -> 0 | K102: ='S Rev'!K253 -> 0 | L102: ='S Rev'!L253 -> 0 | M102: ='S Rev'!M253 -> 0
D103: Interest Income | H103: =MAX(0,(2*H92+SUM(H93:H102))/(2-H$72)*H$72) -> 154995.6244 | I103: =MAX(0,(2*I92+SUM(I93:I102))/(2-I$72)*I$72) -> 142516.0195 | J103: 144065.6974 | K103: 190063.8208 | L103: 250357.986 | M103: 306541.0644
D104: Ending Balance | H104: =SUM(H92:H103) -> 5336263.624 | I104: =SUM(I92:I103) -> 4164804.344 | J104: 5439575.482 | K104: 7231345.907 | L104: 9459186.496 | M104: 10976884.46
D106: Sewer Other Agency Depr. Fund - 478
D107: Beginning Balance | H107: 1371639 | I107: =H117 -> 1649414.807 | J107: =I117 -> 1942730.791 | K107: =J117 -> 2252272.657 | L107: =K117 -> 2578753.366 | M107: =L117 -> 2922914.156
D108: Depreciation Funding | H108: =H56 -> 250000 | I108: =I56 -> 257500 | J108: 265225 | K108: 273181.75 | L108: 281377.2025 | M108: 289818.5186
D109: Interdepartmental Charges | H109: -17540 | I109: =H109*(1+I$73) -> -18066.2 | J109: =I109*(1+J$73) -> -18608.186 | K109: -19166.43158 | L109: -19741.42453 | M109: -20333.66726
D110: Capital Expenditures | H110: =-'CIP & Assets'!H76 -> 0 | I110: =-'CIP & Assets'!I76 -> 0 | J110: =-'CIP & Assets'!J76 -> 0 | K110: =-'CIP & Assets'!K76 -> 0 | L110: =-'CIP & Assets'!L76 -> 0 | M110: =-'CIP & Assets'!M76 -> 0
D111: Transfers from / (to) other Funds
D112: ='S Rev'!B257 -> GENERAL FUND | H112: ='S Rev'!H257 -> 0 | I112: ='S Rev'!I257 -> 0 | J112: ='S Rev'!J257 -> 0 | K112: ='S Rev'!K257 -> 0 | L112: ='S Rev'!L257 -> 0 | M112: ='S Rev'!M257 -> 0
D113: ='S Rev'!B258 -> WATER FUND | H113: ='S Rev'!H258 -> 0 | I113: ='S Rev'!I258 -> 0 | J113: ='S Rev'!J258 -> 0 | K113: ='S Rev'!K258 -> 0 | L113: ='S Rev'!L258 -> 0 | M113: ='S Rev'!M258 -> 0
D114: ='S Rev'!B259 -> CLEAN OCEAN FUND | H114: ='S Rev'!H259 -> 0 | I114: ='S Rev'!I259 -> 0 | J114: ='S Rev'!J259 -> 0 | K114: ='S Rev'!K259 -> 0 | L114: ='S Rev'!L259 -> 0 | M114: ='S Rev'!M259 -> 0
D115: ='S Rev'!B260 -> SEWER OPERATING FUND | H115: ='S Rev'!H260 -> 0 | I115: ='S Rev'!I260 -> 0 | J115: ='S Rev'!J260 -> 0 | K115: ='S Rev'!K260 -> 0 | L115: ='S Rev'!L260 -> 0 | M115: ='S Rev'!M260 -> 0
D116: Interest Income | H116: =MAX(0,(2*H107+SUM(H108:H115))/(2-H$72)*H$72) -> 45315.80711 | I116: =MAX(0,(2*I107+SUM(I108:I115))/(2-I$72)*I$72) -> 53882.18397 | J116: 62925.05172 | K116: 72465.39034 | L116: 82525.01283 | M116: 93126.59641
D117: Ending Balance | H117: =SUM(H107:H116) -> 1649414.807 | I117: =SUM(I107:I116) -> 1942730.791 | J117: 2252272.657 | K117: 2578753.366 | L117: 2922914.156 | M117: 3285525.604
D119: Total Interest Income | H119: =SUM(H116,H103,H89) -> 202271.6954 | I119: 200766.4039 | J119: 217378.5928 | K119: 278139.2488 | L119: 351770.6913 | M119: 423155.9582
D121: Ending Balances | H121: =SUM(H122:H124) -> 7073540.695 | I121: =SUM(I122:I124) -> 6310886.232 | J121: 8181019.953 | K121: 10361596.63 | L121: 13089782.79 | M121: 15120614.42
D122: =D78 -> Sewer Operating Fund | H122: =H88 -> 87862.26396 | I122: =I88 -> 203351.0971 | J122: 489171.814 | K122: 551497.3619 | L122: 707682.1342 | M122: 858204.3557
D123: =D91 -> Sewer Depreciation Fund - 476 | H123: =H104 -> 5336263.624 | I123: 4164804.344 | J123: 5439575.482 | K123: 7231345.907 | L123: 9459186.496 | M123: 10976884.46
D124: =D106 -> Sewer Other Agency Depr. Fund - 478 | H124: =H117 -> 1649414.807 | I124: 1942730.791 | J124: 2252272.657 | K124: 2578753.366 | L124: 2922914.156 | M124: 3285525.604
